Workbook

Sheet Cover Page
C8: City and Hackney - Practice Clinical Trends (LDP) Report
B19: General Health | C19: The number and percentage of patients on GP register aged over 16 with BMI and smoking status recorded
B20: Hypertension | C20: The number and percentage of patients on hypertension registers. The number and percentage of patients on register with blood pressure measured within last 9 months is less than 150/90
B21: CHD | C21: The number and percentage of patients on CHD register. Indicators included: cholesterol, BP ≤ 150/90
B22: Stroke/TIA | C22: The number and percentage of patients on Stroke/TIA register. Indicators included: BP recorded - BP <140/90.
B23: CVD Risk | C23: The number and percentage of patients eligible for CVD risk score (aged 25 -84). Indicators included: QRISK score, QRISK greater than 20% and proxy review
B24: Diabetes | C24: The number and percentage of patients on diabetes register. Indicators include: blood pressure; cholesterol; HbA1c; flu vaccination
B25: Mental Health | C25: The number and percentage of patients on Mental Health register. Indicators included: severe mental illness review and smoking status
B26: CKD | C26: The number and percentage of patients on CKD register. Indicators included: blood pressure and new diagnosis within 6 months
B27: COPD | C27: The number and percentage of patients on COPD register. Indicators included: severe or very severe COPD (FEV1<50) and smoking status
C30: N/A indicates either that no usable data has been returned or that calculation of a proportion is impossible

Sheet Full Explanatory Notes
A8: Worksheet | B8: Description of column contents
A9: General Health | B9: Patients aged 16 and over on the GP register
B10: Patients aged 16 and over on the GP register, with a BMI recorded in the last 12 months
B11: Patients aged 16 and over on the GP register, with a BMI ≥30 & <35
B12: Patients aged 16 and over on the GP register, with a BMI ≥ 35 & <40
B13: Patients aged 16 and over on the GP register, with a BMI ≥ 40
B14: Patients aged 16 and over on the GP register with smoking status recorded in the last 12 months
B15: Patients aged 16 and over on the GP register with smoking status recorded in the last 12 months, recorded as being a smoker.
A17: Hypertension | B17: Patients on the Hypertension register.
B18: Patients on the Hypertension register with BP recorded in the last 12 months.
B19: Patients on the Hypertension register with BP < 140/90 (Patients aged under 80) < 150/90 ( Aged 80 and over) (last 12m)
A21: CHD | B21: Patients on the CHD register
B22: Patients on the CHD register with cholesterol recorded in the last 12 months.
B23: Patients on the CHD register with last measured cholesterol < 5mmol in the last 12 months
B24: Patients on the CHD register with BP ≤ 150/90 (last 9m)
A26: Stroke/TIA | B26: Patients on the Stroke/TIA register
B27: Patients on the Stroke/TIA register with a BP recorded in last 12 months
B28: Patients on the Stroke/TIA register with BP recorded in the last 12 months with BP < 140/90
A30: CVD Risk | B30: Patients eligible for a CVD risk score (aged 25 - 84 excluding CVD)
B31: Patients with a QRISK or Framingham risk score done.
B32: Patients with a Q Risk score of 20% or higher
B33: Patients with a Q Risk score of 20% or higher and an annual review or proxy annual review
A35: Diabetes | B35: Patients on the diabetes register
B36: Patients on the diabetes register with BP recorded in the last 12 months
B37: Patients on the diabetes register with latest BP < 145/85 in the last 12 months
B38: Patients on the diabetes register with last measured cholesterol, measured within the last 15 months < 5mmol/l
B39: Patients on the diabetes register with last HbA1c < 59in the last 12 months
B40: Patients on the diabetes register with a Flu Jab within the last 12 months.
A43: Mental Health | B43: Patients on the Mental Health register
B44: Patients on the Mental Health register with a review recorded within the last 12 months.
B45: Patients on the Mental Health register with smoking status recorded within the last 12 months
B46: Patients on the Mental Health register with smoking status recorded within the last 12 months recorded as a smoker
B47: Patients on the Mental Health register with smoking status recorded within the last 12 months referred to the stop smoking clinic
B48: Patients on the Mental Health register with smoking status recorded within the last 12 months who are recorded as quitters
B49: Patients with Mental Health with blood pressure recorded in the last 12m
B50: Patients with Mental Health with QRISK recorded in the last 12m
B51: Patients with Mental Health with QRISK 20% or higher in the last 12m
A53: CKD | B53: Patients on CKD register
B54: Patients on the CKD register with blood pressure recorded
B55: Patients on the CKD register with blood pressure < 140/90
B56: Patients on the CKD register with new diagnosis of CKD in the last 6 months
A58: COPD | B58: Patients on COPD register
B59: No of patients with severe or very severe COPD (FEV1<50)
B60: No. of COPD Patients with smoking status recorded (last 12m) or never smoked
B61: No. of COPD patients recorded as a Smoker
B62: No. of COPD Patients who are current smokers & referred to the Stop Smoking Clinic (12m)
B63: No of COPD with flu vaccination (12m)
B64: No of COPD with pneumococcal vaccination ever
B65: No of COPD patients referred to pulmonary rehab ever

Sheet 2019-20 Changes (hidden)
A1: OLD (2017-2018) | C1: NEW (2018-2019) | E1: NEW (2019-20)
A2: List Size | C2: List Size | E2: List Size
A3: Age 16+ | C3: Age 16+ | E3: Age 16+
A4: % list size | C4: % list size | E4: % list size
A5: 16+ and BMI (last 15m) | C5: 16+ and BMI (last 12m) | E5: 16+ and BMI (last 12m)
A6: % 16+ | C6: % 16+ | E6: % 16+
A7: BMI 25 to 29 | C7: BMI ≥30 & <35 | E7: BMI ≥30 & <35
A8: % 16+ | C8: % 16+ | E8: % 16+
A9: BMI ≥ 30 | C9: BMI ≥ 35 & <40 | E9: BMI ≥ 35 & <40
A10: %16+ | C10: %16+ | E10: %16+
A11: BMI ≥ 40 | C11: BMI ≥ 40 | E11: BMI ≥ 40
A12: %16+ | C12: %16+ | E12: %16+
A13: Smoking status (last 15m) incl. never smoked | C13: Smoking status (last 12m) incl. never smoked | E13: Smoking status (last 12m) incl. never smoked
A14: % 16+ | C14: % 16+ | E14: % 16+
A15: Age 16+ and current smoker (last 15m) | C15: Age 16+ and current smoker (last 12m) | E15: Age 16+ and current smoker (last 12m)
A16: % 16+ | C16: % 16+ | E16: % 16+
A18: Hypertension Register | C18: Hypertension Register | E18: Hypertension Register
A19: % list size | C19: % list size | E19: % list size
A20: Hypertension and BP (last 9m) | C20: Hypertension and BP (last 12m) | E20: Hypertension and BP (last 12m)
A21: % Hypertension Register | C21: % Hypertension Register | E21: % Hypertension Register
A22: Hypertension and BP ≤ 150/90 (last 9m) | C22: Hypertension and BP < 140/90 (Patients aged under 80) < 150/90 ( Aged 80 and over) (last 12m) | E22: Hypertension and BP < 140/90 (Patients aged under 80) < 150/90 ( Aged 80 and over) (last 12m)
A23: % Hypertension Register | C23: % Hypertension Register | E23: % Hypertension Register
A25: CHD register | C25: CHD register | E25: CHD register
A26: % list size | C26: % list size | E26: % list size
A27: Cholesterol (last 15m) | C27: Cholesterol (last 12m) | E27: Cholesterol (last 12m)
A28: % CHD register | C28: % CHD register | E28: % CHD register
A29: Cholesterol ≤ 5 (last 15m) | C29: Cholesterol < 5 (last 12m) | E29: Cholesterol < 5 (last 12m)
A30: % CHD register | C30: % CHD register | E30: % CHD register
A31: BP (last 9m) | C31: BP ≤ 150/90 (last 9m) | E31: BP ≤ 150/90 (last 9m)
A32: % CHD register | C32: % CHD register | E32: % CHD register
A33: BP ≤ 150/90 (last 9m)
A34: % CHD register | E34: Stroke/TIA register
A35: CHD annual review or proxy review | E35: % list size
A36: % CHD register | E36: BP Recorded
A37: CHD diagnosed in last 6 months | E37: % Stroke/TIA register
A38: % CHD register | E38: BP <140/90 (last 12m)
E39: % Stroke/TIA register
A41: Aged 35 to 74 (exc CVD) | C41: Aged 25 to 84 (exc CVD) | E41: Aged 25 to 84 (exc CVD)
A42: CVD (QRISK or Framingham) risk score done | C42: QRISK recorded (5 years) | E42: QRISK recorded (5 years)
A43: % of patients aged 35 to 74 (exc CVD) | C43: % of patients aged 25 to 84 (exc CVD) | E43: % of patients aged 25 to 84 (exc CVD)
A44: QRISK ≥ 20% | C44: QRISK ≥ 20% | E44: QRISK ≥ 20%
A45: % QRISK Score recorded | C45: % QRISK Score recorded | E45: % QRISK Score recorded
A46: QRISK ≥ 20% and proxy review (BP and Chol last 15m) | C46: QRISK ≥ 20% and proxy review (BP and Chol last 12m) | E46: QRISK ≥ 20% and proxy review (BP and Chol last 12m)
A47: % Patients with QRISK ≥ 20% | C47: % Patients with QRISK ≥ 20% | E47: % Patients with QRISK ≥ 20%
A49: Diabetes register | C49: Diabetes register | E49: Diabetes register
A50: % List size | C50: % List size | E50: % List size
A51: BP (last 15m) | C51: BP (last 12m) | E51: BP (last 12m)
A52: % Diabetes Register | C52: % Diabetes Register | E52: % Diabetes Register
A53: BP ≤ 145/85 (last 15m) | C53: BP < 145/85 (last 12m) | E53: BP < 145/85 (last 12m)
A54: % Diabetes Register | C54: % Diabetes Register | E54: % Diabetes Register
A55: Cholesterol < 5mmols (last 15m) | C55: Cholesterol < 5mmols (last 12m) | E55: Cholesterol < 5mmols (last 12m)
A56: % Diabetes Register | C56: % Diabetes Register | E56: % Diabetes Register
A57: HbA1c ≤ 59(last 15m) | C57: HbA1c < 59 (last 12m) | E57: HbA1c < 59 (last 12m)
A58: % Diabetes register | C58: % Diabetes register | E58: % Diabetes register
A59: Flu jab (last 15m) | C59: Flu jab (last 12m) | E59: Flu jab (From August 2019)
A60: % Diabetes Register | C60: % Diabetes Register | E60: % Diabetes Register
A61: Annual review/ called or proxy (last 15m)
A62: % Diabetes register
A63: Cholesterol (last 15m)
A64: % Diabetes Register
A65: HbA1c ≤ 86 (last 15m)
A66: % Diabetes Register
A67: Diabetes retinal screening (last 15m)
A68: % Diabetes register
A69: Retinal screening (last 15m)
A70: % Diabetes register
A71: Neuropathy testing (last 15m)
A72: % Diabetes Register
A73: Microalbuminuria (last 15m)
A74: % Diabetes Register
A75: Type 1 Diabetes
A76: % Diabetes Register
A77: Type 2 Diabetes
A78: % Diabetes Register
A79: No Type Recorded
A80: % Diabetes Register
A81: Type 2 diabetes excluding insulin prescriptions (last 15 m)
A82: % Type 2 Diabetes
A83: Newly Diagnosed Diabetes (Last 1m)
A84: Newly Diagnosed Diabetes - Type 1
A85: Newly Diagnosed Diabetes - Type 2
A86: Newly Diagnosed Diabetes - Type Not Recorded
A87: Diabetics under 18 years old
A88: Diabetics Under 18 with HbA1c ≤ 59 (last 15m)
A89: % of Diabetics under 18
A90: No. of patients with diabetes diagnosed with CKD in the last 15m
A91: % Diabetes Register
A92: No. of patients with diabetes diagnosed with CHD and/or Stroke/TIA in the last 12 months
A93: % Diabetes Register
A94: No. of patients with diabetes diagnosed with Depression in the last 12 months
A95: %Diabetes Register
A96: No. of patients who have ever had gestational diabetes
A97: No. of patients who have ever had gestational diabetes who are also on diabetes register
A98: % of patients with gestational diabetes
A100: SMI register (QOF) | C100: Mental Health register | E100: Mental Health register
A101: % list size | C101: % list size | E101: % list size
A102: No. of SMI Patients with smoking status recorded (last 12m) or never smoked | C102: No. of Mental Health Patients with smoking status recorded (last 12m) or never smoked | E102: No. of Mental Health Patients with smoking status recorded (last 12m) or never smoked
A103: % SMI Register | C103: % Mental Health Register | E103: % Mental Health Register
A104: No. of SMI patients recorded as a Smoker | C104: No. of Mental Health patients recorded as a Smoker | E104: No. of Mental Health patients recorded as a Smoker
A105: % SMI Register | C105: % Mental Health Register | E105: % Mental Health Register
A106: No. of SMI Patients who are current smokers & referred to the Stop Smoking Clinic | C106: No. of Mental Health Patients who are current smokers & referred to the Stop Smoking Clinic | E106: No. of Mental Health Patients who are current smokers & referred to the Stop Smoking Clinic
A107: % SMI Register | C107: % Mental Health Register | E107: % Mental Health Register
A108: No. Of SMI Patients who are recorded as quitters | C108: No. Of Mental Health Patients who are recorded as quitters | E108: No. Of Mental Health Patients who are recorded as quitters
A109: % SMI Register | C109: % Mental Health Register | E109: % Mental Health Register
A110: Patients with SMI with QRISK recorded in the last 12m | C110: Patients with Mental Health with QRISK recorded in the last 12m | E110: Patients with Mental Health with QRISK recorded in the last 12m
A111: % SMI Register | C111: % Mental Health Register | E111: % Mental Health Register
A112: Patients with SMI with QRISK 20% or higher in the last 12m | C112: Patients with Mental Health with QRISK 20% or higher in the last 12m | E112: Patients with Mental Health with QRISK 20% or higher in the last 12m
A113: % patients with QRISK recorded 20% or higher | C113: % patients with QRISK recorded | E113: % patients with QRISK recorded
A114: Patients with SMI with BP & QRisk on the same day in the last 12m | C114: Patients with Mental Health with BP & QRisk on the same day in the last 12m | E114: Patients with Mental Health with BP & QRisk on the same day in the last 12m
A115: % Patients with SMI with BP & QRisk on the same day in the last 12m | C115: % Mental Health Register | E115: % Mental Health Register
A117: No. of patients on CKD register (QOF definition) | C117: No. of patients on CKD register | E117: No. of patients on CKD register
A118: % List Size | C118: % List Size | E118: % List Size
A119: BP Recorded (last 15m) | C119: BP Recorded (last 12m) | E119: BP Recorded (last 12m)
A120: % CKD register | C120: % CKD register | E120: % CKD register
A121: BP ≤ 140/90 | C121: BP < 140/90 | E121: BP < 140/90
A122: % CKD register | C122: % CKD register | E122: % CKD register
A123: No of patients with new diagnosis of CKD (last 6m) | C123: No of patients with new diagnosis of CKD (last 6m) | E123: No of patients with new diagnosis of CKD (last 6m)
A124: % CKD register | C124: % CKD register | E124: % CKD register
C126: No. of patients on COPD register | E126: No. of patients on COPD register
C127: % List Size | E127: % List Size
C128: No of patients with severe or very severe COPD (FEV1<50) | E128: No of patients with severe or very severe COPD (FEV1<50)
C129: % COPD register | E129: % COPD register
C130: No. of COPD Patients with smoking status recorded (last 12m) or never smoked | E130: No. of COPD Patients with smoking status recorded (last 12m) or never smoked
C131: % COPD | E131: % COPD
C132: No. of COPD patients recorded as a Smoker | E132: No. of COPD patients recorded as a Smoker
C133: % COPD | E133: % COPD
C134: No. of COPD Patients who are current smokers & referred to the Stop Smoking Clinic | E134: No. of COPD Patients who are current smokers & referred to the Stop Smoking Clinic
C135: % of current COPD smokers | E135: % of current COPD smokers
C136: No of COPD with flu vaccination (12m) | E136: No of COPD with flu vaccination (From August 2019)
C137: % of COPD register | E137: % of COPD register
C138: No of COPD with pneumococcal vaccination ever | E138: No of COPD with pneumococcal vaccination ever
C139: % of COPD register | E139: % of COPD register
C140: No of COPD patients referred to pulmonary rehab ever | E140: No of COPD patients referred to pulmonary rehab ever
C141: % of COPD register | E141: % of COPD register

Sheet Data (hidden)
A1: 2019-04-01 | C1: 01 LDP | E1: Last Run: | G1: Population Count | H1: 1456922 | K1: Search | L1: 01. Listsize | M1: LDP.04.11: Diabetes and BP in last 12 months | N1: LDP.05: CVD 25-84yrs (excl CVD) | O1: LDP.08.02 CKD Diagnosed (Last 6m) | P1: LDP.08.03 CKD and BP Recorded (last 12 m) | Q1: CSPMH. 01.03 QRisk Recorded (12m) | R1: CSPMH. 01.03.01 BP recorded on same day as QRisk (12m) | S1: CSPMH. 01.03.02 Qrisk>=20 (12m) | T1: LDP.08.01 CKD and BP less than 140/90 (last 12 m) | U1: LDP.08 CKD Register | V1: LDP.05.01: CVD QRISK greater than or equal 20% | W1: LDP.05.01.01: CVD Proxy Annual Review (last 12m) | X1: LDP.05.02: Cardiovascular Risk Score Done (5y) | Y1: LDP.04.09: Diabetes BP less than 145/85 (last 12m) | Z1: LDP.04.08: Diabetes Chol less than 5mmol (last 12m) | AA1: LDP.01.01.01: Obesity BMI more than or equal to 35 less than 40 (last 12m) | AB1: LDP.01.01.02: Obesity BMI between 30-35 (last 12m) | AC1: LDP.01.01.03: Obesity BMI equal to or over 40 (last 12m) | AD1: LDP.01.02: Smoking Status (last 12m) or Never Smoked (25yrs+) | AE1: LDP.01.03: Current Smoker (last 12m) | AF1: LDP.01.01: Obesity BMI recorded (last 12m) | AG1: LDP.01: Aged 16yrs+ | AH1: CSPMH.01 SMI Register | AI1: CSPMH.01.02 Smoking Status Recorded (12m) | AJ1: CSPMH.01.02.01 Current Smoker (12m) | AK1: CSPMH 01.02.01.01 Ref to clinic 12m | AL1: CSPMH.01.02.02 Ex-smoker Recorded (latest 12m) | AM1: LDP.02: Hypertension Register | AN1: LDP.02.01: Hypertension and BP < 140/90 (age under 80) < 150/90 (Age 80+) | AO1: LDP.04.07: Diabetes Influenza Vaccinations (From August 2018) | AP1: LDP.04.01: Diabetes HbA1c <7.5% OR <59mmol (last 12m) | AQ1: LDP.02.02: Hypertension BP recorded (last 12m) | AR1: LDP.03: CHD Register | AS1: LDP.03.01: CHD Chol less than 5mmol (last 12m) | AT1: LDP.03.04: CHD Cholesterol recorded (last 12m) | AU1: LDP.04: Diabetes Register | AV1: LDP.09 COPD Register | AW1: LDP.09.01 Patients with severe or very severe COPD (FEV1<50) | AX1: LDP.09.02 Patients with smoking status recorded (last 12m) or never smoked | AY1: LDP.09.03 COPD patients recorded as a Smoker | AZ1: LDP.09.04 COPD Patients who are current smokers & referred to the Stop Smoking C | BA1: LDP.09.05 No of COPD with flu vaccination (From August 2018) | BB1: LDP.09.06 No of COPD with pneumococcal vaccination ever | BC1: LDP.09.07 No of COPD patients referred to pulmonary rehab ever | BD1: LDP.03.02: CHD BP less than or equal 150/90 (last 9m) | BE1: LDP.10 Stroke or TIA register | BF1: LDP.10.01: Stroke/TIA BP recorded (last 12m) | BG1: LDP.10.02 Patients on Stroke/TIA register with BP <140/90 (12m)
A2: 2019-04-01 | E2: 2019-05-03T14:53:00 | G2: Males | H2: 707613 | J2: Organisation Code
A3: 2019-04-01 | E3: Relative Date: | G3: Females | H3: 749309 | J3: F84003 | L3: 13677 | M3: 786 | N3: 9215 | O3: 11 | P3: 228 | Q3: 143 | R3: 48 | S3: 20 | T3: 159 | U3: 237 | V3: 657 | W3: 432 | X3: 4526 | Y3: 701 | Z3: 530 | AA3: 318 | AB3: 631 | AC3: 156 | AD3: 7063 | AE3: 1040 | AF3: 3245 | AG3: 11049 | AH3: 257 | AI3: 185 | AJ3: 84 | AK3: 3 | AL3: 39 | AM3: 1608 | AN3: 1130 | AO3: 506 | AP3: 442 | AQ3: 1533 | AR3: 314 | AS3: 167 | AT3: 214 | AU3: 816 | AV3: 200 | AW3: 47 | AX3: 176 | AY3: 78 | AZ3: 4 | BA3: 139 | BB3: 124 | BC3: 153 | BD3: 256 | BE3: 189 | BF3: 173 | BG3: 130
A4: 2019-04-01 | E4: 2019-05-01 | J4: F84008 | L4: 12556 | M4: 552 | N4: 8927 | O4: 15 | P4: 202 | Q4: 114 | R4: 52 | S4: 13 | T4: 149 | U4: 218 | V4: 589 | W4: 371 | X4: 5248 | Y4: 459 | Z4: 392 | AA4: 178 | AB4: 422 | AC4: 114 | AD4: 6115 | AE4: 677 | AF4: 3059 | AG4: 10309 | AH4: 226 | AI4: 165 | AJ4: 67 | AK4: 2 | AL4: 43 | AM4: 1285 | AN4: 802 | AO4: 369 | AP4: 334 | AQ4: 1138 | AR4: 220 | AS4: 130 | AT4: 152 | AU4: 579 | AV4: 164 | AW4: 46 | AX4: 141 | AY4: 70 | AZ4: 1 | BA4: 118 | BB4: 112 | BC4: 116 | BD4: 153 | BE4: 139 | BF4: 130 | BG4: 96
A5: 2019-04-01 | J5: F84013 | L5: 15146 | M5: 487 | N5: 6548 | O5: 19 | P5: 175 | Q5: 61 | R5: 40 | S5: 10 | T5: 139 | U5: 185 | V5: 473 | W5: 367 | X5: 2749 | Y5: 438 | Z5: 391 | AA5: 225 | AB5: 477 | AC5: 98 | AD5: 5578 | AE5: 362 | AF5: 2341 | AG5: 9076 | AH5: 151 | AI5: 109 | AJ5: 36 | AK5: 4 | AL5: 14 | AM5: 991 | AN5: 741 | AO5: 286 | AP5: 290 | AQ5: 911 | AR5: 181 | AS5: 115 | AT5: 136 | AU5: 512 | AV5: 88 | AW5: 23 | AX5: 73 | AY5: 28 | AZ5: 3 | BA5: 57 | BB5: 62 | BC5: 57 | BD5: 136 | BE5: 90 | BF5: 84 | BG5: 70
A6: 2019-04-01 | J6: F84015 | L6: 5446 | M6: 414 | N6: 3423 | O6: 4 | P6: 156 | Q6: 54 | R6: 38 | S6: 11 | T6: 119 | U6: 165 | V6: 270 | W6: 231 | X6: 2272 | Y6: 383 | Z6: 313 | AA6: 178 | AB6: 421 | AC6: 143 | AD6: 3122 | AE6: 474 | AF6: 1945 | AG6: 4304 | AH6: 87 | AI6: 76 | AJ6: 39 | AK6: 2 | AL6: 17 | AM6: 837 | AN6: 601 | AO6: 303 | AP6: 245 | AQ6: 789 | AR6: 104 | AS6: 73 | AT6: 92 | AU6: 428 | AV6: 90 | AW6: 15 | AX6: 86 | AY6: 30 | AZ6: 7 | BA6: 70 | BB6: 51 | BC6: 45 | BD6: 90 | BE6: 66 | BF6: 64 | BG6: 46
A7: 2019-04-01 | J7: F84018 | L7: 11727 | M7: 588 | N7: 7986 | O7: 4 | P7: 186 | Q7: 94 | R7: 72 | S7: 15 | T7: 136 | U7: 189 | V7: 472 | W7: 388 | X7: 5088 | Y7: 533 | Z7: 419 | AA7: 252 | AB7: 591 | AC7: 179 | AD7: 6300 | AE7: 902 | AF7: 3599 | AG7: 9391 | AH7: 190 | AI7: 169 | AJ7: 75 | AK7: 9 | AL7: 33 | AM7: 1106 | AN7: 795 | AO7: 386 | AP7: 339 | AQ7: 1043 | AR7: 186 | AS7: 120 | AT7: 167 | AU7: 610 | AV7: 121 | AW7: 33 | AX7: 114 | AY7: 47 | AZ7: 3 | BA7: 91 | BB7: 75 | BC7: 84 | BD7: 150 | BE7: 94 | BF7: 92 | BG7: 66
A8: 2019-04-01 | J8: F84021 | L8: 10368 | M8: 432 | N8: 7679 | O8: 8 | P8: 176 | Q8: 64 | R8: 42 | S8: 9 | T8: 131 | U8: 189 | V8: 384 | W8: 299 | X8: 3578 | Y8: 378 | Z8: 331 | AA8: 168 | AB8: 376 | AC8: 92 | AD8: 5687 | AE8: 746 | AF8: 2470 | AG8: 8686 | AH8: 153 | AI8: 111 | AJ8: 54 | AK8: 5 | AL8: 23 | AM8: 870 | AN8: 584 | AO8: 311 | AP8: 282 | AQ8: 801 | AR8: 144 | AS8: 83 | AT8: 100 | AU8: 459 | AV8: 109 | AW8: 30 | AX8: 98 | AY8: 43 | AZ8: 2 | BA8: 79 | BB8: 79 | BC8: 83 | BD8: 110 | BE8: 84 | BF8: 73 | BG8: 56
A9: 2019-04-01 | J9: F84033 | L9: 12012 | M9: 583 | N9: 8593 | O9: 1 | P9: 203 | Q9: 77 | R9: 43 | S9: 9 | T9: 161 | U9: 217 | V9: 468 | W9: 345 | X9: 4733 | Y9: 535 | Z9: 443 | AA9: 253 | AB9: 644 | AC9: 164 | AD9: 6638 | AE9: 1188 | AF9: 3565 | AG9: 9999 | AH9: 166 | AI9: 139 | AJ9: 71 | AK9: 4 | AL9: 30 | AM9: 1220 | AN9: 898 | AO9: 439 | AP9: 340 | AQ9: 1123 | AR9: 199 | AS9: 135 | AT9: 173 | AU9: 601 | AV9: 131 | AW9: 36 | AX9: 127 | AY9: 63 | AZ9: 4 | BA9: 101 | BB9: 92 | BC9: 96 | BD9: 161 | BE9: 111 | BF9: 110 | BG9: 100
A10: 2019-04-01 | J10: F84035 | L10: 7864 | M10: 239 | N10: 6276 | O10: 4 | P10: 63 | Q10: 20 | R10: 16 | S10: 4 | T10: 53 | U10: 66 | V10: 186 | W10: 132 | X10: 1827 | Y10: 219 | Z10: 182 | AA10: 103 | AB10: 228 | AC10: 72 | AD10: 5413 | AE10: 595 | AF10: 2896 | AG10: 7052 | AH10: 48 | AI10: 39 | AJ10: 9 | AK10: 1 | AL10: 6 | AM10: 479 | AN10: 311 | AO10: 203 | AP10: 140 | AQ10: 448 | AR10: 69 | AS10: 30 | AT10: 41 | AU10: 258 | AV10: 66 | AW10: 11 | AX10: 66 | AY10: 29 | AZ10: 4 | BA10: 56 | BB10: 58 | BC10: 27 | BD10: 52 | BE10: 50 | BF10: 47 | BG10: 33
A11: 2019-04-01 | J11: F84036 | L11: 7140 | M11: 311 | N11: 5103 | O11: 3 | P11: 98 | Q11: 90 | R11: 57 | S11: 17 | T11: 73 | U11: 107 | V11: 314 | W11: 219 | X11: 4800 | Y11: 268 | Z11: 235 | AA11: 128 | AB11: 363 | AC11: 83 | AD11: 3983 | AE11: 500 | AF11: 2099 | AG11: 6000 | AH11: 159 | AI11: 130 | AJ11: 67 | AK11: 1 | AL11: 31 | AM11: 722 | AN11: 464 | AO11: 181 | AP11: 184 | AQ11: 639 | AR11: 123 | AS11: 81 | AT11: 93 | AU11: 346 | AV11: 91 | AW11: 19 | AX11: 80 | AY11: 28 | AZ11: 2 | BA11: 57 | BB11: 63 | BC11: 70 | BD11: 93 | BE11: 59 | BF11: 53 | BG11: 39
A12: 2019-04-01 | J12: F84038 | L12: 4050 | M12: 232 | N12: 2937 | O12: 0 | P12: 56 | Q12: 50 | R12: 38 | S12: 5 | T12: 53 | U12: 61 | V12: 191 | W12: 128 | X12: 2106 | Y12: 224 | Z12: 152 | AA12: 102 | AB12: 251 | AC12: 58 | AD12: 2493 | AE12: 442 | AF12: 1611 | AG12: 3479 | AH12: 96 | AI12: 81 | AJ12: 50 | AK12: 3 | AL12: 10 | AM12: 491 | AN12: 347 | AO12: 180 | AP12: 124 | AQ12: 402 | AR12: 89 | AS12: 38 | AT12: 53 | AU12: 262 | AV12: 71 | AW12: 8 | AX12: 59 | AY12: 23 | AZ12: 4 | BA12: 47 | BB12: 40 | BC12: 31 | BD12: 55 | BE12: 46 | BF12: 40 | BG12: 36
A13: 2019-04-01 | J13: F84041 | L13: 7744 | M13: 447 | N13: 5811 | O13: 7 | P13: 174 | Q13: 45 | R13: 32 | S13: 6 | T13: 129 | U13: 180 | V13: 384 | W13: 294 | X13: 3542 | Y13: 414 | Z13: 351 | AA13: 215 | AB13: 434 | AC13: 111 | AD13: 4601 | AE13: 534 | AF13: 2508 | AG13: 6701 | AH13: 113 | AI13: 82 | AJ13: 35 | AK13: 3 | AL13: 20 | AM13: 904 | AN13: 598 | AO13: 323 | AP13: 263 | AQ13: 817 | AR13: 139 | AS13: 93 | AT13: 103 | AU13: 476 | AV13: 87 | AW13: 27 | AX13: 81 | AY13: 25 | AZ13: 3 | BA13: 61 | BB13: 45 | BC13: 59 | BD13: 106 | BE13: 67 | BF13: 64 | BG13: 53
A14: 2019-04-01 | J14: F84043 | L14: 2896 | M14: 168 | N14: 1735 | O14: 1 | P14: 42 | Q14: 31 | R14: 7 | S14: 5 | T14: 31 | U14: 46 | V14: 119 | W14: 80 | X14: 877 | Y14: 151 | Z14: 114 | AA14: 55 | AB14: 107 | AC14: 35 | AD14: 1313 | AE14: 209 | AF14: 511 | AG14: 2250 | AH14: 62 | AI14: 40 | AJ14: 19 | AK14: 0 | AL14: 10 | AM14: 337 | AN14: 217 | AO14: 101 | AP14: 96 | AQ14: 314 | AR14: 51 | AS14: 23 | AT14: 33 | AU14: 177 | AV14: 30 | AW14: 6 | AX14: 24 | AY14: 15 | AZ14: 0 | BA14: 15 | BB14: 19 | BC14: 23 | BD14: 37 | BE14: 35 | BF14: 35 | BG14: 25
A15: 2019-04-01 | J15: F84060 | L15: 4753 | M15: 279 | N15: 3347 | O15: 2 | P15: 76 | Q15: 36 | R15: 24 | S15: 6 | T15: 54 | U15: 81 | V15: 179 | W15: 143 | X15: 1747 | Y15: 245 | Z15: 202 | AA15: 106 | AB15: 241 | AC15: 69 | AD15: 2675 | AE15: 304 | AF15: 1293 | AG15: 3953 | AH15: 68 | AI15: 56 | AJ15: 19 | AK15: 0 | AL15: 15 | AM15: 502 | AN15: 299 | AO15: 185 | AP15: 171 | AQ15: 458 | AR15: 60 | AS15: 38 | AT15: 44 | AU15: 291 | AV15: 29 | AW15: 10 | AX15: 27 | AY15: 7 | AZ15: 1 | BA15: 20 | BB15: 18 | BC15: 14 | BD15: 41 | BE15: 46 | BF15: 41 | BG15: 29
A16: 2019-04-01 | J16: F84063 | L16: 6033 | M16: 411 | N16: 4384 | O16: 4 | P16: 138 | Q16: 47 | R16: 25 | S16: 7 | T16: 116 | U16: 143 | V16: 266 | W16: 205 | X16: 2058 | Y16: 347 | Z16: 281 | AA16: 144 | AB16: 353 | AC16: 86 | AD16: 3684 | AE16: 703 | AF16: 2215 | AG16: 5174 | AH16: 84 | AI16: 69 | AJ16: 22 | AK16: 0 | AL16: 23 | AM16: 672 | AN16: 472 | AO16: 306 | AP16: 250 | AQ16: 619 | AR16: 123 | AS16: 86 | AT16: 105 | AU16: 435 | AV16: 70 | AW16: 16 | AX16: 64 | AY16: 31 | AZ16: 0 | BA16: 58 | BB16: 49 | BC16: 22 | BD16: 95 | BE16: 58 | BF16: 53 | BG16: 39
A17: 2019-04-01 | J17: F84069 | L17: 14524 | M17: 654 | N17: 10266 | O17: 3 | P17: 213 | Q17: 122 | R17: 85 | S17: 22 | T17: 166 | U17: 223 | V17: 591 | W17: 425 | X17: 4378 | Y17: 559 | Z17: 460 | AA17: 295 | AB17: 620 | AC17: 194 | AD17: 7263 | AE17: 1108 | AF17: 3575 | AG17: 11843 | AH17: 268 | AI17: 226 | AJ17: 98 | AK17: 3 | AL17: 51 | AM17: 1360 | AN17: 960 | AO17: 439 | AP17: 355 | AQ17: 1274 | AR17: 217 | AS17: 129 | AT17: 161 | AU17: 677 | AV17: 245 | AW17: 53 | AX17: 217 | AY17: 108 | AZ17: 3 | BA17: 164 | BB17: 172 | BC17: 192 | BD17: 175 | BE17: 118 | BF17: 110 | BG17: 89
A18: 2019-04-01 | J18: F84072 | L18: 10731 | M18: 241 | N18: 8619 | O18: 8 | P18: 67 | Q18: 29 | R18: 20 | S18: 5 | T18: 50 | U18: 72 | V18: 192 | W18: 131 | X18: 2392 | Y18: 212 | Z18: 164 | AA18: 92 | AB18: 227 | AC18: 64 | AD18: 5993 | AE18: 544 | AF18: 2284 | AG18: 9301 | AH18: 93 | AI18: 87 | AJ18: 31 | AK18: 1 | AL18: 19 | AM18: 490 | AN18: 279 | AO18: 144 | AP18: 140 | AQ18: 451 | AR18: 56 | AS18: 30 | AT18: 37 | AU18: 247 | AV18: 59 | AW18: 14 | AX18: 58 | AY18: 32 | AZ18: 2 | BA18: 34 | BB18: 25 | BC18: 34 | BD18: 45 | BE18: 48 | BF18: 42 | BG18: 26
A19: 2019-04-01 | J19: F84080 | L19: 4823 | M19: 322 | N19: 2898 | O19: 2 | P19: 93 | Q19: 28 | R19: 20 | S19: 6 | T19: 74 | U19: 102 | V19: 303 | W19: 233 | X19: 1439 | Y19: 293 | Z19: 240 | AA19: 99 | AB19: 267 | AC19: 68 | AD19: 2601 | AE19: 265 | AF19: 1313 | AG19: 3622 | AH19: 61 | AI19: 38 | AJ19: 18 | AK19: 1 | AL19: 2 | AM19: 687 | AN19: 467 | AO19: 204 | AP19: 189 | AQ19: 622 | AR19: 106 | AS19: 68 | AT19: 87 | AU19: 345 | AV19: 68 | AW19: 24 | AX19: 63 | AY19: 27 | AZ19: 5 | BA19: 43 | BB19: 41 | BC19: 30 | BD19: 92 | BE19: 35 | BF19: 33 | BG19: 25
A20: 2019-04-01 | J20: F84096 | L20: 13172 | M20: 628 | N20: 9134 | O20: 8 | P20: 277 | Q20: 145 | R20: 63 | S20: 29 | T20: 217 | U20: 298 | V20: 616 | W20: 429 | X20: 4388 | Y20: 565 | Z20: 455 | AA20: 233 | AB20: 579 | AC20: 161 | AD20: 7059 | AE20: 968 | AF20: 2942 | AG20: 10896 | AH20: 231 | AI20: 172 | AJ20: 81 | AK20: 5 | AL20: 38 | AM20: 1189 | AN20: 838 | AO20: 473 | AP20: 352 | AQ20: 1106 | AR20: 228 | AS20: 117 | AT20: 157 | AU20: 660 | AV20: 240 | AW20: 47 | AX20: 213 | AY20: 86 | AZ20: 9 | BA20: 174 | BB20: 193 | BC20: 173 | BD20: 179 | BE20: 128 | BF20: 113 | BG20: 92
A21: 2019-04-01 | J21: F84105 | L21: 11604 | M21: 590 | N21: 7988 | O21: 13 | P21: 158 | Q21: 55 | R21: 47 | S21: 7 | T21: 120 | U21: 167 | V21: 420 | W21: 265 | X21: 4502 | Y21: 550 | Z21: 399 | AA21: 216 | AB21: 562 | AC21: 148 | AD21: 6608 | AE21: 730 | AF21: 3267 | AG21: 9338 | AH21: 135 | AI21: 111 | AJ21: 43 | AK21: 3 | AL21: 22 | AM21: 1078 | AN21: 725 | AO21: 437 | AP21: 366 | AQ21: 1002 | AR21: 144 | AS21: 62 | AT21: 82 | AU21: 623 | AV21: 101 | AW21: 28 | AX21: 89 | AY21: 31 | AZ21: 3 | BA21: 80 | BB21: 58 | BC21: 54 | BD21: 105 | BE21: 102 | BF21: 97 | BG21: 70
A22: 2019-04-01 | J22: F84115 | L22: 8688 | M22: 284 | N22: 6398 | O22: 6 | P22: 100 | Q22: 28 | R22: 15 | S22: 7 | T22: 78 | U22: 110 | V22: 277 | W22: 176 | X22: 2647 | Y22: 244 | Z22: 201 | AA22: 76 | AB22: 187 | AC22: 70 | AD22: 4491 | AE22: 456 | AF22: 1557 | AG22: 7323 | AH22: 95 | AI22: 71 | AJ22: 28 | AK22: 1 | AL22: 26 | AM22: 614 | AN22: 413 | AO22: 188 | AP22: 162 | AQ22: 566 | AR22: 144 | AS22: 80 | AT22: 97 | AU22: 300 | AV22: 138 | AW22: 29 | AX22: 114 | AY22: 50 | AZ22: 7 | BA22: 94 | BB22: 101 | BC22: 103 | BD22: 103 | BE22: 71 | BF22: 66 | BG22: 52
A23: 2019-04-01 | J23: F84117 | L23: 10064 | M23: 438 | N23: 7331 | O23: 4 | P23: 120 | Q23: 54 | R23: 27 | S23: 11 | T23: 100 | U23: 125 | V23: 376 | W23: 262 | X23: 3001 | Y23: 377 | Z23: 330 | AA23: 131 | AB23: 338 | AC23: 87 | AD23: 5368 | AE23: 613 | AF23: 2203 | AG23: 8462 | AH23: 138 | AI23: 102 | AJ23: 40 | AK23: 1 | AL23: 36 | AM23: 866 | AN23: 626 | AO23: 303 | AP23: 272 | AQ23: 802 | AR23: 164 | AS23: 93 | AT23: 121 | AU23: 454 | AV23: 112 | AW23: 36 | AX23: 100 | AY23: 38 | AZ23: 3 | BA23: 81 | BB23: 70 | BC23: 75 | BD23: 136 | BE23: 121 | BF23: 112 | BG23: 103
A24: 2019-04-01 | J24: F84119 | L24: 12349 | M24: 541 | N24: 8961 | O24: 8 | P24: 179 | Q24: 109 | R24: 58 | S24: 18 | T24: 162 | U24: 185 | V24: 463 | W24: 388 | X24: 4856 | Y24: 498 | Z24: 385 | AA24: 242 | AB24: 607 | AC24: 152 | AD24: 7371 | AE24: 851 | AF24: 4079 | AG24: 10327 | AH24: 184 | AI24: 164 | AJ24: 79 | AK24: 12 | AL24: 41 | AM24: 1083 | AN24: 833 | AO24: 364 | AP24: 321 | AQ24: 967 | AR24: 171 | AS24: 113 | AT24: 154 | AU24: 561 | AV24: 145 | AW24: 23 | AX24: 135 | AY24: 59 | AZ24: 6 | BA24: 102 | BB24: 82 | BC24: 74 | BD24: 136 | BE24: 92 | BF24: 90 | BG24: 73
A25: 2019-04-01 | J25: F84601 | L25: 6849 | M25: 299 | N25: 4522 | O25: 5 | P25: 109 | Q25: 65 | R25: 53 | S25: 6 | T25: 91 | U25: 113 | V25: 232 | W25: 186 | X25: 3520 | Y25: 278 | Z25: 234 | AA25: 121 | AB25: 321 | AC25: 85 | AD25: 3134 | AE25: 430 | AF25: 1613 | AG25: 5525 | AH25: 113 | AI25: 93 | AJ25: 51 | AK25: 4 | AL25: 18 | AM25: 592 | AN25: 471 | AO25: 178 | AP25: 176 | AQ25: 533 | AR25: 92 | AS25: 64 | AT25: 78 | AU25: 311 | AV25: 73 | AW25: 17 | AX25: 70 | AY25: 37 | AZ25: 0 | BA25: 47 | BB25: 33 | BC25: 56 | BD25: 70 | BE25: 45 | BF25: 41 | BG25: 37
A26: 2019-04-01 | J26: F84619 | L26: 4450 | M26: 219 | N26: 2956 | O26: 0 | P26: 59 | Q26: 26 | R26: 19 | S26: 3 | T26: 41 | U26: 65 | V26: 183 | W26: 132 | X26: 1705 | Y26: 200 | Z26: 176 | AA26: 125 | AB26: 207 | AC26: 42 | AD26: 2452 | AE26: 400 | AF26: 1374 | AG26: 3513 | AH26: 56 | AI26: 43 | AJ26: 20 | AK26: 1 | AL26: 10 | AM26: 414 | AN26: 257 | AO26: 160 | AP26: 129 | AQ26: 371 | AR26: 67 | AS26: 40 | AT26: 49 | AU26: 235 | AV26: 33 | AW26: 13 | AX26: 31 | AY26: 7 | AZ26: 0 | BA26: 26 | BB26: 24 | BC26: 16 | BD26: 50 | BE26: 58 | BF26: 52 | BG26: 44
A27: 2019-04-01 | J27: F84620 | L27: 6358 | M27: 381 | N27: 4152 | O27: 4 | P27: 136 | Q27: 45 | R27: 37 | S27: 8 | T27: 108 | U27: 142 | V27: 291 | W27: 210 | X27: 2158 | Y27: 341 | Z27: 293 | AA27: 156 | AB27: 367 | AC27: 100 | AD27: 3363 | AE27: 491 | AF27: 1749 | AG27: 5127 | AH27: 109 | AI27: 90 | AJ27: 39 | AK27: 3 | AL27: 21 | AM27: 747 | AN27: 538 | AO27: 224 | AP27: 242 | AQ27: 690 | AR27: 128 | AS27: 68 | AT27: 85 | AU27: 395 | AV27: 77 | AW27: 35 | AX27: 72 | AY27: 29 | AZ27: 1 | BA27: 49 | BB27: 56 | BC27: 70 | BD27: 94 | BE27: 81 | BF27: 68 | BG27: 52
A28: 2019-04-01 | J28: F84621 | L28: 3732 | M28: 296 | N28: 2596 | O28: 4 | P28: 83 | Q28: 53 | R28: 39 | S28: 8 | T28: 64 | U28: 89 | V28: 207 | W28: 173 | X28: 1759 | Y28: 255 | Z28: 206 | AA28: 100 | AB28: 233 | AC28: 62 | AD28: 2101 | AE28: 301 | AF28: 1221 | AG28: 3109 | AH28: 86 | AI28: 68 | AJ28: 25 | AK28: 1 | AL28: 16 | AM28: 588 | AN28: 429 | AO28: 204 | AP28: 168 | AQ28: 555 | AR28: 70 | AS28: 47 | AT28: 55 | AU28: 301 | AV28: 51 | AW28: 17 | AX28: 45 | AY28: 20 | AZ28: 2 | BA28: 38 | BB28: 31 | BC28: 33 | BD28: 58 | BE28: 57 | BF28: 54 | BG28: 40
A29: 2019-04-01 | J29: F84624 | L29: 2717 | M29: 147 | N29: 2059 | O29: 1 | P29: 54 | Q29: 30 | R29: 15 | S29: 4 | T29: 43 | U29: 56 | V29: 79 | W29: 57 | X29: 994 | Y29: 131 | Z29: 105 | AA29: 42 | AB29: 89 | AC29: 24 | AD29: 1450 | AE29: 115 | AF29: 630 | AG29: 2352 | AH29: 48 | AI29: 31 | AJ29: 6 | AK29: 0 | AL29: 11 | AM29: 294 | AN29: 204 | AO29: 103 | AP29: 78 | AQ29: 261 | AR29: 70 | AS29: 39 | AT29: 48 | AU29: 156 | AV29: 46 | AW29: 25 | AX29: 41 | AY29: 11 | AZ29: 1 | BA29: 31 | BB29: 33 | BC29: 23 | BD29: 42 | BE29: 45 | BF29: 38 | BG29: 34
A30: 2019-04-01 | J30: F84632 | L30: 1065 | M30: 54 | N30: 983 | O30: 3 | P30: 14 | Q30: 39 | R30: 19 | S30: 2 | T30: 11 | U30: 15 | V30: 49 | W30: 36 | X30: 608 | Y30: 44 | Z30: 42 | AA30: 29 | AB30: 88 | AC30: 12 | AD30: 732 | AE30: 362 | AF30: 610 | AG30: 1065 | AH30: 89 | AI30: 83 | AJ30: 62 | AK30: 5 | AL30: 9 | AM30: 121 | AN30: 58 | AO30: 37 | AP30: 32 | AQ30: 103 | AR30: 23 | AS30: 14 | AT30: 18 | AU30: 59 | AV30: 38 | AW30: 14 | AX30: 36 | AY30: 23 | AZ30: 1 | BA30: 26 | BB30: 30 | BC30: 22 | BD30: 14 | BE30: 10 | BF30: 10 | BG30: 5
A31: 2019-04-01 | J31: F84635 | L31: 8849 | M31: 315 | N31: 6214 | O31: 5 | P31: 83 | Q31: 35 | R31: 21 | S31: 4 | T31: 55 | U31: 87 | V31: 276 | W31: 174 | X31: 2202 | Y31: 263 | Z31: 214 | AA31: 137 | AB31: 352 | AC31: 81 | AD31: 5214 | AE31: 747 | AF31: 2373 | AG31: 7512 | AH31: 122 | AI31: 77 | AJ31: 37 | AK31: 1 | AL31: 12 | AM31: 690 | AN31: 421 | AO31: 227 | AP31: 174 | AQ31: 631 | AR31: 100 | AS31: 58 | AT31: 67 | AU31: 330 | AV31: 98 | AW31: 19 | AX31: 78 | AY31: 31 | AZ31: 2 | BA31: 76 | BB31: 77 | BC31: 81 | BD31: 77 | BE31: 66 | BF31: 60 | BG31: 44
A32: 2019-04-01 | J32: F84636 | L32: 4929 | M32: 182 | N32: 3771 | O32: 5 | P32: 42 | Q32: 29 | R32: 17 | S32: 6 | T32: 33 | U32: 48 | V32: 140 | W32: 99 | X32: 1553 | Y32: 160 | Z32: 132 | AA32: 71 | AB32: 161 | AC32: 39 | AD32: 2880 | AE32: 402 | AF32: 1503 | AG32: 4328 | AH32: 68 | AI32: 53 | AJ32: 18 | AK32: 1 | AL32: 13 | AM32: 376 | AN32: 258 | AO32: 145 | AP32: 93 | AQ32: 337 | AR32: 43 | AS32: 23 | AT32: 28 | AU32: 197 | AV32: 22 | AW32: 8 | AX32: 20 | AY32: 4 | AZ32: 0 | BA32: 12 | BB32: 13 | BC32: 12 | BD32: 32 | BE32: 37 | BF32: 33 | BG32: 28
A33: 2019-04-01 | J33: F84640 | L33: 9272 | M33: 245 | N33: 7213 | O33: 35 | P33: 238 | Q33: 24 | R33: 9 | S33: 6 | T33: 204 | U33: 264 | V33: 412 | W33: 271 | X33: 3050 | Y33: 219 | Z33: 174 | AA33: 93 | AB33: 239 | AC33: 41 | AD33: 6143 | AE33: 325 | AF33: 2015 | AG33: 8517 | AH33: 85 | AI33: 64 | AJ33: 16 | AK33: 1 | AL33: 25 | AM33: 951 | AN33: 729 | AO33: 174 | AP33: 170 | AQ33: 882 | AR33: 181 | AS33: 92 | AT33: 117 | AU33: 255 | AV33: 65 | AW33: 9 | AX33: 64 | AY33: 19 | AZ33: 2 | BA33: 51 | BB33: 51 | BC33: 29 | BD33: 147 | BE33: 118 | BF33: 111 | BG33: 96
A34: 2019-04-01 | J34: F84668 | L34: 6589 | M34: 273 | N34: 3227 | O34: 2 | P34: 87 | Q34: 32 | R34: 29 | S34: 4 | T34: 65 | U34: 97 | V34: 217 | W34: 165 | X34: 1782 | Y34: 253 | Z34: 204 | AA34: 164 | AB34: 370 | AC34: 82 | AD34: 3139 | AE34: 278 | AF34: 1781 | AG34: 4360 | AH34: 65 | AI34: 58 | AJ34: 19 | AK34: 11 | AL34: 7 | AM34: 489 | AN34: 340 | AO34: 219 | AP34: 176 | AQ34: 454 | AR34: 56 | AS34: 36 | AT34: 41 | AU34: 297 | AV34: 27 | AW34: 7 | AX34: 24 | AY34: 9 | AZ34: 5 | BA34: 23 | BB34: 24 | BC34: 23 | BD34: 33 | BE34: 38 | BF34: 37 | BG34: 27
A35: 2019-04-01 | J35: F84685 | L35: 2965 | M35: 133 | N35: 1917 | O35: 1 | P35: 39 | Q35: 12 | R35: 10 | S35: 2 | T35: 36 | U35: 43 | V35: 138 | W35: 94 | X35: 895 | Y35: 129 | Z35: 90 | AA35: 52 | AB35: 106 | AC35: 18 | AD35: 1499 | AE35: 142 | AF35: 678 | AG35: 2270 | AH35: 38 | AI35: 24 | AJ35: 7 | AK35: 0 | AL35: 5 | AM35: 261 | AN35: 193 | AO35: 86 | AP35: 82 | AQ35: 238 | AR35: 39 | AS35: 22 | AT35: 32 | AU35: 138 | AV35: 26 | AW35: 8 | AX35: 21 | AY35: 8 | AZ35: 1 | BA35: 19 | BB35: 15 | BC35: 17 | BD35: 34 | BE35: 20 | BF35: 16 | BG35: 15
A36: 2019-04-01 | J36: F84686 | L36: 7820 | M36: 180 | N36: 2862 | O36: 0 | P36: 53 | Q36: 21 | R36: 19 | S36: 4 | T36: 46 | U36: 56 | V36: 167 | W36: 140 | X36: 1057 | Y36: 159 | Z36: 136 | AA36: 104 | AB36: 246 | AC36: 50 | AD36: 2709 | AE36: 128 | AF36: 1054 | AG36: 4258 | AH36: 50 | AI36: 39 | AJ36: 5 | AK36: 0 | AL36: 7 | AM36: 367 | AN36: 295 | AO36: 112 | AP36: 99 | AQ36: 355 | AR36: 74 | AS36: 54 | AT36: 62 | AU36: 183 | AV36: 8 | AW36: 1 | AX36: 7 | AY36: 4 | AZ36: 0 | BA36: 5 | BB36: 4 | BC36: 7 | BD36: 46 | BE36: 30 | BF36: 27 | BG36: 26
A37: 2019-04-01 | J37: F84692 | L37: 7157 | M37: 213 | N37: 4644 | O37: 3 | P37: 60 | Q37: 37 | R37: 8 | S37: 3 | T37: 47 | U37: 64 | V37: 224 | W37: 119 | X37: 1957 | Y37: 189 | Z37: 140 | AA37: 105 | AB37: 227 | AC37: 43 | AD37: 3730 | AE37: 447 | AF37: 1640 | AG37: 6215 | AH37: 69 | AI37: 50 | AJ37: 26 | AK37: 3 | AL37: 9 | AM37: 447 | AN37: 310 | AO37: 159 | AP37: 125 | AQ37: 393 | AR37: 76 | AS37: 32 | AT37: 39 | AU37: 230 | AV37: 78 | AW37: 18 | AX37: 69 | AY37: 31 | AZ37: 2 | BA37: 61 | BB37: 66 | BC37: 49 | BD37: 61 | BE37: 45 | BF37: 40 | BG37: 33
A38: 2019-04-01 | J38: F84694 | L38: 4578 | M38: 210 | N38: 3501 | O38: 1 | P38: 58 | Q38: 29 | R38: 24 | S38: 2 | T38: 45 | U38: 59 | V38: 172 | W38: 139 | X38: 1885 | Y38: 176 | Z38: 165 | AA38: 76 | AB38: 217 | AC38: 44 | AD38: 2849 | AE38: 476 | AF38: 1931 | AG38: 4042 | AH38: 50 | AI38: 41 | AJ38: 12 | AK38: 0 | AL38: 7 | AM38: 367 | AN38: 213 | AO38: 163 | AP38: 128 | AQ38: 328 | AR38: 58 | AS38: 43 | AT38: 45 | AU38: 221 | AV38: 32 | AW38: 7 | AX38: 28 | AY38: 12 | AZ38: 1 | BA38: 22 | BB38: 17 | BC38: 24 | BD38: 33 | BE38: 22 | BF38: 19 | BG38: 16
A39: 2019-04-01 | J39: F84711 | L39: 1928 | M39: 162 | N39: 1315 | O39: 1 | P39: 38 | Q39: 17 | R39: 14 | S39: 6 | T39: 29 | U39: 40 | V39: 116 | W39: 87 | X39: 757 | Y39: 141 | Z39: 121 | AA39: 56 | AB39: 116 | AC39: 37 | AD39: 1179 | AE39: 152 | AF39: 621 | AG39: 1611 | AH39: 26 | AI39: 23 | AJ39: 8 | AK39: 2 | AL39: 4 | AM39: 282 | AN39: 171 | AO39: 151 | AP39: 91 | AQ39: 269 | AR39: 31 | AS39: 13 | AT39: 18 | AU39: 166 | AV39: 27 | AW39: 8 | AX39: 26 | AY39: 13 | AZ39: 5 | BA39: 25 | BB39: 13 | BC39: 9 | BD39: 22 | BE39: 22 | BF39: 19 | BG39: 13
A40: 2019-04-01 | J40: F84716 | L40: 5608 | M40: 195 | N40: 3434 | O40: 2 | P40: 94 | Q40: 49 | R40: 22 | S40: 10 | T40: 74 | U40: 101 | V40: 191 | W40: 140 | X40: 1550 | Y40: 182 | Z40: 144 | AA40: 85 | AB40: 222 | AC40: 57 | AD40: 3022 | AE40: 276 | AF40: 1525 | AG40: 4199 | AH40: 91 | AI40: 77 | AJ40: 24 | AK40: 3 | AL40: 11 | AM40: 386 | AN40: 285 | AO40: 116 | AP40: 117 | AQ40: 364 | AR40: 70 | AS40: 41 | AT40: 50 | AU40: 202 | AV40: 43 | AW40: 10 | AX40: 42 | AY40: 14 | AZ40: 1 | BA40: 32 | BB40: 35 | BC40: 11 | BD40: 55 | BE40: 39 | BF40: 37 | BG40: 31
A41: 2019-04-01 | J41: F84719 | L41: 5170 | M41: 295 | N41: 3612 | O41: 9 | P41: 98 | Q41: 40 | R41: 31 | S41: 12 | T41: 82 | U41: 102 | V41: 222 | W41: 161 | X41: 1605 | Y41: 277 | Z41: 222 | AA41: 101 | AB41: 256 | AC41: 74 | AD41: 3348 | AE41: 352 | AF41: 1736 | AG41: 4388 | AH41: 81 | AI41: 73 | AJ41: 20 | AK41: 4 | AL41: 10 | AM41: 617 | AN41: 452 | AO41: 239 | AP41: 182 | AQ41: 563 | AR41: 138 | AS41: 86 | AT41: 103 | AU41: 313 | AV41: 83 | AW41: 25 | AX41: 77 | AY41: 25 | AZ41: 3 | BA41: 76 | BB41: 59 | BC41: 55 | BD41: 89 | BE41: 84 | BF41: 81 | BG41: 71
A42: 2019-04-01 | J42: F84720 | L42: 5475 | M42: 335 | N42: 3247 | O42: 5 | P42: 131 | Q42: 48 | R42: 36 | S42: 8 | T42: 106 | U42: 143 | V42: 313 | W42: 224 | X42: 2053 | Y42: 292 | Z42: 257 | AA42: 136 | AB42: 317 | AC42: 85 | AD42: 2826 | AE42: 390 | AF42: 1582 | AG42: 4161 | AH42: 88 | AI42: 66 | AJ42: 29 | AK42: 1 | AL42: 13 | AM42: 800 | AN42: 555 | AO42: 210 | AP42: 180 | AQ42: 743 | AR42: 152 | AS42: 97 | AT42: 125 | AU42: 370 | AV42: 81 | AW42: 15 | AX42: 75 | AY42: 21 | AZ42: 2 | BA42: 56 | BB42: 44 | BC42: 74 | BD42: 117 | BE42: 81 | BF42: 77 | BG42: 62
A43: 2019-04-01 | J43: Y00403 | L43: 6364 | M43: 188 | N43: 4712 | O43: 2 | P43: 46 | Q43: 45 | R43: 22 | S43: 8 | T43: 36 | U43: 50 | V43: 105 | W43: 69 | X43: 1521 | Y43: 176 | Z43: 149 | AA43: 95 | AB43: 193 | AC43: 63 | AD43: 3450 | AE43: 546 | AF43: 1684 | AG43: 5362 | AH43: 81 | AI43: 64 | AJ43: 27 | AK43: 2 | AL43: 13 | AM43: 400 | AN43: 276 | AO43: 143 | AP43: 116 | AQ43: 368 | AR43: 48 | AS43: 26 | AT43: 29 | AU43: 194 | AV43: 36 | AW43: 11 | AX43: 35 | AY43: 16 | AZ43: 2 | BA43: 33 | BB43: 24 | BC43: 24 | BD43: 38 | BE43: 28 | BF43: 28 | BG43: 22
A44: 2019-04-01 | J44: Y03049 | L44: 14372 | M44: 608 | N44: 8826 | O44: 7 | P44: 188 | Q44: 96 | R44: 56 | S44: 20 | T44: 132 | U44: 195 | V44: 492 | W44: 362 | X44: 4608 | Y44: 549 | Z44: 462 | AA44: 251 | AB44: 612 | AC44: 154 | AD44: 6897 | AE44: 811 | AF44: 3272 | AG44: 10559 | AH44: 190 | AI44: 160 | AJ44: 70 | AK44: 8 | AL44: 27 | AM44: 1122 | AN44: 766 | AO44: 405 | AP44: 347 | AQ44: 1076 | AR44: 179 | AS44: 103 | AT44: 123 | AU44: 620 | AV44: 96 | AW44: 22 | AX44: 87 | AY44: 44 | AZ44: 9 | BA44: 70 | BB44: 60 | BC44: 79 | BD44: 145 | BE44: 76 | BF44: 74 | BG44: 55
A45: 2019-04-01 | J45: Total | L45: 323614 | M45: 14557 | N45: 219322 | O45: 230 | P45: 4890 | Q45: 2268 | R45: 1369 | S45: 368 | T45: 3818 | U45: 5195 | V45: 12416 | W45: 8981 | X45: 109973 | Y45: 13007 | Z45: 10636 | AA45: 5908 | AB45: 13865 | AC45: 3597 | AD45: 173536 | AE45: 21782 | AF45: 85169 | AG45: 261008 | AH45: 4670 | AI45: 3699 | AJ45: 1586 | AK45: 115 | AL45: 797 | AM45: 29702 | AN45: 20621 | AO45: 10086 | AP45: 8562 | AQ45: 27339 | AR45: 4927 | AS45: 2902 | AT45: 3614 | AU45: 15290 | AV45: 3495 | AW45: 870 | AX45: 3153 | AY45: 1326 | AZ45: 116 | BA45: 2519 | BB45: 2338 | BC45: 2329 | BD45: 3763 | BE45: 2851 | BF45: 2644 | BG45: 2099

Sheet Data 17-18 (hidden)
A1: 2019-03-01 | C1: 01 LDP | E1: Last Run: | G1: Population Count | H1: 1465547 | K1: Search | L1: 01. Listsize | M1: LDP.04.15.01 Diabetes HbA1C <=7.5% OR <=59mmol (15m) *REMOVE* | N1: LDP.04.11: Diabetes and BP in last 12 months | O1: LDP.05: CVD 25-84yrs (excl CVD) | P1: LDP.08.02 CKD Diagnosed (Last 6m) | Q1: LDP.08.03 CKD and BP Recorded (last 12 m) | R1: CSPMH. 01.03 QRisk Recorded (12m) | S1: CSPMH. 01.03.01 BP recorded on same day as QRisk (12m) | T1: CSPMH. 01.03.02 Qrisk>=20 (12m) | U1: LDP.08.01 CKD and BP less than 140/90 (last 12 m) | V1: LDP.08 CKD Register | W1: LDP.05.01: CVD QRISK greater than or equal 20% | X1: LDP.05.01.01: CVD Proxy Annual Review (last 12m) | Y1: LDP.05.02: Cardiovascular Risk Score Done (5y) | Z1: LDP.04.09: Diabetes BP less than 145/85 (last 12m) | AA1: LDP.04.08: Diabetes Chol less than 5mmol (last 12m) | AB1: LDP.01.01.01: Obesity BMI more than or equal to 35 less than 40 (last 12m) | AC1: LDP.01.01.02: Obesity BMI between 30-35 (last 12m) | AD1: LDP.01.01.03: Obesity BMI equal to or over 40 (last 12m) | AE1: LDP.01.02: Smoking Status (last 12m) or Never Smoked (25yrs+) | AF1: LDP.01.03: Current Smoker (last 12m) | AG1: LDP.01.01: Obesity BMI recorded (last 12m) | AH1: LDP.01: Aged 16yrs+ | AI1: CSPMH.01 SMI Register | AJ1: CSPMH.01.02 Smoking Status Recorded (12m) | AK1: CSPMH.01.02.01 Current Smoker (15m) | AL1: CSPMH 01.02.01.01 Ref to clinic 15m | AM1: CSPMH.01.02.02 Ex-smoker Recorded (latest 15m) | AN1: LDP.02: Hypertension Register | AO1: LDP.02.01: Hypertension and BP < 140/90 (age under 80) < 150/90 (Age 80+) | AP1: LDP.04.03: Diabetes Digital retinal screening or Seen by retinal screener *REMOV | AQ1: LDP.04.07: Diabetes Influenza Vaccinations (last 12m) | AR1: LDP.04.01: Diabetes HbA1c <7.5% OR <59mmol (last 12m) | AS1: LDP.02.02: Hypertension BP recorded (last 12m) | AT1: LDP.03: CHD Register | AU1: LDP.03.01: CHD Chol less than 5mmol (last 12m) | AV1: LDP.03.04: CHD Cholesterol recorded (last 12m) | AW1: LDP.04: Diabetes Register | AX1: LDP.09 COPD Register | AY1: LDP.09.01 Patients with severe or very severe COPD (FEV1<50) | AZ1: LDP.09.02 Patients with smoking status recorded (last 12m) or never smoked | BA1: LDP.09.03 COPD patients recorded as a Smoker | BB1: LDP.09.04 COPD Patients who are current smokers & referred to the Stop Smoking C | BC1: LDP.09.05 No of COPD with flu vaccination (12m) | BD1: LDP.09.06 No of COPD with pneumococcal vaccination ever | BE1: LDP.09.07 No of COPD patients referred to pulmonary rehab ever | BF1: LDP.03.02: CHD BP less than or equal 150/90 (last 9m)
A2: 2019-03-01 | E2: 2019-04-02T10:56:00 | G2: Males | H2: 711969 | J2: Organisation Code
A3: 2019-03-01 | E3: Relative Date: | G3: Females | H3: 753578 | J3: F84003 | L3: 12716 | M3: 1 | N3: 693 | O3: 8617 | P3: 12 | Q3: 205 | R3: 125 | S3: 38 | T3: 16 | U3: 150 | V3: 215 | W3: 586 | X3: 391 | Y3: 4205 | Z3: 636 | AA3: 493 | AB3: 274 | AC3: 567 | AD3: 139 | AE3: 6594 | AF3: 1015 | AG3: 2979 | AH3: 10265 | AI3: 237 | AJ3: 174 | AK3: 86 | AL3: 2 | AM3: 35 | AN3: 1385 | AO3: 1005 | AP3: 473 | AQ3: 441 | AR3: 388 | AS3: 1317 | AT3: 274 | AU3: 156 | AV3: 192 | AW3: 711 | AX3: 171 | AY3: 39 | AZ3: 155 | BA3: 70 | BB3: 3 | BC3: 119 | BD3: 106 | BE3: 136 | BF3: 227
A4: 2019-03-01 | E4: 2019-04-01 | J4: F84008 | L4: 12659 | M4: 3 | N4: 568 | O4: 9008 | P4: 17 | Q4: 221 | R4: 123 | S4: 54 | T4: 17 | U4: 163 | V4: 229 | W4: 585 | X4: 396 | Y4: 5266 | Z4: 491 | AA4: 428 | AB4: 186 | AC4: 434 | AD4: 115 | AE4: 6227 | AF4: 702 | AG4: 3182 | AH4: 10408 | AI4: 245 | AJ4: 184 | AK4: 77 | AL4: 4 | AM4: 51 | AN4: 1286 | AO4: 863 | AP4: 355 | AQ4: 374 | AR4: 362 | AS4: 1191 | AT4: 224 | AU4: 138 | AV4: 162 | AW4: 584 | AX4: 160 | AY4: 47 | AZ4: 149 | BA4: 74 | BB4: 1 | BC4: 118 | BD4: 112 | BE4: 115 | BF4: 152
A5: 2019-03-01 | J5: F84013 | L5: 15006 | M5: 0 | N5: 496 | O5: 6496 | P5: 17 | Q5: 178 | R5: 63 | S5: 40 | T5: 10 | U5: 145 | V5: 185 | W5: 477 | X5: 366 | Y5: 2726 | Z5: 459 | AA5: 401 | AB5: 215 | AC5: 469 | AD5: 102 | AE5: 5545 | AF5: 356 | AG5: 2280 | AH5: 9000 | AI5: 162 | AJ5: 110 | AK5: 34 | AL5: 4 | AM5: 13 | AN5: 990 | AO5: 748 | AP5: 377 | AQ5: 295 | AR5: 296 | AS5: 908 | AT5: 181 | AU5: 118 | AV5: 137 | AW5: 520 | AX5: 88 | AY5: 22 | AZ5: 80 | BA5: 32 | BB5: 3 | BC5: 59 | BD5: 65 | BE5: 58 | BF5: 145
A6: 2019-03-01 | J6: F84015 | L6: 5403 | M6: 0 | N6: 413 | O6: 3387 | P6: 5 | Q6: 164 | R6: 52 | S6: 35 | T6: 10 | U6: 134 | V6: 171 | W6: 265 | X6: 238 | Y6: 2231 | Z6: 393 | AA6: 329 | AB6: 174 | AC6: 428 | AD6: 144 | AE6: 3116 | AF6: 479 | AG6: 1927 | AH6: 4269 | AI6: 87 | AJ6: 77 | AK6: 40 | AL6: 4 | AM6: 15 | AN6: 832 | AO6: 637 | AP6: 48 | AQ6: 303 | AR6: 259 | AS6: 798 | AT6: 106 | AU6: 79 | AV6: 98 | AW6: 420 | AX6: 87 | AY6: 14 | AZ6: 84 | BA6: 30 | BB6: 9 | BC6: 69 | BD6: 52 | BE6: 43 | BF6: 94
A7: 2019-03-01 | J7: F84018 | L7: 11693 | M7: 0 | N7: 606 | O7: 7954 | P7: 4 | Q7: 188 | R7: 101 | S7: 76 | T7: 17 | U7: 143 | V7: 190 | W7: 469 | X7: 394 | Y7: 5038 | Z7: 563 | AA7: 432 | AB7: 251 | AC7: 608 | AD7: 187 | AE7: 6319 | AF7: 911 | AG7: 3678 | AH7: 9368 | AI7: 200 | AJ7: 180 | AK7: 77 | AL7: 14 | AM7: 33 | AN7: 1100 | AO7: 823 | AP7: 416 | AQ7: 390 | AR7: 350 | AS7: 1051 | AT7: 188 | AU7: 123 | AV7: 174 | AW7: 619 | AX7: 119 | AY7: 34 | AZ7: 115 | BA7: 47 | BB7: 3 | BC7: 89 | BD7: 73 | BE7: 83 | BF7: 151
A8: 2019-03-01 | J8: F84021 | L8: 10392 | M8: 0 | N8: 452 | O8: 7692 | P8: 8 | Q8: 183 | R8: 70 | S8: 46 | T8: 10 | U8: 143 | V8: 192 | W8: 387 | X8: 312 | Y8: 3551 | Z8: 409 | AA8: 344 | AB8: 170 | AC8: 378 | AD8: 96 | AE8: 5717 | AF8: 757 | AG8: 2519 | AH8: 8705 | AI8: 154 | AJ8: 113 | AK8: 53 | AL8: 4 | AM8: 24 | AN8: 877 | AO8: 614 | AP8: 377 | AQ8: 315 | AR8: 284 | AS8: 826 | AT8: 146 | AU8: 88 | AV8: 108 | AW8: 467 | AX8: 110 | AY8: 32 | AZ8: 101 | BA8: 47 | BB8: 1 | BC8: 80 | BD8: 78 | BE8: 84 | BF8: 114
A9: 2019-03-01 | J9: F84033 | L9: 12046 | M9: 4 | N9: 599 | O9: 8614 | P9: 0 | Q9: 209 | R9: 79 | S9: 39 | T9: 9 | U9: 174 | V9: 219 | W9: 467 | X9: 366 | Y9: 4727 | Z9: 578 | AA9: 454 | AB9: 250 | AC9: 668 | AD9: 170 | AE9: 6711 | AF9: 1211 | AG9: 3599 | AH9: 10030 | AI9: 174 | AJ9: 152 | AK9: 76 | AL9: 3 | AM9: 36 | AN9: 1228 | AO9: 962 | AP9: 490 | AQ9: 445 | AR9: 354 | AS9: 1165 | AT9: 203 | AU9: 135 | AV9: 177 | AW9: 612 | AX9: 128 | AY9: 37 | AZ9: 125 | BA9: 65 | BB9: 1 | BC9: 99 | BD9: 91 | BE9: 94 | BF9: 162
A10: 2019-03-01 | J10: F84035 | L10: 7673 | M10: 2 | N10: 248 | O10: 6113 | P10: 3 | Q10: 64 | R10: 20 | S10: 16 | T10: 5 | U10: 55 | V10: 64 | W10: 185 | X10: 133 | Y10: 1792 | Z10: 235 | AA10: 198 | AB10: 103 | AC10: 227 | AD10: 78 | AE10: 5264 | AF10: 589 | AG10: 2819 | AH10: 6877 | AI10: 48 | AJ10: 40 | AK10: 8 | AL10: 1 | AM10: 8 | AN10: 473 | AO10: 321 | AP10: 202 | AQ10: 204 | AR10: 151 | AS10: 455 | AT10: 68 | AU10: 35 | AV10: 45 | AW10: 257 | AX10: 67 | AY10: 12 | AZ10: 66 | BA10: 31 | BB10: 3 | BC10: 57 | BD10: 59 | BE10: 28 | BF10: 51
A11: 2019-03-01 | J11: F84036 | L11: 7163 | M11: 2 | N11: 324 | O11: 5113 | P11: 1 | Q11: 103 | R11: 124 | S11: 59 | T11: 20 | U11: 76 | V11: 109 | W11: 313 | X11: 238 | Y11: 4819 | Z11: 298 | AA11: 253 | AB11: 138 | AC11: 368 | AD11: 84 | AE11: 4058 | AF11: 527 | AG11: 2176 | AH11: 6029 | AI11: 161 | AJ11: 138 | AK11: 72 | AL11: 2 | AM11: 33 | AN11: 728 | AO11: 485 | AP11: 235 | AQ11: 186 | AR11: 195 | AS11: 650 | AT11: 127 | AU11: 83 | AV11: 98 | AW11: 353 | AX11: 93 | AY11: 18 | AZ11: 87 | BA11: 32 | BB11: 2 | BC11: 58 | BD11: 62 | BE11: 72 | BF11: 101
A12: 2019-03-01 | J12: F84038 | L12: 4033 | M12: 0 | N12: 243 | O12: 2921 | P12: 0 | Q12: 62 | R12: 52 | S12: 42 | T12: 5 | U12: 57 | V12: 66 | W12: 188 | X12: 145 | Y12: 2081 | Z12: 234 | AA12: 165 | AB12: 114 | AC12: 282 | AD12: 68 | AE12: 2543 | AF12: 481 | AG12: 1717 | AH12: 3460 | AI12: 94 | AJ12: 86 | AK12: 51 | AL12: 3 | AM12: 12 | AN12: 490 | AO12: 393 | AP12: 178 | AQ12: 176 | AR12: 138 | AS12: 444 | AT12: 90 | AU12: 43 | AV12: 59 | AW12: 255 | AX12: 69 | AY12: 8 | AZ12: 66 | BA12: 29 | BB12: 5 | BC12: 47 | BD12: 39 | BE12: 32 | BF12: 50
A13: 2019-03-01 | J13: F84041 | L13: 7770 | M13: 0 | N13: 462 | O13: 5836 | P13: 6 | Q13: 176 | R13: 50 | S13: 37 | T13: 5 | U13: 132 | V13: 184 | W13: 383 | X13: 310 | Y13: 3545 | Z13: 439 | AA13: 372 | AB13: 224 | AC13: 447 | AD13: 114 | AE13: 4656 | AF13: 552 | AG13: 2592 | AH13: 6724 | AI13: 121 | AJ13: 87 | AK13: 36 | AL13: 4 | AM13: 21 | AN13: 908 | AO13: 629 | AP13: 336 | AQ13: 327 | AR13: 279 | AS13: 840 | AT13: 139 | AU13: 91 | AV13: 104 | AW13: 480 | AX13: 80 | AY13: 23 | AZ13: 76 | BA13: 25 | BB13: 2 | BC13: 57 | BD13: 41 | BE13: 59 | BF13: 119
A14: 2019-03-01 | J14: F84043 | L14: 3872 | M14: 0 | N14: 301 | O14: 2329 | P14: 2 | Q14: 80 | R14: 46 | S14: 12 | T14: 7 | U14: 57 | V14: 82 | W14: 210 | X14: 153 | Y14: 1281 | Z14: 282 | AA14: 222 | AB14: 94 | AC14: 194 | AD14: 59 | AE14: 1933 | AF14: 300 | AG14: 844 | AH14: 3032 | AI14: 91 | AJ14: 68 | AK14: 29 | AL14: 0 | AM14: 17 | AN14: 590 | AO14: 434 | AP14: 160 | AQ14: 187 | AR14: 181 | AS14: 577 | AT14: 99 | AU14: 58 | AV14: 73 | AW14: 306 | AX14: 65 | AY14: 16 | AZ14: 60 | BA14: 34 | BB14: 2 | BC14: 43 | BD14: 42 | BE14: 48 | BF14: 76
A15: 2019-03-01 | J15: F84060 | L15: 4699 | M15: 0 | N15: 284 | O15: 3311 | P15: 2 | Q15: 93 | R15: 35 | S15: 22 | T15: 5 | U15: 70 | V15: 97 | W15: 178 | X15: 144 | Y15: 1727 | Z15: 261 | AA15: 200 | AB15: 105 | AC15: 245 | AD15: 68 | AE15: 2663 | AF15: 313 | AG15: 1290 | AH15: 3910 | AI15: 65 | AJ15: 54 | AK15: 23 | AL15: 0 | AM15: 11 | AN15: 497 | AO15: 312 | AP15: 185 | AQ15: 185 | AR15: 170 | AS15: 468 | AT15: 58 | AU15: 34 | AV15: 41 | AW15: 287 | AX15: 23 | AY15: 9 | AZ15: 23 | BA15: 7 | BB15: 0 | BC15: 16 | BD15: 15 | BE15: 13 | BF15: 45
A16: 2019-03-01 | J16: F84063 | L16: 6029 | M16: 1 | N16: 423 | O16: 4376 | P16: 5 | Q16: 138 | R16: 52 | S16: 27 | T16: 8 | U16: 122 | V16: 143 | W16: 267 | X16: 228 | Y16: 2051 | Z16: 389 | AA16: 307 | AB16: 149 | AC16: 358 | AD16: 88 | AE16: 3695 | AF16: 705 | AG16: 2270 | AH16: 5166 | AI16: 86 | AJ16: 71 | AK16: 24 | AL16: 0 | AM16: 21 | AN16: 670 | AO16: 511 | AP16: 293 | AQ16: 306 | AR16: 266 | AS16: 628 | AT16: 122 | AU16: 89 | AV16: 111 | AW16: 433 | AX16: 70 | AY16: 17 | AZ16: 69 | BA16: 31 | BB16: 0 | BC16: 58 | BD16: 49 | BE16: 22 | BF16: 84
A17: 2019-03-01 | J17: F84069 | L17: 14475 | M17: 2 | N17: 664 | O17: 10226 | P17: 3 | Q17: 222 | R17: 129 | S17: 86 | T17: 23 | U17: 173 | V17: 229 | W17: 586 | X17: 434 | Y17: 4355 | Z17: 588 | AA17: 497 | AB17: 289 | AC17: 612 | AD17: 195 | AE17: 7199 | AF17: 1098 | AG17: 3525 | AH17: 11803 | AI17: 278 | AJ17: 233 | AK17: 97 | AL17: 2 | AM17: 54 | AN17: 1353 | AO17: 993 | AP17: 473 | AQ17: 445 | AR17: 396 | AS17: 1277 | AT17: 219 | AU17: 134 | AV17: 170 | AW17: 684 | AX17: 242 | AY17: 54 | AZ17: 223 | BA17: 108 | BB17: 4 | BC17: 162 | BD17: 174 | BE17: 195 | BF17: 181
A18: 2019-03-01 | J18: F84072 | L18: 10740 | M18: 3 | N18: 248 | O18: 8631 | P18: 8 | Q18: 70 | R18: 29 | S18: 20 | T18: 5 | U18: 52 | V18: 72 | W18: 193 | X18: 133 | Y18: 2401 | Z18: 235 | AA18: 168 | AB18: 87 | AC18: 224 | AD18: 69 | AE18: 6022 | AF18: 559 | AG18: 2332 | AH18: 9315 | AI18: 93 | AJ18: 84 | AK18: 31 | AL18: 1 | AM18: 19 | AN18: 505 | AO18: 299 | AP18: 33 | AQ18: 144 | AR18: 150 | AS18: 481 | AT18: 58 | AU18: 33 | AV18: 41 | AW18: 253 | AX18: 57 | AY18: 14 | AZ18: 56 | BA18: 32 | BB18: 1 | BC18: 35 | BD18: 26 | BE18: 35 | BF18: 46
A19: 2019-03-01 | J19: F84080 | L19: 4811 | M19: 1 | N19: 329 | O19: 2894 | P19: 13 | Q19: 96 | R19: 28 | S19: 20 | T19: 7 | U19: 79 | V19: 102 | W19: 303 | X19: 244 | Y19: 1437 | Z19: 308 | AA19: 244 | AB19: 98 | AC19: 264 | AD19: 67 | AE19: 2593 | AF19: 261 | AG19: 1317 | AH19: 3617 | AI19: 61 | AJ19: 39 | AK19: 17 | AL19: 2 | AM19: 3 | AN19: 687 | AO19: 477 | AP19: 244 | AQ19: 207 | AR19: 193 | AS19: 631 | AT19: 104 | AU19: 66 | AV19: 84 | AW19: 347 | AX19: 68 | AY19: 24 | AZ19: 63 | BA19: 27 | BB19: 4 | BC19: 43 | BD19: 41 | BE19: 30 | BF19: 89
A20: 2019-03-01 | J20: F84096 | L20: 13157 | M20: 4 | N20: 656 | O20: 9130 | P20: 10 | Q20: 279 | R20: 147 | S20: 59 | T20: 29 | U20: 235 | V20: 302 | W20: 609 | X20: 431 | Y20: 4366 | Z20: 614 | AA20: 480 | AB20: 228 | AC20: 583 | AD20: 157 | AE20: 7112 | AF20: 997 | AG20: 2968 | AH20: 10900 | AI20: 232 | AJ20: 180 | AK20: 84 | AL20: 6 | AM20: 40 | AN20: 1195 | AO20: 888 | AP20: 469 | AQ20: 482 | AR20: 373 | AS20: 1134 | AT20: 229 | AU20: 119 | AV20: 162 | AW20: 675 | AX20: 236 | AY20: 47 | AZ20: 222 | BA20: 95 | BB20: 10 | BC20: 174 | BD20: 191 | BE20: 174 | BF20: 188
A21: 2019-03-01 | J21: F84105 | L21: 11538 | M21: 0 | N21: 602 | O21: 7943 | P21: 12 | Q21: 158 | R21: 57 | S21: 49 | T21: 8 | U21: 126 | V21: 166 | W21: 419 | X21: 297 | Y21: 4486 | Z21: 572 | AA21: 478 | AB21: 222 | AC21: 558 | AD21: 146 | AE21: 6566 | AF21: 734 | AG21: 3287 | AH21: 9265 | AI21: 134 | AJ21: 116 | AK21: 46 | AL21: 5 | AM21: 24 | AN21: 1065 | AO21: 763 | AP21: 404 | AQ21: 435 | AR21: 386 | AS21: 1012 | AT21: 138 | AU21: 76 | AV21: 96 | AW21: 618 | AX21: 100 | AY21: 28 | AZ21: 95 | BA21: 30 | BB21: 4 | BC21: 80 | BD21: 57 | BE21: 47 | BF21: 91
A22: 2019-03-01 | J22: F84115 | L22: 8683 | M22: 0 | N22: 295 | O22: 6395 | P22: 8 | Q22: 107 | R22: 25 | S22: 14 | T22: 7 | U22: 93 | V22: 113 | W22: 278 | X22: 185 | Y22: 2657 | Z22: 269 | AA22: 213 | AB22: 70 | AC22: 187 | AD22: 68 | AE22: 4472 | AF22: 460 | AG22: 1569 | AH22: 7317 | AI22: 97 | AJ22: 74 | AK22: 30 | AL22: 2 | AM22: 28 | AN22: 624 | AO22: 449 | AP22: 165 | AQ22: 191 | AR22: 174 | AS22: 582 | AT22: 146 | AU22: 79 | AV22: 97 | AW22: 303 | AX22: 134 | AY22: 28 | AZ22: 115 | BA22: 54 | BB22: 7 | BC22: 92 | BD22: 100 | BE22: 102 | BF22: 109
A23: 2019-03-01 | J23: F84117 | L23: 10066 | M23: 2 | N23: 441 | O23: 7340 | P23: 4 | Q23: 144 | R23: 55 | S23: 26 | T23: 10 | U23: 125 | V23: 150 | W23: 376 | X23: 276 | Y23: 2984 | Z23: 400 | AA23: 338 | AB23: 136 | AC23: 332 | AD23: 86 | AE23: 5373 | AF23: 626 | AG23: 2200 | AH23: 8465 | AI23: 137 | AJ23: 106 | AK23: 39 | AL23: 2 | AM23: 39 | AN23: 864 | AO23: 666 | AP23: 346 | AQ23: 306 | AR23: 281 | AS23: 808 | AT23: 162 | AU23: 95 | AV23: 122 | AW23: 454 | AX23: 113 | AY23: 37 | AZ23: 105 | BA23: 44 | BB23: 3 | BC23: 81 | BD23: 71 | BE23: 77 | BF23: 140
A24: 2019-03-01 | J24: F84119 | L24: 12364 | M24: 0 | N24: 538 | O24: 8942 | P24: 5 | Q24: 190 | R24: 109 | S24: 62 | T24: 16 | U24: 175 | V24: 195 | W24: 465 | X24: 400 | Y24: 4862 | Z24: 507 | AA24: 407 | AB24: 243 | AC24: 606 | AD24: 152 | AE24: 7428 | AF24: 892 | AG24: 4176 | AH24: 10327 | AI24: 192 | AJ24: 168 | AK24: 78 | AL24: 16 | AM24: 43 | AN24: 1077 | AO24: 850 | AP24: 426 | AQ24: 364 | AR24: 325 | AS24: 964 | AT24: 172 | AU24: 123 | AV24: 162 | AW24: 554 | AX24: 140 | AY24: 22 | AZ24: 136 | BA24: 62 | BB24: 7 | BC24: 100 | BD24: 82 | BE24: 73 | BF24: 142
A25: 2019-03-01 | J25: F84601 | L25: 6847 | M25: 1 | N25: 298 | O25: 4508 | P25: 4 | Q25: 111 | R25: 65 | S25: 51 | T25: 6 | U25: 95 | V25: 113 | W25: 235 | X25: 190 | Y25: 3509 | Z25: 286 | AA25: 237 | AB25: 125 | AC25: 322 | AD25: 86 | AE25: 3152 | AF25: 450 | AG25: 1634 | AH25: 5509 | AI25: 115 | AJ25: 96 | AK25: 56 | AL25: 3 | AM25: 18 | AN25: 587 | AO25: 479 | AP25: 207 | AQ25: 175 | AR25: 167 | AS25: 538 | AT25: 92 | AU25: 66 | AV25: 81 | AW25: 311 | AX25: 72 | AY25: 19 | AZ25: 69 | BA25: 37 | BB25: 0 | BC25: 47 | BD25: 32 | BE25: 54 | BF25: 75
A26: 2019-03-01 | J26: F84619 | L26: 4424 | M26: 0 | N26: 226 | O26: 2941 | P26: 0 | Q26: 62 | R26: 30 | S26: 23 | T26: 6 | U26: 46 | V26: 65 | W26: 181 | X26: 133 | Y26: 1684 | Z26: 211 | AA26: 193 | AB26: 127 | AC26: 211 | AD26: 47 | AE26: 2452 | AF26: 404 | AG26: 1382 | AH26: 3492 | AI26: 55 | AJ26: 47 | AK26: 24 | AL26: 1 | AM26: 9 | AN26: 417 | AO26: 278 | AP26: 180 | AQ26: 159 | AR26: 139 | AS26: 381 | AT26: 66 | AU26: 45 | AV26: 53 | AW26: 234 | AX26: 33 | AY26: 13 | AZ26: 32 | BA26: 8 | BB26: 0 | BC26: 26 | BD26: 24 | BE26: 16 | BF26: 52
A27: 2019-03-01 | J27: F84620 | L27: 6323 | M27: 0 | N27: 388 | O27: 4122 | P27: 4 | Q27: 138 | R27: 44 | S27: 35 | T27: 9 | U27: 117 | V27: 142 | W27: 290 | X27: 209 | Y27: 2119 | Z27: 363 | AA27: 305 | AB27: 153 | AC27: 363 | AD27: 97 | AE27: 3326 | AF27: 478 | AG27: 1732 | AH27: 5093 | AI27: 110 | AJ27: 88 | AK27: 37 | AL27: 2 | AM27: 20 | AN27: 744 | AO27: 547 | AP27: 304 | AQ27: 224 | AR27: 244 | AS27: 695 | AT27: 126 | AU27: 76 | AV27: 92 | AW27: 396 | AX27: 72 | AY27: 33 | AZ27: 68 | BA27: 27 | BB27: 1 | BC27: 45 | BD27: 53 | BE27: 67 | BF27: 108
A28: 2019-03-01 | J28: F84621 | L28: 3737 | M28: 0 | N28: 300 | O28: 2592 | P28: 6 | Q28: 84 | R28: 52 | S28: 38 | T28: 7 | U28: 68 | V28: 92 | W28: 203 | X28: 174 | Y28: 1762 | Z28: 272 | AA28: 224 | AB28: 101 | AC28: 231 | AD28: 62 | AE28: 2118 | AF28: 315 | AG28: 1235 | AH28: 3111 | AI28: 85 | AJ28: 69 | AK28: 26 | AL28: 1 | AM28: 16 | AN28: 593 | AO28: 454 | AP28: 96 | AQ28: 207 | AR28: 179 | AS28: 563 | AT28: 73 | AU28: 49 | AV28: 59 | AW28: 303 | AX28: 48 | AY28: 17 | AZ28: 44 | BA28: 20 | BB28: 2 | BC28: 37 | BD28: 31 | BE28: 33 | BF28: 61
A29: 2019-03-01 | J29: F84624 | L29: 2720 | M29: 2 | N29: 155 | O29: 2061 | P29: 1 | Q29: 56 | R29: 29 | S29: 15 | T29: 4 | U29: 44 | V29: 56 | W29: 79 | X29: 55 | Y29: 992 | Z29: 145 | AA29: 114 | AB29: 47 | AC29: 101 | AD29: 23 | AE29: 1473 | AF29: 124 | AG29: 670 | AH29: 2353 | AI29: 48 | AJ29: 33 | AK29: 6 | AL29: 0 | AM29: 11 | AN29: 299 | AO29: 227 | AP29: 109 | AQ29: 102 | AR29: 88 | AS29: 276 | AT29: 69 | AU29: 40 | AV29: 50 | AW29: 160 | AX29: 44 | AY29: 24 | AZ29: 43 | BA29: 11 | BB29: 0 | BC29: 30 | BD29: 32 | BE29: 23 | BF29: 43
A30: 2019-03-01 | J30: F84632 | L30: 1051 | M30: 0 | N30: 50 | O30: 973 | P30: 3 | Q30: 14 | R30: 39 | S30: 17 | T30: 3 | U30: 11 | V30: 15 | W30: 48 | X30: 36 | Y30: 606 | Z30: 46 | AA30: 38 | AB30: 29 | AC30: 85 | AD30: 10 | AE30: 743 | AF30: 375 | AG30: 628 | AH30: 1051 | AI30: 87 | AJ30: 83 | AK30: 63 | AL30: 5 | AM30: 9 | AN30: 120 | AO30: 64 | AP30: 19 | AQ30: 36 | AR30: 29 | AS30: 106 | AT30: 22 | AU30: 14 | AV30: 18 | AW30: 53 | AX30: 38 | AY30: 14 | AZ30: 37 | BA30: 27 | BB30: 1 | BC30: 27 | BD30: 30 | BE30: 23 | BF30: 14
A31: 2019-03-01 | J31: F84635 | L31: 8830 | M31: 2 | N31: 325 | O31: 6210 | P31: 6 | Q31: 86 | R31: 36 | S31: 21 | T31: 3 | U31: 60 | V31: 88 | W31: 278 | X31: 172 | Y31: 2211 | Z31: 284 | AA31: 220 | AB31: 134 | AC31: 343 | AD31: 81 | AE31: 5301 | AF31: 797 | AG31: 2382 | AH31: 7495 | AI31: 124 | AJ31: 86 | AK31: 43 | AL31: 2 | AM31: 16 | AN31: 698 | AO31: 443 | AP31: 228 | AQ31: 230 | AR31: 178 | AS31: 651 | AT31: 103 | AU31: 61 | AV31: 69 | AW31: 337 | AX31: 99 | AY31: 19 | AZ31: 86 | BA31: 36 | BB31: 2 | BC31: 77 | BD31: 78 | BE31: 83 | BF31: 88
A32: 2019-03-01 | J32: F84636 | L32: 4847 | M32: 0 | N32: 185 | O32: 3695 | P32: 5 | Q32: 46 | R32: 29 | S32: 16 | T32: 6 | U32: 37 | V32: 48 | W32: 142 | X32: 107 | Y32: 1515 | Z32: 168 | AA32: 149 | AB32: 77 | AC32: 167 | AD32: 40 | AE32: 2852 | AF32: 409 | AG32: 1525 | AH32: 4255 | AI32: 67 | AJ32: 56 | AK32: 18 | AL32: 1 | AM32: 15 | AN32: 379 | AO32: 274 | AP32: 139 | AQ32: 145 | AR32: 105 | AS32: 344 | AT32: 45 | AU32: 30 | AV32: 36 | AW32: 197 | AX32: 22 | AY32: 9 | AZ32: 21 | BA32: 6 | BB32: 0 | BC32: 13 | BD32: 13 | BE32: 13 | BF32: 38
A33: 2019-03-01 | J33: F84640 | L33: 9312 | M33: 0 | N33: 250 | O33: 7237 | P33: 43 | Q33: 243 | R33: 23 | S33: 9 | T33: 6 | U33: 203 | V33: 266 | W33: 412 | X33: 274 | Y33: 3088 | Z33: 225 | AA33: 178 | AB33: 87 | AC33: 244 | AD33: 44 | AE33: 6188 | AF33: 343 | AG33: 2043 | AH33: 8557 | AI33: 80 | AJ33: 61 | AK33: 13 | AL33: 1 | AM33: 25 | AN33: 950 | AO33: 750 | AP33: 143 | AQ33: 173 | AR33: 175 | AS33: 896 | AT33: 178 | AU33: 95 | AV33: 120 | AW33: 255 | AX33: 65 | AY33: 10 | AZ33: 65 | BA33: 20 | BB33: 2 | BC33: 52 | BD33: 51 | BE33: 29 | BF33: 150
A34: 2019-03-01 | J34: F84668 | L34: 6565 | M34: 0 | N34: 288 | O34: 3216 | P34: 3 | Q34: 90 | R34: 36 | S34: 33 | T34: 5 | U34: 70 | V34: 98 | W34: 218 | X34: 185 | Y34: 1780 | Z34: 276 | AA34: 232 | AB34: 174 | AC34: 392 | AD34: 87 | AE34: 3183 | AF34: 298 | AG34: 1870 | AH34: 4343 | AI34: 68 | AJ34: 63 | AK34: 20 | AL34: 11 | AM34: 9 | AN34: 490 | AO34: 366 | AP34: 248 | AQ34: 221 | AR34: 196 | AS34: 474 | AT34: 57 | AU34: 42 | AV34: 48 | AW34: 300 | AX34: 25 | AY34: 7 | AZ34: 25 | BA34: 10 | BB34: 7 | BC34: 21 | BD34: 22 | BE34: 22 | BF34: 35
A35: 2019-03-01 | J35: F84685 | L35: 2972 | M35: 0 | N35: 133 | O35: 1928 | P35: 1 | Q35: 39 | R35: 11 | S35: 9 | T35: 2 | U35: 37 | V35: 43 | W35: 135 | X35: 96 | Y35: 900 | Z35: 129 | AA35: 98 | AB35: 51 | AC35: 106 | AD35: 21 | AE35: 1512 | AF35: 143 | AG35: 679 | AH35: 2274 | AI35: 38 | AJ35: 25 | AK35: 7 | AL35: 0 | AM35: 5 | AN35: 262 | AO35: 196 | AP35: 85 | AQ35: 85 | AR35: 86 | AS35: 241 | AT35: 39 | AU35: 21 | AV35: 32 | AW35: 136 | AX35: 22 | AY35: 7 | AZ35: 18 | BA35: 8 | BB35: 1 | BC35: 18 | BD35: 15 | BE35: 16 | BF35: 34
A36: 2019-03-01 | J36: F84686 | L36: 7784 | M36: 3 | N36: 184 | O36: 2845 | P36: 0 | Q36: 58 | R36: 20 | S36: 18 | T36: 4 | U36: 51 | V36: 60 | W36: 167 | X36: 138 | Y36: 1050 | Z36: 169 | AA36: 142 | AB36: 104 | AC36: 246 | AD36: 49 | AE36: 2691 | AF36: 130 | AG36: 1048 | AH36: 4241 | AI36: 48 | AJ36: 38 | AK36: 7 | AL36: 1 | AM36: 5 | AN36: 369 | AO36: 307 | AP36: 96 | AQ36: 112 | AR36: 106 | AS36: 360 | AT36: 73 | AU36: 54 | AV36: 61 | AW36: 188 | AX36: 8 | AY36: 1 | AZ36: 8 | BA36: 4 | BB36: 0 | BC36: 6 | BD36: 4 | BE36: 8 | BF36: 56
A37: 2019-03-01 | J37: F84692 | L37: 7150 | M37: 0 | N37: 223 | O37: 4629 | P37: 4 | Q37: 64 | R37: 38 | S37: 8 | T37: 3 | U37: 55 | V37: 65 | W37: 224 | X37: 134 | Y37: 1957 | Z37: 204 | AA37: 159 | AB37: 110 | AC37: 228 | AD37: 43 | AE37: 3748 | AF37: 466 | AG37: 1663 | AH37: 6215 | AI37: 69 | AJ37: 49 | AK37: 26 | AL37: 3 | AM37: 9 | AN37: 448 | AO37: 334 | AP37: 156 | AQ37: 160 | AR37: 138 | AS37: 409 | AT37: 74 | AU37: 36 | AV37: 42 | AW37: 229 | AX37: 77 | AY37: 18 | AZ37: 73 | BA37: 33 | BB37: 2 | BC37: 62 | BD37: 65 | BE37: 50 | BF37: 64
A38: 2019-03-01 | J38: F84694 | L38: 4533 | M38: 0 | N38: 209 | O38: 3455 | P38: 1 | Q38: 59 | R38: 30 | S38: 23 | T38: 3 | U38: 48 | V38: 60 | W38: 170 | X38: 141 | Y38: 1846 | Z38: 186 | AA38: 167 | AB38: 80 | AC38: 220 | AD38: 41 | AE38: 2841 | AF38: 480 | AG38: 1928 | AH38: 4001 | AI38: 51 | AJ38: 45 | AK38: 13 | AL38: 2 | AM38: 6 | AN38: 365 | AO38: 225 | AP38: 27 | AQ38: 163 | AR38: 130 | AS38: 331 | AT38: 59 | AU38: 44 | AV38: 47 | AW38: 219 | AX38: 31 | AY38: 6 | AZ38: 31 | BA38: 14 | BB38: 2 | BC38: 22 | BD38: 17 | BE38: 25 | BF38: 36
A39: 2019-03-01 | J39: F84711 | L39: 1929 | M39: 1 | N39: 169 | O39: 1316 | P39: 0 | Q39: 39 | R39: 17 | S39: 14 | T39: 6 | U39: 32 | V39: 40 | W39: 117 | X39: 98 | Y39: 751 | Z39: 153 | AA39: 137 | AB39: 62 | AC39: 115 | AD39: 38 | AE39: 1176 | AF39: 145 | AG39: 623 | AH39: 1608 | AI39: 26 | AJ39: 23 | AK39: 8 | AL39: 2 | AM39: 4 | AN39: 283 | AO39: 176 | AP39: 126 | AQ39: 153 | AR39: 103 | AS39: 274 | AT39: 31 | AU39: 20 | AV39: 23 | AW39: 169 | AX39: 26 | AY39: 8 | AZ39: 25 | BA39: 13 | BB39: 4 | BC39: 24 | BD39: 13 | BE39: 9 | BF39: 23
A40: 2019-03-01 | J40: F84716 | L40: 5586 | M40: 1 | N40: 200 | O40: 3425 | P40: 2 | Q40: 95 | R40: 52 | S40: 22 | T40: 11 | U40: 76 | V40: 99 | W40: 187 | X40: 143 | Y40: 1547 | Z40: 187 | AA40: 150 | AB40: 86 | AC40: 234 | AD40: 58 | AE40: 3049 | AF40: 303 | AG40: 1546 | AH40: 4182 | AI40: 100 | AJ40: 83 | AK40: 24 | AL40: 5 | AM40: 14 | AN40: 383 | AO40: 294 | AP40: 84 | AQ40: 119 | AR40: 118 | AS40: 367 | AT40: 69 | AU40: 41 | AV40: 51 | AW40: 204 | AX40: 41 | AY40: 11 | AZ40: 41 | BA40: 14 | BB40: 2 | BC40: 32 | BD40: 32 | BE40: 11 | BF40: 55
A41: 2019-03-01 | J41: F84719 | L41: 5144 | M41: 2 | N41: 303 | O41: 3592 | P41: 8 | Q41: 97 | R41: 43 | S41: 33 | T41: 15 | U41: 82 | V41: 98 | W41: 223 | X41: 177 | Y41: 1611 | Z41: 291 | AA41: 235 | AB41: 100 | AC41: 265 | AD41: 73 | AE41: 3353 | AF41: 370 | AG41: 1761 | AH41: 4361 | AI41: 80 | AJ41: 74 | AK41: 20 | AL41: 2 | AM41: 11 | AN41: 618 | AO41: 462 | AP41: 236 | AQ41: 243 | AR41: 185 | AS41: 585 | AT41: 136 | AU41: 91 | AV41: 106 | AW41: 313 | AX41: 81 | AY41: 26 | AZ41: 76 | BA41: 23 | BB41: 2 | BC41: 74 | BD41: 56 | BE41: 56 | BF41: 91
A42: 2019-03-01 | J42: F84720 | L42: 5443 | M42: 0 | N42: 367 | O42: 3238 | P42: 7 | Q42: 143 | R42: 56 | S42: 42 | T42: 12 | U42: 121 | V42: 148 | W42: 314 | X42: 250 | Y42: 2054 | Z42: 337 | AA42: 280 | AB42: 139 | AC42: 339 | AD42: 91 | AE42: 2885 | AF42: 424 | AG42: 1675 | AH42: 4140 | AI42: 91 | AJ42: 75 | AK42: 35 | AL42: 2 | AM42: 14 | AN42: 805 | AO42: 607 | AP42: 136 | AQ42: 213 | AR42: 204 | AS42: 773 | AT42: 152 | AU42: 102 | AV42: 127 | AW42: 372 | AX42: 80 | AY42: 14 | AZ42: 77 | BA42: 22 | BB42: 1 | BC42: 56 | BD42: 45 | BE42: 73 | BF42: 116
A43: 2019-03-01 | J43: Y00403 | L43: 6277 | M43: 0 | N43: 190 | O43: 4647 | P43: 0 | Q43: 43 | R43: 43 | S43: 19 | T43: 8 | U43: 38 | V43: 45 | W43: 105 | X43: 74 | Y43: 1527 | Z43: 182 | AA43: 161 | AB43: 98 | AC43: 194 | AD43: 59 | AE43: 3367 | AF43: 526 | AG43: 1638 | AH43: 5280 | AI43: 82 | AJ43: 62 | AK43: 28 | AL43: 1 | AM43: 12 | AN43: 392 | AO43: 287 | AP43: 56 | AQ43: 144 | AR43: 129 | AS43: 366 | AT43: 47 | AU43: 27 | AV43: 30 | AW43: 193 | AX43: 34 | AY43: 11 | AZ43: 33 | BA43: 13 | BB43: 1 | BC43: 32 | BD43: 24 | BE43: 22 | BF43: 39
A44: 2019-03-01 | J44: Y03049 | L44: 14427 | M44: 3 | N44: 618 | O44: 8866 | P44: 10 | Q44: 190 | R44: 95 | S44: 56 | T44: 20 | U44: 148 | V44: 196 | W44: 479 | X44: 339 | Y44: 4619 | Z44: 576 | AA44: 476 | AB44: 232 | AC44: 599 | AD44: 150 | AE44: 6927 | AF44: 818 | AG44: 3161 | AH44: 10610 | AI44: 194 | AJ44: 164 | AK44: 75 | AL44: 9 | AM44: 24 | AN44: 1138 | AO44: 813 | AP44: 322 | AQ44: 412 | AR44: 363 | AS44: 1104 | AT44: 179 | AU44: 106 | AV44: 126 | AW44: 624 | AX44: 97 | AY44: 23 | AZ44: 92 | BA44: 48 | BB44: 9 | BC44: 70 | BD44: 59 | BE44: 80 | BF44: 147
A45: 2019-03-01 | J45: Total | L45: 322889 | M45: 40 | N45: 14946 | O45: 218764 | P45: 253 | Q45: 5087 | R45: 2359 | S45: 1381 | T45: 388 | U45: 4118 | V45: 5312 | W45: 12396 | X45: 9339 | Y45: 109716 | Z45: 13850 | AA45: 11318 | AB45: 5936 | AC45: 14044 | AD45: 3652 | AE45: 174143 | AF45: 22323 | AG45: 86069 | AH45: 260423 | AI45: 4767 | AJ45: 3854 | AK45: 1657 | AL45: 135 | AM45: 832 | AN45: 29764 | AO45: 21705 | AP45: 9682 | AQ45: 10184 | AR45: 9013 | AS45: 27941 | AT45: 4943 | AU45: 3055 | AV45: 3784 | AW45: 15385 | AX45: 3435 | AY45: 872 | AZ45: 3235 | BA45: 1400 | BB45: 114 | BC45: 2507 | BD45: 2322 | BE45: 2333 | BF45: 3882

Sheet Control Panel (hidden)
B1: Control Panel | C1: 2018-06-30 | G1: Select Dates
B2: General Health | G2: 2022-04-01 | I2: - | J2: Select Practice | K2: DN Team | L2: Patch | M2: Network | O2: OrgID | P2: 4 | Q2: =$P$6&ADDRESS(1,P2)&":"&ADDRESS($P$7,P2) -> 'CH LDP TABLE'!$D$1:$D$100000 | T2: OrgID_A | U2: 10 | V2: =$U$6&ADDRESS(1,U2)&":"&ADDRESS($U$7,U2) -> 'Data 17-18'!$J$1:$J$1000
A3: List Size | B3: 01. Listsize | C3: List Size | G3: 2022-05-01 | H3: Bethnal Green Health Centre | I3: F84083 | J3: Bethnal Green Health Centre | M3: NW1 | O3: REL_D | P3: 2 | Q3: =$P$6&ADDRESS(1,P3)&":"&ADDRESS($P$7,P3) -> 'CH LDP TABLE'!$B$1:$B$100000 | T3: REL_DA | U3: 1 | V3: =$U$6&ADDRESS(1,U3)&":"&ADDRESS($U$7,U3) -> 'Data 17-18'!$A$1:$A$1000
A4: Age 16+ | B4: LDP.01: Aged 16yrs+ | C4: Age 16+ | D4: Age 16+ | G4: 2022-06-01 | H4: The Mission Practice | I4: F84016 | J4: The Mission Practice | M4: NW1 | O4: IND | P4: - | Q4: =$P$6&ADDRESS(P11,1)&":"&ADDRESS(P11,P8) -> 'CH LDP TABLE'!$A$1:$BU$1 | T4: IND_A | U4: - | V4: =$U$6&ADDRESS(U11,1)&":"&ADDRESS(U11,U8) -> 'Data 17-18'!$A$1:$BU$1
A5: % list size | B5: ="%"&B4 -> %LDP.01: Aged 16yrs+ | C5: % list size | D5: % list size | G5: 2022-07-01 | H5: Globe Town Surgery | I5: F84123 | J5: Globe Town Surgery | M5: NW1 | O5: NwID | P5: 2 | Q5: =$P$6&ADDRESS(1,P5)&":"&ADDRESS($P$7,P5) -> 'CH LDP TABLE'!$B$1:$B$100000 | T5: NwID_A | U5: 2 | V5: =$U$6&ADDRESS(1,U5)&":"&ADDRESS($U$7,U5) -> 'Data 17-18'!$B$1:$B$1000
A6: 16+ and BMI (last 12m) | B6: LDP.01.01: Obesity BMI recorded (last 12m) | C6: 16+ and BMI (last 12m) | D6: 16+ and BMI (last 12m) | G6: 2022-08-01 | H6: Pollard Row Surgery | I6: Y00212 | J6: Pollard Row Surgery | M6: NW1 | O6: Data | P6: =IF(P9="N","BLANK!","'"&P10&"'!") -> 'CH LDP TABLE'! | T6: Data | U6: =IF(U9="N","BLANK!","'"&U10&"'!") -> 'Data 17-18'!
A7: % 16+ | B7: ="%"&B6 -> %LDP.01.01: Obesity BMI recorded (last 12m) | C7: % 16+ | D7: % 16+ | G7: 2022-09-01 | H7: Strouts Place Medical Centre | I7: F84051 | J7: Strouts Place Medical Centre | M7: NW1 | O7: Rows | P7: 100000 | T7: Rows | U7: 1000
A8: BMI 25 to 29 | B8: LDP.01.01.02: Obesity BMI between 30-35 (last 12m) | C8: BMI 25 to 29 | D8: BMI ≥30 & <35 | G8: 2022-10-01 | H8: Spitalfields Practice | I8: F84081 | J8: Spitalfields Practice | M8: NW2 | O8: Columns | P8: 73 | T8: Columns | U8: 73
A9: % 16+ | B9: ="%"&B8 -> %LDP.01.01.02: Obesity BMI between 30-35 (last 12m) | C9: % 16+ | D9: % 16+ | G9: 2022-11-01 | H9: Blithehale Medical Centre | I9: F84718 | J9: Blithehale Medical Centre | M9: NW2 | O9: Data (Y/N) | P9: Y | T9: Data (Y/N) | U9: Y
A10: BMI ≥ 30 | B10: LDP.01.01.01: Obesity BMI more than or equal to 35 less than 40 (last 12m) | C10: BMI ≥ 30 | D10: BMI ≥ 35 & <40 | G10: 2022-12-01 | H10: Health E1 | I10: F84733 | J10: Health E1 | M10: NW2 | O10: Q Work Sheet | P10: CH LDP TABLE | Q10: =$P$6&ADDRESS(1,1)&":"&ADDRESS(P7,P8) -> 'CH LDP TABLE'!$A$1:$BU$100000 | T10: Q Work Sheet | U10: Data 17-18 | V10: =$U$6&ADDRESS(1,1)&":"&ADDRESS(U7,U8) -> 'Data 17-18'!$A$1:$BU$1000
A11: %16+ | B11: ="%"&B10 -> %LDP.01.01.01: Obesity BMI more than or equal to 35 less than 40 (last 12m) | C11: %16+ | D11: %16+ | G11: 2023-01-01 | H11: Albion Health Centre | I11: F84012 | J11: Albion Health Centre | M11: NW2 | O11: Header Row | P11: 1 | T11: Header Row | U11: 1
A12: BMI ≥ 40 | B12: LDP.01.01.03: Obesity BMI equal to or over 40 (last 12m) | C12: BMI ≥ 40 | D12: BMI ≥ 40 | G12: 2023-02-01 | H12: XX Place Surgery | I12: F84122 | J12: XX Place Surgery | M12: NW2 | O12: Header Row 2 | P12: 3 | T12: Header Row 2 | U12: 3
A13: %16+ | B13: ="%"&B12 -> %LDP.01.01.03: Obesity BMI equal to or over 40 (last 12m) | C13: %16+ | D13: %16+ | G13: 2023-03-01 | H13: Harford Health Centre | I13: F84087 | J13: Harford Health Centre | M13: NW3
A14: Smoking status (last 12m) incl. never smoked | B14: LDP.01.02: Smoking Status (last 12m) or Never Smoked (25yrs+) | C14: Smoking status (last 12m) incl. never smoked | D14: Smoking status (last 12m) incl. never smoked | H14: Brayford Square (Dr Varma) | I14: F84046 | J14: Brayford Square (Dr Varma) | M14: NW3
A15: % 16+ | B15: ="%"&B14 -> %LDP.01.02: Smoking Status (last 12m) or Never Smoked (25yrs+) | C15: % 16+ | D15: % 16+ | H15: Whitechapel Health (Shah Jalal) | I15: F84039 | J15: Whitechapel Health (Shah Jalal) | M15: NW3
A16: Age 16+ and current smoker (last 12m) | B16: LDP.01.03: Current Smoker (last 12m) | C16: Age 16+ and current smoker (last 12m) | D16: Age 16+ and current smoker (last 12m) | H16: City Wellbeing Practice (Tower Medical) | I16: F84114 | J16: City Wellbeing Practice (Tower Medical) | M16: NW3 | O16: April 2022 | P16: 2022-05-01
A17: % 16+ | B17: ="%"&B16 -> %LDP.01.03: Current Smoker (last 12m) | C17: % 16+ | D17: % 16+ | H17: Wapping Group Practice | I17: F84079 | J17: Wapping Group Practice | M17: NW4 | O17: May 2022 | P17: 2022-06-01
B18: Hypertension | H18: Jubilee Street Practice | I18: F84031 | J18: Jubilee Street Practice | M18: NW4 | O18: June 2022 | P18: 2022-07-01
A19: Hypertension Register | B19: LDP.02: Hypertension Register | C19: Hypertension Register | D19: Hypertension Register | H19: St Katharine Docks Practice | I19: F84731 | J19: St Katharine Docks Practice | M19: NW4 | O19: July 2022 | P19: 2022-08-01
A20: % list size | B20: ="%"&B19 -> %LDP.02: Hypertension Register | C20: % list size | D20: % list size | H20: East One Health | I20: F84682 | J20: East One Health | M20: NW4 | O20: August 2022 | P20: 2022-09-01
A21: Hypertension and BP (last 9m) | B21: LDP.02.02: Hypertension BP recorded (last 12m) | C21: Hypertension and BP (last 9m) | D21: Hypertension and BP (last 12m) | H21: Harley Grove Medical Centre | I21: F84044 | J21: Harley Grove Medical Centre | M21: NW5 | O21: September 2022 | P21: 2022-10-01
A22: % Hypertension Register | B22: ="%"&B21 -> %LDP.02.02: Hypertension BP recorded (last 12m) | C22: % Hypertension Register | D22: % Hypertension Register | H22: St Stephens Health Centre | I22: F84034 | J22: St Stephens Health Centre | M22: NW5 | O22: October 2022 | P22: 2022-11-01
A23: Hypertension and BP ≤ 150/90 (last 9m) | B23: LDP.02.01: Hypertension and BP < 140/90 (age under 80) < 150/90 (Age 80+) | C23: Hypertension and BP ≤ 150/90 (last 9m) | D23: Hypertension and BP < 140/90 (Patients aged under 80) < 150/90 ( Aged 80 and over) (last 12m) | H23: Ruston Street Clinic (Dr Amin) | I23: F84030 | J23: Ruston Street Clinic (Dr Amin) | M23: NW5 | O23: November 2022 | P23: 2022-12-01
A24: % Hypertension Register | B24: ="%"&B23 -> %LDP.02.01: Hypertension and BP < 140/90 (age under 80) < 150/90 (Age 80+) | C24: % Hypertension Register | D24: % Hypertension Register | H24: Grove Road Surgery (Dr Shah) | I24: F84055 | J24: Grove Road Surgery (Dr Shah) | M24: NW5 | O24: December 2022 | P24: 2023-01-01
B25: CHD | H25: The Tredegar Practice | I25: F84696 | J25: The Tredegar Practice | M25: NW5 | O25: January 2023 | P25: 2023-02-01
A26: CHD register | B26: LDP.03: CHD Register | C26: CHD register | D26: CHD register | H26: Stroudley Walk Centre | I26: F84676 | J26: Stroudley Walk Centre | M26: NW6 | O26: February 2023 | P26: 2023-03-01
A27: % list size | B27: ="%"&B26 -> %LDP.03: CHD Register | C27: % list size | D27: % list size | H27: St Andrews Health Centre | I27: Y03023 | J27: St Andrews Health Centre | M27: NW6 | O27: March 2023 | P27: 2023-04-01
A28: Cholesterol (last 12m) | B28: LDP.03.04: CHD Cholesterol recorded (last 12m) | C28: Cholesterol (last 12m) | D28: Cholesterol (last 12m) | H28: Merchant Street (Dr Rana) | I28: F84118 | J28: Merchant Street (Dr Rana) | M28: NW6
A29: % CHD register | B29: ="%"&B28 -> %LDP.03.04: CHD Cholesterol recorded (last 12m) | C29: % CHD register | D29: % CHD register | H29: St Pauls Way Medical Centre | I29: F84714 | J29: St Pauls Way Medical Centre | M29: NW6
A30: Cholesterol ≤ 5 (last 12m) | B30: LDP.03.01: CHD Chol less than 5mmol (last 12m) | C30: Cholesterol ≤ 5 (last 12m) | D30: Cholesterol < 5 (last 12m) | H30: Bromley-By-Bow Health Centre | I30: F84122 | J30: Bromley-By-Bow Health Centre | M30: NW6
A31: % CHD register | B31: ="%"&B30 -> %LDP.03.01: CHD Chol less than 5mmol (last 12m) | C31: % CHD register | D31: % CHD register | H31: Limehouse Practice (Gill Street) | I31: F84054 | J31: Limehouse Practice (Gill Street) | M31: NW7
A32: BP (last 9m) | B32: LDP.03.02: CHD BP less than or equal 150/90 (last 9m) | C32: BP (last 9m) | D32: BP ≤ 150/90 (last 9m) | H32: Chrisp Street Health Centre | I32: F84062 | J32: Chrisp Street Health Centre | M32: NW7
A33: % CHD register | B33: ="%"&B32 -> %LDP.03.02: CHD BP less than or equal 150/90 (last 9m) | C33: % CHD register | D33: % CHD register | H33: Aberfeldy Practice | I33: F84698 | J33: Aberfeldy Practice | M33: NW7
A34: BP ≤ 150/90 (last 9m) | B34: LDP.03.05: CHD BP recorded (last 9m) | C34: BP ≤ 150/90 (last 9m) | H34: All Saints Practice | I34: F84702 | J34: All Saints Practice | M34: NW7
A35: % CHD register | B35: ="%"&B34 -> %LDP.03.05: CHD BP recorded (last 9m) | C35: % CHD register | H35: Gough Walk (Dr Selvan) | I35: F84025 | J35: Gough Walk (Dr Selvan) | M35: NW7
A36: CHD annual review or proxy review | B36: LDP.03.03: CHD Annual Review & Proxy (last 12m) | C36: CHD annual review or proxy review | H36: Island Health | I36: F84710 | J36: Island Health | M36: NW8
A37: % CHD register | B37: ="%"&B36 -> %LDP.03.03: CHD Annual Review & Proxy (last 12m) | C37: % CHD register | H37: Docklands Medical Centre | I37: F84656 | J37: Docklands Medical Centre | M37: NW8
A38: CHD diagnosed in last 6 months | B38: LDP.03.06: CHD Diagnosed (Last 6 months) | C38: CHD diagnosed in last 6 months | H38: Island Medical Centre | I38: F84647 | J38: Island Medical Centre | M38: NW8
A39: % CHD register | B39: ="%"&B38 -> %LDP.03.06: CHD Diagnosed (Last 6 months) | C39: % CHD register | H39: Barkantine Practice | I39: F84747 | J39: Barkantine Practice | M39: NW8
H40: Tower Hamlets | I40: Total | J40: Tower Hamlets
B41: Stroke/TIA
B42: LDP.10 Stroke or TIA register | D42: Stroke/TIA register
B43: %LDP.10 Stroke or TIA register | D43: % list size
B44: LDP.10.01: Stroke/TIA BP recorded (last 12m) | D44: Patients on Stroke/TIA register with BP recorded
B45: %LDP.10.01: Stroke/TIA BP recorded (last 12m) | D45: % of stroke register
B46: LDP.10.02 Patients on Stroke/TIA register with BP <140/90 (12m) | D46: Patients on Stroke/TIA register with BP <140/90 (12m)
B47: %LDP.10.02 Patients on Stroke/TIA register with BP <140/90 (12m) | D47: % of stroke register
B48: CVD Risk | H48: The One Network | I48: NW1 | J48: The One Network | M48: NW1
A49: Aged 35 to 74 (exc CVD) | B49: LDP.05: CVD 25-84yrs (excl CVD) | C49: Aged 35 to 74 (exc CVD) | D49: Aged 25 to 84 (exc CVD) | H49: East End Health Network | I49: NW2 | J49: East End Health Network | M49: NW2
A50: CVD (QRISK or Framingham) risk score done | B50: LDP.05.02: Cardiovascular Risk Score Done (5y) | C50: CVD (QRISK or Framingham) risk score done | D50: QRISK recorded (5 years) | H50: Stepney and Whitechapel Network | I50: NW3 | J50: Stepney and Whitechapel Network | M50: NW3
A51: % of patients aged 35 to 74 (exc CVD) | B51: ="%"&B50 -> %LDP.05.02: Cardiovascular Risk Score Done (5y) | C51: % of patients aged 35 to 74 (exc CVD) | D51: % of patients aged 25 to 84 (exc CVD) | H51: The Highway Network | I51: NW4 | J51: The Highway Network | M51: NW4
A52: QRISK ≥ 20% | B52: LDP.05.01: CVD QRISK greater than or equal 20% | C52: QRISK ≥ 20% | D52: QRISK ≥ 20% | H52: Bow Health Network | I52: NW5 | J52: Bow Health Network | M52: NW5
A53: % QRISK Score recorded | B53: ="%"&B52 -> %LDP.05.01: CVD QRISK greater than or equal 20% | C53: % QRISK Score recorded | D53: % QRISK Score recorded | H53: Mile End East and Bromley by Bow Network | I53: NW6 | J53: Mile End East and Bromley by Bow Network | M53: NW6
A54: QRISK ≥ 20% and proxy review (BP and Chol last 12m) | B54: LDP.05.01.01: CVD Proxy Annual Review (last 12m) | C54: QRISK ≥ 20% and proxy review (BP and Chol last 12m) | D54: QRISK ≥ 20% and proxy review (BP and Chol last 12m) | H54: Poplar and Limehouse Network | I54: NW7 | J54: Poplar and Limehouse Network | M54: NW7
A55: % Patients with QRISK ≥ 20% | B55: ="%"&B54 -> %LDP.05.01.01: CVD Proxy Annual Review (last 12m) | C55: % Patients with QRISK ≥ 20% | D55: % Patients with QRISK ≥ 20% | H55: Healthy Island Network | I55: NW8 | J55: Healthy Island Network | M55: NW8
B56: Diabetes
A57: Diabetes register | B57: LDP.04: Diabetes Register | C57: Diabetes register | D57: Diabetes register
A58: % List size | B58: ="%"&B57 -> %LDP.04: Diabetes Register | C58: % List size | D58: % List size
A59: Annual review/ called or proxy (last 12m) | B59: LDP.04.02: Diabetes Called & Annual Review or Proxy (last 12m) | C59: Annual review/ called or proxy (last 12m) | D59: BP (last 12m)
A60: % Diabetes register | B60: ="%"&B59 -> %LDP.04.02: Diabetes Called & Annual Review or Proxy (last 12m) | C60: % Diabetes register | D60: % Diabetes Register
A61: BP (last 12m) | B61: LDP.04.11: Diabetes and BP in last 12 months | C61: BP (last 12m) | D61: BP < 145/85 (last 12m)
A62: % Diabetes Register | B62: ="%"&B61 -> %LDP.04.11: Diabetes and BP in last 12 months | C62: % Diabetes Register | D62: % Diabetes Register
A63: BP ≤ 145/85 (last 12m) | B63: LDP.04.09: Diabetes BP less than 145/85 (last 12m) | C63: BP ≤ 145/85 (last 12m) | D63: Cholesterol < 5mmols (last 12m) | H63: Cedar Practice, John Scott HC | I63: F84036
A64: % Diabetes Register | B64: ="%"&B63 -> %LDP.04.09: Diabetes BP less than 145/85 (last 12m) | C64: % Diabetes Register | D64: % Diabetes Register | H64: Clapton Surgery | I64: F84668
A65: Cholesterol (last 12m) | B65: LDP.04.12: Diabetes and cholesterol in last 15 mths | C65: Cholesterol (last 12m) | D65: HbA1c < 59 (last 12m) | H65: Cranwich Road (Spitzer & Partners) | I65: F84686
A66: % Diabetes Register | B66: ="%"&B65 -> %LDP.04.12: Diabetes and cholesterol in last 15 mths | C66: % Diabetes Register | D66: % Diabetes register | H66: Elsdale Street | I66: F84601
A67: Cholesterol < 5mmols (last 12m) | B67: LDP.04.08: Diabetes Chol less than 5mmol (last 12m) | C67: Cholesterol < 5mmols (last 12m) | D67: Flu jab (From August 2021) | H67: Nightingale Practice | I67: F84018
A68: % Diabetes Register | B68: ="%"&B67 -> %LDP.04.08: Diabetes Chol less than 5mmol (last 12m) | C68: % Diabetes Register | D68: % Diabetes Register | H68: Shoreditch Park Surgery | I68: F84635
A69: HbA1c ≤ 59(last 12m) | B69: LDP.04.01: Diabetes HbA1c <7.5% OR <59mmol (last 12m) | C69: HbA1c ≤ 59(last 12m) | H69: Southgate Rd & Whiston Rd MC | I69: F84041
A70: % Diabetes register | B70: ="%"&B69 -> %LDP.04.01: Diabetes HbA1c <7.5% OR <59mmol (last 12m) | C70: % Diabetes register | H70: The Dalston Practice | I70: F84063
A71: HbA1c ≤ 86 (last 12m) | B71: LDP.04.10: Diabetes HbA1c <=10% OR <=86mmol (last 12m) | C71: HbA1c ≤ 86 (last 12m) | H71: The Heron Practice, John Scott HC | I71: F84119
A72: % Diabetes Register | B72: ="%"&B71 -> %LDP.04.10: Diabetes HbA1c <=10% OR <=86mmol (last 12m) | C72: % Diabetes Register | H72: Wick Health Centre | I72: F84620
A73: Diabetes retinal screening (last 12m) | B73: LDP.04.03: Diabetes Digital retinal screening or Seen by retinal screener | C73: Diabetes retinal screening (last 12m) | H73: Athena Medical Centre | I73: F84060
A74: % Diabetes register | B74: ="%"&B73 -> %LDP.04.03: Diabetes Digital retinal screening or Seen by retinal screener | C74: % Diabetes register | H74: Kingsmead Healthcare | I74: F84015
A75: Retinal screening (last 12m) | B75: LDP.04.04: Diabetes Retinal Screening (QoF) (last 12m) | C75: Retinal screening (last 12m) | H75: Lea Surgery | I75: F84105
A76: % Diabetes register | B76: ="%"&B75 -> %LDP.04.04: Diabetes Retinal Screening (QoF) (last 12m) | C76: % Diabetes register | H76: London Fields Medical Centre | I76: F84021
A77: Neuropathy testing (last 12m) | B77: LDP.04.05: Diabetes Neuropathy Test (last 12m) | C77: Neuropathy testing (last 12m) | H77: Lower Clapton Health Centre | I77: F84003
A78: % Diabetes Register | B78: ="%"&B77 -> %LDP.04.05: Diabetes Neuropathy Test (last 12m) | C78: % Diabetes Register | H78: Queensbridge Group Practice | I78: F84117
A79: Microalbuminuria (last 12m) | B79: LDP.04.06: Diabetes Microalbuminuria Test (latest last 12m) | C79: Microalbuminuria (last 12m) | H79: Riverside Practice | I79: F84619
A80: % Diabetes Register | B80: ="%"&B79 -> %LDP.04.06: Diabetes Microalbuminuria Test (latest last 12m) | C80: % Diabetes Register | H80: Stamford Hill Group Practice | I80: F84013
A81: Flu jab (last 12m) | B81: LDP.04.07: Diabetes Influenza Vaccinations (From August 2018) | C81: Flu jab (last 12m) | H81: Statham Grove Surgery | I81: F84115
A82: % Diabetes Register | B82: ="%"&B81 -> %LDP.04.07: Diabetes Influenza Vaccinations (From August 2018) | C82: % Diabetes Register | H82: The Lawson Practice | I82: F84096
A83: Type 1 Diabetes | B83: LDP.04.13. Type 1 Diabetes | C83: Type 1 Diabetes | H83: Allerton Road Surgery | I83: F84716
A84: % Diabetes Register | B84: ="%"&B83 -> %LDP.04.13. Type 1 Diabetes | C84: % Diabetes Register | H84: Brooke Road (Dr SN Prasad) | I84: F84694
A85: Type 2 Diabetes | B85: LDP.04.14. Type 2 Diabetes | C85: Type 2 Diabetes | H85: Greenhouse Health Centre | I85: F84632
A86: % Diabetes Register | B86: ="%"&B85 -> %LDP.04.14. Type 2 Diabetes | C86: % Diabetes Register | H86: Neaman Practice (Long Lane) | I86: F84640
A87: No Type Recorded | B87: No Type Recorded | C87: No Type Recorded | H87: Barton House Health Centre | I87: F84008
A88: % Diabetes Register | B88: ="%"&B87 -> %No Type Recorded | C88: % Diabetes Register | H88: Elm Practice | I88: F84685
A89: Type 2 diabetes excluding insulin prescriptions (last 15 m) | B89: LDP 04.14.01 Excl Insulin Prescription (12m) | C89: Type 2 diabetes excluding insulin prescriptions (last 15 m) | H89: Hoxton Surgery | I89: F84692
A90: % Type 2 Diabetes | B90: ="%"&B89 -> %LDP 04.14.01 Excl Insulin Prescription (12m) | C90: % Type 2 Diabetes | H90: Rosewood Practice | I90: F84711
A91: Newly Diagnosed Diabetes (Last 1m) | B91: LDP.04.19 Newly Diagnosed Diabetes (last 1m) | C91: Newly Diagnosed Diabetes (Last 1m) | H91: Sandringham Road | I91: F84621
A92: Newly Diagnosed Diabetes - Type 1 | B92: LDP.04.19.01 Newly Diagnosed Type 1 | C92: Newly Diagnosed Diabetes - Type 1 | H92: Somerford Grove Health Centre | I92: F84033
A93: Newly Diagnosed Diabetes - Type 2 | B93: LDP.04.19.02 Newly Diagnosed Type 2 | C93: Newly Diagnosed Diabetes - Type 2 | H93: Trowbridge Practice | I93: Y00403
A94: Newly Diagnosed Diabetes - Type Not Recorded | B94: ="%"&B93 -> %LDP.04.19.02 Newly Diagnosed Type 2 | C94: Newly Diagnosed Diabetes - Type Not Recorded | H94: Barretts Grove (Dr Gangola) | I94: F84636
A95: Diabetics under 18 years old | B95: LDP.04.15 Diabetes (under 18) | C95: Diabetics under 18 years old | H95: Healy Medical Centre | I95: F84720
A96: Diabetics Under 18 with HbA1c ≤ 59 (last 12m) | B96: LDP.04.15.01 Diabetes HbA1C <=7.5% OR <=59mmol (12m) | C96: Diabetics Under 18 with HbA1c ≤ 59 (last 12m) | H96: Latimer Health Centre | I96: F84719
A97: % of Diabetics under 18 | B97: ="%"&B96 -> %LDP.04.15.01 Diabetes HbA1C <=7.5% OR <=59mmol (12m) | C97: % of Diabetics under 18 | H97: Beechwood Medical Centre | I97: F84038
A98: No. of patients with diabetes diagnosed with CKD in the last 12m | B98: LDP.04.16 Diabetes and CKD Diagnosed (12m) | C98: No. of patients with diabetes diagnosed with CKD in the last 12m | H98: De Beauvoir Surgery | I98: F84072
A99: % Diabetes Register | B99: ="%"&B98 -> %LDP.04.16 Diabetes and CKD Diagnosed (12m) | C99: % Diabetes Register | H99: Drs Gadhvi & Pathan | I99: F84080
A100: No. of patients with diabetes diagnosed with CHD and/or Stroke/TIA in the last 12 months | B100: LDP.04.17 Diabetes and Stroke or CHD Diagnosed (12m) | C100: No. of patients with diabetes diagnosed with CHD and/or Stroke/TIA in the last 12 months | H100: Richmond Road MC | I100: F84035
A101: % Diabetes Register | B101: ="%"&B100 -> %LDP.04.17 Diabetes and Stroke or CHD Diagnosed (12m) | C101: % Diabetes Register | H101: Spring Hill Practice | I101: Y03049
A102: No. of patients with diabetes diagnosed with Depression in the last 12 months | B102: LDP.04.18 Diabetes and Depression (last 12m) | C102: No. of patients with diabetes diagnosed with Depression in the last 12 months | H102: Well Street Surgery | I102: F84069
A103: %Diabetes Register | B103: ="%"&B102 -> %LDP.04.18 Diabetes and Depression (last 12m) | C103: %Diabetes Register | H103: City and Hackney | I103: Total
A104: No. of patients who have ever had gestational diabetes | B104: LDP.07 Gestational Diabetes | C104: No. of patients who have ever had gestational diabetes
A105: No. of patients who have ever had gestational diabetes who are also on diabetes register | B105: LDP.07.01 Diabetes dx after Gestational Diabetes | C105: No. of patients who have ever had gestational diabetes who are also on diabetes register
A106: % of patients with gestational diabetes | B106: ="%"&B105 -> %LDP.07.01 Diabetes dx after Gestational Diabetes | C106: % of patients with gestational diabetes
B107: Mental Health
A108: SMI register (QOF) | B108: CSPMH.01 SMI Register | C108: SMI register (QOF) | D108: Mental Health register
A109: % list size | B109: ="%"&B108 -> %CSPMH.01 SMI Register | C109: % list size | D109: % list size
A110: No. of SMI Patients with smoking status recorded (last 12m) or never smoked | B110: CSPMH.01.02 Smoking Status Recorded (12m) | C110: No. of SMI Patients with smoking status recorded (last 12m) or never smoked | D110: No. of Mental Health Patients with smoking status recorded (last 12m) or never smoked
A111: % SMI Register | B111: ="%"&B110 -> %CSPMH.01.02 Smoking Status Recorded (12m) | C111: % SMI Register | D111: % Mental Health Register
A112: No. of SMI patients recorded as a Smoker | B112: CSPMH.01.02.01 Current Smoker (12m) | C112: No. of SMI patients recorded as a Smoker | D112: No. of Mental Health patients recorded as a Smoker
A113: % SMI Register | B113: ="%"&B112 -> %CSPMH.01.02.01 Current Smoker (12m) | C113: % SMI Register | D113: % Mental Health Register
A114: No. of SMI Patients who are current smokers & referred to the Stop Smoking Clinic | B114: CSPMH 01.02.01.01 Ref to clinic 12m | C114: No. of SMI Patients who are current smokers & referred to the Stop Smoking Clinic | D114: No. of Mental Health Patients who are current smokers & referred to the Stop Smoking Clinic
A115: % SMI Register | B115: ="%"&B114 -> %CSPMH 01.02.01.01 Ref to clinic 12m | C115: % SMI Register | D115: % Mental Health Register
A116: No. Of SMI Patients who are recorded as quitters | B116: CSPMH.01.02.02 Ex-smoker Recorded (latest 12m) | C116: No. Of SMI Patients who are recorded as quitters | D116: No. Of Mental Health Patients who are recorded as quitters
A117: % SMI Register | B117: ="%"&B116 -> %CSPMH.01.02.02 Ex-smoker Recorded (latest 12m) | C117: % SMI Register | D117: % Mental Health Register
A118: Patients with SMI with QRISK recorded in the last 12m | B118: CSPMH. 01.03 QRisk Recorded (12m) | C118: Patients with SMI with QRISK recorded in the last 12m | D118: Patients with Mental Health with QRISK recorded in the last 12m
A119: % SMI Register | B119: ="%"&B118 -> %CSPMH. 01.03 QRisk Recorded (12m) | C119: % SMI Register | D119: % Mental Health Register
A120: Patients with SMI with QRISK 20% or higher in the last 12m | B120: CSPMH. 01.03.02 Qrisk>=20 (12m) | C120: Patients with SMI with QRISK 20% or higher in the last 12m | D120: Patients with Mental Health with QRISK 20% or higher in the last 12m
A121: % patients with QRISK recorded 20% or higher | B121: ="%"&B120 -> %CSPMH. 01.03.02 Qrisk>=20 (12m) | C121: % patients with QRISK recorded 20% or higher | D121: % patients with QRISK recorded
A122: Patients with SMI with BP & QRisk on the same day in the last 12m | B122: CSPMH. 01.03.01 BP recorded on same day as QRisk (12m) | C122: Patients with SMI with BP & QRisk on the same day in the last 12m | D122: Patients with Mental Health with BP & QRisk on the same day in the last 12m
A123: % Patients with SMI with BP & QRisk on the same day in the last 12m | B123: ="%"&B122 -> %CSPMH. 01.03.01 BP recorded on same day as QRisk (12m) | C123: % Patients with SMI with BP & QRisk on the same day in the last 12m | D123: % Mental Health Register
B124: CKD
A125: No. of patients on CKD register | B125: LDP.08 CKD Register | C125: No. of patients on CKD register | D125: No. of patients on CKD register
A126: % List Size | B126: ="%"&B125 -> %LDP.08 CKD Register | C126: % List Size | D126: % List Size
A127: BP Recorded (last 12m) | B127: LDP.08.03 CKD and BP Recorded (last 12 m) | C127: BP Recorded (last 12m) | D127: BP Recorded (last 12m)
A128: % CKD register | B128: ="%"&B127 -> %LDP.08.03 CKD and BP Recorded (last 12 m) | C128: % CKD register | D128: % CKD register
A129: BP ≤ 140/90 | B129: LDP.08.01 CKD and BP less than 140/90 (last 12 m) | C129: BP ≤ 140/90 | D129: BP < 140/90
A130: % CKD register | B130: ="%"&B129 -> %LDP.08.01 CKD and BP less than 140/90 (last 12 m) | C130: % CKD register | D130: % CKD register
A131: No of patients with new diagnosis of CKD (last 6m) | B131: LDP.08.02 CKD Diagnosed (Last 6m) | C131: No of patients with new diagnosis of CKD (last 6m) | D131: No of patients with new diagnosis of CKD (last 6m)
A132: % CKD register | B132: ="%"&B131 -> %LDP.08.02 CKD Diagnosed (Last 6m) | C132: % CKD register | D132: % CKD register
B133: COPD
B134: LDP.09 COPD Register | C134: No. of patients on COPD register
B135: ="%"&B134 -> %LDP.09 COPD Register | C135: % List Size
B136: LDP.09.01 Patients with severe or very severe COPD (FEV1<50) | C136: No of patients with severe or very severe COPD (FEV1<50)
B137: ="%"&B136 -> %LDP.09.01 Patients with severe or very severe COPD (FEV1<50) | C137: % COPD register
B138: LDP.09.02 Patients with smoking status recorded (last 12m) or never smoked | C138: No. of COPD Patients with smoking status recorded (last 12m) or never smoked
B139: ="%"&B138 -> %LDP.09.02 Patients with smoking status recorded (last 12m) or never smoked | C139: % COPD
B140: LDP.09.03 COPD patients recorded as a Smoker | C140: No. of COPD patients recorded as a Smoker
B141: ="%"&B140 -> %LDP.09.03 COPD patients recorded as a Smoker | C141: % COPD
B142: LDP.09.04 COPD Patients who are current smokers & referred to the Stop Smoking C | C142: No. of COPD Patients who are current smokers & referred to the Stop Smoking Clinic (12m)
B143: ="%"&B142 -> %LDP.09.04 COPD Patients who are current smokers & referred to the Stop Smoking C | C143: % of current COPD smokers
B144: LDP.09.05 No of COPD with flu vaccination (From August 2018) | C144: No of COPD with flu vaccination (From August 2021)
B145: ="%"&B144 -> %LDP.09.05 No of COPD with flu vaccination (From August 2018) | C145: % of COPD register
B146: LDP.09.06 No of COPD with pneumococcal vaccination ever | C146: No of COPD with pneumococcal vaccination ever
B147: ="%"&B146 -> %LDP.09.06 No of COPD with pneumococcal vaccination ever | C147: % of COPD register
B148: LDP.09.07 No of COPD patients referred to pulmonary rehab ever | C148: No of COPD patients referred to pulmonary rehab ever
B149: ="%"&B148 -> %LDP.09.07 No of COPD patients referred to pulmonary rehab ever | C149: % of COPD register

Sheet Month by month
C2: City and Hackney | H2: Practice Clinical Trends (LDP) Report Summary 2022 / 2023
D3: 2021-04-01 | E3: 2022-04-01 | F3: 2022-05-01 | G3: 2022-06-01 | H3: 2022-07-01 | I3: 2022-08-01 | J3: 2022-09-01 | K3: 2022-10-01 | L3: 2022-11-01 | M3: 2022-12-01 | N3: 2023-01-01 | O3: 2023-02-01 | P3: 2023-03-01 | Q3: 2023-04-01 | R3: 2019-05-01
C4: =VLOOKUP(C2,'Control Panel'!H62:I113,2,FALSE) -> Total | D4: 2021-03-01 | E4: 2022-03-01 | F4: 2022-04-01 | G4: 2022-05-01 | H4: 2022-06-01 | I4: 2022-07-01 | J4: 2022-08-01 | K4: 2022-09-01 | L4: 2022-10-01 | M4: 2022-11-01 | N4: 2022-12-01 | O4: 2023-01-01 | P4: 2023-02-01 | Q4: 2023-03-01 | R4: 2019-04-01
C6: ='Control Panel'!B2 -> General Health
A7: ='Control Panel'!B3 -> 01. Listsize | B7: 01. Listsize | C7: ='Control Panel'!C3 -> List Size | D7: =SUMIFS(OFFSET(REL_D,,MATCH($A7,IND,0)-2),REL_D,D$3,OrgID,$C$4) -> 329518 | E7: 335803 | F7: 331542 | G7: 337306 | H7: 337975 | I7: 338114 | J7: 338288 | K7: 339087 | L7: 339920 | M7: 340469 | N7: 341125 | O7: 341844 | P7: 342017 | Q7: 342422 | R7: =SUMIFS(OFFSET(REL_D,,MATCH($A7,IND,0)-1),REL_D,R$3,IF(LEFT($C$4,1)="N",NwID,OrgID),$C$4) -> 14557
A8: ='Control Panel'!B4 -> LDP.01: Aged 16yrs+ | B8: LDP.01: Aged 16yrs+ | C8: ='Control Panel'!D4 -> Age 16+ | D8: 267734 | E8: 274540 | F8: 275258 | G8: 275943 | H8: 276501 | I8: 276684 | J8: 276945 | K8: 277794 | L8: 278694 | M8: 279280 | N8: 279948 | O8: 280710 | P8: 280924 | Q8: 281329 | R8: =SUMIFS(OFFSET(REL_D,,MATCH($A8,IND,0)-1),REL_D,R$3,IF(LEFT($C$4,1)="N",NwID,OrgID),$C$4) -> 4670
A9: ='Control Panel'!B5 -> %LDP.01: Aged 16yrs+ | B9: %LDP.01: Aged 16yrs+ | C9: ='Control Panel'!D5 -> % list size | D9: =IFERROR(D8/D7,"N/A") -> 0.813 | E9: 0.818 | F9: =IFERROR(F8/F7,"N/A") -> 0.83 | G9: =IFERROR(G8/G7,"N/A") -> 0.818 | H9: 0.818 | I9: 0.818 | J9: 0.819 | K9: 0.819 | L9: 0.82 | M9: 0.82 | N9: 0.821 | O9: 0.821 | P9: 0.821 | Q9: 0.822 | R9: =IFERROR(R8/R7,"N/A") -> 0.321
A10: ='Control Panel'!B6 -> LDP.01.01: Obesity BMI recorded (last 12m) | B10: LDP.01.01: Obesity BMI recorded (last 12m) | C10: ='Control Panel'!D6 -> 16+ and BMI (last 12m) | D10: =SUMIFS(OFFSET(REL_D,,MATCH($A10,IND,0)-2),REL_D,D$3,OrgID,$C$4) -> 57480 | E10: 69759 | F10: 68453 | G10: 68666 | H10: 67855 | I10: 67871 | J10: 69014 | K10: 69596 | L10: 70406 | M10: 71408 | N10: 72077 | O10: 74592 | P10: 75902 | Q10: 77955 | R10: =SUMIFS(OFFSET(REL_D,,MATCH($A10,IND,0)-1),REL_D,R$3,IF(LEFT($C$4,1)="N",NwID,OrgID),$C$4) -> 261008
A11: ='Control Panel'!B7 -> %LDP.01.01: Obesity BMI recorded (last 12m) | B11: %LDP.01.01: Obesity BMI recorded (last 12m) | C11: ='Control Panel'!D7 -> % 16+ | D11: =IFERROR(D10/D8,"N/A") -> 0.215 | E11: 0.254 | F11: =IFERROR(F10/F8,"N/A") -> 0.249 | G11: =IFERROR(G10/G8,"N/A") -> 0.249 | H11: 0.245 | I11: 0.245 | J11: 0.249 | K11: 0.251 | L11: 0.253 | M11: 0.256 | N11: 0.257 | O11: 0.266 | P11: 0.27 | Q11: 0.277 | R11: =IFERROR(R10/R8,"N/A") -> 55.89
A12: ='Control Panel'!B8 -> LDP.01.01.02: Obesity BMI between 30-35 (last 12m) | B12: LDP.01.01.02: Obesity BMI between 30-35 (last 12m) | C12: ='Control Panel'!D8 -> BMI ≥30 & <35 | D12: =SUMIFS(OFFSET(REL_D,,MATCH($A12,IND,0)-2),REL_D,D$3,OrgID,$C$4) -> 10283 | E12: 12067 | F12: 11758 | G12: 11850 | H12: 11703 | I12: 11735 | J12: 11933 | K12: 12128 | L12: 12280 | M12: 12505 | N12: 12711 | O12: 13174 | P12: 13402 | Q12: 13793 | R12: =SUMIFS(OFFSET(REL_D,,MATCH($A12,IND,0)-1),REL_D,R$3,IF(LEFT($C$4,1)="N",NwID,OrgID),$C$4) -> 3597
A13: ='Control Panel'!B9 -> %LDP.01.01.02: Obesity BMI between 30-35 (last 12m) | B13: %LDP.01.01.02: Obesity BMI between 30-35 (last 12m) | C13: ='Control Panel'!D9 -> % 16+ | D13: =IFERROR(D12/D8,"N/A") -> 0.038 | E13: 0.044 | F13: =IFERROR(F12/F8,"N/A") -> 0.043 | G13: =IFERROR(G12/G8,"N/A") -> 0.043 | H13: 0.042 | I13: 0.042 | J13: 0.043 | K13: 0.044 | L13: 0.044 | M13: 0.045 | N13: 0.045 | O13: 0.047 | P13: 0.048 | Q13: 0.049 | R13: =IFERROR(R12/R8,"N/A") -> 0.77
A14: ='Control Panel'!B10 -> LDP.01.01.01: Obesity BMI more than or equal to 35 less than 40 (last 12m) | B14: LDP.01.01.01: Obesity BMI more than or equal to 35 less than 40 (last 12m) | C14: ='Control Panel'!D10 -> BMI ≥ 35 & <40 | D14: =SUMIFS(OFFSET(REL_D,,MATCH($A14,IND,0)-2),REL_D,D$3,OrgID,$C$4) -> 4747 | E14: 5544 | F14: 5385 | G14: 5434 | H14: 5377 | I14: 5335 | J14: 5389 | K14: 5445 | L14: 5552 | M14: 5613 | N14: 5698 | O14: 5877 | P14: 6052 | Q14: 6209 | R14: =SUMIFS(OFFSET(REL_D,,MATCH($A14,IND,0)-1),REL_D,R$3,IF(LEFT($C$4,1)="N",NwID,OrgID),$C$4) -> 13865
A15: ='Control Panel'!B11 -> %LDP.01.01.01: Obesity BMI more than or equal to 35 less than 40 (last 12m) | B15: %LDP.01.01.01: Obesity BMI more than or equal to 35 less than 40 (last 12m) | C15: ='Control Panel'!D11 -> %16+ | D15: =IFERROR(D14/D8,"N/A") -> 0.018 | E15: 0.02 | F15: =IFERROR(F14/F8,"N/A") -> 0.02 | G15: =IFERROR(G14/G8,"N/A") -> 0.02 | H15: 0.019 | I15: 0.019 | J15: 0.019 | K15: 0.02 | L15: 0.02 | M15: 0.02 | N15: 0.02 | O15: 0.021 | P15: 0.022 | Q15: 0.022 | R15: =IFERROR(R14/R8,"N/A") -> 2.969
A16: ='Control Panel'!B12 -> LDP.01.01.03: Obesity BMI equal to or over 40 (last 12m) | B16: LDP.01.01.03: Obesity BMI equal to or over 40 (last 12m) | C16: ='Control Panel'!D12 -> BMI ≥ 40 | D16: =SUMIFS(OFFSET(REL_D,,MATCH($A16,IND,0)-2),REL_D,D$3,OrgID,$C$4) -> 3106 | E16: 3568 | F16: 3494 | G16: 3500 | H16: 3460 | I16: 3462 | J16: 3490 | K16: 3530 | L16: 3550 | M16: 3566 | N16: 3614 | O16: 3721 | P16: 3795 | Q16: 3881 | R16: =SUMIFS(OFFSET(REL_D,,MATCH($A16,IND,0)-1),REL_D,R$3,IF(LEFT($C$4,1)="N",NwID,OrgID),$C$4) -> 173536
A17: ='Control Panel'!B13 -> %LDP.01.01.03: Obesity BMI equal to or over 40 (last 12m) | B17: %LDP.01.01.03: Obesity BMI equal to or over 40 (last 12m) | C17: ='Control Panel'!D13 -> %16+ | D17: =IFERROR(D16/D8,"N/A") -> 0.012 | E17: 0.013 | F17: =IFERROR(F16/F8,"N/A") -> 0.013 | G17: =IFERROR(G16/G8,"N/A") -> 0.013 | H17: 0.013 | I17: 0.013 | J17: 0.013 | K17: 0.013 | L17: 0.013 | M17: 0.013 | N17: 0.013 | O17: 0.013 | P17: 0.014 | Q17: 0.014 | R17: =IFERROR(R16/R8,"N/A") -> 37.16
A18: ='Control Panel'!B14 -> LDP.01.02: Smoking Status (last 12m) or Never Smoked (25yrs+) | B18: LDP.01.02: Smoking Status (last 12m) or Never Smoked (25yrs+) | C18: ='Control Panel'!D14 -> Smoking status (last 12m) incl. never smoked | D18: =SUMIFS(OFFSET(REL_D,,MATCH($A18,IND,0)-2),REL_D,D$3,OrgID,$C$4) -> 165696 | E18: 175008 | F18: 171988 | G18: 172487 | H18: 172216 | I18: 173168 | J18: 174663 | K18: 175032 | L18: 175868 | M18: 176693 | N18: 177546 | O18: 179324 | P18: 180225 | Q18: 181536 | R18: =SUMIFS(OFFSET(REL_D,,MATCH($A18,IND,0)-1),REL_D,R$3,IF(LEFT($C$4,1)="N",NwID,OrgID),$C$4) -> 21782
A19: ='Control Panel'!B15 -> %LDP.01.02: Smoking Status (last 12m) or Never Smoked (25yrs+) | B19: %LDP.01.02: Smoking Status (last 12m) or Never Smoked (25yrs+) | C19: ='Control Panel'!D15 -> % 16+ | D19: =IFERROR(D18/D8,"N/A") -> 0.619 | E19: 0.637 | F19: =IFERROR(F18/F8,"N/A") -> 0.625 | G19: =IFERROR(G18/G8,"N/A") -> 0.625 | H19: 0.623 | I19: 0.626 | J19: 0.631 | K19: 0.63 | L19: 0.631 | M19: 0.633 | N19: 0.634 | O19: 0.639 | P19: 0.642 | Q19: 0.645 | R19: =IFERROR(R18/R8,"N/A") -> 4.664
A20: ='Control Panel'!B16 -> LDP.01.03: Current Smoker (last 12m) | B20: LDP.01.03: Current Smoker (last 12m) | C20: ='Control Panel'!D16 -> Age 16+ and current smoker (last 12m) | D20: =SUMIFS(OFFSET(REL_D,,MATCH($A20,IND,0)-2),REL_D,D$3,OrgID,$C$4) -> 15431 | E20: 17915 | F20: 17298 | G20: 16957 | H20: 16563 | I20: 16715 | J20: 17172 | K20: 17144 | L20: 17310 | M20: 17577 | N20: 17744 | O20: 18241 | P20: 18560 | Q20: 18880 | R20: =SUMIFS(OFFSET(REL_D,,MATCH($A20,IND,0)-1),REL_D,R$3,IF(LEFT($C$4,1)="N",NwID,OrgID),$C$4) -> 85169
A21: ='Control Panel'!B17 -> %LDP.01.03: Current Smoker (last 12m) | B21: %LDP.01.03: Current Smoker (last 12m) | C21: ='Control Panel'!D17 -> % 16+ | D21: =IFERROR(D20/D8,"N/A") -> 0.058 | E21: 0.065 | F21: =IFERROR(F20/F8,"N/A") -> 0.063 | G21: =IFERROR(G20/G8,"N/A") -> 0.061 | H21: 0.06 | I21: 0.06 | J21: 0.062 | K21: 0.062 | L21: 0.062 | M21: 0.063 | N21: 0.063 | O21: 0.065 | P21: 0.066 | Q21: 0.067 | R21: =IFERROR(R20/R8,"N/A") -> 18.237
A22: ='Control Panel'!B18 -> Hypertension | B22: Hypertension | C22: ='Control Panel'!B18 -> Hypertension
A23: ='Control Panel'!B19 -> LDP.02: Hypertension Register | B23: LDP.02: Hypertension Register | C23: ='Control Panel'!D19 -> Hypertension Register | D23: =SUMIFS(OFFSET(REL_D,,MATCH($A23,IND,0)-2),REL_D,D$3,OrgID,$C$4) -> 29427 | E23: 29423 | F23: 29442 | G23: 29613 | H23: 29685 | I23: 29743 | J23: 29792 | K23: 29871 | L23: 29970 | M23: 30080 | N23: 30114 | O23: 30208 | P23: 30420 | Q23: 30688 | R23: =SUMIFS(OFFSET(REL_D,,MATCH($A23,IND,0)-1),REL_D,R$3,IF(LEFT($C$4,1)="N",NwID,OrgID),$C$4) -> 20621
A24: ='Control Panel'!B20 -> %LDP.02: Hypertension Register | B24: %LDP.02: Hypertension Register | C24: ='Control Panel'!D20 -> % list size | D24: =IFERROR(D23/D7,"N/A") -> 0.089 | E24: 0.088 | F24: =IFERROR(F23/F7,"N/A") -> 0.089 | G24: =IFERROR(G23/G7,"N/A") -> 0.088 | H24: 0.088 | I24: 0.088 | J24: 0.088 | K24: 0.088 | L24: 0.088 | M24: 0.088 | N24: 0.088 | O24: 0.088 | P24: 0.089 | Q24: 0.09 | R24: =IFERROR(R23/R7,"N/A") -> 1.417
A25: ='Control Panel'!B21 -> LDP.02.02: Hypertension BP recorded (last 12m) | B25: LDP.02.02: Hypertension BP recorded (last 12m) | C25: ='Control Panel'!D21 -> Hypertension and BP (last 12m) | D25: =SUMIFS(OFFSET(REL_D,,MATCH($A25,IND,0)-2),REL_D,D$3,OrgID,$C$4) -> 22646 | E25: 24261 | F25: 23999 | G25: 23886 | H25: 23638 | I25: 23616 | J25: 23758 | K25: 24055 | L25: 24384 | M25: 24775 | N25: 25248 | O25: 26122 | P25: 26846 | Q25: 27625 | R25: =SUMIFS(OFFSET(REL_D,,MATCH($A25,IND,0)-1),REL_D,R$3,IF(LEFT($C$4,1)="N",NwID,OrgID),$C$4) -> 4927
A26: ='Control Panel'!B22 -> %LDP.02.02: Hypertension BP recorded (last 12m) | B26: %LDP.02.02: Hypertension BP recorded (last 12m) | C26: ='Control Panel'!D22 -> % Hypertension Register | D26: =IFERROR(D25/D23,"N/A") -> 0.77 | E26: 0.825 | F26: =IFERROR(F25/F23,"N/A") -> 0.815 | G26: =IFERROR(G25/G23,"N/A") -> 0.807 | H26: 0.796 | I26: 0.794 | J26: 0.797 | K26: 0.805 | L26: 0.814 | M26: 0.824 | N26: 0.838 | O26: 0.865 | P26: 0.883 | Q26: 0.9 | R26: =IFERROR(R25/R23,"N/A") -> 0.239
A27: ='Control Panel'!B23 -> LDP.02.01: Hypertension and BP < 140/90 (age under 80) < 150/90 (Age 80+) | B27: LDP.02.01: Hypertension and BP < 140/90 (age under 80) < 150/90 (Age 80+) | C27: ='Control Panel'!D23 -> Hypertension and BP < 140/90 (Patients aged under 80) < 150/90 ( Aged 80 and over) (last 12m) | D27: =SUMIFS(OFFSET(REL_D,,MATCH($A27,IND,0)-2),REL_D,D$3,OrgID,$C$4) -> 16345 | E27: 17029 | F27: 16576 | G27: 16370 | H27: 16185 | I27: 16154 | J27: 16412 | K27: 16598 | L27: 16913 | M27: 17251 | N27: 17702 | O27: 18562 | P27: 19378 | Q27: 20398 | R27: =SUMIFS(OFFSET(REL_D,,MATCH($A27,IND,0)-1),REL_D,R$3,IF(LEFT($C$4,1)="N",NwID,OrgID),$C$4) -> 10086
A28: ='Control Panel'!B24 -> %LDP.02.01: Hypertension and BP < 140/90 (age under 80) < 150/90 (Age 80+) | B28: %LDP.02.01: Hypertension and BP < 140/90 (age under 80) < 150/90 (Age 80+) | C28: ='Control Panel'!D24 -> % Hypertension Register | D28: =IFERROR(D27/D23,"N/A") -> 0.555 | E28: 0.579 | F28: =IFERROR(F27/F23,"N/A") -> 0.563 | G28: =IFERROR(G27/G23,"N/A") -> 0.553 | H28: 0.545 | I28: 0.543 | J28: 0.551 | K28: 0.556 | L28: 0.564 | M28: 0.574 | N28: 0.588 | O28: 0.614 | P28: 0.637 | Q28: 0.665 | R28: =IFERROR(R27/R23,"N/A") -> 0.489
A29: ='Control Panel'!B25 -> CHD | B29: CHD | C29: ='Control Panel'!B25 -> CHD
A30: ='Control Panel'!B26 -> LDP.03: CHD Register | B30: LDP.03: CHD Register | C30: ='Control Panel'!D26 -> CHD register | D30: =SUMIFS(OFFSET(REL_D,,MATCH($A30,IND,0)-2),REL_D,D$3,OrgID,$C$4) -> 4970 | E30: 5038 | F30: 4996 | G30: 5120 | H30: 5140 | I30: 5180 | J30: 5201 | K30: 5222 | L30: 5240 | M30: 5255 | N30: 5285 | O30: 5295 | P30: 5328 | Q30: 5340 | R30: =SUMIFS(OFFSET(REL_D,,MATCH($A30,IND,0)-1),REL_D,R$3,IF(LEFT($C$4,1)="N",NwID,OrgID),$C$4) -> 2902
A31: ='Control Panel'!B27 -> %LDP.03: CHD Register | B31: %LDP.03: CHD Register | C31: ='Control Panel'!D27 -> % list size | D31: =IFERROR(D30/D7,"N/A") -> 0.015 | E31: 0.015 | F31: =IFERROR(F30/F7,"N/A") -> 0.015 | G31: =IFERROR(G30/G7,"N/A") -> 0.015 | H31: 0.015 | I31: 0.015 | J31: 0.015 | K31: 0.015 | L31: 0.015 | M31: 0.015 | N31: 0.015 | O31: 0.015 | P31: 0.016 | Q31: 0.016 | R31: =IFERROR(R30/R7,"N/A") -> 0.199
A32: ='Control Panel'!B28 -> LDP.03.04: CHD Cholesterol recorded (last 12m) | B32: LDP.03.04: CHD Cholesterol recorded (last 12m) | C32: ='Control Panel'!D28 -> Cholesterol (last 12m) | D32: =SUMIFS(OFFSET(REL_D,,MATCH($A32,IND,0)-2),REL_D,D$3,OrgID,$C$4) -> 3265 | E32: 3411 | F32: 3243 | G32: 3314 | H32: 3274 | I32: 3320 | J32: 3401 | K32: 3519 | L32: 3602 | M32: 3638 | N32: 3720 | O32: 3823 | P32: 3891 | Q32: 3956 | R32: =SUMIFS(OFFSET(REL_D,,MATCH($A32,IND,0)-1),REL_D,R$3,IF(LEFT($C$4,1)="N",NwID,OrgID),$C$4) -> 15290
A33: ='Control Panel'!B29 -> %LDP.03.04: CHD Cholesterol recorded (last 12m) | B33: %LDP.03.04: CHD Cholesterol recorded (last 12m) | C33: ='Control Panel'!D29 -> % CHD register | D33: =IFERROR(D32/D30,"N/A") -> 0.657 | E33: 0.677 | F33: =IFERROR(F32/F30,"N/A") -> 0.649 | G33: =IFERROR(G32/G30,"N/A") -> 0.647 | H33: 0.637 | I33: 0.641 | J33: 0.654 | K33: 0.674 | L33: 0.687 | M33: 0.692 | N33: 0.704 | O33: 0.722 | P33: 0.73 | Q33: 0.741 | R33: =IFERROR(R32/R30,"N/A") -> 5.269
A34: ='Control Panel'!B30 -> LDP.03.01: CHD Chol less than 5mmol (last 12m) | B34: LDP.03.01: CHD Chol less than 5mmol (last 12m) | C34: ='Control Panel'!D30 -> Cholesterol < 5 (last 12m) | D34: =SUMIFS(OFFSET(REL_D,,MATCH($A34,IND,0)-2),REL_D,D$3,OrgID,$C$4) -> 2640 | E34: 2730 | F34: 2592 | G34: 2651 | H34: 2605 | I34: 2627 | J34: 2689 | K34: 2793 | L34: 2858 | M34: 2899 | N34: 2972 | O34: 3066 | P34: 3107 | Q34: 3160 | R34: =SUMIFS(OFFSET(REL_D,,MATCH($A34,IND,0)-1),REL_D,R$3,IF(LEFT($C$4,1)="N",NwID,OrgID),$C$4) -> 3614
A35: ='Control Panel'!B31 -> %LDP.03.01: CHD Chol less than 5mmol (last 12m) | B35: %LDP.03.01: CHD Chol less than 5mmol (last 12m) | C35: ='Control Panel'!D31 -> % CHD register | D35: =IFERROR(D34/D30,"N/A") -> 0.531 | E35: 0.542 | F35: =IFERROR(F34/F30,"N/A") -> 0.519 | G35: =IFERROR(G34/G30,"N/A") -> 0.518 | H35: 0.507 | I35: 0.507 | J35: 0.517 | K35: 0.535 | L35: 0.545 | M35: 0.552 | N35: 0.562 | O35: 0.579 | P35: 0.583 | Q35: 0.592 | R35: =IFERROR(R34/R30,"N/A") -> 1.245
A36: ='Control Panel'!B32 -> LDP.03.02: CHD BP less than or equal 150/90 (last 9m) | B36: LDP.03.02: CHD BP less than or equal 150/90 (last 9m) | C36: ='Control Panel'!D32 -> BP ≤ 150/90 (last 9m) | D36: =SUMIFS(OFFSET(REL_D,,MATCH($A36,IND,0)-2),REL_D,D$3,OrgID,$C$4) -> 3060 | E36: 3251 | F36: 3133 | G36: 3153 | H36: 3153 | I36: 3191 | J36: 3248 | K36: 3306 | L36: 3367 | M36: 3438 | N36: 3534 | O36: 3664 | P36: 3768 | Q36: 3875 | R36: =SUMIFS(OFFSET(REL_D,,MATCH($A36,IND,0)-1),REL_D,R$3,IF(LEFT($C$4,1)="N",NwID,OrgID),$C$4) -> 2851
A37: ='Control Panel'!B33 -> %LDP.03.02: CHD BP less than or equal 150/90 (last 9m) | B37: %LDP.03.02: CHD BP less than or equal 150/90 (last 9m) | C37: ='Control Panel'!D33 -> % CHD register | D37: =IFERROR(D36/D30,"N/A") -> 0.616 | E37: 0.645 | F37: =IFERROR(F36/F30,"N/A") -> 0.627 | G37: =IFERROR(G36/G30,"N/A") -> 0.616 | H37: 0.613 | I37: 0.616 | J37: 0.624 | K37: 0.633 | L37: 0.643 | M37: 0.654 | N37: 0.669 | O37: 0.692 | P37: 0.707 | Q37: 0.726 | R37: 0.982
A38: Stroke/TIA | C38: Stroke/TIA
A39: LDP.10 Stroke or TIA register | C39: Stroke/TIA register | D39: =SUMIFS(OFFSET(REL_D,,MATCH($A39,IND,0)-2),REL_D,D$3,OrgID,$C$4) -> 2924 | E39: 2919 | F39: 2906 | G39: 2951 | H39: 2970 | I39: 2991 | J39: 3009 | K39: 3021 | L39: 3011 | M39: 3031 | N39: 3024 | O39: 3027 | P39: 3024 | Q39: 3021 | R39: -
A40: %LDP.10 Stroke or TIA register | C40: % list size | D40: =IFERROR(D39/D7,"N/A") -> 0.009 | E40: 0.009 | F40: =IFERROR(F39/F7,"N/A") -> 0.009 | G40: =IFERROR(G39/G7,"N/A") -> 0.009 | H40: 0.009 | I40: 0.009 | J40: 0.009 | K40: 0.009 | L40: 0.009 | M40: 0.009 | N40: 0.009 | O40: 0.009 | P40: 0.009 | Q40: 0.009 | R40: -
A41: LDP.10.01: Stroke/TIA BP recorded (last 12m) | C41: Patients on Stroke/TIA register with BP recorded | D41: =SUMIFS(OFFSET(REL_D,,MATCH($A41,IND,0)-2),REL_D,D$3,OrgID,$C$4) -> 2373 | E41: 2486 | F41: 2424 | G41: 2434 | H41: 2413 | I41: 2447 | J41: 2509 | K41: 2515 | L41: 2529 | M41: 2577 | N41: 2617 | O41: 2686 | P41: 2733 | Q41: 2769 | R41: -
A42: %LDP.10.01: Stroke/TIA BP recorded (last 12m) | C42: % of stroke register | D42: =IFERROR(D41/D39,"N/A") -> 0.812 | E42: 0.852 | F42: =IFERROR(F41/F39,"N/A") -> 0.834 | G42: =IFERROR(G41/G39,"N/A") -> 0.825 | H42: 0.812 | I42: 0.818 | J42: 0.834 | K42: 0.833 | L42: 0.84 | M42: 0.85 | N42: 0.865 | O42: 0.887 | P42: 0.904 | Q42: 0.917 | R42: -
A43: LDP.10.02 Patients on Stroke/TIA register with BP <140/90 (12m) | C43: Patients on Stroke/TIA register with BP <140/90 (12m) | D43: =SUMIFS(OFFSET(REL_D,,MATCH($A43,IND,0)-2),REL_D,D$3,OrgID,$C$4) -> 1789 | E43: 1900 | F43: 1805 | G43: 1812 | H43: 1794 | I43: 1835 | J43: 1906 | K43: 1904 | L43: 1936 | M43: 1969 | N43: 2025 | O43: 2107 | P43: 2176 | Q43: 2236 | R43: -
A44: %LDP.10.02 Patients on Stroke/TIA register with BP <140/90 (12m) | C44: % of stroke register | D44: =IFERROR(D43/D39,"N/A") -> 0.612 | E44: 0.651 | F44: =IFERROR(F43/F39,"N/A") -> 0.621 | G44: =IFERROR(G43/G39,"N/A") -> 0.614 | H44: 0.604 | I44: 0.614 | J44: 0.633 | K44: 0.63 | L44: 0.643 | M44: 0.65 | N44: 0.67 | O44: 0.696 | P44: 0.72 | Q44: 0.74 | R44: -
A45: ='Control Panel'!B48 -> CVD Risk | B45: CVD Risk | C45: ='Control Panel'!B48 -> CVD Risk
A46: ='Control Panel'!B49 -> LDP.05: CVD 25-84yrs (excl CVD) | B46: LDP.05: CVD 25-84yrs (excl CVD) | C46: Aged 25 to 84 (exc CVD) | D46: =SUMIFS(OFFSET(REL_D,,MATCH($A46,IND,0)-2),REL_D,D$3,OrgID,$C$4) -> 225220 | E46: 230106 | F46: 232039 | G46: 231385 | H46: 231988 | I46: 232147 | J46: 232303 | K46: 233018 | L46: 233740 | M46: 234205 | N46: 234814 | O46: 235453 | P46: 235589 | Q46: 235868 | R46: =SUMIFS(OFFSET(REL_D,,MATCH($A46,IND,0)-1),REL_D,R$3,IF(LEFT($C$4,1)="N",NwID,OrgID),$C$4) -> 230
A47: ='Control Panel'!B50 -> LDP.05.02: Cardiovascular Risk Score Done (5y) | B47: LDP.05.02: Cardiovascular Risk Score Done (5y) | C47: QRISK recorded (5 years) | D47: 110417 | E47: 117095 | F47: 120003 | G47: 119820 | H47: 120220 | I47: 119940 | J47: 119671 | K47: 119327 | L47: 120151 | M47: 119845 | N47: 119902 | O47: 119963 | P47: 119456 | Q47: 119116 | R47: =SUMIFS(OFFSET(REL_D,,MATCH($A47,IND,0)-1),REL_D,R$3,IF(LEFT($C$4,1)="N",NwID,OrgID),$C$4) -> 13007
A48: ='Control Panel'!B51 -> %LDP.05.02: Cardiovascular Risk Score Done (5y) | B48: %LDP.05.02: Cardiovascular Risk Score Done (5y) | C48: % of patients aged 25 to 84 (exc CVD) | D48: =IFERROR(D46/D7,"N/A") -> 0.683 | E48: 0.685 | F48: =IFERROR(F46/F7,"N/A") -> 0.7 | G48: =IFERROR(G46/G7,"N/A") -> 0.686 | H48: 0.686 | I48: 0.687 | J48: 0.687 | K48: 0.687 | L48: 0.688 | M48: 0.688 | N48: 0.688 | O48: 0.689 | P48: 0.689 | Q48: 0.689 | R48: =IFERROR(R47/R7,"N/A") -> 0.894
A49: ='Control Panel'!B52 -> LDP.05.01: CVD QRISK greater than or equal 20% | B49: LDP.05.01: CVD QRISK greater than or equal 20% | C49: QRISK ≥ 20% | D49: =SUMIFS(OFFSET(REL_D,,MATCH($A49,IND,0)-2),REL_D,D$3,OrgID,$C$4) -> 12059 | E49: 12334 | F49: 12326 | G49: 12498 | H49: 12549 | I49: 12549 | J49: 12601 | K49: 12602 | L49: 12658 | M49: 12736 | N49: 12717 | O49: 12752 | P49: 12753 | Q49: 12702 | R49: =SUMIFS(OFFSET(REL_D,,MATCH($A49,IND,0)-1),REL_D,R$3,IF(LEFT($C$4,1)="N",NwID,OrgID),$C$4) -> 8981
A50: ='Control Panel'!B53 -> %LDP.05.01: CVD QRISK greater than or equal 20% | B50: %LDP.05.01: CVD QRISK greater than or equal 20% | C50: % QRISK Score recorded | D50: =IFERROR(D49/D47,"N/A") -> 0.109 | E50: 0.105 | F50: =IFERROR(F49/F47,"N/A") -> 0.103 | G50: =IFERROR(G49/G47,"N/A") -> 0.104 | H50: 0.104 | I50: 0.105 | J50: 0.105 | K50: 0.106 | L50: 0.105 | M50: 0.106 | N50: 0.106 | O50: 0.106 | P50: 0.107 | Q50: 0.107 | R50: =IFERROR(R49/R47,"N/A") -> 0.69
A51: ='Control Panel'!B54 -> LDP.05.01.01: CVD Proxy Annual Review (last 12m) | B51: LDP.05.01.01: CVD Proxy Annual Review (last 12m) | C51: QRISK ≥ 20% and proxy review (BP and Chol last 12m) | D51: =SUMIFS(OFFSET(REL_D,,MATCH($A51,IND,0)-2),REL_D,D$3,OrgID,$C$4) -> 7178 | E51: 7471 | F51: 7163 | G51: 7133 | H51: 7060 | I51: 7055 | J51: 7288 | K51: 7540 | L51: 7699 | M51: 7964 | N51: 8131 | O51: 8461 | P51: 8667 | Q51: 8853 | R51: =SUMIFS(OFFSET(REL_D,,MATCH($A51,IND,0)-1),REL_D,R$3,IF(LEFT($C$4,1)="N",NwID,OrgID),$C$4) -> 109973
A52: ='Control Panel'!B55 -> %LDP.05.01.01: CVD Proxy Annual Review (last 12m) | B52: %LDP.05.01.01: CVD Proxy Annual Review (last 12m) | C52: % Patients with QRISK ≥ 20% | D52: =IFERROR(D51/D47,"N/A") -> 0.065 | E52: 0.064 | F52: =IFERROR(F51/F47,"N/A") -> 0.06 | G52: =IFERROR(G51/G47,"N/A") -> 0.06 | H52: 0.059 | I52: 0.059 | J52: 0.061 | K52: 0.063 | L52: 0.064 | M52: 0.066 | N52: 0.068 | O52: 0.071 | P52: 0.073 | Q52: 0.074 | R52: =IFERROR(R51/R47,"N/A") -> 8.455
A53: ='Control Panel'!B56 -> Diabetes | B53: Diabetes | C53: ='Control Panel'!B56 -> Diabetes
A54: ='Control Panel'!B57 -> LDP.04: Diabetes Register | B54: LDP.04: Diabetes Register | C54: Diabetes register | D54: =SUMIFS(OFFSET(REL_D,,MATCH($A54,IND,0)-2),REL_D,D$3,OrgID,$C$4) -> 15951 | E54: 16200 | F54: 16178 | G54: 16272 | H54: 16332 | I54: 16376 | J54: 16392 | K54: 16421 | L54: 16466 | M54: 16518 | N54: 16541 | O54: 16562 | P54: 16596 | Q54: 16531 | R54: =SUMIFS(OFFSET(REL_D,,MATCH($A54,IND,0)-1),REL_D,R$3,IF(LEFT($C$4,1)="N",NwID,OrgID),$C$4) -> 3495
A55: ='Control Panel'!B58 -> %LDP.04: Diabetes Register | B55: %LDP.04: Diabetes Register | C55: % List size | D55: =IFERROR(D54/D7,"N/A") -> 0.048 | E55: 0.048 | F55: =IFERROR(F54/F7,"N/A") -> 0.049 | G55: =IFERROR(G54/G7,"N/A") -> 0.048 | H55: 0.048 | I55: 0.048 | J55: 0.048 | K55: 0.048 | L55: 0.048 | M55: 0.049 | N55: 0.048 | O55: 0.048 | P55: 0.049 | Q55: 0.048 | R55: 0.24
A56: ='Control Panel'!B61 -> LDP.04.11: Diabetes and BP in last 12 months | B56: LDP.04.11: Diabetes and BP in last 12 months | C56: BP (last 12m) | D56: =SUMIFS(OFFSET(REL_D,,MATCH($A56,IND,0)-2),REL_D,D$3,OrgID,$C$4) -> 13628 | E56: 14370 | F56: 14054 | G56: 13893 | H56: 13765 | I56: 13673 | J56: 13772 | K56: 14010 | L56: 14198 | M56: 14418 | N56: 14654 | O56: 14952 | P56: 15245 | Q56: 15435 | R56: =SUMIFS(OFFSET(REL_D,,MATCH($A56,IND,0)-1),REL_D,R$3,IF(LEFT($C$4,1)="N",NwID,OrgID),$C$4) -> 219322
A57: ='Control Panel'!B62 -> %LDP.04.11: Diabetes and BP in last 12 months | B57: %LDP.04.11: Diabetes and BP in last 12 months | C57: % Diabetes Register | D57: =IFERROR(D56/D54,"N/A") -> 0.854 | E57: 0.887 | F57: =IFERROR(F56/F54,"N/A") -> 0.869 | G57: =IFERROR(G56/G54,"N/A") -> 0.854 | H57: 0.843 | I57: 0.835 | J57: 0.84 | K57: 0.853 | L57: 0.862 | M57: 0.873 | N57: 0.886 | O57: 0.903 | P57: 0.919 | Q57: 0.934 | R57: =IFERROR(R56/R54,"N/A") -> 62.753
A58: ='Control Panel'!B63 -> LDP.04.09: Diabetes BP less than 145/85 (last 12m) | B58: LDP.04.09: Diabetes BP less than 145/85 (last 12m) | C58: BP < 145/85 (last 12m) | D58: =SUMIFS(OFFSET(REL_D,,MATCH($A58,IND,0)-2),REL_D,D$3,OrgID,$C$4) -> 11301 | E58: 11536 | F58: 10964 | G58: 10741 | H58: 10645 | I58: 10607 | J58: 10767 | K58: 10990 | L58: 11179 | M58: 11421 | N58: 11650 | O58: 12123 | P58: 12647 | Q58: 13081 | R58: =SUMIFS(OFFSET(REL_D,,MATCH($A58,IND,0)-1),REL_D,R$3,IF(LEFT($C$4,1)="N",NwID,OrgID),$C$4) -> 10636
A59: ='Control Panel'!B64 -> %LDP.04.09: Diabetes BP less than 145/85 (last 12m) | B59: %LDP.04.09: Diabetes BP less than 145/85 (last 12m) | C59: % Diabetes Register | D59: =IFERROR(D58/D54,"N/A") -> 0.708 | E59: 0.712 | F59: =IFERROR(F58/F54,"N/A") -> 0.678 | G59: =IFERROR(G58/G54,"N/A") -> 0.66 | H59: 0.652 | I59: 0.648 | J59: 0.657 | K59: 0.669 | L59: 0.679 | M59: 0.691 | N59: 0.704 | O59: 0.732 | P59: 0.762 | Q59: 0.791 | R59: =IFERROR(R58/R54,"N/A") -> 3.043
A60: ='Control Panel'!B67 -> LDP.04.08: Diabetes Chol less than 5mmol (last 12m) | B60: LDP.04.08: Diabetes Chol less than 5mmol (last 12m) | C60: Cholesterol < 5mmols (last 12m) | D60: =SUMIFS(OFFSET(REL_D,,MATCH($A60,IND,0)-2),REL_D,D$3,OrgID,$C$4) -> 9443 | E60: 9755 | F60: 9358 | G60: 9304 | H60: 9085 | I60: 8965 | J60: 9123 | K60: 9363 | L60: 9498 | M60: 9733 | N60: 9890 | O60: 10095 | P60: 10249 | Q60: 10395 | R60: =SUMIFS(OFFSET(REL_D,,MATCH($A60,IND,0)-1),REL_D,R$3,IF(LEFT($C$4,1)="N",NwID,OrgID),$C$4) -> 5908
A61: ='Control Panel'!B68 -> %LDP.04.08: Diabetes Chol less than 5mmol (last 12m) | B61: %LDP.04.08: Diabetes Chol less than 5mmol (last 12m) | C61: % Diabetes Register | D61: =IFERROR(D60/D54,"N/A") -> 0.592 | E61: 0.602 | F61: =IFERROR(F60/F54,"N/A") -> 0.578 | G61: =IFERROR(G60/G54,"N/A") -> 0.572 | H61: 0.556 | I61: 0.547 | J61: 0.557 | K61: 0.57 | L61: 0.577 | M61: 0.589 | N61: 0.598 | O61: 0.61 | P61: 0.618 | Q61: 0.629 | R61: =IFERROR(R60/R54,"N/A") -> 1.69
A62: ='Control Panel'!B69 -> LDP.04.01: Diabetes HbA1c <7.5% OR <59mmol (last 12m) | B62: LDP.04.01: Diabetes HbA1c <7.5% OR <59mmol (last 12m) | C62: HbA1c < 59 (last 12m) | D62: =SUMIFS(OFFSET(REL_D,,MATCH($A62,IND,0)-2),REL_D,D$3,OrgID,$C$4) -> 7917 | E62: 8465 | F62: 8053 | G62: 7947 | H62: 7764 | I62: 7818 | J62: 8025 | K62: 8297 | L62: 8470 | M62: 8718 | N62: 8873 | O62: 9054 | P62: 9157 | Q62: 9339 | R62: =SUMIFS(OFFSET(REL_D,,MATCH($A62,IND,0)-1),REL_D,R$3,IF(LEFT($C$4,1)="N",NwID,OrgID),$C$4) -> 27339
A63: ='Control Panel'!B70 -> %LDP.04.01: Diabetes HbA1c <7.5% OR <59mmol (last 12m) | B63: %LDP.04.01: Diabetes HbA1c <7.5% OR <59mmol (last 12m) | C63: % Diabetes register | D63: =IFERROR(D62/D54,"N/A") -> 0.496 | E63: 0.523 | F63: =IFERROR(F62/F54,"N/A") -> 0.498 | G63: =IFERROR(G62/G54,"N/A") -> 0.488 | H63: 0.475 | I63: 0.477 | J63: 0.49 | K63: 0.505 | L63: 0.514 | M63: 0.528 | N63: 0.536 | O63: 0.547 | P63: 0.552 | Q63: 0.565 | R63: =IFERROR(R62/R54,"N/A") -> 7.822
A64: ='Control Panel'!B81 -> LDP.04.07: Diabetes Influenza Vaccinations (From August 2018) | B64: LDP.04.07: Diabetes Influenza Vaccinations (last 12m) | C64: Flu jab (From August 2022) | D64: =SUMIFS(OFFSET(REL_D,,MATCH($A64,IND,0)-2),REL_D,D$3,OrgID,$C$4) -> 10324 | E64: 9497 | F64: 0 | G64: 0 | H64: 0 | I64: 0 | J64: 0 | K64: 2459 | L64: 6949 | M64: 8437 | N64: 9002 | O64: 9312 | P64: 9451 | Q64: 9486 | R64: =SUMIFS(OFFSET(REL_D,,MATCH($A64,IND,0)-1),REL_D,R$3,IF(LEFT($C$4,1)="N",NwID,OrgID),$C$4) -> 8562
A65: ='Control Panel'!B82 -> %LDP.04.07: Diabetes Influenza Vaccinations (From August 2018) | B65: %LDP.04.07: Diabetes Influenza Vaccinations (last 12m) | C65: % Diabetes Register | D65: =IFERROR(D64/D54,"N/A") -> 0.647 | E65: 0.586 | F65: =IFERROR(F64/F54,"N/A") -> 0 | G65: =IFERROR(G64/G54,"N/A") -> 0 | H65: 0 | I65: 0 | J65: 0 | K65: 0.15 | L65: 0.422 | M65: 0.511 | N65: 0.544 | O65: 0.562 | P65: 0.569 | Q65: 0.574 | R65: =IFERROR(R64/R54,"N/A") -> 2.45
C66: ='Control Panel'!B107 -> Mental Health
A67: ='Control Panel'!B108 -> CSPMH.01 SMI Register | B67: CSPMH.01 SMI Register | C67: ='Control Panel'!D108 -> Mental Health register | D67: =SUMIFS(OFFSET(REL_D,,MATCH($A67,IND,0)-2),REL_D,D$3,OrgID,$C$4) -> 4689 | E67: 4773 | F67: 4766 | G67: 4804 | H67: 4799 | I67: 4805 | J67: 4823 | K67: 4829 | L67: 4835 | M67: 4832 | N67: 4832 | O67: 4833 | P67: 4827 | Q67: 4803 | R67: =SUMIFS(OFFSET(REL_D,,MATCH($A67,IND,0)-1),REL_D,R$3,IF(LEFT($C$4,1)="N",NwID,OrgID),$C$4) -> 3699
A68: ='Control Panel'!B109 -> %CSPMH.01 SMI Register | B68: %CSPMH.01 SMI Register | C68: ='Control Panel'!D109 -> % list size | D68: =IFERROR(D67/D7,"N/A") -> 0.014 | E68: 0.014 | F68: =IFERROR(F67/F7,"N/A") -> 0.014 | G68: =IFERROR(G67/G7,"N/A") -> 0.014 | H68: 0.014 | I68: 0.014 | J68: 0.014 | K68: 0.014 | L68: 0.014 | M68: 0.014 | N68: 0.014 | O68: 0.014 | P68: 0.014 | Q68: 0.014 | R68: 0.254
A69: ='Control Panel'!B110 -> CSPMH.01.02 Smoking Status Recorded (12m) | B69: CSPMH.01.02 Smoking Status Recorded (12m) | C69: ='Control Panel'!D110 -> No. of Mental Health Patients with smoking status recorded (last 12m) or never smoked | D69: =SUMIFS(OFFSET(REL_D,,MATCH($A69,IND,0)-2),REL_D,D$3,OrgID,$C$4) -> 3751 | E69: 3940 | F69: 3879 | G69: 3880 | H69: 3863 | I69: 3880 | J69: 3905 | K69: 3915 | L69: 3922 | M69: 3930 | N69: 3943 | O69: 3946 | P69: 3966 | Q69: 3983 | R69: =SUMIFS(OFFSET(REL_D,,MATCH($A69,IND,0)-1),REL_D,R$3,IF(LEFT($C$4,1)="N",NwID,OrgID),$C$4) -> 1586
A70: ='Control Panel'!B111 -> %CSPMH.01.02 Smoking Status Recorded (12m) | B70: %CSPMH.01.02 Smoking Status Recorded (12m) | C70: ='Control Panel'!D111 -> % Mental Health Register | D70: =IFERROR(D69/D67,"N/A") -> 0.8 | E70: 0.825 | F70: =IFERROR(F69/F67,"N/A") -> 0.814 | G70: =IFERROR(G69/G67,"N/A") -> 0.808 | H70: 0.805 | I70: 0.807 | J70: 0.81 | K70: 0.811 | L70: 0.811 | M70: 0.813 | N70: 0.816 | O70: 0.816 | P70: 0.822 | Q70: 0.829 | R70: =IFERROR(R69/R67,"N/A") -> 0.429
A71: ='Control Panel'!B112 -> CSPMH.01.02.01 Current Smoker (12m) | B71: CSPMH.01.02.01 Current Smoker (15m) | C71: ='Control Panel'!D112 -> No. of Mental Health patients recorded as a Smoker | D71: =SUMIFS(OFFSET(REL_D,,MATCH($A71,IND,0)-2),REL_D,D$3,OrgID,$C$4) -> 1404 | E71: 1510 | F71: 1435 | G71: 1404 | H71: 1385 | I71: 1387 | J71: 1397 | K71: 1397 | L71: 1383 | M71: 1408 | N71: 1409 | O71: 1401 | P71: 1426 | Q71: 1455 | R71: =SUMIFS(OFFSET(REL_D,,MATCH($A71,IND,0)-1),REL_D,R$3,IF(LEFT($C$4,1)="N",NwID,OrgID),$C$4) -> 115
A72: ='Control Panel'!B113 -> %CSPMH.01.02.01 Current Smoker (12m) | B72: %CSPMH.01.02.01 Current Smoker (15m) | C72: ='Control Panel'!D113 -> % Mental Health Register | D72: =IFERROR(D71/D67,"N/A") -> 0.299 | E72: 0.316 | F72: =IFERROR(F71/F67,"N/A") -> 0.301 | G72: =IFERROR(G71/G67,"N/A") -> 0.292 | H72: 0.289 | I72: 0.289 | J72: 0.29 | K72: 0.289 | L72: 0.286 | M72: 0.291 | N72: 0.292 | O72: 0.29 | P72: 0.295 | Q72: 0.303 | R72: =IFERROR(R71/R67,"N/A") -> 0.031
A73: ='Control Panel'!B114 -> CSPMH 01.02.01.01 Ref to clinic 12m | B73: CSPMH 01.02.01.01 Ref to clinic 15m | C73: ='Control Panel'!D114 -> No. of Mental Health Patients who are current smokers & referred to the Stop Smoking Clinic | D73: =SUMIFS(OFFSET(REL_D,,MATCH($A73,IND,0)-2),REL_D,D$3,OrgID,$C$4) -> 148 | E73: 94 | F73: 90 | G73: 93 | H73: 97 | I73: 96 | J73: 97 | K73: 95 | L73: 143 | M73: 147 | N73: 100 | O73: 100 | P73: 108 | Q73: 119 | R73: =SUMIFS(OFFSET(REL_D,,MATCH($A73,IND,0)-1),REL_D,R$3,IF(LEFT($C$4,1)="N",NwID,OrgID),$C$4) -> 797
A74: ='Control Panel'!B115 -> %CSPMH 01.02.01.01 Ref to clinic 12m | B74: %CSPMH 01.02.01.01 Ref to clinic 15m | C74: ='Control Panel'!D115 -> % Mental Health Register | D74: =IFERROR(D73/D67,"N/A") -> 0.032 | E74: 0.02 | F74: =IFERROR(F73/F67,"N/A") -> 0.019 | G74: =IFERROR(G73/G67,"N/A") -> 0.019 | H74: 0.02 | I74: 0.02 | J74: 0.02 | K74: 0.02 | L74: 0.03 | M74: 0.03 | N74: 0.021 | O74: 0.021 | P74: 0.022 | Q74: 0.025 | R74: =IFERROR(R73/R67,"N/A") -> 0.215
A75: ='Control Panel'!B116 -> CSPMH.01.02.02 Ex-smoker Recorded (latest 12m) | B75: CSPMH.01.02.02 Ex-smoker Recorded (latest 15m) | C75: ='Control Panel'!D116 -> No. Of Mental Health Patients who are recorded as quitters | D75: =SUMIFS(OFFSET(REL_D,,MATCH($A75,IND,0)-2),REL_D,D$3,OrgID,$C$4) -> 294 | E75: 322 | F75: 303 | G75: 299 | H75: 307 | I75: 317 | J75: 328 | K75: 341 | L75: 346 | M75: 357 | N75: 366 | O75: 381 | P75: 402 | Q75: 428 | R75: =SUMIFS(OFFSET(REL_D,,MATCH($A75,IND,0)-1),REL_D,R$3,IF(LEFT($C$4,1)="N",NwID,OrgID),$C$4) -> 29702
A76: ='Control Panel'!B117 -> %CSPMH.01.02.02 Ex-smoker Recorded (latest 12m) | B76: %CSPMH.01.02.02 Ex-smoker Recorded (latest 15m) | C76: ='Control Panel'!D117 -> % Mental Health Register | D76: =IFERROR(D75/D67,"N/A") -> 0.063 | E76: 0.067 | F76: =IFERROR(F75/F67,"N/A") -> 0.064 | G76: =IFERROR(G75/G67,"N/A") -> 0.062 | H76: 0.064 | I76: 0.066 | J76: 0.068 | K76: 0.071 | L76: 0.072 | M76: 0.074 | N76: 0.076 | O76: 0.079 | P76: 0.083 | Q76: 0.089 | R76: =IFERROR(R75/R67,"N/A") -> 8.03
A77: ='Control Panel'!B118 -> CSPMH. 01.03 QRisk Recorded (12m) | B77: CSPMH. 01.03 QRisk Recorded (12m) | C77: ='Control Panel'!D118 -> Patients with Mental Health with QRISK recorded in the last 12m | D77: =SUMIFS(OFFSET(REL_D,,MATCH($A77,IND,0)-2),REL_D,D$3,OrgID,$C$4) -> 2003 | E77: 2325 | F77: 2240 | G77: 2265 | H77: 2242 | I77: 2231 | J77: 2300 | K77: 2322 | L77: 2375 | M77: 2377 | N77: 2409 | O77: 2442 | P77: 2477 | Q77: 2543 | R77: =SUMIFS(OFFSET(REL_D,,MATCH($A77,IND,0)-1),REL_D,R$3,IF(LEFT($C$4,1)="N",NwID,OrgID),$C$4) -> 1369
A78: ='Control Panel'!B119 -> %CSPMH. 01.03 QRisk Recorded (12m) | B78: %CSPMH. 01.03 QRisk Recorded (12m) | C78: ='Control Panel'!D119 -> % Mental Health Register | D78: =IFERROR(D77/D67,"N/A") -> 0.427 | E78: 0.487 | F78: =IFERROR(F77/F67,"N/A") -> 0.47 | G78: =IFERROR(G77/G67,"N/A") -> 0.471 | H78: 0.467 | I78: 0.464 | J78: 0.477 | K78: 0.481 | L78: 0.491 | M78: 0.492 | N78: 0.499 | O78: 0.505 | P78: 0.513 | Q78: 0.529 | R78: =IFERROR(R77/R67,"N/A") -> 0.37
A79: ='Control Panel'!B120 -> CSPMH. 01.03.02 Qrisk>=20 (12m) | B79: CSPMH. 01.03.02 Qrisk>=20 (12m) | C79: ='Control Panel'!D120 -> Patients with Mental Health with QRISK 20% or higher in the last 12m | D79: =SUMIFS(OFFSET(REL_D,,MATCH($A79,IND,0)-2),REL_D,D$3,OrgID,$C$4) -> 360 | E79: 375 | F79: 352 | G79: 374 | H79: 375 | I79: 382 | J79: 412 | K79: 409 | L79: 421 | M79: 430 | N79: 432 | O79: 440 | P79: 443 | Q79: 455 | R79: =SUMIFS(OFFSET(REL_D,,MATCH($A79,IND,0)-1),REL_D,R$3,IF(LEFT($C$4,1)="N",NwID,OrgID),$C$4) -> 3818
A80: ='Control Panel'!B121 -> %CSPMH. 01.03.02 Qrisk>=20 (12m) | B80: %CSPMH. 01.03.02 Qrisk>=20 (12m) | C80: ='Control Panel'!D121 -> % patients with QRISK recorded | D80: =IFERROR(D79/D67,"N/A") -> 0.077 | E80: 0.079 | F80: =IFERROR(F79/F67,"N/A") -> 0.074 | G80: =IFERROR(G79/G67,"N/A") -> 0.078 | H80: 0.078 | I80: 0.08 | J80: 0.085 | K80: 0.085 | L80: 0.087 | M80: 0.089 | N80: 0.089 | O80: 0.091 | P80: 0.092 | Q80: 0.095 | R80: =IFERROR(R79/R67,"N/A") -> 1.032
A81: ='Control Panel'!B122 -> CSPMH. 01.03.01 BP recorded on same day as QRisk (12m) | B81: CSPMH. 01.03.01 BP recorded on same day as QRisk (12m) | C81: ='Control Panel'!D122 -> Patients with Mental Health with BP & QRisk on the same day in the last 12m | D81: =SUMIFS(OFFSET(REL_D,,MATCH($A81,IND,0)-2),REL_D,D$3,OrgID,$C$4) -> 1180 | E81: 1326 | F81: 1243 | G81: 1304 | H81: 1303 | I81: 1316 | J81: 1375 | K81: 1411 | L81: 1387 | M81: 1397 | N81: 1397 | O81: 1418 | P81: 1460 | Q81: 1494 | R81: =SUMIFS(OFFSET(REL_D,,MATCH($A81,IND,0)-1),REL_D,R$3,IF(LEFT($C$4,1)="N",NwID,OrgID),$C$4) -> 368
A82: ='Control Panel'!B123 -> %CSPMH. 01.03.01 BP recorded on same day as QRisk (12m) | B82: %CSPMH. 01.03.01 BP recorded on same day as QRisk (12m) | C82: ='Control Panel'!D123 -> % Mental Health Register | D82: =IFERROR(D81/D67,"N/A") -> 0.252 | E82: 0.278 | F82: =IFERROR(F81/F67,"N/A") -> 0.261 | G82: =IFERROR(G81/G67,"N/A") -> 0.271 | H82: 0.272 | I82: 0.274 | J82: 0.285 | K82: 0.292 | L82: 0.287 | M82: 0.289 | N82: 0.289 | O82: 0.293 | P82: 0.302 | Q82: 0.311 | R82: =IFERROR(R81/R67,"N/A") -> 0.099
C83: ='Control Panel'!B124 -> CKD
A84: =VLOOKUP(C84,'Control Panel'!A124:B250,2,FALSE) -> LDP.08 CKD Register | B84: LDP.08 CKD Register | C84: ='Control Panel'!D125 -> No. of patients on CKD register | D84: =SUMIFS(OFFSET(REL_D,,MATCH($A84,IND,0)-2),REL_D,D$3,OrgID,$C$4) -> 4966 | E84: 4885 | F84: 4925 | G84: 4922 | H84: 4949 | I84: 5144 | J84: 5186 | K84: 5225 | L84: 5305 | M84: 5317 | N84: 5323 | O84: 5334 | P84: 5344 | Q84: 5370 | R84: =SUMIFS(OFFSET(REL_D,,MATCH($A84,IND,0)-1),REL_D,R$3,IF(LEFT($C$4,1)="N",NwID,OrgID),$C$4) -> 12416
A85: =VLOOKUP(C85,'Control Panel'!A125:B251,2,FALSE) -> %LDP.08 CKD Register | B85: %LDP.08 CKD Register | C85: ='Control Panel'!D126 -> % List Size | D85: =IFERROR(D84/D7,"N/A") -> 0.015 | E85: 0.015 | F85: =IFERROR(F84/F7,"N/A") -> 0.015 | G85: =IFERROR(G84/G7,"N/A") -> 0.015 | H85: 0.015 | I85: 0.015 | J85: 0.015 | K85: 0.015 | L85: 0.016 | M85: 0.016 | N85: 0.016 | O85: 0.016 | P85: 0.016 | Q85: 0.016 | R85: 0.853
A86: =VLOOKUP(C86,'Control Panel'!A126:B252,2,FALSE) -> LDP.08.03 CKD and BP Recorded (last 12 m) | B86: LDP.08.03 CKD and BP Recorded (last 12 m) | C86: ='Control Panel'!D127 -> BP Recorded (last 12m) | D86: =SUMIFS(OFFSET(REL_D,,MATCH($A86,IND,0)-2),REL_D,D$3,OrgID,$C$4) -> 3959 | E86: 4168 | F86: 4121 | G86: 4099 | H86: 4091 | I86: 4239 | J86: 4295 | K86: 4365 | L86: 4479 | M86: 4543 | N86: 4593 | O86: 4683 | P86: 4801 | Q86: 4913 | R86: =SUMIFS(OFFSET(REL_D,,MATCH($A86,IND,0)-1),REL_D,R$3,IF(LEFT($C$4,1)="N",NwID,OrgID),$C$4) -> 2268
A87: =VLOOKUP(C87,'Control Panel'!A127:B253,2,FALSE) -> %LDP.08.03 CKD and BP Recorded (last 12 m) | B87: %LDP.08.03 CKD and BP Recorded (last 12 m) | C87: ='Control Panel'!D128 -> % CKD register | D87: =IFERROR(D86/D84,"N/A") -> 0.797 | E87: 0.853 | F87: =IFERROR(F86/F84,"N/A") -> 0.837 | G87: =IFERROR(G86/G84,"N/A") -> 0.833 | H87: 0.827 | I87: 0.824 | J87: 0.828 | K87: 0.835 | L87: 0.844 | M87: 0.854 | N87: 0.863 | O87: 0.878 | P87: 0.898 | Q87: 0.915 | R87: =IFERROR(R86/R84,"N/A") -> 0.183
A88: LDP.08.01 CKD and BP less than 140/90 (last 12 m) | B88: LDP.08.01 CKD and BP less than 140/90 (last 12 m) | C88: ='Control Panel'!D129 -> BP < 140/90 | D88: =SUMIFS(OFFSET(REL_D,,MATCH($A88,IND,0)-2),REL_D,D$3,OrgID,$C$4) -> 2917 | E88: 2983 | F88: 2874 | G88: 2843 | H88: 2863 | I88: 3012 | J88: 3073 | K88: 3117 | L88: 3240 | M88: 3307 | N88: 3345 | O88: 3464 | P88: 3606 | Q88: 3778 | R88: =SUMIFS(OFFSET(REL_D,,MATCH($A88,IND,0)-1),REL_D,R$3,IF(LEFT($C$4,1)="N",NwID,OrgID),$C$4) -> 5195
A89: =VLOOKUP(C89,'Control Panel'!A129:B255,2,FALSE) -> %LDP.08.01 CKD and BP less than 140/90 (last 12 m) | B89: %LDP.08.01 CKD and BP less than 140/90 (last 12 m) | C89: ='Control Panel'!D130 -> % CKD register | D89: =IFERROR(D88/D84,"N/A") -> 0.587 | E89: 0.611 | F89: =IFERROR(F88/F84,"N/A") -> 0.584 | G89: =IFERROR(G88/G84,"N/A") -> 0.578 | H89: 0.579 | I89: 0.586 | J89: 0.593 | K89: 0.597 | L89: 0.611 | M89: 0.622 | N89: 0.628 | O89: 0.649 | P89: 0.675 | Q89: 0.704 | R89: =IFERROR(R88/R84,"N/A") -> 0.418
A90: =VLOOKUP(C90,'Control Panel'!A130:B256,2,FALSE) -> LDP.08.02 CKD Diagnosed (Last 6m) | B90: LDP.08.02 CKD Diagnosed (Last 6m) | C90: ='Control Panel'!D131 -> No of patients with new diagnosis of CKD (last 6m) | D90: =SUMIFS(OFFSET(REL_D,,MATCH($A90,IND,0)-2),REL_D,D$3,OrgID,$C$4) -> 155 | E90: 196 | F90: 216 | G90: 216 | H90: 238 | I90: 370 | J90: 396 | K90: 404 | L90: 417 | M90: 408 | N90: 388 | O90: 331 | P90: 305 | Q90: 321 | R90: =SUMIFS(OFFSET(REL_D,,MATCH($A90,IND,0)-1),REL_D,R$3,IF(LEFT($C$4,1)="N",NwID,OrgID),$C$4) -> 4890
A91: =VLOOKUP(C91,'Control Panel'!A131:B257,2,FALSE) -> %LDP.08.02 CKD Diagnosed (Last 6m) | B91: %LDP.08.02 CKD Diagnosed (Last 6m) | C91: ='Control Panel'!D132 -> % CKD register | D91: =IFERROR(D90/D84,"N/A") -> 0.031 | E91: 0.04 | F91: =IFERROR(F90/F84,"N/A") -> 0.044 | G91: =IFERROR(G90/G84,"N/A") -> 0.044 | H91: 0.048 | I91: 0.072 | J91: 0.076 | K91: 0.077 | L91: 0.079 | M91: 0.077 | N91: 0.073 | O91: 0.062 | P91: 0.057 | Q91: 0.06 | R91: =IFERROR(R90/R84,"N/A") -> 0.394
C92: ='Control Panel'!B133 -> COPD
A93: LDP.09 COPD Register | B93: LDP.09 COPD Register | C93: ='Control Panel'!C134 -> No. of patients on COPD register | D93: =SUMIFS(OFFSET(REL_D,,MATCH($A93,IND,0)-2),REL_D,D$3,OrgID,$C$4) -> 3434 | E93: 3364 | F93: 3377 | G93: 3376 | H93: 3383 | I93: 3377 | J93: 3356 | K93: 3373 | L93: 3379 | M93: 3374 | N93: 3365 | O93: 3364 | P93: 3376 | Q93: 3381 | R93: =SUMIFS(OFFSET(REL_D,,MATCH($A93,IND,0)-1),REL_D,R$3,IF(LEFT($C$4,1)="N",NwID,OrgID),$C$4) -> 870
A94: ="%"&A93 -> %LDP.09 COPD Register | B94: %LDP.09 COPD Register | C94: ='Control Panel'!C135 -> % List Size | D94: =IFERROR(D93/D7,"N/A") -> 0.01 | E94: 0.01 | F94: =IFERROR(F93/F7,"N/A") -> 0.01 | G94: =IFERROR(G93/G7,"N/A") -> 0.01 | H94: 0.01 | I94: 0.01 | J94: 0.01 | K94: 0.01 | L94: 0.01 | M94: 0.01 | N94: 0.01 | O94: 0.01 | P94: 0.01 | Q94: 0.01 | R94: 0.06
A95: LDP.09.01 Patients with severe or very severe COPD (FEV1<50) | B95: LDP.09.01 Patients with severe or very severe COPD (FEV1<50) | C95: ='Control Panel'!C136 -> No of patients with severe or very severe COPD (FEV1<50) | D95: =SUMIFS(OFFSET(REL_D,,MATCH($A95,IND,0)-2),REL_D,D$3,OrgID,$C$4) -> 798 | E95: 718 | F95: 714 | G95: 711 | H95: 708 | I95: 702 | J95: 689 | K95: 692 | L95: 694 | M95: 689 | N95: 680 | O95: 674 | P95: 669 | Q95: 661 | R95: =SUMIFS(OFFSET(REL_D,,MATCH($A95,IND,0)-1),REL_D,R$3,IF(LEFT($C$4,1)="N",NwID,OrgID),$C$4) -> 3153
A96: ="%"&A95 -> %LDP.09.01 Patients with severe or very severe COPD (FEV1<50) | B96: %LDP.09.01 Patients with severe or very severe COPD (FEV1<50) | C96: ='Control Panel'!C137 -> % COPD register | D96: =IFERROR(D95/D93,"N/A") -> 0.232 | E96: 0.213 | F96: =IFERROR(F95/F93,"N/A") -> 0.211 | G96: =IFERROR(G95/G93,"N/A") -> 0.211 | H96: 0.209 | I96: 0.208 | J96: 0.205 | K96: 0.205 | L96: 0.205 | M96: 0.204 | N96: 0.202 | O96: 0.2 | P96: 0.198 | Q96: 0.196 | R96: =IFERROR(R95/R93,"N/A") -> 3.624
A97: LDP.09.02 Patients with smoking status recorded (last 12m) or never smoked | B97: LDP.09.02 Patients with smoking status recorded (last 12m) or never smoked | C97: ='Control Panel'!C138 -> No. of COPD Patients with smoking status recorded (last 12m) or never smoked | D97: =SUMIFS(OFFSET(REL_D,,MATCH($A97,IND,0)-2),REL_D,D$3,OrgID,$C$4) -> 3073 | E97: 2944 | F97: 2870 | G97: 2832 | H97: 2820 | I97: 2789 | J97: 2835 | K97: 2840 | L97: 2885 | M97: 2921 | N97: 2960 | O97: 3018 | P97: 3069 | Q97: 3125 | R97: =SUMIFS(OFFSET(REL_D,,MATCH($A97,IND,0)-1),REL_D,R$3,IF(LEFT($C$4,1)="N",NwID,OrgID),$C$4) -> 1326
A98: ="%"&A97 -> %LDP.09.02 Patients with smoking status recorded (last 12m) or never smoked | B98: %LDP.09.02 Patients with smoking status recorded (last 12m) or never smoked | C98: ='Control Panel'!C139 -> % COPD | D98: =IFERROR(D97/D93,"N/A") -> 0.895 | E98: 0.875 | F98: =IFERROR(F97/F93,"N/A") -> 0.85 | G98: =IFERROR(G97/G93,"N/A") -> 0.839 | H98: 0.834 | I98: 0.826 | J98: 0.845 | K98: 0.842 | L98: 0.854 | M98: 0.866 | N98: 0.88 | O98: 0.897 | P98: 0.909 | Q98: 0.924 | R98: =IFERROR(R97/R93,"N/A") -> 1.524
A99: LDP.09.03 COPD patients recorded as a Smoker | B99: LDP.09.03 COPD patients recorded as a Smoker | C99: ='Control Panel'!C140 -> No. of COPD patients recorded as a Smoker | D99: =SUMIFS(OFFSET(REL_D,,MATCH($A99,IND,0)-2),REL_D,D$3,OrgID,$C$4) -> 1346 | E99: 1292 | F99: 1254 | G99: 1240 | H99: 1217 | I99: 1212 | J99: 1246 | K99: 1251 | L99: 1256 | M99: 1265 | N99: 1281 | O99: 1292 | P99: 1309 | Q99: 1324 | R99: =SUMIFS(OFFSET(REL_D,,MATCH($A99,IND,0)-1),REL_D,R$3,IF(LEFT($C$4,1)="N",NwID,OrgID),$C$4) -> 116
A100: ="%"&A99 -> %LDP.09.03 COPD patients recorded as a Smoker | B100: %LDP.09.03 COPD patients recorded as a Smoker | C100: ='Control Panel'!C141 -> % COPD | D100: =IFERROR(D99/D93,"N/A") -> 0.392 | E100: 0.384 | F100: =IFERROR(F99/F93,"N/A") -> 0.371 | G100: =IFERROR(G99/G93,"N/A") -> 0.367 | H100: 0.36 | I100: 0.359 | J100: 0.371 | K100: 0.371 | L100: 0.372 | M100: 0.375 | N100: 0.381 | O100: 0.384 | P100: 0.388 | Q100: 0.392 | R100: =IFERROR(R99/R93,"N/A") -> 0.133
A101: LDP.09.04 COPD Patients who are current smokers & referred to the Stop Smoking C | B101: LDP.09.04 COPD Patients who are current smokers & referred to the Stop Smoking C | C101: ='Control Panel'!C142 -> No. of COPD Patients who are current smokers & referred to the Stop Smoking Clinic (12m) | D101: =SUMIFS(OFFSET(REL_D,,MATCH($A101,IND,0)-2),REL_D,D$3,OrgID,$C$4) -> 116 | E101: 117 | F101: 104 | G101: 90 | H101: 87 | I101: 87 | J101: 83 | K101: 86 | L101: 132 | M101: 132 | N101: 94 | O101: 98 | P101: 106 | Q101: 111 | R101: =SUMIFS(OFFSET(REL_D,,MATCH($A101,IND,0)-1),REL_D,R$3,IF(LEFT($C$4,1)="N",NwID,OrgID),$C$4) -> 2519
A102: ="%"&A101 -> %LDP.09.04 COPD Patients who are current smokers & referred to the Stop Smoking C | B102: %LDP.09.04 COPD Patients who are current smokers & referred to the Stop Smoking C | C102: ='Control Panel'!C143 -> % of current COPD smokers | D102: =IFERROR(D101/D99,"N/A") -> 0.086 | E102: 0.091 | F102: =IFERROR(F101/F99,"N/A") -> 0.083 | G102: =IFERROR(G101/G99,"N/A") -> 0.073 | H102: 0.071 | I102: 0.072 | J102: 0.067 | K102: 0.069 | L102: 0.105 | M102: 0.104 | N102: 0.073 | O102: 0.076 | P102: 0.081 | Q102: 0.084 | R102: =IFERROR(R101/R99,"N/A") -> 21.716
A103: LDP.09.05 No of COPD with flu vaccination (From August 2018) | B103: LDP.09.05 No of COPD with flu vaccination (12m) | C103: No of COPD with flu vaccination (From August 2022) | D103: =SUMIFS(OFFSET(REL_D,,MATCH($A103,IND,0)-2),REL_D,D$3,OrgID,$C$4) -> 2531 | E103: 2328 | F103: 0 | G103: 0 | H103: 0 | I103: 0 | J103: 0 | K103: 723 | L103: 1757 | M103: 2079 | N103: 2209 | O103: 2277 | P103: 2306 | Q103: 2315 | R103: =SUMIFS(OFFSET(REL_D,,MATCH($A103,IND,0)-1),REL_D,R$3,IF(LEFT($C$4,1)="N",NwID,OrgID),$C$4) -> 2338
A104: ="%"&A103 -> %LDP.09.05 No of COPD with flu vaccination (From August 2018) | B104: %LDP.09.05 No of COPD with flu vaccination (12m) | C104: ='Control Panel'!C145 -> % of COPD register | D104: =IFERROR(D103/D93,"N/A") -> 0.737 | E104: 0.692 | F104: =IFERROR(F103/F93,"N/A") -> 0 | G104: =IFERROR(G103/G93,"N/A") -> 0 | H104: 0 | I104: 0 | J104: 0 | K104: 0.214 | L104: 0.52 | M104: 0.616 | N104: 0.656 | O104: 0.677 | P104: 0.683 | Q104: 0.685 | R104: =IFERROR(R103/R93,"N/A") -> 2.687
A105: LDP.09.06 No of COPD with pneumococcal vaccination ever | B105: LDP.09.06 No of COPD with pneumococcal vaccination ever | C105: ='Control Panel'!C146 -> No of COPD with pneumococcal vaccination ever | D105: =SUMIFS(OFFSET(REL_D,,MATCH($A105,IND,0)-2),REL_D,D$3,OrgID,$C$4) -> 2413 | E105: 2435 | F105: 2443 | G105: 2442 | H105: 2438 | I105: 2432 | J105: 2416 | K105: 2424 | L105: 2428 | M105: 2423 | N105: 2423 | O105: 2423 | P105: 2434 | Q105: 2429 | R105: =SUMIFS(OFFSET(REL_D,,MATCH($A105,IND,0)-1),REL_D,R$3,IF(LEFT($C$4,1)="N",NwID,OrgID),$C$4) -> 2329
A106: ="%"&A105 -> %LDP.09.06 No of COPD with pneumococcal vaccination ever | B106: %LDP.09.06 No of COPD with pneumococcal vaccination ever | C106: ='Control Panel'!C147 -> % of COPD register | D106: =IFERROR(D105/D93,"N/A") -> 0.703 | E106: 0.724 | F106: =IFERROR(F105/F93,"N/A") -> 0.723 | G106: =IFERROR(G105/G93,"N/A") -> 0.723 | H106: 0.721 | I106: 0.72 | J106: 0.72 | K106: 0.719 | L106: 0.719 | M106: 0.718 | N106: 0.72 | O106: 0.72 | P106: 0.721 | Q106: 0.718 | R106: =IFERROR(R105/R93,"N/A") -> 2.677
A107: LDP.09.07 No of COPD patients referred to pulmonary rehab ever | B107: LDP.09.07 No of COPD patients referred to pulmonary rehab ever | C107: ='Control Panel'!C148 -> No of COPD patients referred to pulmonary rehab ever | D107: =SUMIFS(OFFSET(REL_D,,MATCH($A107,IND,0)-2),REL_D,D$3,OrgID,$C$4) -> 2538 | E107: 2551 | F107: 2552 | G107: 2562 | H107: 2566 | I107: 2560 | J107: 2545 | K107: 2555 | L107: 2562 | M107: 2570 | N107: 2581 | O107: 2610 | P107: 2640 | Q107: 2660 | R107: =SUMIFS(OFFSET(REL_D,,MATCH($A107,IND,0)-1),REL_D,R$3,IF(LEFT($C$4,1)="N",NwID,OrgID),$C$4) -> 3763
A108: ="%"&A107 -> %LDP.09.07 No of COPD patients referred to pulmonary rehab ever | B108: %LDP.09.07 No of COPD patients referred to pulmonary rehab ever | C108: ='Control Panel'!C149 -> % of COPD register | D108: =IFERROR(D107/D93,"N/A") -> 0.739 | E108: 0.758 | F108: =IFERROR(F107/F93,"N/A") -> 0.756 | G108: =IFERROR(G107/G93,"N/A") -> 0.759 | H108: 0.758 | I108: 0.758 | J108: 0.758 | K108: 0.757 | L108: 0.758 | M108: 0.762 | N108: 0.767 | O108: 0.776 | P108: 0.782 | Q108: 0.787 | R108: =IFERROR(R107/R93,"N/A") -> 4.325

Sheet General Health
C1: 01. Listsize | D1: =INDEX('Control Panel'!$B$3:$B$17,COLUMN(D1)-COLUMN($C$1)+1) -> LDP.01: Aged 16yrs+ | E1: =INDEX('Control Panel'!$B$3:$B$17,COLUMN(E1)-COLUMN($C$1)+1) -> %LDP.01: Aged 16yrs+ | F1: =INDEX('Control Panel'!$B$3:$B$17,COLUMN(F1)-COLUMN($C$1)+1) -> LDP.01.01: Obesity BMI recorded (last 12m) | G1: =INDEX('Control Panel'!$B$3:$B$17,COLUMN(G1)-COLUMN($C$1)+1) -> %LDP.01.01: Obesity BMI recorded (last 12m) | H1: =INDEX('Control Panel'!$B$3:$B$17,COLUMN(H1)-COLUMN($C$1)+1) -> LDP.01.01.02: Obesity BMI between 30-35 (last 12m) | I1: =INDEX('Control Panel'!$B$3:$B$17,COLUMN(I1)-COLUMN($C$1)+1) -> %LDP.01.01.02: Obesity BMI between 30-35 (last 12m) | J1: =INDEX('Control Panel'!$B$3:$B$17,COLUMN(J1)-COLUMN($C$1)+1) -> LDP.01.01.01: Obesity BMI more than or equal to 35 less than 40 (last 12m) | K1: =INDEX('Control Panel'!$B$3:$B$17,COLUMN(K1)-COLUMN($C$1)+1) -> %LDP.01.01.01: Obesity BMI more than or equal to 35 less than 40 (last 12m) | L1: =INDEX('Control Panel'!$B$3:$B$17,COLUMN(L1)-COLUMN($C$1)+1) -> LDP.01.01.03: Obesity BMI equal to or over 40 (last 12m) | M1: =INDEX('Control Panel'!$B$3:$B$17,COLUMN(M1)-COLUMN($C$1)+1) -> %LDP.01.01.03: Obesity BMI equal to or over 40 (last 12m) | N1: =INDEX('Control Panel'!$B$3:$B$17,COLUMN(N1)-COLUMN($C$1)+1) -> LDP.01.02: Smoking Status (last 12m) or Never Smoked (25yrs+) | O1: =INDEX('Control Panel'!$B$3:$B$17,COLUMN(O1)-COLUMN($C$1)+1) -> %LDP.01.02: Smoking Status (last 12m) or Never Smoked (25yrs+) | P1: =INDEX('Control Panel'!$B$3:$B$17,COLUMN(P1)-COLUMN($C$1)+1) -> LDP.01.03: Current Smoker (last 12m) | Q1: =INDEX('Control Panel'!$B$3:$B$17,COLUMN(Q1)-COLUMN($C$1)+1) -> %LDP.01.03: Current Smoker (last 12m)
C2: City and Hackney - Practice Clinical Trends (LDP) Report
B3: =VLOOKUP(C3,'Control Panel'!O16:P27,2,FALSE) -> 2023-04-01 | C3: March 2023 | D3: =VLOOKUP(C3,'Control Panel'!O16:P27,2,FALSE) -> 2023-04-01
B4: 2019-07-01 | C4: ='Control Panel'!B2 -> General Health
A5: Home | B5: 2019-10-01 | C5: =VLOOKUP(C1,'Control Panel'!$B$3:$C$132,2,FALSE) -> List Size | D5: =VLOOKUP(D1,'Control Panel'!$B$3:$D$132,3,FALSE) -> Age 16+ | E5: =VLOOKUP(E1,'Control Panel'!$B$3:$D$132,3,FALSE) -> % list size | F5: =VLOOKUP(F1,'Control Panel'!$B$3:$D$132,3,FALSE) -> 16+ and BMI (last 12m) | G5: =VLOOKUP(G1,'Control Panel'!$B$3:$D$132,3,FALSE) -> % 16+ | H5: =VLOOKUP(H1,'Control Panel'!$B$3:$D$132,3,FALSE) -> BMI ≥30 & <35 | I5: =VLOOKUP(I1,'Control Panel'!$B$3:$D$132,3,FALSE) -> % 16+ | J5: =VLOOKUP(J1,'Control Panel'!$B$3:$D$132,3,FALSE) -> BMI ≥ 35 & <40 | K5: =VLOOKUP(K1,'Control Panel'!$B$3:$D$132,3,FALSE) -> %16+ | L5: =VLOOKUP(L1,'Control Panel'!$B$3:$D$132,3,FALSE) -> BMI ≥ 40 | M5: =VLOOKUP(M1,'Control Panel'!$B$3:$D$132,3,FALSE) -> %16+ | N5: =VLOOKUP(N1,'Control Panel'!$B$3:$D$132,3,FALSE) -> Smoking status (last 12m) incl. never smoked | O5: =VLOOKUP(O1,'Control Panel'!$B$3:$D$132,3,FALSE) -> % 16+ | P5: =VLOOKUP(P1,'Control Panel'!$B$3:$D$132,3,FALSE) -> Age 16+ and current smoker (last 12m) | Q5: =VLOOKUP(Q1,'Control Panel'!$B$3:$D$132,3,FALSE) -> % 16+
A6: Practice Name | B6: Total | C6: =SUM(C7:C45) -> 342422 | D6: =SUM(D7:D45) -> 281329 | E6: =IFERROR(D6/C6,"N/A") -> 0.822 | F6: =SUM(F7:F45) -> 77955 | G6: =IFERROR(F6/D6,"N/A") -> 0.277 | H6: =SUM(H7:H45) -> 13793 | I6: =IFERROR(H6/D6,"N/A") -> 0.049 | J6: =SUM(J7:J45) -> 6209 | K6: =IFERROR(J6/D6,"N/A") -> 0.022 | L6: =SUM(L7:L45) -> 3881 | M6: =IFERROR(L6/D6,"N/A") -> 0.014 | N6: =SUM(N7:N45) -> 181536 | O6: =IFERROR(N6/D6,"N/A") -> 0.645 | P6: =SUM(P7:P45) -> 18880 | Q6: =IFERROR(P6/D6,"N/A") -> 0.067
A7: ='Practice list'!B2 -> Stamford Hill Surgery | B7: ='Practice list'!A2 -> F84013 | C7: =SUMIFS(OFFSET(REL_D,,MATCH(C$1,IND,0)-2),REL_D,$D$3,OrgID,$B7) -> 17332 | D7: 10414 | E7: =IFERROR(D7/$C7,"N/A") -> 0.601 | F7: =SUMIFS(OFFSET(REL_D,,MATCH(F$1,IND,0)-2),REL_D,$D$3,OrgID,$B7) -> 2797 | G7: =IFERROR(F7/$D7,"N/A") -> 0.269 | H7: =SUMIFS(OFFSET(REL_D,,MATCH(H$1,IND,0)-2),REL_D,$D$3,OrgID,$B7) -> 582 | I7: =IFERROR(H7/$D7,"N/A") -> 0.056 | J7: =SUMIFS(OFFSET(REL_D,,MATCH(J$1,IND,0)-2),REL_D,$D$3,OrgID,$B7) -> 261 | K7: =IFERROR(J7/$D7,"N/A") -> 0.025 | L7: =SUMIFS(OFFSET(REL_D,,MATCH(L$1,IND,0)-2),REL_D,$D$3,OrgID,$B7) -> 136 | M7: =IFERROR(L7/$D7,"N/A") -> 0.013 | N7: =SUMIFS(OFFSET(REL_D,,MATCH(N$1,IND,0)-2),REL_D,$D$3,OrgID,$B7) -> 6466 | O7: =IFERROR(N7/$D7,"N/A") -> 0.621 | P7: =SUMIFS(OFFSET(REL_D,,MATCH(P$1,IND,0)-2),REL_D,$D$3,OrgID,$B7) -> 451 | Q7: =IFERROR(P7/$D7,"N/A") -> 0.043
A8: ='Practice list'!B3 -> Cranwich Road Surgery | B8: ='Practice list'!A3 -> F84686 | C8: 8631 | D8: 4701 | E8: 0.545 | F8: 1194 | G8: 0.254 | H8: 263 | I8: 0.056 | J8: 119 | K8: 0.025 | L8: 68 | M8: 0.014 | N8: 3017 | O8: 0.642 | P8: 94 | Q8: 0.02
A9: ='Practice list'!B4 -> Spring Hill Practice | B9: ='Practice list'!A4 -> Y03049 | C9: 15378 | D9: 11448 | E9: 0.744 | F9: 3149 | G9: 0.275 | H9: 605 | I9: 0.053 | J9: 261 | K9: 0.023 | L9: 180 | M9: 0.016 | N9: 7151 | O9: 0.625 | P9: 685 | Q9: 0.06
A10: ='Practice list'!B5 -> The Nightingale Practice | B10: ='Practice list'!A5 -> F84018 | C10: 12215 | D10: 9949 | E10: 0.814 | F10: 3150 | G10: 0.317 | H10: 540 | I10: 0.054 | J10: 257 | K10: 0.026 | L10: 167 | M10: 0.017 | N10: 6634 | O10: 0.667 | P10: 773 | Q10: 0.078
A11: ='Practice list'!B6 -> The Gadvhi Practice | B11: ='Practice list'!A6 -> F84080 | C11: 5192 | D11: 3888 | E11: 0.749 | F11: 1179 | G11: 0.303 | H11: 231 | I11: 0.059 | J11: 88 | K11: 0.023 | L11: 54 | M11: 0.014 | N11: 2773 | O11: 0.713 | P11: 289 | Q11: 0.074
A12: ='Practice list'!B7 -> The Riverside Practice | B12: ='Practice list'!A7 -> F84619 | C12: 4964 | D12: 4102 | E12: 0.826 | F12: 1234 | G12: 0.301 | H12: 208 | I12: 0.051 | J12: 111 | K12: 0.027 | L12: 68 | M12: 0.017 | N12: 2693 | O12: 0.657 | P12: 256 | Q12: 0.062
A13: ='Practice list'!B8 -> Clapton Surgery | B13: ='Practice list'!A8 -> F84668 | C13: 6247 | D13: 4217 | E13: 0.675 | F13: 1306 | G13: 0.31 | H13: 294 | I13: 0.07 | J13: 180 | K13: 0.043 | L13: 70 | M13: 0.017 | N13: 2813 | O13: 0.667 | P13: 155 | Q13: 0.037
A14: ='Practice list'!B9 -> Elm Practice | B14: ='Practice list'!A9 -> F84685 | C14: 3072 | D14: 2407 | E14: 0.784 | F14: 757 | G14: 0.314 | H14: 104 | I14: 0.043 | J14: 57 | K14: 0.024 | L14: 29 | M14: 0.012 | N14: 1687 | O14: 0.701 | P14: 150 | Q14: 0.062
A15: ='Practice list'!B10 -> Rosewood Practice | B15: ='Practice list'!A10 -> F84711 | C15: 1840 | D15: 1542 | E15: 0.838 | F15: 550 | G15: 0.357 | H15: 119 | I15: 0.077 | J15: 48 | K15: 0.031 | L15: 30 | M15: 0.019 | N15: 1074 | O15: 0.696 | P15: 84 | Q15: 0.054
A16: ='Practice list'!B11 -> Healy Medical Centre | B16: ='Practice list'!A11 -> F84720 | C16: 5720 | D16: 4508 | E16: 0.788 | F16: 997 | G16: 0.221 | H16: 238 | I16: 0.053 | J16: 112 | K16: 0.025 | L16: 77 | M16: 0.017 | N16: 2837 | O16: 0.629 | P16: 279 | Q16: 0.062
A17: ='Practice list'!B12 -> Cedar Practice | B17: ='Practice list'!A12 -> F84036 | C17: 8044 | D17: 6912 | E17: 0.859 | F17: 2213 | G17: 0.32 | H17: 402 | I17: 0.058 | J17: 172 | K17: 0.025 | L17: 115 | M17: 0.017 | N17: 4482 | O17: 0.648 | P17: 475 | Q17: 0.069
A18: ='Practice list'!B13 -> Statham Grove Surgery | B18: ='Practice list'!A13 -> F84115 | C18: 8492 | D18: 7270 | E18: 0.856 | F18: 2256 | G18: 0.31 | H18: 287 | I18: 0.039 | J18: 118 | K18: 0.016 | L18: 71 | M18: 0.01 | N18: 4723 | O18: 0.65 | P18: 525 | Q18: 0.072
A19: ='Practice list'!B14 -> The Heron Practice | B19: ='Practice list'!A14 -> F84119 | C19: 12311 | D19: 10273 | E19: 0.834 | F19: 3191 | G19: 0.311 | H19: 550 | I19: 0.054 | J19: 221 | K19: 0.022 | L19: 145 | M19: 0.014 | N19: 7295 | O19: 0.71 | P19: 693 | Q19: 0.067
A20: ='Practice list'!B15 -> Allerton Road Medical Centre | B20: ='Practice list'!A15 -> F84716 | C20: 6025 | D20: 4541 | E20: 0.754 | F20: 1308 | G20: 0.288 | H20: 200 | I20: 0.044 | J20: 87 | K20: 0.019 | L20: 43 | M20: 0.009 | N20: 3174 | O20: 0.699 | P20: 223 | Q20: 0.049
A21: ='Practice list'!B16 -> Barton House Health Centre | B21: ='Practice list'!A16 -> F84008 | C21: 12101 | D21: 10057 | E21: 0.831 | F21: 3128 | G21: 0.311 | H21: 506 | I21: 0.05 | J21: 212 | K21: 0.021 | L21: 137 | M21: 0.014 | N21: 6396 | O21: 0.636 | P21: 745 | Q21: 0.074
A22: ='Practice list'!B17 -> Somerford Grove Practice | B22: ='Practice list'!A17 -> F84033 | C22: 11952 | D22: 10168 | E22: 0.851 | F22: 3184 | G22: 0.313 | H22: 666 | I22: 0.065 | J22: 281 | K22: 0.028 | L22: 187 | M22: 0.018 | N22: 7303 | O22: 0.718 | P22: 957 | Q22: 0.094
A23: ='Practice list'!B18 -> Barretts Grove Surgery | B23: ='Practice list'!A18 -> F84636 | C23: 6672 | D23: 5949 | E23: 0.892 | F23: 1843 | G23: 0.31 | H23: 234 | I23: 0.039 | J23: 125 | K23: 0.021 | L23: 66 | M23: 0.011 | N23: 4109 | O23: 0.691 | P23: 466 | Q23: 0.078
A24: ='Practice list'!B19 -> Brooke Road Surgery | B24: ='Practice list'!A19 -> F84694 | C24: 4726 | D24: 4156 | E24: 0.879 | F24: 1446 | G24: 0.348 | H24: 197 | I24: 0.047 | J24: 65 | K24: 0.016 | L24: 44 | M24: 0.011 | N24: 2853 | O24: 0.686 | P24: 366 | Q24: 0.088
A25: ='Practice list'!B20 -> Lower Clapton Group Practice | B25: ='Practice list'!A20 -> F84003 | C25: =SUMIFS(OFFSET(REL_D,,MATCH(C$1,IND,0)-2),REL_D,$D$3,OrgID,$B25) -> 14915 | D25: 12445 | E25: 0.834 | F25: 3633 | G25: 0.292 | H25: 713 | I25: 0.057 | J25: 284 | K25: 0.023 | L25: 212 | M25: 0.017 | N25: 7809 | O25: 0.627 | P25: 981 | Q25: 0.079
A26: ='Practice list'!B21 -> Kingsmead Healthcare | B26: ='Practice list'!A21 -> F84015 | C26: 5358 | D26: 4348 | E26: 0.811 | F26: 1894 | G26: 0.436 | H26: 432 | I26: 0.099 | J26: 211 | K26: 0.049 | L26: 140 | M26: 0.032 | N26: 3160 | O26: 0.727 | P26: 430 | Q26: 0.099
A27: ='Practice list'!B22 -> Athena Medical Centre | B27: ='Practice list'!A22 -> F84060 | C27: 4857 | D27: 4174 | E27: 0.859 | F27: 1141 | G27: 0.273 | H27: 237 | I27: 0.057 | J27: 114 | K27: 0.027 | L27: 64 | M27: 0.015 | N27: 2678 | O27: 0.642 | P27: 295 | Q27: 0.071
A28: ='Practice list'!B23 -> The Lea Surgery | B28: ='Practice list'!A23 -> F84105 | C28: 11854 | D28: 9771 | E28: 0.824 | F28: 2902 | G28: 0.297 | H28: 624 | I28: 0.064 | J28: 266 | K28: 0.027 | L28: 165 | M28: 0.017 | N28: 6678 | O28: 0.683 | P28: 670 | Q28: 0.069
A29: ='Practice list'!B24 -> Latimer Health Centre | B29: ='Practice list'!A24 -> F84719 | C29: 5242 | D29: 4525 | E29: 0.863 | F29: 1276 | G29: 0.282 | H29: 230 | I29: 0.051 | J29: 111 | K29: 0.025 | L29: 72 | M29: 0.016 | N29: 3203 | O29: 0.708 | P29: 248 | Q29: 0.055
A30: ='Practice list'!B25 -> The Well Street Surgery | B30: ='Practice list'!A25 -> F84069 | C30: 14466 | D30: 12057 | E30: 0.833 | F30: 3471 | G30: 0.288 | H30: 609 | I30: 0.051 | J30: 283 | K30: 0.023 | L30: 200 | M30: 0.017 | N30: 7640 | O30: 0.634 | P30: 1018 | Q30: 0.084
A31: ='Practice list'!B26 -> Elsdale Street Surgery | B31: ='Practice list'!A26 -> F84601 | C31: 7177 | D31: 5943 | E31: 0.828 | F31: 1601 | G31: 0.269 | H31: 308 | I31: 0.052 | J31: 163 | K31: 0.027 | L31: 75 | M31: 0.013 | N31: 3605 | O31: 0.607 | P31: 480 | Q31: 0.081
A32: ='Practice list'!B27 -> The Wick Health Centre | B32: ='Practice list'!A27 -> F84620 | C32: 7775 | D32: 6483 | E32: 0.834 | F32: 1898 | G32: 0.293 | H32: 418 | I32: 0.064 | J32: 227 | K32: 0.035 | L32: 128 | M32: 0.02 | N32: 3598 | O32: 0.555 | P32: 421 | Q32: 0.065
A33: ='Practice list'!B28 -> The Greenhouse | B33: ='Practice list'!A28 -> F84632 | C33: 1253 | D33: 1253 | E33: 1 | F33: 622 | G33: 0.496 | H33: 72 | I33: 0.057 | J33: 33 | K33: 0.026 | L33: 21 | M33: 0.017 | N33: 835 | O33: 0.666 | P33: 370 | Q33: 0.295
A34: ='Practice list'!B29 -> Trowbridge Surgery | B34: ='Practice list'!A29 -> Y00403 | C34: 7945 | D34: 6902 | E34: 0.869 | F34: 1479 | G34: 0.214 | H34: 228 | I34: 0.033 | J34: 103 | K34: 0.015 | L34: 78 | M34: 0.011 | N34: 3804 | O34: 0.551 | P34: 382 | Q34: 0.055
A35: ='Practice list'!B30 -> London Fields Medical Centre | B35: ='Practice list'!A30 -> F84021 | C35: 11037 | D35: 9464 | E35: 0.857 | F35: 2160 | G35: 0.228 | H35: 349 | I35: 0.037 | J35: 162 | K35: 0.017 | L35: 126 | M35: 0.013 | N35: 6081 | O35: 0.643 | P35: 636 | Q35: 0.067
A36: ='Practice list'!B31 -> Richmond Road Medical Centre | B36: ='Practice list'!A31 -> F84035 | C36: 18254 | D36: 16587 | E36: =IFERROR(D36/$C36,"N/A") -> 0.909 | F36: 2738 | G36: =IFERROR(F36/$D36,"N/A") -> 0.165 | H36: 316 | I36: =IFERROR(H36/$D36,"N/A") -> 0.019 | J36: 134 | K36: =IFERROR(J36/$D36,"N/A") -> 0.008 | L36: 99 | M36: =IFERROR(L36/$D36,"N/A") -> 0.006 | N36: 10055 | O36: =IFERROR(N36/$D36,"N/A") -> 0.606 | P36: 757 | Q36: =IFERROR(P36/$D36,"N/A") -> 0.046
A37: ='Practice list'!B32 -> Beechwood Medical Centre | B37: ='Practice list'!A32 -> F84038 | C37: 3899 | D37: 3418 | E37: 0.877 | F37: 1340 | G37: 0.392 | H37: 289 | I37: 0.085 | J37: 139 | K37: 0.041 | L37: 77 | M37: 0.023 | N37: 2249 | O37: 0.658 | P37: 299 | Q37: 0.087
A38: ='Practice list'!B33 -> Dalston Practice | B38: ='Practice list'!A33 -> F84063 | C38: 6094 | D38: 5358 | E38: 0.879 | F38: 1428 | G38: 0.267 | H38: 261 | I38: 0.049 | J38: 120 | K38: 0.022 | L38: 62 | M38: 0.012 | N38: 3289 | O38: 0.614 | P38: 467 | Q38: 0.087
A39: ='Practice list'!B34 -> Queensbridge Group Practice | B39: ='Practice list'!A34 -> F84117 | C39: 10838 | D39: 9305 | E39: =IFERROR(D39/$C39,"N/A") -> 0.859 | F39: 1745 | G39: =IFERROR(F39/$D39,"N/A") -> 0.188 | H39: 308 | I39: =IFERROR(H39/$D39,"N/A") -> 0.033 | J39: 120 | K39: =IFERROR(J39/$D39,"N/A") -> 0.013 | L39: 83 | M39: =IFERROR(L39/$D39,"N/A") -> 0.009 | N39: 5302 | O39: =IFERROR(N39/$D39,"N/A") -> 0.57 | P39: 491 | Q39: =IFERROR(P39/$D39,"N/A") -> 0.053
A40: ='Practice list'!B35 -> The Sandringham Practice | B40: ='Practice list'!A35 -> F84621 | C40: 4519 | D40: 3909 | E40: =IFERROR(D40/$C40,"N/A") -> 0.865 | F40: 1547 | G40: =IFERROR(F40/$D40,"N/A") -> 0.396 | H40: 281 | I40: =IFERROR(H40/$D40,"N/A") -> 0.072 | J40: 125 | K40: =IFERROR(J40/$D40,"N/A") -> 0.032 | L40: 73 | M40: =IFERROR(L40/$D40,"N/A") -> 0.019 | N40: 2605 | O40: =IFERROR(N40/$D40,"N/A") -> 0.666 | P40: 373 | Q40: =IFERROR(P40/$D40,"N/A") -> 0.095
A41: ='Practice list'!B36 -> The Neaman Practice | B41: ='Practice list'!A36 -> F84640 | C41: 9717 | D41: 8978 | E41: 0.924 | F41: 1607 | G41: 0.179 | H41: 179 | I41: 0.02 | J41: 64 | K41: 0.007 | L41: 45 | M41: 0.005 | N41: 5908 | O41: 0.658 | P41: 279 | Q41: 0.031
A42: ='Practice list'!B38 -> De Beauvoir Surgery | B42: ='Practice list'!A38 -> F84072 | C42: 12342 | D42: 10597 | E42: 0.859 | F42: 2613 | G42: 0.247 | H42: 295 | I42: 0.028 | J42: 134 | K42: 0.013 | L42: 77 | M42: 0.007 | N42: 7064 | O42: 0.667 | P42: 578 | Q42: 0.055
A43: ='Practice list'!B39 -> The Lawson Practice | B43: ='Practice list'!A39 -> F84096 | C43: 15593 | D43: 13202 | E43: 0.847 | F43: 3717 | G43: 0.282 | H43: 756 | I43: 0.057 | J43: 349 | K43: 0.026 | L43: 222 | M43: 0.017 | N43: 8149 | O43: 0.617 | P43: 954 | Q43: 0.072
A44: ='Practice list'!B40 -> Shoreditch Park Surgery | B44: ='Practice list'!A40 -> F84635 | C44: 9200 | D44: 7941 | E44: 0.863 | F44: 1843 | G44: 0.232 | H44: 347 | I44: 0.044 | J44: 176 | K44: 0.022 | L44: 92 | M44: 0.012 | N44: 5098 | O44: 0.642 | P44: 480 | Q44: 0.06
A45: ='Practice list'!B41 -> The Hoxton Surgery | B45: ='Practice list'!A41 -> F84692 | C45: 9173 | D45: 8167 | E45: =IFERROR(D45/$C45,"N/A") -> 0.89 | F45: 2418 | G45: =IFERROR(F45/$D45,"N/A") -> 0.296 | H45: 315 | I45: =IFERROR(H45/$D45,"N/A") -> 0.039 | J45: 116 | K45: =IFERROR(J45/$D45,"N/A") -> 0.014 | L45: 83 | M45: =IFERROR(L45/$D45,"N/A") -> 0.01 | N45: 5246 | O45: =IFERROR(N45/$D45,"N/A") -> 0.642 | P45: 605 | Q45: =IFERROR(P45/$D45,"N/A") -> 0.074
B46: ='Practice list'!A43 -> 0
B47: ='Practice list'!A44 -> 0
B48: ='Practice list'!A45 -> 0
B49: ='Practice list'!A46 -> 0
B50: ='Practice list'!A47 -> 0
B51: ='Practice list'!A48 -> 0
B52: ='Practice list'!A49 -> 0
B53: ='Practice list'!A50 -> 0
B54: ='Practice list'!A51 -> 0
B55: ='Practice list'!A52 -> 0
B56: ='Practice list'!A53 -> 0
B57: ='Practice list'!A54 -> 0
B58: ='Practice list'!A55 -> 0
B59: ='Practice list'!A56 -> 0
B60: ='Practice list'!A57 -> 0
B61: ='Practice list'!A58 -> 0

Sheet Hypertension
C1: 01. Listsize | D1: =INDEX('Control Panel'!$B$19:$B$24,COLUMN(D1)-COLUMN($D$1)+1) -> LDP.02: Hypertension Register | E1: =INDEX('Control Panel'!$B$19:$B$24,COLUMN(E1)-COLUMN($D$1)+1) -> %LDP.02: Hypertension Register | F1: =INDEX('Control Panel'!$B$19:$B$24,COLUMN(F1)-COLUMN($D$1)+1) -> LDP.02.02: Hypertension BP recorded (last 12m) | G1: =INDEX('Control Panel'!$B$19:$B$24,COLUMN(G1)-COLUMN($D$1)+1) -> %LDP.02.02: Hypertension BP recorded (last 12m) | H1: =INDEX('Control Panel'!$B$19:$B$24,COLUMN(H1)-COLUMN($D$1)+1) -> LDP.02.01: Hypertension and BP < 140/90 (age under 80) < 150/90 (Age 80+) | I1: =INDEX('Control Panel'!$B$19:$B$24,COLUMN(I1)-COLUMN($D$1)+1) -> %LDP.02.01: Hypertension and BP < 140/90 (age under 80) < 150/90 (Age 80+)
C2: City and Hackney - Practice Clinical Trends (LDP) Report
B3: =VLOOKUP(C3,'Control Panel'!O16:P27,2,FALSE) -> 2023-04-01 | C3: March 2023 | D3: =VLOOKUP(C3,'Control Panel'!O16:P27,2,FALSE) -> 2023-04-01
B4: 2019-07-01 | C4: ='Control Panel'!B18 -> Hypertension
A5: Home | B5: 2019-10-01 | C5: =VLOOKUP(C1,'Control Panel'!$B$3:$C$132,2,FALSE) -> List Size | D5: =VLOOKUP(D1,'Control Panel'!$B$3:$D$132,3,FALSE) -> Hypertension Register | E5: =VLOOKUP(E1,'Control Panel'!$B$3:$D$132,3,FALSE) -> % list size | F5: =VLOOKUP(F1,'Control Panel'!$B$3:$D$132,3,FALSE) -> Hypertension and BP (last 12m) | G5: =VLOOKUP(G1,'Control Panel'!$B$3:$D$132,3,FALSE) -> % Hypertension Register | H5: =VLOOKUP(H1,'Control Panel'!$B$3:$D$132,3,FALSE) -> Hypertension and BP < 140/90 (Patients aged under 80) < 150/90 ( Aged 80 and over) (last 12m) | I5: =VLOOKUP(I1,'Control Panel'!$B$3:$D$132,3,FALSE) -> % Hypertension Register
A6: Practice Name | B6: Total | C6: =SUM(C7:C45) -> 342422 | D6: =SUM(D7:D45) -> 30688 | E6: =IFERROR(D6/C6,"N/A") -> 0.09 | F6: =SUM(F7:F45) -> 27625 | G6: =IFERROR(F6/D6,"N/A") -> 0.9 | H6: =SUM(H7:H45) -> 20398 | I6: =IFERROR(H6/D6,"N/A") -> 0.665
A7: ='Practice list'!B2 -> Stamford Hill Surgery | B7: ='Practice list'!A2 -> F84013 | C7: =SUMIFS(OFFSET(REL_D,,MATCH(C$1,IND,0)-2),REL_D,$D$3,OrgID,$B7) -> 17332 | D7: 1025 | E7: =IFERROR(D7/C7,"N/A") -> 0.059 | F7: =SUMIFS(OFFSET(REL_D,,MATCH(F$1,IND,0)-2),REL_D,$D$3,OrgID,$B7) -> 962 | G7: =IFERROR(F7/D7,"N/A") -> 0.939 | H7: =SUMIFS(OFFSET(REL_D,,MATCH(H$1,IND,0)-2),REL_D,$D$3,OrgID,$B7) -> 727 | I7: =IFERROR(H7/D7,"N/A") -> 0.709
A8: ='Practice list'!B3 -> Cranwich Road Surgery | B8: ='Practice list'!A3 -> F84686 | C8: 8631 | D8: 362 | E8: 0.042 | F8: 331 | G8: 0.914 | H8: 261 | I8: 0.721
A9: ='Practice list'!B4 -> Spring Hill Practice | B9: ='Practice list'!A4 -> Y03049 | C9: 15378 | D9: 1227 | E9: 0.08 | F9: 1122 | G9: 0.914 | H9: 862 | I9: 0.703
A10: ='Practice list'!B5 -> The Nightingale Practice | B10: ='Practice list'!A5 -> F84018 | C10: 12215 | D10: 1199 | E10: 0.098 | F10: 1112 | G10: 0.927 | H10: 754 | I10: 0.629
A11: ='Practice list'!B6 -> The Gadvhi Practice | B11: ='Practice list'!A6 -> F84080 | C11: 5192 | D11: 698 | E11: 0.134 | F11: 627 | G11: 0.898 | H11: 479 | I11: 0.686
A12: ='Practice list'!B7 -> The Riverside Practice | B12: ='Practice list'!A7 -> F84619 | C12: 4964 | D12: 477 | E12: 0.096 | F12: 438 | G12: 0.918 | H12: 344 | I12: 0.721
A13: ='Practice list'!B8 -> Clapton Surgery | B13: ='Practice list'!A8 -> F84668 | C13: 6247 | D13: 521 | E13: 0.083 | F13: 476 | G13: 0.914 | H13: 373 | I13: 0.716
A14: ='Practice list'!B9 -> Elm Practice | B14: ='Practice list'!A9 -> F84685 | C14: 3072 | D14: 316 | E14: 0.103 | F14: 278 | G14: 0.88 | H14: 225 | I14: 0.712
A15: ='Practice list'!B10 -> Rosewood Practice | B15: ='Practice list'!A10 -> F84711 | C15: 1840 | D15: 299 | E15: 0.163 | F15: 282 | G15: 0.943 | H15: 202 | I15: 0.676
A16: ='Practice list'!B11 -> Healy Medical Centre | B16: ='Practice list'!A11 -> F84720 | C16: 5720 | D16: 759 | E16: 0.133 | F16: 634 | G16: 0.835 | H16: 453 | I16: 0.597
A17: ='Practice list'!B12 -> Cedar Practice | B17: ='Practice list'!A12 -> F84036 | C17: 8044 | D17: 785 | E17: 0.098 | F17: 705 | G17: 0.898 | H17: 541 | I17: 0.689
A18: ='Practice list'!B13 -> Statham Grove Surgery | B18: ='Practice list'!A13 -> F84115 | C18: 8492 | D18: 618 | E18: 0.073 | F18: 579 | G18: 0.937 | H18: 425 | I18: 0.688
A19: ='Practice list'!B14 -> The Heron Practice | B19: ='Practice list'!A14 -> F84119 | C19: 12311 | D19: 1178 | E19: 0.096 | F19: 1054 | G19: 0.895 | H19: 781 | I19: 0.663
A20: ='Practice list'!B15 -> Allerton Road Medical Centre | B20: ='Practice list'!A15 -> F84716 | C20: 6025 | D20: 387 | E20: 0.064 | F20: 363 | G20: 0.938 | H20: 251 | I20: 0.649
A21: ='Practice list'!B16 -> Barton House Health Centre | B21: ='Practice list'!A16 -> F84008 | C21: 12101 | D21: 1379 | E21: 0.114 | F21: 1250 | G21: 0.906 | H21: 838 | I21: 0.608
A22: ='Practice list'!B17 -> Somerford Grove Practice | B22: ='Practice list'!A17 -> F84033 | C22: 11952 | D22: 1316 | E22: 0.11 | F22: 1173 | G22: 0.891 | H22: 943 | I22: 0.717
A23: ='Practice list'!B18 -> Barretts Grove Surgery | B23: ='Practice list'!A18 -> F84636 | C23: 6672 | D23: 439 | E23: 0.066 | F23: 391 | G23: 0.891 | H23: 299 | I23: 0.681
A24: ='Practice list'!B19 -> Brooke Road Surgery | B24: ='Practice list'!A19 -> F84694 | C24: 4726 | D24: 342 | E24: 0.072 | F24: 311 | G24: 0.909 | H24: 245 | I24: 0.716
A25: ='Practice list'!B20 -> Lower Clapton Group Practice | B25: ='Practice list'!A20 -> F84003 | C25: =SUMIFS(OFFSET(REL_D,,MATCH(C$1,IND,0)-2),REL_D,$D$3,OrgID,$B25) -> 14915 | D25: 2027 | E25: 0.136 | F25: 1840 | G25: 0.908 | H25: 1447 | I25: 0.714
A26: ='Practice list'!B21 -> Kingsmead Healthcare | B26: ='Practice list'!A21 -> F84015 | C26: 5358 | D26: 880 | E26: 0.164 | F26: 822 | G26: 0.934 | H26: 685 | I26: 0.778
A27: ='Practice list'!B22 -> Athena Medical Centre | B27: ='Practice list'!A22 -> F84060 | C27: 4857 | D27: 597 | E27: 0.123 | F27: 493 | G27: 0.826 | H27: 307 | I27: 0.514
A28: ='Practice list'!B23 -> The Lea Surgery | B28: ='Practice list'!A23 -> F84105 | C28: 11854 | D28: 1090 | E28: 0.092 | F28: 1028 | G28: 0.943 | H28: 677 | I28: 0.621
A29: ='Practice list'!B24 -> Latimer Health Centre | B29: ='Practice list'!A24 -> F84719 | C29: 5242 | D29: 632 | E29: 0.121 | F29: 555 | G29: 0.878 | H29: 416 | I29: 0.658
A30: ='Practice list'!B25 -> The Well Street Surgery | B30: ='Practice list'!A25 -> F84069 | C30: 14466 | D30: 1365 | E30: 0.094 | F30: 1233 | G30: 0.903 | H30: 873 | I30: 0.64
A31: ='Practice list'!B26 -> Elsdale Street Surgery | B31: ='Practice list'!A26 -> F84601 | C31: 7177 | D31: 684 | E31: 0.095 | F31: 591 | G31: 0.864 | H31: 417 | I31: 0.61
A32: ='Practice list'!B27 -> The Wick Health Centre | B32: ='Practice list'!A27 -> F84620 | C32: 7775 | D32: 916 | E32: 0.118 | F32: 832 | G32: 0.908 | H32: 609 | I32: 0.665
A33: ='Practice list'!B28 -> The Greenhouse | B33: ='Practice list'!A28 -> F84632 | C33: 1253 | D33: 122 | E33: 0.097 | F33: 112 | G33: 0.918 | H33: 77 | I33: 0.631
A34: ='Practice list'!B29 -> Trowbridge Surgery | B34: ='Practice list'!A29 -> Y00403 | C34: 7945 | D34: 428 | E34: 0.054 | F34: 379 | G34: 0.886 | H34: 290 | I34: 0.678
A35: ='Practice list'!B30 -> London Fields Medical Centre | B35: ='Practice list'!A30 -> F84021 | C35: 11037 | D35: 989 | E35: 0.09 | F35: 872 | G35: 0.882 | H35: 632 | I35: 0.639
A36: ='Practice list'!B31 -> Richmond Road Medical Centre | B36: ='Practice list'!A31 -> F84035 | C36: 18254 | D36: 639 | E36: 0.035 | F36: 586 | G36: 0.917 | H36: 422 | I36: 0.66
A37: ='Practice list'!B32 -> Beechwood Medical Centre | B37: ='Practice list'!A32 -> F84038 | C37: 3899 | D37: 433 | E37: 0.111 | F37: 391 | G37: 0.903 | H37: 315 | I37: 0.727
A38: ='Practice list'!B33 -> Dalston Practice | B38: ='Practice list'!A33 -> F84063 | C38: 6094 | D38: 664 | E38: 0.109 | F38: 582 | G38: 0.877 | H38: 427 | I38: 0.643
A39: ='Practice list'!B34 -> Queensbridge Group Practice | B39: ='Practice list'!A34 -> F84117 | C39: 10838 | D39: 893 | E39: 0.082 | F39: 738 | G39: 0.826 | H39: 541 | I39: 0.606
A40: ='Practice list'!B35 -> The Sandringham Practice | B40: ='Practice list'!A35 -> F84621 | C40: 4519 | D40: 555 | E40: =IFERROR(D40/C40,"N/A") -> 0.123 | F40: 497 | G40: =IFERROR(F40/D40,"N/A") -> 0.895 | H40: 371 | I40: =IFERROR(H40/D40,"N/A") -> 0.668
A41: ='Practice list'!B36 -> The Neaman Practice | B41: ='Practice list'!A36 -> F84640 | C41: 9717 | D41: 922 | E41: 0.095 | F41: 789 | G41: 0.856 | H41: 564 | I41: 0.612
A42: ='Practice list'!B38 -> De Beauvoir Surgery | B42: ='Practice list'!A38 -> F84072 | C42: 12342 | D42: 715 | E42: 0.058 | F42: 659 | G42: 0.922 | H42: 467 | I42: 0.653
A43: ='Practice list'!B39 -> The Lawson Practice | B43: ='Practice list'!A39 -> F84096 | C43: 15593 | D43: 1499 | E43: 0.096 | F43: 1377 | G43: 0.919 | H43: 1004 | I43: 0.67
A44: ='Practice list'!B40 -> Shoreditch Park Surgery | B44: ='Practice list'!A40 -> F84635 | C44: 9200 | D44: 748 | E44: 0.081 | F44: 671 | G44: 0.897 | H44: 475 | I44: 0.635
A45: ='Practice list'!B41 -> The Hoxton Surgery | B45: ='Practice list'!A41 -> F84692 | C45: 9173 | D45: 563 | E45: =IFERROR(D45/C45,"N/A") -> 0.061 | F45: 490 | G45: =IFERROR(F45/D45,"N/A") -> 0.87 | H45: 379 | I45: =IFERROR(H45/D45,"N/A") -> 0.673

Sheet CHD
C1: 01. Listsize | D1: =INDEX('Control Panel'!$B$26:$B$39,COLUMN(D1)-COLUMN($D$1)+1) -> LDP.03: CHD Register | E1: =INDEX('Control Panel'!$B$26:$B$39,COLUMN(E1)-COLUMN($D$1)+1) -> %LDP.03: CHD Register | F1: =INDEX('Control Panel'!$B$26:$B$39,COLUMN(F1)-COLUMN($D$1)+1) -> LDP.03.04: CHD Cholesterol recorded (last 12m) | G1: =INDEX('Control Panel'!$B$26:$B$39,COLUMN(G1)-COLUMN($D$1)+1) -> %LDP.03.04: CHD Cholesterol recorded (last 12m) | H1: =INDEX('Control Panel'!$B$26:$B$39,COLUMN(H1)-COLUMN($D$1)+1) -> LDP.03.01: CHD Chol less than 5mmol (last 12m) | I1: =INDEX('Control Panel'!$B$26:$B$39,COLUMN(I1)-COLUMN($D$1)+1) -> %LDP.03.01: CHD Chol less than 5mmol (last 12m) | J1: =INDEX('Control Panel'!$B$26:$B$39,COLUMN(J1)-COLUMN($D$1)+1) -> LDP.03.02: CHD BP less than or equal 150/90 (last 9m) | K1: =INDEX('Control Panel'!$B$26:$B$39,COLUMN(K1)-COLUMN($D$1)+1) -> %LDP.03.02: CHD BP less than or equal 150/90 (last 9m)
C2: City and Hackney - Practice Clinical Trends (LDP) Report
B3: =VLOOKUP(C3,'Control Panel'!O16:P27,2,FALSE) -> 2023-04-01 | C3: March 2023 | D3: =VLOOKUP(C3,'Control Panel'!O16:P27,2,FALSE) -> 2023-04-01
B4: 2019-07-01 | C4: ='Control Panel'!B25 -> CHD
A5: Home | B5: 2019-10-01 | C5: =VLOOKUP(C1,'Control Panel'!$B$3:$C$132,2,FALSE) -> List Size | D5: =VLOOKUP(D1,'Control Panel'!$B$3:$D$132,3,FALSE) -> CHD register | E5: =VLOOKUP(E1,'Control Panel'!$B$3:$D$132,3,FALSE) -> % list size | F5: =VLOOKUP(F1,'Control Panel'!$B$3:$D$132,3,FALSE) -> Cholesterol (last 12m) | G5: =VLOOKUP(G1,'Control Panel'!$B$3:$D$132,3,FALSE) -> % CHD register | H5: =VLOOKUP(H1,'Control Panel'!$B$3:$D$132,3,FALSE) -> Cholesterol < 5 (last 12m) | I5: =VLOOKUP(I1,'Control Panel'!$B$3:$D$132,3,FALSE) -> % CHD register | J5: =VLOOKUP(J1,'Control Panel'!$B$3:$D$132,3,FALSE) -> BP ≤ 150/90 (last 9m) | K5: =VLOOKUP(K1,'Control Panel'!$B$3:$D$132,3,FALSE) -> % CHD register
A6: Practice Name | B6: Total | C6: =SUM(C7:C45) -> 342422 | D6: =SUM(D7:D45) -> 5340 | E6: =IFERROR(D6/C6,"N/A") -> 0.016 | F6: =SUM(F7:F45) -> 3956 | G6: =IFERROR(F6/D6,"N/A") -> 0.741 | H6: =SUM(H7:H45) -> 3160 | I6: =IFERROR(H6/D6,"N/A") -> 0.592 | J6: =SUM(J7:J45) -> 3875 | K6: =IFERROR(J6/D6,"N/A") -> 0.726
A7: ='Practice list'!B2 -> Stamford Hill Surgery | B7: ='Practice list'!A2 -> F84013 | C7: =SUMIFS(OFFSET(REL_D,,MATCH(C$1,IND,0)-2),REL_D,$D$3,OrgID,$B7) -> 17332 | D7: 222 | E7: =IFERROR(D7/C7,"N/A") -> 0.013 | F7: =SUMIFS(OFFSET(REL_D,,MATCH(F$1,IND,0)-2),REL_D,$D$3,OrgID,$B7) -> 185 | G7: =IFERROR(F7/$D7,"N/A") -> 0.833 | H7: =SUMIFS(OFFSET(REL_D,,MATCH(H$1,IND,0)-2),REL_D,$D$3,OrgID,$B7) -> 152 | I7: =IFERROR(H7/$D7,"N/A") -> 0.685 | J7: =SUMIFS(OFFSET(REL_D,,MATCH(J$1,IND,0)-2),REL_D,$D$3,OrgID,$B7) -> 161 | K7: =IFERROR(J7/$D7,"N/A") -> 0.725
A8: ='Practice list'!B3 -> Cranwich Road Surgery | B8: ='Practice list'!A3 -> F84686 | C8: 8631 | D8: 82 | E8: 0.01 | F8: 71 | G8: 0.866 | H8: 56 | I8: 0.683 | J8: 61 | K8: 0.744
A9: ='Practice list'!B4 -> Spring Hill Practice | B9: ='Practice list'!A4 -> Y03049 | C9: 15378 | D9: 235 | E9: 0.015 | F9: 167 | G9: 0.711 | H9: 132 | I9: 0.562 | J9: 171 | K9: 0.728
A10: ='Practice list'!B5 -> The Nightingale Practice | B10: ='Practice list'!A5 -> F84018 | C10: 12215 | D10: 208 | E10: 0.017 | F10: 184 | G10: 0.885 | H10: 135 | I10: 0.649 | J10: 155 | K10: 0.745
A11: ='Practice list'!B6 -> The Gadvhi Practice | B11: ='Practice list'!A6 -> F84080 | C11: 5192 | D11: 103 | E11: 0.02 | F11: 78 | G11: 0.757 | H11: 61 | I11: 0.592 | J11: 77 | K11: 0.748
A12: ='Practice list'!B7 -> The Riverside Practice | B12: ='Practice list'!A7 -> F84619 | C12: 4964 | D12: 90 | E12: 0.018 | F12: 71 | G12: 0.789 | H12: 59 | I12: 0.656 | J12: 60 | K12: 0.667
A13: ='Practice list'!B8 -> Clapton Surgery | B13: ='Practice list'!A8 -> F84668 | C13: 6247 | D13: 57 | E13: 0.009 | F13: 52 | G13: 0.912 | H13: 45 | I13: 0.789 | J13: 40 | K13: 0.702
A14: ='Practice list'!B9 -> Elm Practice | B14: ='Practice list'!A9 -> F84685 | C14: 3072 | D14: 47 | E14: 0.015 | F14: 39 | G14: 0.83 | H14: 29 | I14: 0.617 | J14: 37 | K14: 0.787
A15: ='Practice list'!B10 -> Rosewood Practice | B15: ='Practice list'!A10 -> F84711 | C15: 1840 | D15: 34 | E15: 0.018 | F15: 27 | G15: 0.794 | H15: 21 | I15: 0.618 | J15: 26 | K15: 0.765
A16: ='Practice list'!B11 -> Healy Medical Centre | B16: ='Practice list'!A11 -> F84720 | C16: 5720 | D16: 166 | E16: 0.029 | F16: 117 | G16: 0.705 | H16: 90 | I16: 0.542 | J16: 114 | K16: 0.687
A17: ='Practice list'!B12 -> Cedar Practice | B17: ='Practice list'!A12 -> F84036 | C17: 8044 | D17: 132 | E17: 0.016 | F17: 110 | G17: 0.833 | H17: 99 | I17: 0.75 | J17: 96 | K17: 0.727
A18: ='Practice list'!B13 -> Statham Grove Surgery | B18: ='Practice list'!A13 -> F84115 | C18: 8492 | D18: 158 | E18: 0.019 | F18: 98 | G18: 0.62 | H18: 85 | I18: 0.538 | J18: 113 | K18: 0.715
A19: ='Practice list'!B14 -> The Heron Practice | B19: ='Practice list'!A14 -> F84119 | C19: 12311 | D19: 194 | E19: 0.016 | F19: 150 | G19: 0.773 | H19: 117 | I19: 0.603 | J19: 145 | K19: 0.747
A20: ='Practice list'!B15 -> Allerton Road Medical Centre | B20: ='Practice list'!A15 -> F84716 | C20: 6025 | D20: 74 | E20: 0.012 | F20: 52 | G20: 0.703 | H20: 46 | I20: 0.622 | J20: 46 | K20: 0.622
A21: ='Practice list'!B16 -> Barton House Health Centre | B21: ='Practice list'!A16 -> F84008 | C21: 12101 | D21: 240 | E21: 0.02 | F21: 148 | G21: 0.617 | H21: 120 | I21: 0.5 | J21: 137 | K21: 0.571
A22: ='Practice list'!B17 -> Somerford Grove Practice | B22: ='Practice list'!A17 -> F84033 | C22: 11952 | D22: 243 | E22: 0.02 | F22: 198 | G22: 0.815 | H22: 159 | I22: 0.654 | J22: 198 | K22: 0.815
A23: ='Practice list'!B18 -> Barretts Grove Surgery | B23: ='Practice list'!A18 -> F84636 | C23: 6672 | D23: 54 | E23: 0.008 | F23: 49 | G23: 0.907 | H23: 41 | I23: 0.759 | J23: 46 | K23: 0.852
A24: ='Practice list'!B19 -> Brooke Road Surgery | B24: ='Practice list'!A19 -> F84694 | C24: 4726 | D24: 53 | E24: 0.011 | F24: 46 | G24: 0.868 | H24: 40 | I24: 0.755 | J24: 45 | K24: 0.849
A25: ='Practice list'!B20 -> Lower Clapton Group Practice | B25: ='Practice list'!A20 -> F84003 | C25: =SUMIFS(OFFSET(REL_D,,MATCH(C$1,IND,0)-2),REL_D,$D$3,OrgID,$B25) -> 14915 | D25: 377 | E25: 0.025 | F25: 247 | G25: 0.655 | H25: 190 | I25: 0.504 | J25: 297 | K25: 0.788
A26: ='Practice list'!B21 -> Kingsmead Healthcare | B26: ='Practice list'!A21 -> F84015 | C26: 5358 | D26: 125 | E26: 0.023 | F26: 115 | G26: 0.92 | H26: 81 | I26: 0.648 | J26: 101 | K26: 0.808
A27: ='Practice list'!B22 -> Athena Medical Centre | B27: ='Practice list'!A22 -> F84060 | C27: 4857 | D27: 73 | E27: 0.015 | F27: 48 | G27: 0.658 | H27: 39 | I27: 0.534 | J27: 40 | K27: 0.548
A28: ='Practice list'!B23 -> The Lea Surgery | B28: ='Practice list'!A23 -> F84105 | C28: 11854 | D28: 156 | E28: 0.013 | F28: 133 | G28: 0.853 | H28: 106 | I28: 0.679 | J28: 119 | K28: 0.763
A29: ='Practice list'!B24 -> Latimer Health Centre | B29: ='Practice list'!A24 -> F84719 | C29: 5242 | D29: 111 | E29: 0.021 | F29: 98 | G29: 0.883 | H29: 82 | I29: 0.739 | J29: 70 | K29: 0.631
A30: ='Practice list'!B25 -> The Well Street Surgery | B30: ='Practice list'!A25 -> F84069 | C30: 14466 | D30: 229 | E30: 0.016 | F30: 147 | G30: 0.642 | H30: 112 | I30: 0.489 | J30: 158 | K30: 0.69
A31: ='Practice list'!B26 -> Elsdale Street Surgery | B31: ='Practice list'!A26 -> F84601 | C31: 7177 | D31: 122 | E31: 0.017 | F31: 99 | G31: 0.811 | H31: 82 | I31: 0.672 | J31: 87 | K31: 0.713
A32: ='Practice list'!B27 -> The Wick Health Centre | B32: ='Practice list'!A27 -> F84620 | C32: 7775 | D32: 153 | E32: 0.02 | F32: 124 | G32: 0.81 | H32: 108 | I32: 0.706 | J32: 113 | K32: 0.739
A33: ='Practice list'!B28 -> The Greenhouse | B33: ='Practice list'!A28 -> F84632 | C33: 1253 | D33: 26 | E33: 0.021 | F33: 19 | G33: 0.731 | H33: 12 | I33: 0.462 | J33: 24 | K33: 0.923
A34: ='Practice list'!B29 -> Trowbridge Surgery | B34: ='Practice list'!A29 -> Y00403 | C34: 7945 | D34: 63 | E34: 0.008 | F34: 40 | G34: 0.635 | H34: 29 | I34: 0.46 | J34: 49 | K34: 0.778
A35: ='Practice list'!B30 -> London Fields Medical Centre | B35: ='Practice list'!A30 -> F84021 | C35: 11037 | D35: 176 | E35: 0.016 | F35: 124 | G35: 0.705 | H35: 98 | I35: 0.557 | J35: 129 | K35: 0.733
A36: ='Practice list'!B31 -> Richmond Road Medical Centre | B36: ='Practice list'!A31 -> F84035 | C36: 18254 | D36: 110 | E36: 0.006 | F36: 78 | G36: 0.709 | H36: 64 | I36: 0.582 | J36: 86 | K36: 0.782
A37: ='Practice list'!B32 -> Beechwood Medical Centre | B37: ='Practice list'!A32 -> F84038 | C37: 3899 | D37: 66 | E37: 0.017 | F37: 56 | G37: 0.848 | H37: 46 | I37: 0.697 | J37: 53 | K37: 0.803
A38: ='Practice list'!B33 -> Dalston Practice | B38: ='Practice list'!A33 -> F84063 | C38: 6094 | D38: 126 | E38: 0.021 | F38: 112 | G38: 0.889 | H38: 92 | I38: 0.73 | J38: 96 | K38: 0.762
A39: ='Practice list'!B34 -> Queensbridge Group Practice | B39: ='Practice list'!A34 -> F84117 | C39: 10838 | D39: 196 | E39: =IFERROR(D39/C39,"N/A") -> 0.018 | F39: 117 | G39: =IFERROR(F39/$D39,"N/A") -> 0.597 | H39: 91 | I39: =IFERROR(H39/$D39,"N/A") -> 0.464 | J39: 130 | K39: 0.663
A40: ='Practice list'!B35 -> The Sandringham Practice | B40: ='Practice list'!A35 -> F84621 | C40: 4519 | D40: 73 | E40: 0.016 | F40: 61 | G40: 0.836 | H40: 46 | I40: 0.63 | J40: 48 | K40: 0.658
A41: ='Practice list'!B36 -> The Neaman Practice | B41: ='Practice list'!A36 -> F84640 | C41: 9717 | D41: 175 | E41: 0.018 | F41: 93 | G41: 0.531 | H41: 82 | I41: 0.469 | J41: 106 | K41: 0.606
A42: ='Practice list'!B38 -> De Beauvoir Surgery | B42: ='Practice list'!A38 -> F84072 | C42: 12342 | D42: 88 | E42: 0.007 | F42: 67 | G42: 0.761 | H42: 52 | I42: 0.591 | J42: 70 | K42: 0.795
A43: ='Practice list'!B39 -> The Lawson Practice | B43: ='Practice list'!A39 -> F84096 | C43: 15593 | D43: 299 | E43: 0.019 | F43: 220 | G43: 0.736 | H43: 167 | I43: 0.559 | J43: 220 | K43: 0.736
A44: ='Practice list'!B40 -> Shoreditch Park Surgery | B44: ='Practice list'!A40 -> F84635 | C44: 9200 | D44: 106 | E44: 0.012 | F44: 64 | G44: 0.604 | H44: 55 | I44: 0.519 | J44: 78 | K44: 0.736
A45: ='Practice list'!B41 -> The Hoxton Surgery | B45: ='Practice list'!A41 -> F84692 | C45: 9173 | D45: 98 | E45: =IFERROR(D45/C45,"N/A") -> 0.011 | F45: 52 | G45: =IFERROR(F45/$D45,"N/A") -> 0.531 | H45: 39 | I45: =IFERROR(H45/$D45,"N/A") -> 0.398 | J45: 73 | K45: =IFERROR(J45/$D45,"N/A") -> 0.745

Sheet Stroke
C1: 01. Listsize | D1: LDP.10 Stroke or TIA register | E1: %LDP.10 Stroke or TIA register | F1: LDP.10.01: Stroke/TIA BP recorded (last 12m) | G1: %LDP.10.01: Stroke/TIA BP recorded (last 12m) | H1: LDP.10.02 Patients on Stroke/TIA register with BP <140/90 (12m) | I1: %LDP.10.02 Patients on Stroke/TIA register with BP <140/90 (12m)
C2: City and Hackney - Practice Clinical Trends (LDP) Report
B3: =VLOOKUP(C3,'Control Panel'!O16:P27,2,FALSE) -> 2023-04-01 | C3: March 2023 | D3: =VLOOKUP(C3,'Control Panel'!O16:P27,2,FALSE) -> 2023-04-01
B4: 2019-07-01 | C4: ='Control Panel'!B41 -> Stroke/TIA
A5: Home | B5: 2019-10-01 | C5: =VLOOKUP(C1,'Control Panel'!$B$3:$C$132,2,FALSE) -> List Size | D5: =VLOOKUP(D1,'Control Panel'!$B$3:$D$132,3,FALSE) -> Stroke/TIA register | E5: =VLOOKUP(E1,'Control Panel'!$B$3:$D$132,3,FALSE) -> % list size | F5: =VLOOKUP(F1,'Control Panel'!$B$3:$D$132,3,FALSE) -> Patients on Stroke/TIA register with BP recorded | G5: =VLOOKUP(G1,'Control Panel'!$B$3:$D$132,3,FALSE) -> % of stroke register | H5: =VLOOKUP(H1,'Control Panel'!$B$3:$D$132,3,FALSE) -> Patients on Stroke/TIA register with BP <140/90 (12m) | I5: =VLOOKUP(I1,'Control Panel'!$B$3:$D$132,3,FALSE) -> % of stroke register
A6: Practice Name | B6: Total | C6: =SUM(C7:C45) -> 342422 | D6: =SUM(D7:D45) -> 3021 | E6: =IFERROR(D6/C6,"N/A") -> 0.009 | F6: =SUM(F7:F45) -> 2769 | G6: =IFERROR(F6/D6,"N/A") -> 0.917 | H6: =SUM(H7:H45) -> 2236 | I6: =IFERROR(H6/D6,"N/A") -> 0.74
A7: ='Practice list'!B2 -> Stamford Hill Surgery | B7: ='Practice list'!A2 -> F84013 | C7: =SUMIFS(OFFSET(REL_D,,MATCH(C$1,IND,0)-2),REL_D,$D$3,OrgID,$B7) -> 17332 | D7: 105 | E7: =IFERROR(D7/C7,"N/A") -> 0.006 | F7: =SUMIFS(OFFSET(REL_D,,MATCH(F$1,IND,0)-2),REL_D,$D$3,OrgID,$B7) -> 100 | G7: =IFERROR(F7/D7,"N/A") -> 0.952 | H7: =SUMIFS(OFFSET(REL_D,,MATCH(H$1,IND,0)-2),REL_D,$D$3,OrgID,$B7) -> 83 | I7: =IFERROR(H7/D7,"N/A") -> 0.79
A8: ='Practice list'!B3 -> Cranwich Road Surgery | B8: ='Practice list'!A3 -> F84686 | C8: 8631 | D8: 30 | E8: 0.003 | F8: 28 | G8: 0.933 | H8: 25 | I8: 0.833
A9: ='Practice list'!B4 -> Spring Hill Practice | B9: ='Practice list'!A4 -> Y03049 | C9: 15378 | D9: 107 | E9: 0.007 | F9: 93 | G9: 0.869 | H9: 69 | I9: 0.645
A10: ='Practice list'!B5 -> The Nightingale Practice | B10: ='Practice list'!A5 -> F84018 | C10: 12215 | D10: 121 | E10: 0.01 | F10: 119 | G10: 0.983 | H10: 91 | I10: 0.752
A11: ='Practice list'!B6 -> The Gadvhi Practice | B11: ='Practice list'!A6 -> F84080 | C11: 5192 | D11: 40 | E11: 0.008 | F11: 35 | G11: 0.875 | H11: 24 | I11: 0.6
A12: ='Practice list'!B7 -> The Riverside Practice | B12: ='Practice list'!A7 -> F84619 | C12: 4964 | D12: 58 | E12: 0.012 | F12: 56 | G12: 0.966 | H12: 44 | I12: 0.759
A13: ='Practice list'!B8 -> Clapton Surgery | B13: ='Practice list'!A8 -> F84668 | C13: 6247 | D13: 37 | E13: 0.006 | F13: 33 | G13: 0.892 | H13: 26 | I13: 0.703
A14: ='Practice list'!B9 -> Elm Practice | B14: ='Practice list'!A9 -> F84685 | C14: 3072 | D14: 24 | E14: 0.008 | F14: 21 | G14: 0.875 | H14: 17 | I14: 0.708
A15: ='Practice list'!B10 -> Rosewood Practice | B15: ='Practice list'!A10 -> F84711 | C15: 1840 | D15: 23 | E15: 0.013 | F15: 23 | G15: 1 | H15: 17 | I15: 0.739
A16: ='Practice list'!B11 -> Healy Medical Centre | B16: ='Practice list'!A11 -> F84720 | C16: 5720 | D16: 79 | E16: 0.014 | F16: 68 | G16: 0.861 | H16: 60 | I16: 0.759
A17: ='Practice list'!B12 -> Cedar Practice | B17: ='Practice list'!A12 -> F84036 | C17: 8044 | D17: 76 | E17: 0.009 | F17: 65 | G17: 0.855 | H17: 55 | I17: 0.724
A18: ='Practice list'!B13 -> Statham Grove Surgery | B18: ='Practice list'!A13 -> F84115 | C18: 8492 | D18: 79 | E18: 0.009 | F18: 68 | G18: 0.861 | H18: 54 | I18: 0.684
A19: ='Practice list'!B14 -> The Heron Practice | B19: ='Practice list'!A14 -> F84119 | C19: 12311 | D19: 111 | E19: 0.009 | F19: 99 | G19: 0.892 | H19: 76 | I19: 0.685
A20: ='Practice list'!B15 -> Allerton Road Medical Centre | B20: ='Practice list'!A15 -> F84716 | C20: 6025 | D20: 46 | E20: 0.008 | F20: 43 | G20: 0.935 | H20: 33 | I20: 0.717
A21: ='Practice list'!B16 -> Barton House Health Centre | B21: ='Practice list'!A16 -> F84008 | C21: 12101 | D21: 161 | E21: 0.013 | F21: 149 | G21: 0.925 | H21: 118 | I21: 0.733
A22: ='Practice list'!B17 -> Somerford Grove Practice | B22: ='Practice list'!A17 -> F84033 | C22: 11952 | D22: 134 | E22: 0.011 | F22: 127 | G22: 0.948 | H22: 116 | I22: 0.866
A23: ='Practice list'!B18 -> Barretts Grove Surgery | B23: ='Practice list'!A18 -> F84636 | C23: 6672 | D23: 43 | E23: 0.006 | F23: 38 | G23: 0.884 | H23: 31 | I23: 0.721
A24: ='Practice list'!B19 -> Brooke Road Surgery | B24: ='Practice list'!A19 -> F84694 | C24: 4726 | D24: 16 | E24: 0.003 | F24: 15 | G24: 0.938 | H24: 12 | I24: 0.75
A25: ='Practice list'!B20 -> Lower Clapton Group Practice | B25: ='Practice list'!A20 -> F84003 | C25: =SUMIFS(OFFSET(REL_D,,MATCH(C$1,IND,0)-2),REL_D,$D$3,OrgID,$B25) -> 14915 | D25: 235 | E25: 0.016 | F25: 222 | G25: 0.945 | H25: 186 | I25: 0.791
A26: ='Practice list'!B21 -> Kingsmead Healthcare | B26: ='Practice list'!A21 -> F84015 | C26: 5358 | D26: 76 | E26: 0.014 | F26: 75 | G26: 0.987 | H26: 60 | I26: 0.789
A27: ='Practice list'!B22 -> Athena Medical Centre | B27: ='Practice list'!A22 -> F84060 | C27: 4857 | D27: 56 | E27: 0.012 | F27: 49 | G27: 0.875 | H27: 41 | I27: 0.732
A28: ='Practice list'!B23 -> The Lea Surgery | B28: ='Practice list'!A23 -> F84105 | C28: 11854 | D28: 94 | E28: 0.008 | F28: 87 | G28: 0.926 | H28: 63 | I28: 0.67
A29: ='Practice list'!B24 -> Latimer Health Centre | B29: ='Practice list'!A24 -> F84719 | C29: 5242 | D29: 72 | E29: 0.014 | F29: 70 | G29: 0.972 | H29: 62 | I29: 0.861
A30: ='Practice list'!B25 -> The Well Street Surgery | B30: ='Practice list'!A25 -> F84069 | C30: 14466 | D30: 124 | E30: 0.009 | F30: 112 | G30: 0.903 | H30: 95 | I30: 0.766
A31: ='Practice list'!B26 -> Elsdale Street Surgery | B31: ='Practice list'!A26 -> F84601 | C31: 7177 | D31: 57 | E31: 0.008 | F31: 54 | G31: 0.947 | H31: 48 | I31: 0.842
A32: ='Practice list'!B27 -> The Wick Health Centre | B32: ='Practice list'!A27 -> F84620 | C32: 7775 | D32: 79 | E32: 0.01 | F32: 72 | G32: 0.911 | H32: 58 | I32: 0.734
A33: ='Practice list'!B28 -> The Greenhouse | B33: ='Practice list'!A28 -> F84632 | C33: 1253 | D33: 19 | E33: 0.015 | F33: 16 | G33: 0.842 | H33: 14 | I33: 0.737
A34: ='Practice list'!B29 -> Trowbridge Surgery | B34: ='Practice list'!A29 -> Y00403 | C34: 7945 | D34: 28 | E34: 0.004 | F34: 27 | G34: 0.964 | H34: 22 | I34: 0.786
A35: ='Practice list'!B30 -> London Fields Medical Centre | B35: ='Practice list'!A30 -> F84021 | C35: 11037 | D35: 91 | E35: 0.008 | F35: 76 | G35: 0.835 | H35: 60 | I35: 0.659
A36: ='Practice list'!B31 -> Richmond Road Medical Centre | B36: ='Practice list'!A31 -> F84035 | C36: 18254 | D36: 57 | E36: 0.003 | F36: 52 | G36: 0.912 | H36: 38 | I36: 0.667
A37: ='Practice list'!B32 -> Beechwood Medical Centre | B37: ='Practice list'!A32 -> F84038 | C37: 3899 | D37: 36 | E37: 0.009 | F37: 35 | G37: 0.972 | H37: 30 | I37: 0.833
A38: ='Practice list'!B33 -> Dalston Practice | B38: ='Practice list'!A33 -> F84063 | C38: 6094 | D38: 51 | E38: 0.008 | F38: 47 | G38: 0.922 | H38: 38 | I38: 0.745
A39: ='Practice list'!B34 -> Queensbridge Group Practice | B39: ='Practice list'!A34 -> F84117 | C39: 10838 | D39: 129 | E39: 0.012 | F39: 110 | G39: 0.853 | H39: 90 | I39: 0.698
A40: ='Practice list'!B35 -> The Sandringham Practice | B40: ='Practice list'!A35 -> F84621 | C40: 4519 | D40: 65 | E40: 0.014 | F40: 56 | G40: 0.862 | H40: 42 | I40: 0.646
A41: ='Practice list'!B36 -> The Neaman Practice | B41: ='Practice list'!A36 -> F84640 | C41: 9717 | D41: 98 | E41: 0.01 | F41: 88 | G41: 0.898 | H41: 76 | I41: 0.776
A42: ='Practice list'!B38 -> De Beauvoir Surgery | B42: ='Practice list'!A38 -> F84072 | C42: 12342 | D42: 75 | E42: 0.006 | F42: 71 | G42: 0.947 | H42: 47 | I42: 0.627
A43: ='Practice list'!B39 -> The Lawson Practice | B43: ='Practice list'!A39 -> F84096 | C43: 15593 | D43: 164 | E43: 0.011 | F43: 153 | G43: 0.933 | H43: 116 | I43: 0.707
A44: ='Practice list'!B40 -> Shoreditch Park Surgery | B44: ='Practice list'!A40 -> F84635 | C44: 9200 | D44: 67 | E44: 0.007 | F44: 61 | G44: 0.91 | H44: 50 | I44: 0.746
A45: ='Practice list'!B41 -> The Hoxton Surgery | B45: ='Practice list'!A41 -> F84692 | C45: 9173 | D45: 58 | E45: =IFERROR(D45/C45,"N/A") -> 0.006 | F45: 56 | G45: =IFERROR(F45/D45,"N/A") -> 0.966 | H45: 49 | I45: =IFERROR(H45/D45,"N/A") -> 0.845

Sheet CVD Risk
C1: 01. Listsize | D1: =INDEX('Control Panel'!$B$49:$B$55,COLUMN(D1)-COLUMN($D$1)+1) -> LDP.05: CVD 25-84yrs (excl CVD) | E1: =INDEX('Control Panel'!$B$49:$B$55,COLUMN(E1)-COLUMN($D$1)+1) -> LDP.05.02: Cardiovascular Risk Score Done (5y) | F1: =INDEX('Control Panel'!$B$49:$B$55,COLUMN(F1)-COLUMN($D$1)+1) -> %LDP.05.02: Cardiovascular Risk Score Done (5y) | G1: =INDEX('Control Panel'!$B$49:$B$55,COLUMN(G1)-COLUMN($D$1)+1) -> LDP.05.01: CVD QRISK greater than or equal 20% | H1: =INDEX('Control Panel'!$B$49:$B$55,COLUMN(H1)-COLUMN($D$1)+1) -> %LDP.05.01: CVD QRISK greater than or equal 20% | I1: =INDEX('Control Panel'!$B$49:$B$55,COLUMN(I1)-COLUMN($D$1)+1) -> LDP.05.01.01: CVD Proxy Annual Review (last 12m) | J1: =INDEX('Control Panel'!$B$49:$B$55,COLUMN(J1)-COLUMN($D$1)+1) -> %LDP.05.01.01: CVD Proxy Annual Review (last 12m)
C2: City and Hackney - Practice Clinical Trends (LDP) Report
B3: =VLOOKUP(C3,'Control Panel'!O16:P27,2,FALSE) -> 2023-04-01 | C3: March 2023 | D3: =VLOOKUP(C3,'Control Panel'!O16:P27,2,FALSE) -> 2023-04-01
B4: 2019-07-01 | C4: ='Control Panel'!B48 -> CVD Risk
A5: Home | B5: 2019-10-01 | C5: =VLOOKUP(C1,'Control Panel'!$B$3:$C$132,2,FALSE) -> List Size | D5: =VLOOKUP(D1,'Control Panel'!$B$3:$D$132,3,FALSE) -> Aged 25 to 84 (exc CVD) | E5: =VLOOKUP(E1,'Control Panel'!$B$3:$D$132,3,FALSE) -> QRISK recorded (5 years) | F5: =VLOOKUP(F1,'Control Panel'!$B$3:$D$132,3,FALSE) -> % of patients aged 25 to 84 (exc CVD) | G5: =VLOOKUP(G1,'Control Panel'!$B$3:$D$132,3,FALSE) -> QRISK ≥ 20% | H5: =VLOOKUP(H1,'Control Panel'!$B$3:$D$132,3,FALSE) -> % QRISK Score recorded | I5: =VLOOKUP(I1,'Control Panel'!$B$3:$D$132,3,FALSE) -> QRISK ≥ 20% and proxy review (BP and Chol last 12m) | J5: =VLOOKUP(J1,'Control Panel'!$B$3:$D$132,3,FALSE) -> % Patients with QRISK ≥ 20%
A6: Practice Name | B6: Total | C6: =SUM(C7:C45) -> 342422 | D6: =SUM(D7:D45) -> 235868 | E6: =SUM(E7:E45) -> 119116 | F6: =IFERROR(E6/D6,"N/A") -> 0.505 | G6: =SUM(G7:G45) -> 12702 | H6: =IFERROR(G6/E6,"N/A") -> 0.107 | I6: =SUM(I7:I45) -> 8853 | J6: =IFERROR(I6/G6,"N/A") -> 0.697
A7: ='Practice list'!B2 -> Stamford Hill Surgery | B7: ='Practice list'!A2 -> F84013 | C7: =SUMIFS(OFFSET(REL_D,,MATCH(C$1,IND,0)-2),REL_D,$D$3,OrgID,$B7) -> 17332 | D7: 7389 | E7: 3357 | F7: =IFERROR(E7/$D7,"N/A") -> 0.454 | G7: =SUMIFS(OFFSET(REL_D,,MATCH(G$1,IND,0)-2),REL_D,$D$3,OrgID,$B7) -> 486 | H7: =IFERROR(G7/$E7,"N/A") -> 0.145 | I7: =SUMIFS(OFFSET(REL_D,,MATCH(I$1,IND,0)-2),REL_D,$D$3,OrgID,$B7) -> 378 | J7: =IFERROR(I7/$G7,"N/A") -> 0.778
A8: ='Practice list'!B3 -> Cranwich Road Surgery | B8: ='Practice list'!A3 -> F84686 | C8: 8631 | D8: 3118 | E8: 1326 | F8: 0.425 | G8: 191 | H8: 0.144 | I8: 161 | J8: 0.843
A9: ='Practice list'!B4 -> Spring Hill Practice | B9: ='Practice list'!A4 -> Y03049 | C9: 15378 | D9: 9350 | E9: 5030 | F9: 0.538 | G9: 533 | H9: 0.106 | I9: 376 | J9: 0.705
A10: ='Practice list'!B5 -> The Nightingale Practice | B10: ='Practice list'!A5 -> F84018 | C10: 12215 | D10: 8399 | E10: 4937 | F10: 0.588 | G10: 526 | H10: 0.107 | I10: 418 | J10: 0.795
A11: ='Practice list'!B6 -> The Gadvhi Practice | B11: ='Practice list'!A6 -> F84080 | C11: 5192 | D11: 3048 | E11: 1675 | F11: 0.55 | G11: 322 | H11: 0.192 | I11: 217 | J11: 0.674
A12: ='Practice list'!B7 -> The Riverside Practice | B12: ='Practice list'!A7 -> F84619 | C12: 4964 | D12: 3414 | E12: 2005 | F12: 0.587 | G12: 180 | H12: 0.09 | I12: 124 | J12: 0.689
A13: ='Practice list'!B8 -> Clapton Surgery | B13: ='Practice list'!A8 -> F84668 | C13: 6247 | D13: 3094 | E13: 1558 | F13: 0.504 | G13: 219 | H13: 0.141 | I13: 187 | J13: 0.854
A14: ='Practice list'!B9 -> Elm Practice | B14: ='Practice list'!A9 -> F84685 | C14: 3072 | D14: 1962 | E14: 1058 | F14: 0.539 | G14: 156 | H14: 0.147 | I14: 108 | J14: 0.692
A15: ='Practice list'!B10 -> Rosewood Practice | B15: ='Practice list'!A10 -> F84711 | C15: 1840 | D15: 1280 | E15: 801 | F15: 0.626 | G15: 115 | H15: 0.144 | I15: 87 | J15: 0.757
A16: ='Practice list'!B11 -> Healy Medical Centre | B16: ='Practice list'!A11 -> F84720 | C16: 5720 | D16: 3540 | E16: 1998 | F16: 0.564 | G16: 282 | H16: 0.141 | I16: 183 | J16: 0.649
A17: ='Practice list'!B12 -> Cedar Practice | B17: ='Practice list'!A12 -> F84036 | C17: 8044 | D17: 5899 | E17: 5196 | F17: 0.881 | G17: 337 | H17: 0.065 | I17: 260 | J17: 0.772
A18: ='Practice list'!B13 -> Statham Grove Surgery | B18: ='Practice list'!A13 -> F84115 | C18: 8492 | D18: 6291 | E18: 2738 | F18: 0.435 | G18: 295 | H18: 0.108 | I18: 186 | J18: 0.631
A19: ='Practice list'!B14 -> The Heron Practice | B19: ='Practice list'!A14 -> F84119 | C19: 12311 | D19: 8914 | E19: 4657 | F19: 0.522 | G19: 508 | H19: 0.109 | I19: 381 | J19: 0.75
A20: ='Practice list'!B15 -> Allerton Road Medical Centre | B20: ='Practice list'!A15 -> F84716 | C20: 6025 | D20: 3708 | E20: 1394 | F20: 0.376 | G20: 184 | H20: 0.132 | I20: 130 | J20: 0.707
A21: ='Practice list'!B16 -> Barton House Health Centre | B21: ='Practice list'!A16 -> F84008 | C21: 12101 | D21: 8558 | E21: 5380 | F21: 0.629 | G21: 658 | H21: 0.122 | I21: 395 | J21: 0.6
A22: ='Practice list'!B17 -> Somerford Grove Practice | B22: ='Practice list'!A17 -> F84033 | C22: 11952 | D22: 8559 | E22: 7914 | F22: 0.925 | G22: 552 | H22: 0.07 | I22: 418 | J22: 0.757
A23: ='Practice list'!B18 -> Barretts Grove Surgery | B23: ='Practice list'!A18 -> F84636 | C23: 6672 | D23: 5294 | E23: 2258 | F23: 0.427 | G23: 137 | H23: 0.061 | I23: 114 | J23: 0.832
A24: ='Practice list'!B19 -> Brooke Road Surgery | B24: ='Practice list'!A19 -> F84694 | C24: 4726 | D24: 3767 | E24: 2586 | F24: 0.686 | G24: 144 | H24: 0.056 | I24: 118 | J24: 0.819
A25: ='Practice list'!B20 -> Lower Clapton Group Practice | B25: ='Practice list'!A20 -> F84003 | C25: =SUMIFS(OFFSET(REL_D,,MATCH(C$1,IND,0)-2),REL_D,$D$3,OrgID,$B25) -> 14915 | D25: 10210 | E25: 4552 | F25: 0.446 | G25: 675 | H25: 0.148 | I25: 401 | J25: 0.594
A26: ='Practice list'!B21 -> Kingsmead Healthcare | B26: ='Practice list'!A21 -> F84015 | C26: 5358 | D26: 3442 | E26: 2270 | F26: 0.66 | G26: 324 | H26: 0.143 | I26: 273 | J26: 0.843
A27: ='Practice list'!B22 -> Athena Medical Centre | B27: ='Practice list'!A22 -> F84060 | C27: 4857 | D27: 3492 | E27: 1771 | F27: 0.507 | G27: 169 | H27: 0.095 | I27: 108 | J27: 0.639
A28: ='Practice list'!B23 -> The Lea Surgery | B28: ='Practice list'!A23 -> F84105 | C28: 11854 | D28: 8294 | E28: 4117 | F28: 0.496 | G28: 459 | H28: 0.111 | I28: 347 | J28: 0.756
A29: ='Practice list'!B24 -> Latimer Health Centre | B29: ='Practice list'!A24 -> F84719 | C29: 5242 | D29: 3783 | E29: 2314 | F29: 0.612 | G29: 237 | H29: 0.102 | I29: 174 | J29: 0.734
A30: ='Practice list'!B25 -> The Well Street Surgery | B30: ='Practice list'!A25 -> F84069 | C30: 14466 | D30: 10294 | E30: 4671 | F30: 0.454 | G30: 672 | H30: 0.144 | I30: 463 | J30: 0.689
A31: ='Practice list'!B26 -> Elsdale Street Surgery | B31: ='Practice list'!A26 -> F84601 | C31: 7177 | D31: 4934 | E31: 2088 | F31: 0.423 | G31: 247 | H31: 0.118 | I31: 183 | J31: 0.741
A32: ='Practice list'!B27 -> The Wick Health Centre | B32: ='Practice list'!A27 -> F84620 | C32: 7775 | D32: 5297 | E32: 2703 | F32: 0.51 | G32: 369 | H32: 0.137 | I32: 291 | J32: 0.789
A33: ='Practice list'!B28 -> The Greenhouse | B33: ='Practice list'!A28 -> F84632 | C33: 1253 | D33: 1109 | E33: 593 | F33: 0.535 | G33: 46 | H33: 0.078 | I33: 33 | J33: 0.717
A34: ='Practice list'!B29 -> Trowbridge Surgery | B34: ='Practice list'!A29 -> Y00403 | C34: 7945 | D34: 6165 | E34: 1842 | F34: 0.299 | G34: 105 | H34: 0.057 | I34: 74 | J34: 0.705
A35: ='Practice list'!B30 -> London Fields Medical Centre | B35: ='Practice list'!A30 -> F84021 | C35: 11037 | D35: 8235 | E35: 4137 | F35: 0.502 | G35: 381 | H35: 0.092 | I35: 265 | J35: 0.696
A36: ='Practice list'!B31 -> Richmond Road Medical Centre | B36: ='Practice list'!A31 -> F84035 | C36: 18254 | D36: 15243 | E36: 4020 | F36: 0.264 | G36: 247 | H36: 0.061 | I36: 164 | J36: 0.664
A37: ='Practice list'!B32 -> Beechwood Medical Centre | B37: ='Practice list'!A32 -> F84038 | C37: 3899 | D37: 2917 | E37: 2039 | F37: 0.699 | G37: 182 | H37: 0.089 | I37: 146 | J37: 0.802
A38: ='Practice list'!B33 -> Dalston Practice | B38: ='Practice list'!A33 -> F84063 | C38: 6094 | D38: 4593 | E38: 2454 | F38: 0.534 | G38: 284 | H38: 0.116 | I38: 197 | J38: 0.694
A39: ='Practice list'!B34 -> Queensbridge Group Practice | B39: ='Practice list'!A34 -> F84117 | C39: 10838 | D39: 7953 | E39: 3412 | F39: =IFERROR(E39/$D39,"N/A") -> 0.429 | G39: 386 | H39: =IFERROR(G39/$E39,"N/A") -> 0.113 | I39: 206 | J39: =IFERROR(I39/$G39,"N/A") -> 0.534
A40: ='Practice list'!B35 -> The Sandringham Practice | B40: ='Practice list'!A35 -> F84621 | C40: 4519 | D40: 3291 | E40: 2127 | F40: 0.646 | G40: 210 | H40: 0.099 | I40: 153 | J40: 0.729
A41: ='Practice list'!B36 -> The Neaman Practice | B41: ='Practice list'!A36 -> F84640 | C41: 9717 | D41: 7572 | E41: 3333 | F41: 0.44 | G41: 454 | H41: 0.136 | I41: 228 | J41: 0.502
A42: ='Practice list'!B38 -> De Beauvoir Surgery | B42: ='Practice list'!A38 -> F84072 | C42: 12342 | D42: 9653 | E42: 3988 | F42: 0.413 | G42: 257 | H42: 0.064 | I42: 186 | J42: 0.724
A43: ='Practice list'!B39 -> The Lawson Practice | B43: ='Practice list'!A39 -> F84096 | C43: 15593 | D43: 10750 | E43: 5415 | F43: 0.504 | G43: 663 | H43: 0.122 | I43: 420 | J43: 0.633
A44: ='Practice list'!B40 -> Shoreditch Park Surgery | B44: ='Practice list'!A40 -> F84635 | C44: 9200 | D44: 6685 | E44: 2638 | F44: 0.395 | G44: 299 | H44: 0.113 | I44: 196 | J44: 0.656
A45: ='Practice list'!B41 -> The Hoxton Surgery | B45: ='Practice list'!A41 -> F84692 | C45: 9173 | D45: 6372 | E45: 2764 | F45: =IFERROR(E45/$D45,"N/A") -> 0.434 | G45: 211 | H45: =IFERROR(G45/$E45,"N/A") -> 0.076 | I45: 104 | J45: =IFERROR(I45/$G45,"N/A") -> 0.493

Sheet Diabetes
C1: 01. Listsize | D1: ='Control Panel'!B57 -> LDP.04: Diabetes Register | E1: =INDEX('Control Panel'!$B$57:$B$106,COLUMN(E1)-COLUMN($D$1)+1) -> %LDP.04: Diabetes Register | F1: ='Control Panel'!B61 -> LDP.04.11: Diabetes and BP in last 12 months | G1: ='Control Panel'!B62 -> %LDP.04.11: Diabetes and BP in last 12 months | H1: ='Control Panel'!B63 -> LDP.04.09: Diabetes BP less than 145/85 (last 12m) | I1: ='Control Panel'!B64 -> %LDP.04.09: Diabetes BP less than 145/85 (last 12m) | J1: ='Control Panel'!B67 -> LDP.04.08: Diabetes Chol less than 5mmol (last 12m) | K1: ='Control Panel'!B68 -> %LDP.04.08: Diabetes Chol less than 5mmol (last 12m) | L1: ='Control Panel'!B69 -> LDP.04.01: Diabetes HbA1c <7.5% OR <59mmol (last 12m) | M1: ='Control Panel'!B70 -> %LDP.04.01: Diabetes HbA1c <7.5% OR <59mmol (last 12m) | N1: ='Control Panel'!B81 -> LDP.04.07: Diabetes Influenza Vaccinations (From August 2018) | O1: ='Control Panel'!B82 -> %LDP.04.07: Diabetes Influenza Vaccinations (From August 2018)
C2: City and Hackney - Practice Clinical Trends (LDP) Report
B3: =VLOOKUP(C3,'Control Panel'!O16:P27,2,FALSE) -> 2023-04-01 | C3: March 2023 | D3: =VLOOKUP(C3,'Control Panel'!O16:P27,2,FALSE) -> 2023-04-01
B4: 2019-07-01 | C4: ='Control Panel'!B56 -> Diabetes
A5: Home | B5: 2019-10-01 | C5: =VLOOKUP(C1,'Control Panel'!$B$3:$C$132,2,FALSE) -> List Size | D5: Diabetes register | E5: % List size | F5: BP (last 12m) | G5: % Diabetes Register | H5: BP < 145/85 (last 12m) | I5: % Diabetes Register | J5: Cholesterol < 5mmols (last 12m) | K5: % Diabetes Register | L5: HbA1c < 59 (last 12m) | M5: % Diabetes register | N5: Flu jab (From August 2022) | O5: % Diabetes Register
A6: Practice Name | B6: Total | C6: =SUM(C7:C45) -> 342422 | D6: =SUM(D7:D45) -> 16531 | E6: =IFERROR(D6/C6,"N/A") -> 0.048 | F6: =SUM(F7:F45) -> 15435 | G6: =IFERROR(F6/D6,"N/A") -> 0.934 | H6: =SUM(H7:H45) -> 13081 | I6: =IFERROR(H6/D6,"N/A") -> 0.791 | J6: =SUM(J7:J45) -> 10395 | K6: =IFERROR(J6/D6,"N/A") -> 0.629 | L6: =SUM(L7:L45) -> 9339 | M6: =IFERROR(L6/D6,"N/A") -> 0.565 | N6: =SUM(N7:N45) -> 9486 | O6: =IFERROR(N6/D6,"N/A") -> 0.574
A7: ='Practice list'!B2 -> Stamford Hill Surgery | B7: ='Practice list'!A2 -> F84013 | C7: =SUMIFS(OFFSET(REL_D,,MATCH(C$1,IND,0)-2),REL_D,$D$3,OrgID,$B7) -> 17332 | D7: 576 | E7: =IFERROR(D7/C7,"N/A") -> 0.033 | F7: =SUMIFS(OFFSET(REL_D,,MATCH(F$1,IND,0)-2),REL_D,$D$3,OrgID,$B7) -> 555 | G7: =IFERROR(F7/$D7,"N/A") -> 0.964 | H7: =SUMIFS(OFFSET(REL_D,,MATCH(H$1,IND,0)-2),REL_D,$D$3,OrgID,$B7) -> 474 | I7: =IFERROR(H7/$D7,"N/A") -> 0.823 | J7: =SUMIFS(OFFSET(REL_D,,MATCH(J$1,IND,0)-2),REL_D,$D$3,OrgID,$B7) -> 400 | K7: =IFERROR(J7/$D7,"N/A") -> 0.694 | L7: =SUMIFS(OFFSET(REL_D,,MATCH(L$1,IND,0)-2),REL_D,$D$3,OrgID,$B7) -> 360 | M7: =IFERROR(L7/$D7,"N/A") -> 0.625 | N7: =SUMIFS(OFFSET(REL_D,,MATCH(N$1,IND,0)-2),REL_D,$D$3,OrgID,$B7) -> 286 | O7: =IFERROR(N7/$D7,"N/A") -> 0.497
A8: ='Practice list'!B3 -> Cranwich Road Surgery | B8: ='Practice list'!A3 -> F84686 | C8: 8631 | D8: 205 | E8: 0.024 | F8: 191 | G8: 0.932 | H8: 164 | I8: 0.8 | J8: 142 | K8: 0.693 | L8: 110 | M8: 0.537 | N8: 87 | O8: 0.424
A9: ='Practice list'!B4 -> Spring Hill Practice | B9: ='Practice list'!A4 -> Y03049 | C9: 15378 | D9: 712 | E9: 0.046 | F9: 668 | G9: 0.938 | H9: 569 | I9: 0.799 | J9: 453 | K9: 0.636 | L9: 396 | M9: 0.556 | N9: 346 | O9: 0.486
A10: ='Practice list'!B5 -> The Nightingale Practice | B10: ='Practice list'!A5 -> F84018 | C10: 12215 | D10: 661 | E10: 0.054 | F10: 637 | G10: 0.964 | H10: 507 | I10: 0.767 | J10: 453 | K10: 0.685 | L10: 357 | M10: 0.54 | N10: 405 | O10: 0.613
A11: ='Practice list'!B6 -> The Gadvhi Practice | B11: ='Practice list'!A6 -> F84080 | C11: 5192 | D11: 350 | E11: 0.067 | F11: 329 | G11: 0.94 | H11: 298 | I11: 0.851 | J11: 194 | K11: 0.554 | L11: 179 | M11: 0.511 | N11: 174 | O11: 0.497
A12: ='Practice list'!B7 -> The Riverside Practice | B12: ='Practice list'!A7 -> F84619 | C12: 4964 | D12: 259 | E12: 0.052 | F12: 238 | G12: 0.919 | H12: 219 | I12: 0.846 | J12: 170 | K12: 0.656 | L12: 155 | M12: 0.598 | N12: 166 | O12: 0.641
A13: ='Practice list'!B8 -> Clapton Surgery | B13: ='Practice list'!A8 -> F84668 | C13: 6247 | D13: 313 | E13: 0.05 | F13: 295 | G13: 0.942 | H13: 261 | I13: 0.834 | J13: 218 | K13: 0.696 | L13: 180 | M13: 0.575 | N13: 172 | O13: 0.55
A14: ='Practice list'!B9 -> Elm Practice | B14: ='Practice list'!A9 -> F84685 | C14: 3072 | D14: 152 | E14: 0.049 | F14: 141 | G14: 0.928 | H14: 126 | I14: 0.829 | J14: 96 | K14: 0.632 | L14: 101 | M14: 0.664 | N14: 86 | O14: 0.566
A15: ='Practice list'!B10 -> Rosewood Practice | B15: ='Practice list'!A10 -> F84711 | C15: 1840 | D15: 163 | E15: 0.089 | F15: 159 | G15: 0.975 | H15: 130 | I15: 0.798 | J15: 109 | K15: 0.669 | L15: 96 | M15: 0.589 | N15: 137 | O15: 0.84
A16: ='Practice list'!B11 -> Healy Medical Centre | B16: ='Practice list'!A11 -> F84720 | C16: 5720 | D16: 427 | E16: 0.075 | F16: 364 | G16: 0.852 | H16: 311 | I16: 0.728 | J16: 251 | K16: 0.588 | L16: 216 | M16: 0.506 | N16: 223 | O16: 0.522
A17: ='Practice list'!B12 -> Cedar Practice | B17: ='Practice list'!A12 -> F84036 | C17: 8044 | D17: 398 | E17: 0.049 | F17: 363 | G17: 0.912 | H17: 321 | I17: 0.807 | J17: 277 | K17: 0.696 | L17: 211 | M17: 0.53 | N17: 221 | O17: 0.555
A18: ='Practice list'!B13 -> Statham Grove Surgery | B18: ='Practice list'!A13 -> F84115 | C18: 8492 | D18: 310 | E18: 0.037 | F18: 292 | G18: 0.942 | H18: 224 | I18: 0.723 | J18: 180 | K18: 0.581 | L18: 169 | M18: 0.545 | N18: 189 | O18: 0.61
A19: ='Practice list'!B14 -> The Heron Practice | B19: ='Practice list'!A14 -> F84119 | C19: 12311 | D19: 612 | E19: 0.05 | F19: 566 | G19: 0.925 | H19: 486 | I19: 0.794 | J19: 391 | K19: 0.639 | L19: 337 | M19: 0.551 | N19: 348 | O19: 0.569
A20: ='Practice list'!B15 -> Allerton Road Medical Centre | B20: ='Practice list'!A15 -> F84716 | C20: 6025 | D20: 214 | E20: 0.036 | F20: 202 | G20: 0.944 | H20: 165 | I20: 0.771 | J20: 134 | K20: 0.626 | L20: 118 | M20: 0.551 | N20: 117 | O20: 0.547
A21: ='Practice list'!B16 -> Barton House Health Centre | B21: ='Practice list'!A16 -> F84008 | C21: 12101 | D21: 636 | E21: 0.053 | F21: 592 | G21: 0.931 | H21: 464 | I21: 0.73 | J21: 410 | K21: 0.645 | L21: 378 | M21: 0.594 | N21: 395 | O21: 0.621
A22: ='Practice list'!B17 -> Somerford Grove Practice | B22: ='Practice list'!A17 -> F84033 | C22: 11952 | D22: 711 | E22: 0.059 | F22: 671 | G22: 0.944 | H22: 595 | I22: 0.837 | J22: 480 | K22: 0.675 | L22: 427 | M22: 0.601 | N22: 409 | O22: 0.575
A23: ='Practice list'!B18 -> Barretts Grove Surgery | B23: ='Practice list'!A18 -> F84636 | C23: 6672 | D23: 241 | E23: 0.036 | F23: 226 | G23: 0.938 | H23: 201 | I23: 0.834 | J23: 162 | K23: 0.672 | L23: 151 | M23: 0.627 | N23: 172 | O23: 0.714
A24: ='Practice list'!B19 -> Brooke Road Surgery | B24: ='Practice list'!A19 -> F84694 | C24: 4726 | D24: 209 | E24: 0.044 | F24: 197 | G24: 0.943 | H24: 173 | I24: 0.828 | J24: 144 | K24: 0.689 | L24: 124 | M24: 0.593 | N24: 124 | O24: 0.593
A25: ='Practice list'!B20 -> Lower Clapton Group Practice | B25: ='Practice list'!A20 -> F84003 | C25: =SUMIFS(OFFSET(REL_D,,MATCH(C$1,IND,0)-2),REL_D,$D$3,OrgID,$B25) -> 14915 | D25: 978 | E25: 0.066 | F25: 930 | G25: 0.951 | H25: 825 | I25: 0.844 | J25: 571 | K25: 0.584 | L25: 494 | M25: 0.505 | N25: 494 | O25: 0.505
A26: ='Practice list'!B21 -> Kingsmead Healthcare | B26: ='Practice list'!A21 -> F84015 | C26: 5358 | D26: 494 | E26: 0.092 | F26: 471 | G26: 0.953 | H26: 441 | I26: 0.893 | J26: 354 | K26: 0.717 | L26: 312 | M26: 0.632 | N26: 277 | O26: 0.561
A27: ='Practice list'!B22 -> Athena Medical Centre | B27: ='Practice list'!A22 -> F84060 | C27: 4857 | D27: 333 | E27: 0.069 | F27: 309 | G27: 0.928 | H27: 224 | I27: 0.673 | J27: 178 | K27: 0.535 | L27: 184 | M27: 0.553 | N27: 189 | O27: 0.568
A28: ='Practice list'!B23 -> The Lea Surgery | B28: ='Practice list'!A23 -> F84105 | C28: 11854 | D28: 693 | E28: 0.058 | F28: 663 | G28: 0.957 | H28: 565 | I28: 0.815 | J28: 458 | K28: 0.661 | L28: 438 | M28: 0.632 | N28: 433 | O28: 0.625
A29: ='Practice list'!B24 -> Latimer Health Centre | B29: ='Practice list'!A24 -> F84719 | C29: 5242 | D29: 362 | E29: 0.069 | F29: 329 | G29: 0.909 | H29: 304 | I29: 0.84 | J29: 245 | K29: 0.677 | L29: 195 | M29: 0.539 | N29: 242 | O29: 0.669
A30: ='Practice list'!B25 -> The Well Street Surgery | B30: ='Practice list'!A25 -> F84069 | C30: 14466 | D30: 728 | E30: 0.05 | F30: 677 | G30: 0.93 | H30: 531 | I30: 0.729 | J30: 444 | K30: 0.61 | L30: 406 | M30: 0.558 | N30: 425 | O30: 0.584
A31: ='Practice list'!B26 -> Elsdale Street Surgery | B31: ='Practice list'!A26 -> F84601 | C31: 7177 | D31: 353 | E31: 0.049 | F31: 316 | G31: 0.895 | H31: 256 | I31: 0.725 | J31: 225 | K31: 0.637 | L31: 178 | M31: 0.504 | N31: 181 | O31: 0.513
A32: ='Practice list'!B27 -> The Wick Health Centre | B32: ='Practice list'!A27 -> F84620 | C32: 7775 | D32: 519 | E32: 0.067 | F32: 488 | G32: 0.94 | H32: 413 | I32: 0.796 | J32: 356 | K32: 0.686 | L32: 292 | M32: 0.563 | N32: 261 | O32: 0.503
A33: ='Practice list'!B28 -> The Greenhouse | B33: ='Practice list'!A28 -> F84632 | C33: 1253 | D33: 72 | E33: 0.057 | F33: 68 | G33: 0.944 | H33: 47 | I33: 0.653 | J33: 41 | K33: 0.569 | L33: 36 | M33: 0.5 | N33: 41 | O33: 0.569
A34: ='Practice list'!B29 -> Trowbridge Surgery | B34: ='Practice list'!A29 -> Y00403 | C34: 7945 | D34: 208 | E34: 0.026 | F34: 200 | G34: 0.962 | H34: 160 | I34: 0.769 | J34: 150 | K34: 0.721 | L34: 118 | M34: 0.567 | N34: 116 | O34: 0.558
A35: ='Practice list'!B30 -> London Fields Medical Centre | B35: ='Practice list'!A30 -> F84021 | C35: 11037 | D35: 522 | E35: 0.047 | F35: 492 | G35: 0.943 | H35: 377 | I35: 0.722 | J35: 334 | K35: 0.64 | L35: 306 | M35: 0.586 | N35: 289 | O35: 0.554
A36: ='Practice list'!B31 -> Richmond Road Medical Centre | B36: ='Practice list'!A31 -> F84035 | C36: 18254 | D36: 390 | E36: 0.021 | F36: 369 | G36: 0.946 | H36: 322 | I36: 0.826 | J36: 261 | K36: 0.669 | L36: 231 | M36: 0.592 | N36: 223 | O36: 0.572
A37: ='Practice list'!B32 -> Beechwood Medical Centre | B37: ='Practice list'!A32 -> F84038 | C37: 3899 | D37: 291 | E37: 0.075 | F37: 268 | G37: 0.921 | H37: 257 | I37: 0.883 | J37: 184 | K37: 0.632 | L37: 159 | M37: 0.546 | N37: 182 | O37: 0.625
A38: ='Practice list'!B33 -> Dalston Practice | B38: ='Practice list'!A33 -> F84063 | C38: 6094 | D38: 443 | E38: 0.073 | F38: 407 | G38: 0.919 | H38: 333 | I38: 0.752 | J38: 284 | K38: 0.641 | L38: 268 | M38: 0.605 | N38: 273 | O38: 0.616
A39: ='Practice list'!B34 -> Queensbridge Group Practice | B39: ='Practice list'!A34 -> F84117 | C39: 10838 | D39: 510 | E39: 0.047 | F39: 436 | G39: 0.855 | H39: 362 | I39: 0.71 | J39: 261 | K39: 0.512 | L39: 281 | M39: 0.551 | N39: 298 | O39: 0.584
A40: ='Practice list'!B35 -> The Sandringham Practice | B40: ='Practice list'!A35 -> F84621 | C40: 4519 | D40: 298 | E40: =IFERROR(D40/C40,"N/A") -> 0.066 | F40: 276 | G40: =IFERROR(F40/$D40,"N/A") -> 0.926 | H40: 240 | I40: =IFERROR(H40/$D40,"N/A") -> 0.805 | J40: 186 | K40: =IFERROR(J40/$D40,"N/A") -> 0.624 | L40: 164 | M40: =IFERROR(L40/$D40,"N/A") -> 0.55 | N40: 170 | O40: =IFERROR(N40/$D40,"N/A") -> 0.57
A41: ='Practice list'!B36 -> The Neaman Practice | B41: ='Practice list'!A36 -> F84640 | C41: 9717 | D41: 247 | E41: 0.025 | F41: 223 | G41: 0.903 | H41: 197 | I41: 0.798 | J41: 144 | K41: 0.583 | L41: 151 | M41: 0.611 | N41: 175 | O41: 0.709
A42: ='Practice list'!B38 -> De Beauvoir Surgery | B42: ='Practice list'!A38 -> F84072 | C42: 12342 | D42: 347 | E42: 0.028 | F42: 325 | G42: 0.937 | H42: 271 | I42: 0.781 | J42: 184 | K42: 0.53 | L42: 214 | M42: 0.617 | N42: 172 | O42: 0.496
A43: ='Practice list'!B39 -> The Lawson Practice | B43: ='Practice list'!A39 -> F84096 | C43: 15593 | D43: 899 | E43: 0.058 | F43: 845 | G43: 0.94 | H43: 702 | I43: 0.781 | J43: 513 | K43: 0.571 | L43: 463 | M43: 0.515 | N43: 535 | O43: 0.595
A44: ='Practice list'!B40 -> Shoreditch Park Surgery | B44: ='Practice list'!A40 -> F84635 | C44: 9200 | D44: 365 | E44: 0.04 | F44: 346 | G44: 0.948 | H44: 284 | I44: 0.778 | J44: 218 | K44: 0.597 | L44: 196 | M44: 0.537 | N44: 245 | O44: 0.671
A45: ='Practice list'!B41 -> The Hoxton Surgery | B45: ='Practice list'!A41 -> F84692 | C45: 9173 | D45: 330 | E45: =IFERROR(D45/C45,"N/A") -> 0.036 | F45: 311 | G45: =IFERROR(F45/$D45,"N/A") -> 0.942 | H45: 282 | I45: =IFERROR(H45/$D45,"N/A") -> 0.855 | J45: 140 | K45: =IFERROR(J45/$D45,"N/A") -> 0.424 | L45: 188 | M45: =IFERROR(L45/$D45,"N/A") -> 0.57 | N45: 208 | O45: =IFERROR(N45/$D45,"N/A") -> 0.63

Sheet Mental Health
C1: 01. Listsize | D1: =INDEX('Control Panel'!$B$108:$B$123,COLUMN(D1)-COLUMN($D$1)+1) -> CSPMH.01 SMI Register | E1: =INDEX('Control Panel'!$B$108:$B$123,COLUMN(E1)-COLUMN($D$1)+1) -> %CSPMH.01 SMI Register | F1: =INDEX('Control Panel'!$B$108:$B$123,COLUMN(F1)-COLUMN($D$1)+1) -> CSPMH.01.02 Smoking Status Recorded (12m) | G1: =INDEX('Control Panel'!$B$108:$B$123,COLUMN(G1)-COLUMN($D$1)+1) -> %CSPMH.01.02 Smoking Status Recorded (12m) | H1: =INDEX('Control Panel'!$B$108:$B$123,COLUMN(H1)-COLUMN($D$1)+1) -> CSPMH.01.02.01 Current Smoker (12m) | I1: =INDEX('Control Panel'!$B$108:$B$123,COLUMN(I1)-COLUMN($D$1)+1) -> %CSPMH.01.02.01 Current Smoker (12m) | J1: =INDEX('Control Panel'!$B$108:$B$123,COLUMN(J1)-COLUMN($D$1)+1) -> CSPMH 01.02.01.01 Ref to clinic 12m | K1: =INDEX('Control Panel'!$B$108:$B$123,COLUMN(K1)-COLUMN($D$1)+1) -> %CSPMH 01.02.01.01 Ref to clinic 12m | L1: =INDEX('Control Panel'!$B$108:$B$123,COLUMN(L1)-COLUMN($D$1)+1) -> CSPMH.01.02.02 Ex-smoker Recorded (latest 12m) | M1: =INDEX('Control Panel'!$B$108:$B$123,COLUMN(M1)-COLUMN($D$1)+1) -> %CSPMH.01.02.02 Ex-smoker Recorded (latest 12m) | N1: =INDEX('Control Panel'!$B$108:$B$123,COLUMN(N1)-COLUMN($D$1)+1) -> CSPMH. 01.03 QRisk Recorded (12m) | O1: =INDEX('Control Panel'!$B$108:$B$123,COLUMN(O1)-COLUMN($D$1)+1) -> %CSPMH. 01.03 QRisk Recorded (12m) | P1: =INDEX('Control Panel'!$B$108:$B$123,COLUMN(P1)-COLUMN($D$1)+1) -> CSPMH. 01.03.02 Qrisk>=20 (12m) | Q1: =INDEX('Control Panel'!$B$108:$B$123,COLUMN(Q1)-COLUMN($D$1)+1) -> %CSPMH. 01.03.02 Qrisk>=20 (12m) | R1: =INDEX('Control Panel'!$B$108:$B$123,COLUMN(R1)-COLUMN($D$1)+1) -> CSPMH. 01.03.01 BP recorded on same day as QRisk (12m) | S1: =INDEX('Control Panel'!$B$108:$B$123,COLUMN(S1)-COLUMN($D$1)+1) -> %CSPMH. 01.03.01 BP recorded on same day as QRisk (12m)
C2: City and Hackney - Practice Clinical Trends (LDP) Report
B3: =VLOOKUP(C3,'Control Panel'!O16:P27,2,FALSE) -> 2023-04-01 | C3: March 2023 | D3: =VLOOKUP(C3,'Control Panel'!O16:P27,2,FALSE) -> 2023-04-01
B4: 2019-07-01 | C4: ='Control Panel'!B107 -> Mental Health
A5: Home | B5: 2019-10-01 | C5: =VLOOKUP(C1,'Control Panel'!$B$3:$C$132,2,FALSE) -> List Size | D5: =VLOOKUP(D1,'Control Panel'!$B$3:$D$132,3,FALSE) -> Mental Health register | E5: =VLOOKUP(E1,'Control Panel'!$B$3:$D$132,3,FALSE) -> % list size | F5: =VLOOKUP(F1,'Control Panel'!$B$3:$D$132,3,FALSE) -> No. of Mental Health Patients with smoking status recorded (last 12m) or never smoked | G5: =VLOOKUP(G1,'Control Panel'!$B$3:$D$132,3,FALSE) -> % Mental Health Register | H5: =VLOOKUP(H1,'Control Panel'!$B$3:$D$132,3,FALSE) -> No. of Mental Health patients recorded as a Smoker | I5: =VLOOKUP(I1,'Control Panel'!$B$3:$D$132,3,FALSE) -> % Mental Health Register | J5: =VLOOKUP(J1,'Control Panel'!$B$3:$D$132,3,FALSE) -> No. of Mental Health Patients who are current smokers & referred to the Stop Smoking Clinic | K5: =VLOOKUP(K1,'Control Panel'!$B$3:$D$132,3,FALSE) -> % Mental Health Register | L5: =VLOOKUP(L1,'Control Panel'!$B$3:$D$132,3,FALSE) -> No. Of Mental Health Patients who are recorded as quitters | M5: =VLOOKUP(M1,'Control Panel'!$B$3:$D$132,3,FALSE) -> % Mental Health Register | N5: =VLOOKUP(N1,'Control Panel'!$B$3:$D$132,3,FALSE) -> Patients with Mental Health with QRISK recorded in the last 12m | O5: =VLOOKUP(O1,'Control Panel'!$B$3:$D$132,3,FALSE) -> % Mental Health Register | P5: =VLOOKUP(P1,'Control Panel'!$B$3:$D$132,3,FALSE) -> Patients with Mental Health with QRISK 20% or higher in the last 12m | Q5: =VLOOKUP(Q1,'Control Panel'!$B$3:$D$132,3,FALSE) -> % patients with QRISK recorded | R5: =VLOOKUP(R1,'Control Panel'!$B$3:$D$132,3,FALSE) -> Patients with Mental Health with BP & QRisk on the same day in the last 12m | S5: =VLOOKUP(S1,'Control Panel'!$B$3:$D$132,3,FALSE) -> % Mental Health Register
A6: Practice Name | B6: Total | C6: =SUM(C7:C45) -> 342422 | D6: =SUM(D7:D45) -> 4803 | E6: =IFERROR(D6/C6,"N/A") -> 0.014 | F6: =SUM(F7:F45) -> 3983 | G6: =IFERROR(F6/D6,"N/A") -> 0.829 | H6: =SUM(H7:H45) -> 1455 | I6: =IFERROR(H6/D6,"N/A") -> 0.303 | J6: =SUM(J7:J45) -> 119 | K6: =IFERROR(J6/D6,"N/A") -> 0.025 | L6: =SUM(L7:L45) -> 428 | M6: =IFERROR(L6/D6,"N/A") -> 0.089 | N6: =SUM(N7:N45) -> 2543 | O6: =IFERROR(N6/D6,"N/A") -> 0.529 | P6: =SUM(P7:P45) -> 455 | Q6: =IFERROR(P6/N6,"N/A") -> 0.179 | R6: =SUM(R7:R45) -> 1494 | S6: =IFERROR(R6/D6,"N/A") -> 0.311
A7: ='Practice list'!B2 -> Stamford Hill Surgery | B7: ='Practice list'!A2 -> F84013 | C7: =SUMIFS(OFFSET(REL_D,,MATCH(C$1,IND,0)-2),REL_D,$D$3,OrgID,$B7) -> 17332 | D7: 146 | E7: =IFERROR(D7/C7,"N/A") -> 0.008 | F7: =SUMIFS(OFFSET(REL_D,,MATCH(F$1,IND,0)-2),REL_D,$D$3,OrgID,$B7) -> 135 | G7: =IFERROR(F7/$D7,"N/A") -> 0.925 | H7: =SUMIFS(OFFSET(REL_D,,MATCH(H$1,IND,0)-2),REL_D,$D$3,OrgID,$B7) -> 36 | I7: =IFERROR(H7/$D7,"N/A") -> 0.247 | J7: =SUMIFS(OFFSET(REL_D,,MATCH(J$1,IND,0)-2),REL_D,$D$3,OrgID,$B7) -> 3 | K7: =IFERROR(J7/$D7,"N/A") -> 0.021 | L7: =SUMIFS(OFFSET(REL_D,,MATCH(L$1,IND,0)-2),REL_D,$D$3,OrgID,$B7) -> 7 | M7: =IFERROR(L7/$D7,"N/A") -> 0.048 | N7: =SUMIFS(OFFSET(REL_D,,MATCH(N$1,IND,0)-2),REL_D,$D$3,OrgID,$B7) -> 77 | O7: =IFERROR(N7/$D7,"N/A") -> 0.527 | P7: =SUMIFS(OFFSET(REL_D,,MATCH(P$1,IND,0)-2),REL_D,$D$3,OrgID,$B7) -> 15 | Q7: =IFERROR(P7/$N7,"N/A") -> 0.195 | R7: =SUMIFS(OFFSET(REL_D,,MATCH(R$1,IND,0)-2),REL_D,$D$3,OrgID,$B7) -> 40 | S7: =IFERROR(R7/$D7,"N/A") -> 0.274
A8: ='Practice list'!B3 -> Cranwich Road Surgery | B8: ='Practice list'!A3 -> F84686 | C8: 8631 | D8: 49 | E8: 0.006 | F8: 48 | G8: 0.98 | H8: 6 | I8: 0.122 | J8: 0 | K8: 0 | L8: 5 | M8: 0.102 | N8: 24 | O8: 0.49 | P8: 4 | Q8: 0.167 | R8: 22 | S8: 0.449
A9: ='Practice list'!B4 -> Spring Hill Practice | B9: ='Practice list'!A4 -> Y03049 | C9: 15378 | D9: 230 | E9: 0.015 | F9: 186 | G9: 0.809 | H9: 62 | I9: 0.27 | J9: 6 | K9: 0.026 | L9: 23 | M9: 0.1 | N9: 149 | O9: 0.648 | P9: 23 | Q9: 0.154 | R9: 59 | S9: 0.257
A10: ='Practice list'!B5 -> The Nightingale Practice | B10: ='Practice list'!A5 -> F84018 | C10: 12215 | D10: 209 | E10: 0.017 | F10: 184 | G10: 0.88 | H10: 80 | I10: 0.383 | J10: 5 | K10: 0.024 | L10: 18 | M10: 0.086 | N10: 109 | O10: 0.522 | P10: 20 | Q10: 0.183 | R10: 80 | S10: 0.383
A11: ='Practice list'!B6 -> The Gadvhi Practice | B11: ='Practice list'!A6 -> F84080 | C11: 5192 | D11: 56 | E11: 0.011 | F11: 54 | G11: 0.964 | H11: 14 | I11: 0.25 | J11: 1 | K11: 0.018 | L11: 5 | M11: 0.089 | N11: 29 | O11: 0.518 | P11: 3 | Q11: 0.103 | R11: 15 | S11: 0.268
A12: ='Practice list'!B7 -> The Riverside Practice | B12: ='Practice list'!A7 -> F84619 | C12: 4964 | D12: 64 | E12: 0.013 | F12: 58 | G12: 0.906 | H12: 13 | I12: 0.203 | J12: 0 | K12: 0 | L12: 8 | M12: 0.125 | N12: 40 | O12: 0.625 | P12: 10 | Q12: 0.25 | R12: 21 | S12: 0.328
A13: ='Practice list'!B8 -> Clapton Surgery | B13: ='Practice list'!A8 -> F84668 | C13: 6247 | D13: 59 | E13: 0.009 | F13: 54 | G13: 0.915 | H13: 13 | I13: 0.22 | J13: 1 | K13: 0.017 | L13: 7 | M13: 0.119 | N13: 37 | O13: 0.627 | P13: 7 | Q13: 0.189 | R13: 32 | S13: 0.542
A14: ='Practice list'!B9 -> Elm Practice | B14: ='Practice list'!A9 -> F84685 | C14: 3072 | D14: 31 | E14: 0.01 | F14: 25 | G14: 0.806 | H14: 9 | I14: 0.29 | J14: 0 | K14: 0 | L14: 1 | M14: 0.032 | N14: 18 | O14: 0.581 | P14: 2 | Q14: 0.111 | R14: 11 | S14: 0.355
A15: ='Practice list'!B10 -> Rosewood Practice | B15: ='Practice list'!A10 -> F84711 | C15: 1840 | D15: 21 | E15: 0.011 | F15: 19 | G15: 0.905 | H15: 3 | I15: 0.143 | J15: 0 | K15: 0 | L15: 2 | M15: 0.095 | N15: 14 | O15: 0.667 | P15: 6 | Q15: 0.429 | R15: 13 | S15: 0.619
A16: ='Practice list'!B11 -> Healy Medical Centre | B16: ='Practice list'!A11 -> F84720 | C16: 5720 | D16: 107 | E16: 0.019 | F16: 83 | G16: 0.776 | H16: 26 | I16: 0.243 | J16: 2 | K16: 0.019 | L16: 7 | M16: 0.065 | N16: 49 | O16: 0.458 | P16: 6 | Q16: 0.122 | R16: 35 | S16: 0.327
A17: ='Practice list'!B12 -> Cedar Practice | B17: ='Practice list'!A12 -> F84036 | C17: 8044 | D17: 162 | E17: 0.02 | F17: 123 | G17: 0.759 | H17: 62 | I17: 0.383 | J17: 3 | K17: 0.019 | L17: 15 | M17: 0.093 | N17: 109 | O17: 0.673 | P17: 17 | Q17: 0.156 | R17: 74 | S17: 0.457
A18: ='Practice list'!B13 -> Statham Grove Surgery | B18: ='Practice list'!A13 -> F84115 | C18: 8492 | D18: 84 | E18: 0.01 | F18: 59 | G18: 0.702 | H18: 22 | I18: 0.262 | J18: 1 | K18: 0.012 | L18: 4 | M18: 0.048 | N18: 24 | O18: 0.286 | P18: 2 | Q18: 0.083 | R18: 11 | S18: 0.131
A19: ='Practice list'!B14 -> The Heron Practice | B19: ='Practice list'!A14 -> F84119 | C19: 12311 | D19: 204 | E19: 0.017 | F19: 174 | G19: 0.853 | H19: 67 | I19: 0.328 | J19: 7 | K19: 0.034 | L19: 25 | M19: 0.123 | N19: 119 | O19: 0.583 | P19: 24 | Q19: 0.202 | R19: 56 | S19: 0.275
A20: ='Practice list'!B15 -> Allerton Road Medical Centre | B20: ='Practice list'!A15 -> F84716 | C20: 6025 | D20: 80 | E20: 0.013 | F20: 68 | G20: 0.85 | H20: 16 | I20: 0.2 | J20: 1 | K20: 0.013 | L20: 2 | M20: 0.025 | N20: 41 | O20: 0.513 | P20: 10 | Q20: 0.244 | R20: 19 | S20: 0.238
A21: ='Practice list'!B16 -> Barton House Health Centre | B21: ='Practice list'!A16 -> F84008 | C21: 12101 | D21: 231 | E21: 0.019 | F21: 183 | G21: 0.792 | H21: 76 | I21: 0.329 | J21: 10 | K21: 0.043 | L21: 24 | M21: 0.104 | N21: 128 | O21: 0.554 | P21: 23 | Q21: 0.18 | R21: 70 | S21: 0.303
A22: ='Practice list'!B17 -> Somerford Grove Practice | B22: ='Practice list'!A17 -> F84033 | C22: 11952 | D22: 163 | E22: 0.014 | F22: 138 | G22: 0.847 | H22: 56 | I22: 0.344 | J22: 4 | K22: 0.025 | L22: 13 | M22: 0.08 | N22: 118 | O22: 0.724 | P22: 23 | Q22: 0.195 | R22: 38 | S22: 0.233
A23: ='Practice list'!B18 -> Barretts Grove Surgery | B23: ='Practice list'!A18 -> F84636 | C23: 6672 | D23: 77 | E23: 0.012 | F23: 62 | G23: 0.805 | H23: 19 | I23: 0.247 | J23: 1 | K23: 0.013 | L23: 9 | M23: 0.117 | N23: 33 | O23: 0.429 | P23: 4 | Q23: 0.121 | R23: 14 | S23: 0.182
A24: ='Practice list'!B19 -> Brooke Road Surgery | B24: ='Practice list'!A19 -> F84694 | C24: 4726 | D24: 57 | E24: 0.012 | F24: 46 | G24: 0.807 | H24: 12 | I24: 0.211 | J24: 0 | K24: 0 | L24: 4 | M24: 0.07 | N24: 34 | O24: 0.596 | P24: 4 | Q24: 0.118 | R24: 24 | S24: 0.421
A25: ='Practice list'!B20 -> Lower Clapton Group Practice | B25: ='Practice list'!A20 -> F84003 | C25: =SUMIFS(OFFSET(REL_D,,MATCH(C$1,IND,0)-2),REL_D,$D$3,OrgID,$B25) -> 14915 | D25: 307 | E25: 0.021 | F25: 243 | G25: 0.792 | H25: 86 | I25: 0.28 | J25: 7 | K25: 0.023 | L25: 21 | M25: 0.068 | N25: 131 | O25: 0.427 | P25: 31 | Q25: 0.237 | R25: 72 | S25: 0.235
A26: ='Practice list'!B21 -> Kingsmead Healthcare | B26: ='Practice list'!A21 -> F84015 | C26: 5358 | D26: 82 | E26: 0.015 | F26: 78 | G26: 0.951 | H26: 27 | I26: 0.329 | J26: 3 | K26: 0.037 | L26: 12 | M26: 0.146 | N26: 52 | O26: 0.634 | P26: 8 | Q26: 0.154 | R26: 44 | S26: 0.537
A27: ='Practice list'!B22 -> Athena Medical Centre | B27: ='Practice list'!A22 -> F84060 | C27: 4857 | D27: 67 | E27: 0.014 | F27: 56 | G27: 0.836 | H27: 16 | I27: 0.239 | J27: 1 | K27: 0.015 | L27: 6 | M27: 0.09 | N27: 35 | O27: 0.522 | P27: 5 | Q27: 0.143 | R27: 17 | S27: 0.254
A28: ='Practice list'!B23 -> The Lea Surgery | B28: ='Practice list'!A23 -> F84105 | C28: 11854 | D28: 121 | E28: 0.01 | F28: 103 | G28: 0.851 | H28: 36 | I28: 0.298 | J28: 5 | K28: 0.041 | L28: 10 | M28: 0.083 | N28: 66 | O28: 0.545 | P28: 18 | Q28: 0.273 | R28: 50 | S28: 0.413
A29: ='Practice list'!B24 -> Latimer Health Centre | B29: ='Practice list'!A24 -> F84719 | C29: 5242 | D29: 73 | E29: 0.014 | F29: 68 | G29: 0.932 | H29: 10 | I29: 0.137 | J29: 1 | K29: 0.014 | L29: 12 | M29: 0.164 | N29: 46 | O29: 0.63 | P29: 15 | Q29: 0.326 | R29: 29 | S29: 0.397
A30: ='Practice list'!B25 -> The Well Street Surgery | B30: ='Practice list'!A25 -> F84069 | C30: 14466 | D30: 280 | E30: 0.019 | F30: 229 | G30: 0.818 | H30: 101 | I30: 0.361 | J30: 2 | K30: 0.007 | L30: 22 | M30: 0.079 | N30: 144 | O30: 0.514 | P30: 30 | Q30: 0.208 | R30: 107 | S30: 0.382
A31: ='Practice list'!B26 -> Elsdale Street Surgery | B31: ='Practice list'!A26 -> F84601 | C31: 7177 | D31: 117 | E31: 0.016 | F31: 97 | G31: 0.829 | H31: 42 | I31: 0.359 | J31: 4 | K31: 0.034 | L31: 7 | M31: 0.06 | N31: 73 | O31: 0.624 | P31: 11 | Q31: 0.151 | R31: 17 | S31: 0.145
A32: ='Practice list'!B27 -> The Wick Health Centre | B32: ='Practice list'!A27 -> F84620 | C32: 7775 | D32: 137 | E32: 0.018 | F32: 101 | G32: 0.737 | H32: 38 | I32: 0.277 | J32: 9 | K32: 0.066 | L32: 10 | M32: 0.073 | N32: 70 | O32: 0.511 | P32: 14 | Q32: 0.2 | R32: 59 | S32: 0.431
A33: ='Practice list'!B28 -> The Greenhouse | B33: ='Practice list'!A28 -> F84632 | C33: 1253 | D33: 83 | E33: 0.066 | F33: 64 | G33: 0.771 | H33: 47 | I33: 0.566 | J33: 4 | K33: 0.048 | L33: 3 | M33: 0.036 | N33: 38 | O33: 0.458 | P33: 6 | Q33: 0.158 | R33: 26 | S33: 0.313
A34: ='Practice list'!B29 -> Trowbridge Surgery | B34: ='Practice list'!A29 -> Y00403 | C34: 7945 | D34: 91 | E34: 0.011 | F34: 82 | G34: 0.901 | H34: 28 | I34: 0.308 | J34: 1 | K34: 0.011 | L34: 16 | M34: 0.176 | N34: 52 | O34: 0.571 | P34: 12 | Q34: 0.231 | R34: 19 | S34: 0.209
A35: ='Practice list'!B30 -> London Fields Medical Centre | B35: ='Practice list'!A30 -> F84021 | C35: 11037 | D35: 170 | E35: 0.015 | F35: 132 | G35: 0.776 | H35: 57 | I35: 0.335 | J35: 2 | K35: 0.012 | L35: 17 | M35: 0.1 | N35: 87 | O35: 0.512 | P35: 13 | Q35: 0.149 | R35: 55 | S35: 0.324
A36: ='Practice list'!B31 -> Richmond Road Medical Centre | B36: ='Practice list'!A31 -> F84035 | C36: 18254 | D36: 142 | E36: 0.008 | F36: 126 | G36: 0.887 | H36: 27 | I36: 0.19 | J36: 4 | K36: 0.028 | L36: 15 | M36: 0.106 | N36: 51 | O36: 0.359 | P36: 6 | Q36: 0.118 | R36: 35 | S36: 0.246
A37: ='Practice list'!B32 -> Beechwood Medical Centre | B37: ='Practice list'!A32 -> F84038 | C37: 3899 | D37: 76 | E37: 0.019 | F37: 67 | G37: 0.882 | H37: 35 | I37: 0.461 | J37: 1 | K37: 0.013 | L37: 7 | M37: 0.092 | N37: 41 | O37: 0.539 | P37: 2 | Q37: 0.049 | R37: 22 | S37: 0.289
A38: ='Practice list'!B33 -> Dalston Practice | B38: ='Practice list'!A33 -> F84063 | C38: 6094 | D38: 101 | E38: 0.017 | F38: 73 | G38: 0.723 | H38: 24 | I38: 0.238 | J38: 2 | K38: 0.02 | L38: 9 | M38: 0.089 | N38: 57 | O38: 0.564 | P38: 15 | Q38: 0.263 | R38: 25 | S38: 0.248
A39: ='Practice list'!B34 -> Queensbridge Group Practice | B39: ='Practice list'!A34 -> F84117 | C39: 10838 | D39: 142 | E39: =IFERROR(D39/C39,"N/A") -> 0.013 | F39: 104 | G39: =IFERROR(F39/$D39,"N/A") -> 0.732 | H39: 35 | I39: =IFERROR(H39/$D39,"N/A") -> 0.246 | J39: 4 | K39: =IFERROR(J39/$D39,"N/A") -> 0.028 | L39: 12 | M39: =IFERROR(L39/$D39,"N/A") -> 0.085 | N39: 52 | O39: =IFERROR(N39/$D39,"N/A") -> 0.366 | P39: 9 | Q39: 0.173 | R39: 26 | S39: =IFERROR(R39/$D39,"N/A") -> 0.183
A40: ='Practice list'!B35 -> The Sandringham Practice | B40: ='Practice list'!A35 -> F84621 | C40: 4519 | D40: 94 | E40: 0.021 | F40: 82 | G40: 0.872 | H40: 43 | I40: 0.457 | J40: 8 | K40: 0.085 | L40: 7 | M40: 0.074 | N40: 62 | O40: 0.66 | P40: 11 | Q40: 0.177 | R40: 49 | S40: 0.521
A41: ='Practice list'!B36 -> The Neaman Practice | B41: ='Practice list'!A36 -> F84640 | C41: 9717 | D41: 84 | E41: 0.009 | F41: 64 | G41: 0.762 | H41: 13 | I41: 0.155 | J41: 1 | K41: 0.012 | L41: 7 | M41: 0.083 | N41: 28 | O41: 0.333 | P41: 6 | Q41: 0.214 | R41: 14 | S41: 0.167
A42: ='Practice list'!B38 -> De Beauvoir Surgery | B42: ='Practice list'!A38 -> F84072 | C42: 12342 | D42: 109 | E42: 0.009 | F42: 90 | G42: 0.826 | H42: 24 | I42: 0.22 | J42: 1 | K42: 0.009 | L42: 10 | M42: 0.092 | N42: 41 | O42: 0.376 | P42: 2 | Q42: 0.049 | R42: 23 | S42: 0.211
A43: ='Practice list'!B39 -> The Lawson Practice | B43: ='Practice list'!A39 -> F84096 | C43: 15593 | D43: 279 | E43: 0.018 | F43: 242 | G43: 0.867 | H43: 102 | I43: 0.366 | J43: 9 | K43: 0.032 | L43: 29 | M43: 0.104 | N43: 163 | O43: 0.584 | P43: 22 | Q43: 0.135 | R43: 102 | S43: 0.366
A44: ='Practice list'!B40 -> Shoreditch Park Surgery | B44: ='Practice list'!A40 -> F84635 | C44: 9200 | D44: 122 | E44: 0.013 | F44: 103 | G44: 0.844 | H44: 37 | I44: 0.303 | J44: 3 | K44: 0.025 | L44: 10 | M44: 0.082 | N44: 62 | O44: 0.508 | P44: 10 | Q44: 0.161 | R44: 44 | S44: 0.361
A45: ='Practice list'!B41 -> The Hoxton Surgery | B45: ='Practice list'!A41 -> F84692 | C45: 9173 | D45: 96 | E45: =IFERROR(D45/C45,"N/A") -> 0.01 | F45: 80 | G45: =IFERROR(F45/$D45,"N/A") -> 0.833 | H45: 35 | I45: =IFERROR(H45/$D45,"N/A") -> 0.365 | J45: 2 | K45: =IFERROR(J45/$D45,"N/A") -> 0.021 | L45: 7 | M45: =IFERROR(L45/$D45,"N/A") -> 0.073 | N45: 40 | O45: =IFERROR(N45/$D45,"N/A") -> 0.417 | P45: 6 | Q45: =IFERROR(P45/$N45,"N/A") -> 0.15 | R45: 25 | S45: =IFERROR(R45/$D45,"N/A") -> 0.26

Sheet CKD
C1: 01. Listsize | D1: =INDEX('Control Panel'!$B$125:$B$136,COLUMN(D1)-COLUMN($D$1)+1) -> LDP.08 CKD Register | E1: =INDEX('Control Panel'!$B$125:$B$136,COLUMN(E1)-COLUMN($D$1)+1) -> %LDP.08 CKD Register | F1: =INDEX('Control Panel'!$B$125:$B$136,COLUMN(F1)-COLUMN($D$1)+1) -> LDP.08.03 CKD and BP Recorded (last 12 m) | G1: =INDEX('Control Panel'!$B$125:$B$136,COLUMN(G1)-COLUMN($D$1)+1) -> %LDP.08.03 CKD and BP Recorded (last 12 m) | H1: =INDEX('Control Panel'!$B$125:$B$136,COLUMN(H1)-COLUMN($D$1)+1) -> LDP.08.01 CKD and BP less than 140/90 (last 12 m) | I1: =INDEX('Control Panel'!$B$125:$B$136,COLUMN(I1)-COLUMN($D$1)+1) -> %LDP.08.01 CKD and BP less than 140/90 (last 12 m) | J1: =INDEX('Control Panel'!$B$125:$B$136,COLUMN(J1)-COLUMN($D$1)+1) -> LDP.08.02 CKD Diagnosed (Last 6m) | K1: =INDEX('Control Panel'!$B$125:$B$136,COLUMN(K1)-COLUMN($D$1)+1) -> %LDP.08.02 CKD Diagnosed (Last 6m)
C2: City and Hackney - Practice Clinical Trends (LDP) Report
B3: =VLOOKUP(C3,'Control Panel'!O16:P27,2,FALSE) -> 2023-04-01 | C3: March 2023 | D3: =VLOOKUP(C3,'Control Panel'!O16:P27,2,FALSE) -> 2023-04-01
B4: 2019-07-01 | C4: ='Control Panel'!B124 -> CKD
A5: Home | B5: 2019-10-01 | C5: =VLOOKUP(C1,'Control Panel'!$B$3:$C$132,2,FALSE) -> List Size | D5: =VLOOKUP(D1,'Control Panel'!$B$3:$D$132,3,FALSE) -> No. of patients on CKD register | E5: =VLOOKUP(E1,'Control Panel'!$B$3:$D$132,3,FALSE) -> % List Size | F5: =VLOOKUP(F1,'Control Panel'!$B$3:$D$132,3,FALSE) -> BP Recorded (last 12m) | G5: =VLOOKUP(G1,'Control Panel'!$B$3:$D$132,3,FALSE) -> % CKD register | H5: =VLOOKUP(H1,'Control Panel'!$B$3:$D$132,3,FALSE) -> BP < 140/90 | I5: =VLOOKUP(I1,'Control Panel'!$B$3:$D$132,3,FALSE) -> % CKD register | J5: =VLOOKUP(J1,'Control Panel'!$B$3:$D$132,3,FALSE) -> No of patients with new diagnosis of CKD (last 6m) | K5: =VLOOKUP(K1,'Control Panel'!$B$3:$D$132,3,FALSE) -> % CKD register
A6: Practice Name | B6: Total | C6: =SUM(C7:C45) -> 342422 | D6: =SUM(D7:D45) -> 5370 | E6: =IFERROR(D6/C6,"N/A") -> 0.016 | F6: =SUM(F7:F45) -> 4913 | G6: =IFERROR(F6/D6,"N/A") -> 0.915 | H6: =SUM(H7:H45) -> 3778 | I6: =IFERROR(H6/D6,"N/A") -> 0.704 | J6: =SUM(J7:J45) -> 321 | K6: =IFERROR(J6/D6,"N/A") -> 0.06
A7: ='Practice list'!B2 -> Stamford Hill Surgery | B7: ='Practice list'!A2 -> F84013 | C7: =SUMIFS(OFFSET(REL_D,,MATCH(C$1,IND,0)-2),REL_D,$D$3,OrgID,$B7) -> 17332 | D7: 162 | E7: =IFERROR(D7/C7,"N/A") -> 0.009 | F7: =SUMIFS(OFFSET(REL_D,,MATCH(F$1,IND,0)-2),REL_D,$D$3,OrgID,$B7) -> 155 | G7: =IFERROR(F7/$D7,"N/A") -> 0.957 | H7: =SUMIFS(OFFSET(REL_D,,MATCH(H$1,IND,0)-2),REL_D,$D$3,OrgID,$B7) -> 129 | I7: =IFERROR(H7/$D7,"N/A") -> 0.796 | J7: =SUMIFS(OFFSET(REL_D,,MATCH(J$1,IND,0)-2),REL_D,$D$3,OrgID,$B7) -> 9 | K7: =IFERROR(J7/$D7,"N/A") -> 0.056
A8: ='Practice list'!B3 -> Cranwich Road Surgery | B8: ='Practice list'!A3 -> F84686 | C8: 8631 | D8: 44 | E8: 0.005 | F8: 41 | G8: 0.932 | H8: 33 | I8: 0.75 | J8: 1 | K8: 0.023
A9: ='Practice list'!B4 -> Spring Hill Practice | B9: ='Practice list'!A4 -> Y03049 | C9: 15378 | D9: 207 | E9: 0.013 | F9: 198 | G9: 0.957 | H9: 163 | I9: 0.787 | J9: 15 | K9: 0.072
A10: ='Practice list'!B5 -> The Nightingale Practice | B10: ='Practice list'!A5 -> F84018 | C10: 12215 | D10: 213 | E10: 0.017 | F10: 206 | G10: 0.967 | H10: 159 | I10: 0.746 | J10: 28 | K10: 0.131
A11: ='Practice list'!B6 -> The Gadvhi Practice | B11: ='Practice list'!A6 -> F84080 | C11: 5192 | D11: 91 | E11: 0.018 | F11: 83 | G11: 0.912 | H11: 50 | I11: 0.549 | J11: 3 | K11: 0.033
A12: ='Practice list'!B7 -> The Riverside Practice | B12: ='Practice list'!A7 -> F84619 | C12: 4964 | D12: 102 | E12: 0.021 | F12: 98 | G12: 0.961 | H12: 72 | I12: 0.706 | J12: 14 | K12: 0.137
A13: ='Practice list'!B8 -> Clapton Surgery | B13: ='Practice list'!A8 -> F84668 | C13: 6247 | D13: 83 | E13: 0.013 | F13: 78 | G13: 0.94 | H13: 68 | I13: 0.819 | J13: 1 | K13: 0.012
A14: ='Practice list'!B9 -> Elm Practice | B14: ='Practice list'!A9 -> F84685 | C14: 3072 | D14: 46 | E14: 0.015 | F14: 42 | G14: 0.913 | H14: 34 | I14: 0.739 | J14: 3 | K14: 0.065
A15: ='Practice list'!B10 -> Rosewood Practice | B15: ='Practice list'!A10 -> F84711 | C15: 1840 | D15: 39 | E15: 0.021 | F15: 39 | G15: 1 | H15: 27 | I15: 0.692 | J15: 3 | K15: 0.077
A16: ='Practice list'!B11 -> Healy Medical Centre | B16: ='Practice list'!A11 -> F84720 | C16: 5720 | D16: 122 | E16: 0.021 | F16: 107 | G16: 0.877 | H16: 86 | I16: 0.705 | J16: 1 | K16: 0.008
A17: ='Practice list'!B12 -> Cedar Practice | B17: ='Practice list'!A12 -> F84036 | C17: 8044 | D17: 128 | E17: 0.016 | F17: 121 | G17: 0.945 | H17: 92 | I17: 0.719 | J17: 13 | K17: 0.102
A18: ='Practice list'!B13 -> Statham Grove Surgery | B18: ='Practice list'!A13 -> F84115 | C18: 8492 | D18: 103 | E18: 0.012 | F18: 90 | G18: 0.874 | H18: 64 | I18: 0.621 | J18: 11 | K18: 0.107
A19: ='Practice list'!B14 -> The Heron Practice | B19: ='Practice list'!A14 -> F84119 | C19: 12311 | D19: 161 | E19: 0.013 | F19: 145 | G19: 0.901 | H19: 123 | I19: 0.764 | J19: 2 | K19: 0.012
A20: ='Practice list'!B15 -> Allerton Road Medical Centre | B20: ='Practice list'!A15 -> F84716 | C20: 6025 | D20: 88 | E20: 0.015 | F20: 83 | G20: 0.943 | H20: 61 | I20: 0.693 | J20: 0 | K20: 0
A21: ='Practice list'!B16 -> Barton House Health Centre | B21: ='Practice list'!A16 -> F84008 | C21: 12101 | D21: 249 | E21: 0.021 | F21: 233 | G21: 0.936 | H21: 170 | I21: 0.683 | J21: 25 | K21: 0.1
A22: ='Practice list'!B17 -> Somerford Grove Practice | B22: ='Practice list'!A17 -> F84033 | C22: 11952 | D22: 242 | E22: 0.02 | F22: 218 | G22: 0.901 | H22: 187 | I22: 0.773 | J22: 11 | K22: 0.045
A23: ='Practice list'!B18 -> Barretts Grove Surgery | B23: ='Practice list'!A18 -> F84636 | C23: 6672 | D23: 81 | E23: 0.012 | F23: 74 | G23: 0.914 | H23: 56 | I23: 0.691 | J23: 4 | K23: 0.049
A24: ='Practice list'!B19 -> Brooke Road Surgery | B24: ='Practice list'!A19 -> F84694 | C24: 4726 | D24: 72 | E24: 0.015 | F24: 69 | G24: 0.958 | H24: 52 | I24: 0.722 | J24: 22 | K24: 0.306
A25: ='Practice list'!B20 -> Lower Clapton Group Practice | B25: ='Practice list'!A20 -> F84003 | C25: =SUMIFS(OFFSET(REL_D,,MATCH(C$1,IND,0)-2),REL_D,$D$3,OrgID,$B25) -> 14915 | D25: 248 | E25: 0.017 | F25: 233 | G25: 0.94 | H25: 184 | I25: 0.742 | J25: 12 | K25: 0.048
A26: ='Practice list'!B21 -> Kingsmead Healthcare | B26: ='Practice list'!A21 -> F84015 | C26: 5358 | D26: 240 | E26: 0.045 | F26: 223 | G26: 0.929 | H26: 169 | I26: 0.704 | J26: 0 | K26: 0
A27: ='Practice list'!B22 -> Athena Medical Centre | B27: ='Practice list'!A22 -> F84060 | C27: 4857 | D27: 118 | E27: 0.024 | F27: 101 | G27: 0.856 | H27: 69 | I27: 0.585 | J27: 6 | K27: 0.051
A28: ='Practice list'!B23 -> The Lea Surgery | B28: ='Practice list'!A23 -> F84105 | C28: 11854 | D28: 233 | E28: 0.02 | F28: 207 | G28: 0.888 | H28: 148 | I28: 0.635 | J28: 22 | K28: 0.094
A29: ='Practice list'!B24 -> Latimer Health Centre | B29: ='Practice list'!A24 -> F84719 | C29: 5242 | D29: 81 | E29: 0.015 | F29: 74 | G29: 0.914 | H29: 61 | I29: 0.753 | J29: 3 | K29: 0.037
A30: ='Practice list'!B25 -> The Well Street Surgery | B30: ='Practice list'!A25 -> F84069 | C30: 14466 | D30: 220 | E30: 0.015 | F30: 194 | G30: 0.882 | H30: 139 | I30: 0.632 | J30: 10 | K30: 0.045
A31: ='Practice list'!B26 -> Elsdale Street Surgery | B31: ='Practice list'!A26 -> F84601 | C31: 7177 | D31: 135 | E31: 0.019 | F31: 131 | G31: 0.97 | H31: 100 | I31: 0.741 | J31: 16 | K31: 0.119
A32: ='Practice list'!B27 -> The Wick Health Centre | B32: ='Practice list'!A27 -> F84620 | C32: 7775 | D32: 226 | E32: 0.029 | F32: 211 | G32: 0.934 | H32: 166 | I32: 0.735 | J32: 23 | K32: 0.102
A33: ='Practice list'!B28 -> The Greenhouse | B33: ='Practice list'!A28 -> F84632 | C33: 1253 | D33: 15 | E33: 0.012 | F33: 14 | G33: 0.933 | H33: 6 | I33: 0.4 | J33: 2 | K33: 0.133
A34: ='Practice list'!B29 -> Trowbridge Surgery | B34: ='Practice list'!A29 -> Y00403 | C34: 7945 | D34: 73 | E34: 0.009 | F34: 66 | G34: 0.904 | H34: 53 | I34: 0.726 | J34: 7 | K34: 0.096
A35: ='Practice list'!B30 -> London Fields Medical Centre | B35: ='Practice list'!A30 -> F84021 | C35: 11037 | D35: 205 | E35: 0.019 | F35: 190 | G35: 0.927 | H35: 149 | I35: 0.727 | J35: 9 | K35: 0.044
A36: ='Practice list'!B31 -> Richmond Road Medical Centre | B36: ='Practice list'!A31 -> F84035 | C36: 18254 | D36: 115 | E36: 0.006 | F36: 105 | G36: 0.913 | H36: 80 | I36: 0.696 | J36: 4 | K36: 0.035
A37: ='Practice list'!B32 -> Beechwood Medical Centre | B37: ='Practice list'!A32 -> F84038 | C37: 3899 | D37: 37 | E37: 0.009 | F37: 35 | G37: 0.946 | H37: 25 | I37: 0.676 | J37: 0 | K37: 0
A38: ='Practice list'!B33 -> Dalston Practice | B38: ='Practice list'!A33 -> F84063 | C38: 6094 | D38: 138 | E38: 0.023 | F38: 130 | G38: 0.942 | H38: 100 | I38: 0.725 | J38: 3 | K38: 0.022
A39: ='Practice list'!B34 -> Queensbridge Group Practice | B39: ='Practice list'!A34 -> F84117 | C39: 10838 | D39: 137 | E39: =IFERROR(D39/C39,"N/A") -> 0.013 | F39: 120 | G39: =IFERROR(F39/$D39,"N/A") -> 0.876 | H39: 96 | I39: =IFERROR(H39/$D39,"N/A") -> 0.701 | J39: 7 | K39: =IFERROR(J39/$D39,"N/A") -> 0.051
A40: ='Practice list'!B35 -> The Sandringham Practice | B40: ='Practice list'!A35 -> F84621 | C40: 4519 | D40: 121 | E40: 0.027 | F40: 105 | G40: 0.868 | H40: 79 | I40: 0.653 | J40: 5 | K40: 0.041
A41: ='Practice list'!B36 -> The Neaman Practice | B41: ='Practice list'!A36 -> F84640 | C41: 9717 | D41: 241 | E41: 0.025 | F41: 191 | G41: 0.793 | H41: 154 | I41: 0.639 | J41: 8 | K41: 0.033
A42: ='Practice list'!B38 -> De Beauvoir Surgery | B42: ='Practice list'!A38 -> F84072 | C42: 12342 | D42: 91 | E42: 0.007 | F42: 85 | G42: 0.934 | H42: 58 | I42: 0.637 | J42: 8 | K42: 0.088
A43: ='Practice list'!B39 -> The Lawson Practice | B43: ='Practice list'!A39 -> F84096 | C43: 15593 | D43: 295 | E43: 0.019 | F43: 263 | G43: 0.892 | H43: 199 | I43: 0.675 | J43: 3 | K43: 0.01
A44: ='Practice list'!B40 -> Shoreditch Park Surgery | B44: ='Practice list'!A40 -> F84635 | C44: 9200 | D44: 102 | E44: 0.011 | F44: 93 | G44: 0.912 | H44: 70 | I44: 0.686 | J44: 7 | K44: 0.069
A45: ='Practice list'!B41 -> The Hoxton Surgery | B45: ='Practice list'!A41 -> F84692 | C45: 9173 | D45: 66 | E45: =IFERROR(D45/C45,"N/A") -> 0.007 | F45: 62 | G45: =IFERROR(F45/$D45,"N/A") -> 0.939 | H45: 47 | I45: =IFERROR(H45/$D45,"N/A") -> 0.712 | J45: 0 | K45: =IFERROR(J45/$D45,"N/A") -> 0

Sheet COPD
C1: 01. Listsize | D1: LDP.09 COPD Register | E1: ="%"&D1 -> %LDP.09 COPD Register | F1: LDP.09.01 Patients with severe or very severe COPD (FEV1<50) | G1: ="%"&F1 -> %LDP.09.01 Patients with severe or very severe COPD (FEV1<50) | H1: LDP.09.02 Patients with smoking status recorded (last 12m) or never smoked | I1: ="%"&H1 -> %LDP.09.02 Patients with smoking status recorded (last 12m) or never smoked | J1: LDP.09.03 COPD patients recorded as a Smoker | K1: ="%"&J1 -> %LDP.09.03 COPD patients recorded as a Smoker | L1: LDP.09.04 COPD Patients who are current smokers & referred to the Stop Smoking C | M1: ="%"&L1 -> %LDP.09.04 COPD Patients who are current smokers & referred to the Stop Smoking C | N1: LDP.09.05 No of COPD with flu vaccination (From August 2018) | O1: ="%"&N1 -> %LDP.09.05 No of COPD with flu vaccination (From August 2018) | P1: LDP.09.06 No of COPD with pneumococcal vaccination ever | Q1: ="%"&P1 -> %LDP.09.06 No of COPD with pneumococcal vaccination ever | R1: LDP.09.07 No of COPD patients referred to pulmonary rehab ever | S1: ="%"&R1 -> %LDP.09.07 No of COPD patients referred to pulmonary rehab ever
C2: City and Hackney - Practice Clinical Trends (LDP) Report
B3: =VLOOKUP(C3,'Control Panel'!O16:P27,2,FALSE) -> 2023-04-01 | C3: March 2023 | D3: =VLOOKUP(C3,'Control Panel'!O16:P27,2,FALSE) -> 2023-04-01
B4: 2019-07-01 | C4: ='Control Panel'!B133 -> COPD | D4: 1 | E4: 2 | F4: 3 | G4: 4 | H4: 5 | I4: 6 | J4: 7 | K4: 8 | L4: 9 | M4: 10 | N4: 11 | O4: 12 | P4: 13 | Q4: 14 | R4: 15 | S4: 16
A5: Home | B5: 2019-10-01 | C5: List Size | D5: No. of patients on COPD register | E5: % List Size | F5: No of patients with severe or very severe COPD (FEV1<50) | G5: % COPD register | H5: No. of COPD Patients with smoking status recorded (last 12m) or never smoked | I5: % COPD | J5: No. of COPD patients recorded as a Smoker | K5: % COPD | L5: No. of COPD Patients who are current smokers & referred to the Stop Smoking Clinic (12m) | M5: % of current COPD smokers | N5: No of COPD with flu vaccination (From August 2022) | O5: % of COPD register | P5: No of COPD with pneumococcal vaccination ever | Q5: % of COPD register | R5: No of COPD patients referred to pulmonary rehab ever | S5: % of COPD register
A6: Practice Name | B6: Total | C6: =SUM(C7:C45) -> 342422 | D6: =SUM(D7:D45) -> 3381 | E6: =IFERROR(D6/C6,"N/A") -> 0.01 | F6: =SUM(F7:F45) -> 661 | G6: =IFERROR(F6/D6,"N/A") -> 0.196 | H6: =SUM(H7:H45) -> 3125 | I6: =IFERROR(H6/D6,"N/A") -> 0.924 | J6: =SUM(J7:J45) -> 1324 | K6: =IFERROR(J6/D6,"N/A") -> 0.392 | L6: =SUM(L7:L45) -> 111 | M6: =IFERROR(L6/J6,"N/A") -> 0.084 | N6: =SUM(N7:N45) -> 2315 | O6: =IFERROR(N6/D6,"N/A") -> 0.685 | P6: =SUM(P7:P45) -> 2429 | Q6: =IFERROR(P6/D6,"N/A") -> 0.718 | R6: =SUM(R7:R45) -> 2660 | S6: =IFERROR(R6/D6,"N/A") -> 0.787
A7: ='Practice list'!B2 -> Stamford Hill Surgery | B7: ='Practice list'!A2 -> F84013 | C7: =SUMIFS(OFFSET(REL_D,,MATCH(C$1,IND,0)-2),REL_D,$D$3,OrgID,$B7) -> 17332 | D7: 75 | E7: =IFERROR(D7/C7,"N/A") -> 0.004 | F7: =SUMIFS(OFFSET(REL_D,,MATCH(F$1,IND,0)-2),REL_D,$D$3,OrgID,$B7) -> 13 | G7: =IFERROR(F7/$D7,"N/A") -> 0.173 | H7: =SUMIFS(OFFSET(REL_D,,MATCH(H$1,IND,0)-2),REL_D,$D$3,OrgID,$B7) -> 72 | I7: =IFERROR(H7/$D7,"N/A") -> 0.96 | J7: =SUMIFS(OFFSET(REL_D,,MATCH(J$1,IND,0)-2),REL_D,$D$3,OrgID,$B7) -> 33 | K7: =IFERROR(J7/$D7,"N/A") -> 0.44 | L7: =SUMIFS(OFFSET(REL_D,,MATCH(L$1,IND,0)-2),REL_D,$D$3,OrgID,$B7) -> 2 | M7: =IFERROR(L7/$J7,"N/A") -> 0.061 | N7: =SUMIFS(OFFSET(REL_D,,MATCH(N$1,IND,0)-2),REL_D,$D$3,OrgID,$B7) -> 54 | O7: =IFERROR(N7/$D7,"N/A") -> 0.72 | P7: =SUMIFS(OFFSET(REL_D,,MATCH(P$1,IND,0)-2),REL_D,$D$3,OrgID,$B7) -> 61 | Q7: =IFERROR(P7/$D7,"N/A") -> 0.813 | R7: =SUMIFS(OFFSET(REL_D,,MATCH(R$1,IND,0)-2),REL_D,$D$3,OrgID,$B7) -> 53 | S7: =IFERROR(R7/$D7,"N/A") -> 0.707
A8: ='Practice list'!B3 -> Cranwich Road Surgery | B8: ='Practice list'!A3 -> F84686 | C8: 8631 | D8: 8 | E8: 0.001 | F8: 1 | G8: 0.125 | H8: 8 | I8: 1 | J8: 2 | K8: 0.25 | L8: 0 | M8: 0 | N8: 5 | O8: =IFERROR(N8/$D8,"N/A") -> 0.625 | P8: 7 | Q8: =IFERROR(P8/$D8,"N/A") -> 0.875 | R8: 7 | S8: =IFERROR(R8/$D8,"N/A") -> 0.875
A9: ='Practice list'!B4 -> Spring Hill Practice | B9: ='Practice list'!A4 -> Y03049 | C9: 15378 | D9: 111 | E9: 0.007 | F9: 22 | G9: 0.198 | H9: 103 | I9: 0.928 | J9: 54 | K9: 0.486 | L9: 12 | M9: 0.222 | N9: 70 | O9: =IFERROR(N9/$D9,"N/A") -> 0.631 | P9: 69 | Q9: =IFERROR(P9/$D9,"N/A") -> 0.622 | R9: 85 | S9: =IFERROR(R9/$D9,"N/A") -> 0.766
A10: ='Practice list'!B5 -> The Nightingale Practice | B10: ='Practice list'!A5 -> F84018 | C10: 12215 | D10: 119 | E10: 0.01 | F10: 24 | G10: 0.202 | H10: 111 | I10: 0.933 | J10: 52 | K10: 0.437 | L10: 3 | M10: 0.058 | N10: 83 | O10: =IFERROR(N10/$D10,"N/A") -> 0.697 | P10: 85 | Q10: =IFERROR(P10/$D10,"N/A") -> 0.714 | R10: 89 | S10: =IFERROR(R10/$D10,"N/A") -> 0.748
A11: ='Practice list'!B6 -> The Gadvhi Practice | B11: ='Practice list'!A6 -> F84080 | C11: 5192 | D11: 68 | E11: 0.013 | F11: 17 | G11: 0.25 | H11: 60 | I11: 0.882 | J11: 21 | K11: 0.309 | L11: 2 | M11: 0.095 | N11: 43 | O11: =IFERROR(N11/$D11,"N/A") -> 0.632 | P11: 49 | Q11: =IFERROR(P11/$D11,"N/A") -> 0.721 | R11: 56 | S11: =IFERROR(R11/$D11,"N/A") -> 0.824
A12: ='Practice list'!B7 -> The Riverside Practice | B12: ='Practice list'!A7 -> F84619 | C12: 4964 | D12: 27 | E12: 0.005 | F12: 5 | G12: 0.185 | H12: 27 | I12: 1 | J12: 9 | K12: 0.333 | L12: 1 | M12: 0.111 | N12: 24 | O12: =IFERROR(N12/$D12,"N/A") -> 0.889 | P12: 20 | Q12: =IFERROR(P12/$D12,"N/A") -> 0.741 | R12: 27 | S12: =IFERROR(R12/$D12,"N/A") -> 1
A13: ='Practice list'!B8 -> Clapton Surgery | B13: ='Practice list'!A8 -> F84668 | C13: 6247 | D13: 22 | E13: 0.004 | F13: 4 | G13: 0.182 | H13: 21 | I13: 0.955 | J13: 10 | K13: 0.455 | L13: 0 | M13: 0 | N13: 17 | O13: =IFERROR(N13/$D13,"N/A") -> 0.773 | P13: 20 | Q13: =IFERROR(P13/$D13,"N/A") -> 0.909 | R13: 19 | S13: =IFERROR(R13/$D13,"N/A") -> 0.864
A14: ='Practice list'!B9 -> Elm Practice | B14: ='Practice list'!A9 -> F84685 | C14: 3072 | D14: 31 | E14: 0.01 | F14: 6 | G14: 0.194 | H14: 30 | I14: 0.968 | J14: 15 | K14: 0.484 | L14: 0 | M14: 0 | N14: 21 | O14: =IFERROR(N14/$D14,"N/A") -> 0.677 | P14: 16 | Q14: =IFERROR(P14/$D14,"N/A") -> 0.516 | R14: 27 | S14: =IFERROR(R14/$D14,"N/A") -> 0.871
A15: ='Practice list'!B10 -> Rosewood Practice | B15: ='Practice list'!A10 -> F84711 | C15: 1840 | D15: 26 | E15: 0.014 | F15: 8 | G15: 0.308 | H15: 26 | I15: 1 | J15: 7 | K15: 0.269 | L15: 0 | M15: 0 | N15: 25 | O15: =IFERROR(N15/$D15,"N/A") -> 0.962 | P15: 26 | Q15: =IFERROR(P15/$D15,"N/A") -> 1 | R15: 14 | S15: =IFERROR(R15/$D15,"N/A") -> 0.538
A16: ='Practice list'!B11 -> Healy Medical Centre | B16: ='Practice list'!A11 -> F84720 | C16: 5720 | D16: 76 | E16: 0.013 | F16: 12 | G16: 0.158 | H16: 68 | I16: 0.895 | J16: 26 | K16: 0.342 | L16: 0 | M16: 0 | N16: 54 | O16: =IFERROR(N16/$D16,"N/A") -> 0.711 | P16: 50 | Q16: =IFERROR(P16/$D16,"N/A") -> 0.658 | R16: 64 | S16: =IFERROR(R16/$D16,"N/A") -> 0.842
A17: ='Practice list'!B12 -> Cedar Practice | B17: ='Practice list'!A12 -> F84036 | C17: 8044 | D17: 93 | E17: 0.012 | F17: 21 | G17: 0.226 | H17: 86 | I17: 0.925 | J17: 36 | K17: 0.387 | L17: 1 | M17: 0.028 | N17: 58 | O17: =IFERROR(N17/$D17,"N/A") -> 0.624 | P17: 71 | Q17: =IFERROR(P17/$D17,"N/A") -> 0.763 | R17: 75 | S17: =IFERROR(R17/$D17,"N/A") -> 0.806
A18: ='Practice list'!B13 -> Statham Grove Surgery | B18: ='Practice list'!A13 -> F84115 | C18: 8492 | D18: 118 | E18: 0.014 | F18: 23 | G18: 0.195 | H18: 106 | I18: 0.898 | J18: 45 | K18: 0.381 | L18: 0 | M18: 0 | N18: 89 | O18: =IFERROR(N18/$D18,"N/A") -> 0.754 | P18: 92 | Q18: =IFERROR(P18/$D18,"N/A") -> 0.78 | R18: 104 | S18: =IFERROR(R18/$D18,"N/A") -> 0.881
A19: ='Practice list'!B14 -> The Heron Practice | B19: ='Practice list'!A14 -> F84119 | C19: 12311 | D19: 141 | E19: 0.011 | F19: 24 | G19: 0.17 | H19: 130 | I19: 0.922 | J19: 55 | K19: 0.39 | L19: 4 | M19: 0.073 | N19: 89 | O19: =IFERROR(N19/$D19,"N/A") -> 0.631 | P19: 98 | Q19: =IFERROR(P19/$D19,"N/A") -> 0.695 | R19: 114 | S19: =IFERROR(R19/$D19,"N/A") -> 0.809
A20: ='Practice list'!B15 -> Allerton Road Medical Centre | B20: ='Practice list'!A15 -> F84716 | C20: 6025 | D20: 49 | E20: 0.008 | F20: 10 | G20: 0.204 | H20: 49 | I20: 1 | J20: 14 | K20: 0.286 | L20: 1 | M20: 0.071 | N20: 32 | O20: =IFERROR(N20/$D20,"N/A") -> 0.653 | P20: 41 | Q20: =IFERROR(P20/$D20,"N/A") -> 0.837 | R20: 27 | S20: =IFERROR(R20/$D20,"N/A") -> 0.551
A21: ='Practice list'!B16 -> Barton House Health Centre | B21: ='Practice list'!A16 -> F84008 | C21: 12101 | D21: 168 | E21: 0.014 | F21: 39 | G21: 0.232 | H21: 159 | I21: 0.946 | J21: 65 | K21: 0.387 | L21: 6 | M21: 0.092 | N21: 119 | O21: =IFERROR(N21/$D21,"N/A") -> 0.708 | P21: 129 | Q21: =IFERROR(P21/$D21,"N/A") -> 0.768 | R21: 146 | S21: =IFERROR(R21/$D21,"N/A") -> 0.869
A22: ='Practice list'!B17 -> Somerford Grove Practice | B22: ='Practice list'!A17 -> F84033 | C22: 11952 | D22: 117 | E22: 0.01 | F22: 23 | G22: 0.197 | H22: 116 | I22: 0.991 | J22: 56 | K22: 0.479 | L22: 2 | M22: 0.036 | N22: 91 | O22: =IFERROR(N22/$D22,"N/A") -> 0.778 | P22: 96 | Q22: =IFERROR(P22/$D22,"N/A") -> 0.821 | R22: 104 | S22: =IFERROR(R22/$D22,"N/A") -> 0.889
A23: ='Practice list'!B18 -> Barretts Grove Surgery | B23: ='Practice list'!A18 -> F84636 | C23: 6672 | D23: 28 | E23: 0.004 | F23: 4 | G23: 0.143 | H23: 26 | I23: 0.929 | J23: 11 | K23: 0.393 | L23: 2 | M23: 0.182 | N23: 21 | O23: =IFERROR(N23/$D23,"N/A") -> 0.75 | P23: 21 | Q23: =IFERROR(P23/$D23,"N/A") -> 0.75 | R23: 17 | S23: =IFERROR(R23/$D23,"N/A") -> 0.607
A24: ='Practice list'!B19 -> Brooke Road Surgery | B24: ='Practice list'!A19 -> F84694 | C24: 4726 | D24: 24 | E24: 0.005 | F24: 2 | G24: 0.083 | H24: 24 | I24: 1 | J24: 13 | K24: 0.542 | L24: 1 | M24: 0.077 | N24: 14 | O24: =IFERROR(N24/$D24,"N/A") -> 0.583 | P24: 16 | Q24: =IFERROR(P24/$D24,"N/A") -> 0.667 | R24: 19 | S24: =IFERROR(R24/$D24,"N/A") -> 0.792
A25: ='Practice list'!B20 -> Lower Clapton Group Practice | B25: ='Practice list'!A20 -> F84003 | C25: =SUMIFS(OFFSET(REL_D,,MATCH(C$1,IND,0)-2),REL_D,$D$3,OrgID,$B25) -> 14915 | D25: 222 | E25: 0.015 | F25: 48 | G25: 0.216 | H25: 205 | I25: 0.923 | J25: 93 | K25: 0.419 | L25: 11 | M25: 0.118 | N25: 134 | O25: =IFERROR(N25/$D25,"N/A") -> 0.604 | P25: 138 | Q25: =IFERROR(P25/$D25,"N/A") -> 0.622 | R25: 198 | S25: =IFERROR(R25/$D25,"N/A") -> 0.892
A26: ='Practice list'!B21 -> Kingsmead Healthcare | B26: ='Practice list'!A21 -> F84015 | C26: 5358 | D26: 81 | E26: 0.015 | F26: 14 | G26: 0.173 | H26: 79 | I26: 0.975 | J26: 30 | K26: 0.37 | L26: 1 | M26: 0.033 | N26: 54 | O26: =IFERROR(N26/$D26,"N/A") -> 0.667 | P26: 59 | Q26: =IFERROR(P26/$D26,"N/A") -> 0.728 | R26: 67 | S26: =IFERROR(R26/$D26,"N/A") -> 0.827
A27: ='Practice list'!B22 -> Athena Medical Centre | B27: ='Practice list'!A22 -> F84060 | C27: 4857 | D27: 32 | E27: 0.007 | F27: 7 | G27: 0.219 | H27: 27 | I27: 0.844 | J27: 6 | K27: 0.188 | L27: 0 | M27: 0 | N27: 24 | O27: =IFERROR(N27/$D27,"N/A") -> 0.75 | P27: 22 | Q27: =IFERROR(P27/$D27,"N/A") -> 0.688 | R27: 28 | S27: =IFERROR(R27/$D27,"N/A") -> 0.875
A28: ='Practice list'!B23 -> The Lea Surgery | B28: ='Practice list'!A23 -> F84105 | C28: 11854 | D28: 100 | E28: 0.008 | F28: 21 | G28: 0.21 | H28: 93 | I28: 0.93 | J28: 28 | K28: 0.28 | L28: 1 | M28: 0.036 | N28: 71 | O28: =IFERROR(N28/$D28,"N/A") -> 0.71 | P28: 66 | Q28: =IFERROR(P28/$D28,"N/A") -> 0.66 | R28: 93 | S28: =IFERROR(R28/$D28,"N/A") -> 0.93
A29: ='Practice list'!B24 -> Latimer Health Centre | B29: ='Practice list'!A24 -> F84719 | C29: 5242 | D29: 88 | E29: 0.017 | F29: 18 | G29: 0.205 | H29: 85 | I29: 0.966 | J29: 28 | K29: 0.318 | L29: 3 | M29: 0.107 | N29: 75 | O29: =IFERROR(N29/$D29,"N/A") -> 0.852 | P29: 77 | Q29: =IFERROR(P29/$D29,"N/A") -> 0.875 | R29: 86 | S29: =IFERROR(R29/$D29,"N/A") -> 0.977
A30: ='Practice list'!B25 -> The Well Street Surgery | B30: ='Practice list'!A25 -> F84069 | C30: 14466 | D30: 228 | E30: 0.016 | F30: 38 | G30: 0.167 | H30: 200 | I30: 0.877 | J30: 94 | K30: 0.412 | L30: 3 | M30: 0.032 | N30: 159 | O30: =IFERROR(N30/$D30,"N/A") -> 0.697 | P30: 172 | Q30: =IFERROR(P30/$D30,"N/A") -> 0.754 | R30: 191 | S30: =IFERROR(R30/$D30,"N/A") -> 0.838
A31: ='Practice list'!B26 -> Elsdale Street Surgery | B31: ='Practice list'!A26 -> F84601 | C31: 7177 | D31: 85 | E31: 0.012 | F31: 20 | G31: 0.235 | H31: 81 | I31: 0.953 | J31: 29 | K31: 0.341 | L31: 1 | M31: 0.034 | N31: 52 | O31: =IFERROR(N31/$D31,"N/A") -> 0.612 | P31: 50 | Q31: =IFERROR(P31/$D31,"N/A") -> 0.588 | R31: 71 | S31: =IFERROR(R31/$D31,"N/A") -> 0.835
A32: ='Practice list'!B27 -> The Wick Health Centre | B32: ='Practice list'!A27 -> F84620 | C32: 7775 | D32: 76 | E32: 0.01 | F32: 35 | G32: 0.461 | H32: 69 | I32: 0.908 | J32: 34 | K32: 0.447 | L32: 7 | M32: 0.206 | N32: 45 | O32: =IFERROR(N32/$D32,"N/A") -> 0.592 | P32: 51 | Q32: =IFERROR(P32/$D32,"N/A") -> 0.671 | R32: 63 | S32: =IFERROR(R32/$D32,"N/A") -> 0.829
A33: ='Practice list'!B28 -> The Greenhouse | B33: ='Practice list'!A28 -> F84632 | C33: 1253 | D33: 42 | E33: 0.034 | F33: 11 | G33: 0.262 | H33: 39 | I33: 0.929 | J33: 29 | K33: 0.69 | L33: 2 | M33: 0.069 | N33: 24 | O33: =IFERROR(N33/$D33,"N/A") -> 0.571 | P33: 28 | Q33: =IFERROR(P33/$D33,"N/A") -> 0.667 | R33: 25 | S33: =IFERROR(R33/$D33,"N/A") -> 0.595
A34: ='Practice list'!B29 -> Trowbridge Surgery | B34: ='Practice list'!A29 -> Y00403 | C34: 7945 | D34: 44 | E34: 0.006 | F34: 12 | G34: 0.273 | H34: 42 | I34: 0.955 | J34: 23 | K34: 0.523 | L34: 2 | M34: 0.087 | N34: 32 | O34: =IFERROR(N34/$D34,"N/A") -> 0.727 | P34: 26 | Q34: =IFERROR(P34/$D34,"N/A") -> 0.591 | R34: 43 | S34: =IFERROR(R34/$D34,"N/A") -> 0.977
A35: ='Practice list'!B30 -> London Fields Medical Centre | B35: ='Practice list'!A30 -> F84021 | C35: 11037 | D35: 125 | E35: 0.011 | F35: 18 | G35: 0.144 | H35: 108 | I35: 0.864 | J35: 54 | K35: 0.432 | L35: 5 | M35: 0.093 | N35: 84 | O35: =IFERROR(N35/$D35,"N/A") -> 0.672 | P35: 92 | Q35: =IFERROR(P35/$D35,"N/A") -> 0.736 | R35: 83 | S35: =IFERROR(R35/$D35,"N/A") -> 0.664
A36: ='Practice list'!B31 -> Richmond Road Medical Centre | B36: ='Practice list'!A31 -> F84035 | C36: 18254 | D36: 79 | E36: 0.004 | F36: 19 | G36: 0.241 | H36: 72 | I36: 0.911 | J36: 29 | K36: 0.367 | L36: 4 | M36: 0.138 | N36: 60 | O36: =IFERROR(N36/$D36,"N/A") -> 0.759 | P36: 64 | Q36: =IFERROR(P36/$D36,"N/A") -> 0.81 | R36: 69 | S36: =IFERROR(R36/$D36,"N/A") -> 0.873
A37: ='Practice list'!B32 -> Beechwood Medical Centre | B37: ='Practice list'!A32 -> F84038 | C37: 3899 | D37: 54 | E37: 0.014 | F37: 7 | G37: 0.13 | H37: 52 | I37: 0.963 | J37: 21 | K37: 0.389 | L37: 1 | M37: 0.048 | N37: 38 | O37: =IFERROR(N37/$D37,"N/A") -> 0.704 | P37: 31 | Q37: =IFERROR(P37/$D37,"N/A") -> 0.574 | R37: 23 | S37: =IFERROR(R37/$D37,"N/A") -> 0.426
A38: ='Practice list'!B33 -> Dalston Practice | B38: ='Practice list'!A33 -> F84063 | C38: 6094 | D38: 47 | E38: 0.008 | F38: 10 | G38: 0.213 | H38: 42 | I38: 0.894 | J38: 18 | K38: 0.383 | L38: 1 | M38: 0.056 | N38: 33 | O38: =IFERROR(N38/$D38,"N/A") -> 0.702 | P38: 38 | Q38: =IFERROR(P38/$D38,"N/A") -> 0.809 | R38: 17 | S38: =IFERROR(R38/$D38,"N/A") -> 0.362
A39: ='Practice list'!B34 -> Queensbridge Group Practice | B39: ='Practice list'!A34 -> F84117 | C39: 10838 | D39: 125 | E39: 0.012 | F39: 20 | G39: 0.16 | H39: 100 | I39: 0.8 | J39: 36 | K39: 0.288 | L39: 1 | M39: 0.028 | N39: 78 | O39: =IFERROR(N39/$D39,"N/A") -> 0.624 | P39: 85 | Q39: =IFERROR(P39/$D39,"N/A") -> 0.68 | R39: 87 | S39: =IFERROR(R39/$D39,"N/A") -> 0.696
A40: ='Practice list'!B35 -> The Sandringham Practice | B40: ='Practice list'!A35 -> F84621 | C40: 4519 | D40: 43 | E40: =IFERROR(D40/C40,"N/A") -> 0.01 | F40: 12 | G40: =IFERROR(F40/$D40,"N/A") -> 0.279 | H40: 43 | I40: =IFERROR(H40/$D40,"N/A") -> 1 | J40: 20 | K40: =IFERROR(J40/$D40,"N/A") -> 0.465 | L40: 5 | M40: =IFERROR(L40/$J40,"N/A") -> 0.25 | N40: 27 | O40: =IFERROR(N40/$D40,"N/A") -> 0.628 | P40: 28 | Q40: =IFERROR(P40/$D40,"N/A") -> 0.651 | R40: 28 | S40: =IFERROR(R40/$D40,"N/A") -> 0.651
A41: ='Practice list'!B36 -> The Neaman Practice | B41: ='Practice list'!A36 -> F84640 | C41: 9717 | D41: 57 | E41: 0.006 | F41: 5 | G41: 0.088 | H41: 53 | I41: 0.93 | J41: 18 | K41: 0.316 | L41: 4 | M41: 0.222 | N41: 42 | O41: 0.737 | P41: 39 | Q41: 0.684 | R41: 48 | S41: 0.842
A42: ='Practice list'!B38 -> De Beauvoir Surgery | B42: ='Practice list'!A38 -> F84072 | C42: 12342 | D42: 89 | E42: 0.007 | F42: 15 | G42: 0.169 | H42: 86 | I42: 0.966 | J42: 38 | K42: 0.427 | L42: 4 | M42: 0.105 | N42: 58 | O42: 0.652 | P42: 61 | Q42: 0.685 | R42: 64 | S42: 0.719
A43: ='Practice list'!B39 -> The Lawson Practice | B43: ='Practice list'!A39 -> F84096 | C43: 15593 | D43: 280 | E43: 0.018 | F43: 40 | G43: 0.143 | H43: 262 | I43: 0.936 | J43: 99 | K43: 0.354 | L43: 10 | M43: 0.101 | N43: 187 | O43: 0.668 | P43: 207 | Q43: 0.739 | R43: 199 | S43: 0.711
A44: ='Practice list'!B40 -> Shoreditch Park Surgery | B44: ='Practice list'!A40 -> F84635 | C44: 9200 | D44: 91 | E44: 0.01 | F44: 19 | G44: 0.209 | H44: 85 | I44: 0.934 | J44: 38 | K44: 0.418 | L44: 6 | M44: 0.158 | N44: 69 | O44: 0.758 | P44: 68 | Q44: 0.747 | R44: 76 | S44: 0.835
A45: ='Practice list'!B41 -> The Hoxton Surgery | B45: ='Practice list'!A41 -> F84692 | C45: 9173 | D45: 92 | E45: =IFERROR(D45/C45,"N/A") -> 0.01 | F45: 14 | G45: =IFERROR(F45/$D45,"N/A") -> 0.152 | H45: 80 | I45: =IFERROR(H45/$D45,"N/A") -> 0.87 | J45: 35 | K45: =IFERROR(J45/$D45,"N/A") -> 0.38 | L45: 2 | M45: =IFERROR(L45/$J45,"N/A") -> 0.057 | N45: 60 | O45: =IFERROR(N45/$D45,"N/A") -> 0.652 | P45: 60 | Q45: =IFERROR(P45/$D45,"N/A") -> 0.652 | R45: 54 | S45: =IFERROR(R45/$D45,"N/A") -> 0.587

Sheet Practice list (hidden)
A1: Practice ID | B1: Practice | C1: Locality ID | D1: Locality | E1: SubLocality ID | F1: Clinical System | G1: SubLocality | H1: Address 1 | I1: Address 2 | J1: Postcode | K1: Grid Reference | L1: X (easting) | M1: Y (northing) | N1: Latitude | O1: Longitude
A2: F84013 | B2: Stamford Hill Surgery | C2: CH | D2: City & Hackney | E2: CH-NE1 | F2: EMISweb | G2: Springfield Park (NE1) | H2: 2 Egerton Road | I2: Stamford Hill | J2: N16 6UA | K2: TQ 33741 87885 | L2: 533741 | M2: 187885 | N2: 51.573976 | O2: -0.071492952
A3: F84686 | B3: Cranwich Road Surgery | C3: CH | D3: City & Hackney | E3: CH-NE1 | F3: EMISweb | G3: Springfield Park (NE1) | H3: 62 Cranwich Road | J3: N16 5JF | K3: TQ 33045 87827 | L3: 533045 | M3: 187827 | N3: 51.573619 | O3: -0.081552204
A4: Y03049 | B4: Spring Hill Practice | C4: CH | D4: City & Hackney | E4: CH-NE1 | F4: EMISweb | G4: Springfield Park (NE1) | H4: 19-21 Oldhill Street | J4: N16 6LU | K4: TQ 34202 87381 | L4: 534202 | M4: 187381 | N4: 51.569337 | O4: -0.065037069
A5: F84018 | B5: The Nightingale Practice | C5: CH | D5: City & Hackney | E5: CH-NE2 | F5: EMISweb | G5: Hackney Downs (NE2) | H5: 10 Kenninghall Rd | I5: Clapton | J5: E5 8BY | K5: TQ 34412 86145 | L5: 534412 | M5: 186145 | N5: 51.55818 | O5: -0.062481117
A6: F84080 | B6: The Gadvhi Practice | C6: CH | D6: City & Hackney | E6: CH-NE2 | F6: EMISweb | G6: Hackney Downs (NE2) | H6: 1a Fountayne Road | J6: N16 7EA | K6: TQ 34209 86834 | L6: 534209 | M6: 186834 | N6: 51.56442 | O6: -0.06514483
A7: F84619 | B7: The Riverside Practice | C7: CH | D7: City & Hackney | E7: CH-NE2 | F7: EMISweb | G7: Hackney Downs (NE2) | H7: 14 Urban Hive, Theydon Rd | J7: E5 9BQ | K7: TQ 35164 86953 | L7: 535164 | M7: 186953 | N7: 51.565262 | O7: -0.051329752
A8: F84668 | B8: Clapton Surgery | C8: CH | D8: City & Hackney | E8: CH-NE2 | F8: EMISweb | G8: Hackney Downs (NE2) | H8: 14 Theydon Road | J8: E5 9BQ | K8: TQ 35164 86953 | L8: 535164 | M8: 186953 | N8: 51.565262 | O8: -0.051329752
A9: F84685 | B9: Elm Practice | C9: CH | D9: City & Hackney | E9: CH-NE2 | F9: EMISweb | G9: Hackney Downs (NE2) | H9: 1a Fountayne Road | J9: N16 7EA | K9: TQ 34209 86834 | L9: 534209 | M9: 186834 | N9: 51.56442 | O9: -0.06514483
A10: F84711 | B10: Rosewood Practice | C10: CH | D10: City & Hackney | E10: CH-NE2 | F10: EMISweb | G10: Hackney Downs (NE2) | H10: 1a Fountayne Road | J10: N16 7EA | K10: TQ 34209 86834 | L10: 534209 | M10: 186834 | N10: 51.56442 | O10: -0.06514483
A11: F84720 | B11: Healy Medical Centre | C11: CH | D11: City & Hackney | E11: CH-NE2 | F11: EMISweb | G11: Hackney Downs (NE2) | H11: 200 Upper Clapton Road | J11: E5 9HD | K11: TQ 35028 87268 | L11: 535028 | M11: 187268 | N11: 51.568125 | O11: -0.053169742
A12: F84036 | B12: Cedar Practice | C12: CH | D12: City & Hackney | E12: CH-NW1 | F12: EMISweb | G12: Woodberry Wetlands (NW1) | H12: John Scott Health Centre | I12: Green Lanes | J12: N4 2NU | K12: TQ 32221 87203 | L12: 532221 | M12: 187203 | N12: 51.568205 | O12: -0.093670043
A13: F84115 | B13: Statham Grove Surgery | C13: CH | D13: City & Hackney | E13: CH-NW1 | F13: EMISweb | G13: Woodberry Wetlands (NW1) | H13: Statham Grove | J13: N16 9DP | K13: TQ 32544 86016 | L13: 532544 | M13: 186016 | N13: 51.557463 | O13: -0.089459644
A14: F84119 | B14: The Heron Practice | C14: CH | D14: City & Hackney | E14: CH-NW1 | F14: EMISweb | G14: Woodberry Wetlands (NW1) | H14: John Scott Health Centre | I14: Green Lanes | J14: N4 2NU | K14: TQ 32221 87203 | L14: 532221 | M14: 187203 | N14: 51.568205 | O14: -0.093670043
A15: F84716 | B15: Allerton Road Medical Centre | C15: CH | D15: City & Hackney | E15: CH-NW1 | F15: EMISweb | G15: Woodberry Wetlands (NW1) | H15: 34a Allerton Road | J15: N16 5UF | K15: TQ 32456 86933 | L15: 532456 | M15: 186933 | N15: 51.565724 | O15: -0.090383086
A16: F84008 | B16: Barton House Health Centre | C16: CH | D16: City & Hackney | E16: CH-NW2 | F16: EMISweb | G16: Clissold Park (NW2) | H16: 233 Albion Road | I16: Stoke Newington | J16: N16 9JT | K16: TQ 32926 86369 | L16: 532926 | M16: 186369 | N16: 51.560545 | O16: -0.083819308
A17: F84033 | B17: Somerford Grove Practice | C17: CH | D17: City & Hackney | E17: CH-NW2 | F17: EMISweb | G17: Clissold Park (NW2) | H17: Somerford Grove | J17: N16 7UA | K17: TQ 33722 85639 | L17: 533722 | M17: 185639 | N17: 51.553797 | O17: -0.07262063
A18: F84636 | B18: Barretts Grove Surgery | C18: CH | D18: City & Hackney | E18: CH-NW2 | F18: EMISweb | G18: Clissold Park (NW2) | H18: 6 Barretts Grove | J18: N16 8AR | K18: TQ 33334 85451 | L18: 533334 | M18: 185451 | N18: 51.5522 | O18: -0.078284859
A19: F84694 | B19: Brooke Road Surgery | C19: CH | D19: City & Hackney | E19: CH-NW2 | F19: EMISweb | G19: Clissold Park (NW2) | H19: 40-42 Brooke Road | J19: N16 7LR | K19: TQ 33833 86338 | L19: 533833 | M19: 186338 | N19: 51.560052 | O19: -0.070754775
A20: F84003 | B20: Lower Clapton Group Practice | C20: CH | D20: City & Hackney | E20: CH-SE1 | F20: EMISweb | G20: Hackney Marshes (SE1) | H20: 36 Lower Clapton Road | J20: E5 0PD | K20: TQ 35145 85320 | L20: 535145 | M20: 185320 | N20: 51.550592 | O20: -0.052230775
A21: F84015 | B21: Kingsmead Healthcare | C21: CH | D21: City & Hackney | E21: CH-SE1 | F21: EMISweb | G21: Hackney Marshes (SE1) | H21: 4 Kingsmead Way | J21: E9 5QG | K21: TQ 36351 85487 | L21: 536351 | M21: 185487 | N21: 51.551803 | O21: -0.034783216
A22: F84060 | B22: Athena Medical Centre | C22: CH | D22: City & Hackney | E22: CH-SE1 | F22: EMISweb | G22: Hackney Marshes (SE1) | H22: 21 Atherden Road | I22: Clapton | J22: E5 0QP | K22: TQ 35057 85799 | L22: 535057 | M22: 185799 | N22: 51.554917 | O22: -0.053315427
A23: F84105 | B23: The Lea Surgery | C23: CH | D23: City & Hackney | E23: CH-SE1 | F23: EMISweb | G23: Hackney Marshes (SE1) | H23: 186 Homerton High Street | J23: E9 6AG | K23: TQ 35784 85079 | L23: 535784 | M23: 185079 | N23: 51.548273 | O23: -0.04311334
A24: F84719 | B24: Latimer Health Centre | C24: CH | D24: City & Hackney | E24: CH-SE1 | F24: EMISweb | G24: Hackney Marshes (SE1) | H24: 4 Homerton Terrace | J24: E9 6RT | K24: TQ 35346 84880 | L24: 535346 | M24: 184880 | N24: 51.54659 | O24: -0.049502727
A25: F84069 | B25: The Well Street Surgery | C25: CH | D25: City & Hackney | E25: CH-SE2 | F25: EMISweb | G25: Well Street Common (SE2) | H25: 28 Shore Road | J25: E9 7TA | K25: TQ 35138 84055 | L25: 535138 | M25: 184055 | N25: 51.539226 | O25: -0.052817041
A26: F84601 | B26: Elsdale Street Surgery | C26: CH | D26: City & Hackney | E26: CH-SE2 | F26: EMISweb | G26: Well Street Common (SE2) | H26: 28 Elsdale Street | J26: E9 6QY | K26: TQ 35380 84483 | L26: 535380 | M26: 184483 | N26: 51.543014 | O26: -0.0491653
A27: F84620 | B27: The Wick Health Centre | C27: CH | D27: City & Hackney | E27: CH-SE2 | F27: EMISweb | G27: Well Street Common (SE2) | H27: 200 Wick Rd | J27: E9 5AN | K27: TQ 36085 84711 | L27: 536085 | M27: 184711 | N27: 51.544894 | O27: -0.038917245
A28: F84632 | B28: The Greenhouse | C28: CH | D28: City & Hackney | E28: CH-SE2 | F28: EMISweb | G28: Well Street Common (SE2) | H28: 19 Tudor Road | J28: E9 7SN | K28: TQ 34985 83975 | L28: 534985 | M28: 183975 | N28: 51.538544 | O28: -0.055052455
A29: Y00403 | B29: Trowbridge Surgery | C29: CH | D29: City & Hackney | E29: CH-SE2 | F29: EMISweb | G29: Well Street Common (SE2) | H29: 18 Merriam Avenue | J29: E9 5NE | K29: TQ 36747 84792 | L29: 536747 | M29: 184792 | N29: 51.545462 | O29: -0.029345179
A30: F84021 | B30: London Fields Medical Centre | C30: CH | D30: City & Hackney | E30: CH-SW1 | F30: EMISweb | G30: London Fields (SW1) | H30: 38-44 Broadway Market | J30: E8 4QJ | K30: TQ 34536 83745 | L30: 534536 | M30: 183745 | N30: 51.536584 | O30: -0.061610386
A31: F84035 | B31: Richmond Road Medical Centre | C31: CH | D31: City & Hackney | E31: CH-SW1 | F31: EMISweb | G31: London Fields (SW1) | H31: 136 Richmond Road | J31: E8 3HN | K31: TQ 34245 84457 | L31: 534245 | M31: 184457 | N31: 51.543051 | O31: -0.06553224
A32: F84038 | B32: Beechwood Medical Centre | C32: CH | D32: City & Hackney | E32: CH-SW1 | F32: EMISweb | G32: London Fields (SW1) | H32: 86-86a Dalston Lane | J32: E8 3AH | K32: TQ 33890 84780 | L32: 533890 | M32: 184780 | N32: 51.546038 | O32: -0.070525556
A33: F84063 | B33: Dalston Practice | C33: CH | D33: City & Hackney | E33: CH-SW1 | F33: EMISweb | G33: London Fields (SW1) | H33: 1b Madinah Road | J33: E8 1PG | K33: TQ 34111 84978 | L33: 534111 | M33: 184978 | N33: 51.547765 | O33: -0.067264996
A34: F84117 | B34: Queensbridge Group Practice | C34: CH | D34: City & Hackney | E34: CH-SW1 | F34: EMISweb | G34: London Fields (SW1) | H34: 24, Holly Street | J34: E8 3XP | K34: TQ 33838 84271 | L34: 533838 | M34: 184271 | N34: 51.541476 | O34: -0.071468414
A35: F84621 | B35: The Sandringham Practice | C35: CH | D35: City & Hackney | E35: CH-SW1 | F35: EMISweb | G35: London Fields (SW1) | H35: 1a Madinah Road | J35: E8 1PG | K35: TQ 34111 84978 | L35: 534111 | M35: 184978 | N35: 51.547765 | O35: -0.067264996
A36: F84640 | B36: The Neaman Practice | C36: CH | D36: City & Hackney | E36: CH-SW2 | F36: EMISweb | G36: Shoreditch Park & City (SW2) | H36: 15 Half Moon Court | J36: EC1A 7HF | K36: TQ 32048 81725 | L36: 532048 | M36: 181725 | N36: 51.519018 | O36: -0.098218282
A37: F84041 | B37: Southgate & Whiston Road Surgery | C37: CH | D37: City & Hackney | E37: CH-SW2 | F37: EMISweb | G37: Shoreditch Park & City (SW2) | H37: 101 - 103 Southgate Road | J37: N1 3JS | K37: TQ 32865 84163 | L37: 532865 | M37: 184163 | N37: 51.540736 | O37: -0.085531213
A38: F84072 | B38: De Beauvoir Surgery | C38: CH | D38: City & Hackney | E38: CH-SW2 | F38: EMISweb | G38: Shoreditch Park & City (SW2) | H38: 30 Hertford Road | J38: N1 5QT | K38: TQ 33377 83922 | L38: 533377 | M38: 183922 | N38: 51.538449 | O38: -0.078244064
A39: F84096 | B39: The Lawson Practice | C39: CH | D39: City & Hackney | E39: CH-SW2 | F39: EMISweb | G39: Shoreditch Park & City (SW2) | H39: St Leonard's Hospital, Nuttall St | I39: Nuttall Street | J39: N1 5HZ | K39: TQ 33302 83395 | L39: 533302 | M39: 183395 | N39: 51.533731 | O39: -0.079524183
A40: F84635 | B40: Shoreditch Park Surgery | C40: CH | D40: City & Hackney | E40: CH-SW2 | F40: EMISweb | G40: Shoreditch Park & City (SW2) | H40: 10 Rushton Street | J40: N1 5DR | K40: TQ 32796 83359 | L40: 532796 | M40: 183359 | N40: 51.533527 | O40: -0.086828572
A41: F84692 | B41: The Hoxton Surgery | C41: CH | D41: City & Hackney | E41: CH-SW2 | F41: EMISweb | G41: Shoreditch Park & City (SW2) | H41: 12 Rushton Street | J41: N1 5DR | K41: TQ 32796 83359 | L41: 532796 | M41: 183359 | N41: 51.533527 | O41: -0.086828572

Sheet CH LDP TABLE (hidden)
A1: ProjectID | B1: Rel_D | C1: Run_D | D1: Search | E1: 01. Listsize | F1: LDP.04.11: Diabetes and BP in last 12 months | G1: LDP.05: CVD 25-84yrs (excl CVD) | H1: LDP.08.02 CKD Diagnosed (Last 6m) | I1: LDP.08.03 CKD and BP Recorded (last 12 m) | J1: CSPMH. 01.03 QRisk Recorded (12m) | K1: CSPMH. 01.03.01 BP recorded on same day as QRisk (12m) | L1: CSPMH. 01.03.02 Qrisk>=20 (12m) | M1: LDP.08.01 CKD and BP less than 140/90 (last 12 m) | N1: LDP.08 CKD Register | O1: LDP.05.01: CVD QRISK greater than or equal 20% | P1: LDP.05.01.01: CVD Proxy Annual Review (last 12m) | Q1: LDP.05.02: Cardiovascular Risk Score Done (5y) | R1: LDP.04.09: Diabetes BP less than 145/85 (last 12m) | S1: LDP.04.08: Diabetes Chol less than 5mmol (last 12m) | T1: LDP.01.01.01: Obesity BMI more than or equal to 35 less than 40 (last 12m) | U1: LDP.01.01.02: Obesity BMI between 30-35 (last 12m) | V1: LDP.01.01.03: Obesity BMI equal to or over 40 (last 12m) | W1: LDP.01.02: Smoking Status (last 12m) or Never Smoked (25yrs+) | X1: LDP.01.03: Current Smoker (last 12m) | Y1: LDP.01.01: Obesity BMI recorded (last 12m) | Z1: LDP.01: Aged 16yrs+ | AA1: CSPMH.01 SMI Register | AB1: CSPMH.01.02 Smoking Status Recorded (12m) | AC1: CSPMH.01.02.01 Current Smoker (12m) | AD1: CSPMH 01.02.01.01 Ref to clinic 12m | AE1: CSPMH.01.02.02 Ex-smoker Recorded (latest 12m) | AF1: LDP.02: Hypertension Register | AG1: LDP.02.01: Hypertension and BP < 140/90 (age under 80) < 150/90 (Age 80+) | AH1: LDP.04.07: Diabetes Influenza Vaccinations (From August 2018) | AI1: LDP.04.01: Diabetes HbA1c <7.5% OR <59mmol (last 12m) | AJ1: LDP.02.02: Hypertension BP recorded (last 12m) | AK1: LDP.03: CHD Register | AL1: LDP.03.01: CHD Chol less than 5mmol (last 12m) | AM1: LDP.03.04: CHD Cholesterol recorded (last 12m) | AN1: LDP.04: Diabetes Register | AO1: LDP.09 COPD Register | AP1: LDP.09.01 Patients with severe or very severe COPD (FEV1<50) | AQ1: LDP.09.02 Patients with smoking status recorded (last 12m) or never smoked | AR1: LDP.09.03 COPD patients recorded as a Smoker | AS1: LDP.09.04 COPD Patients who are current smokers & referred to the Stop Smoking C | AT1: LDP.09.05 No of COPD with flu vaccination (From August 2018) | AU1: LDP.09.06 No of COPD with pneumococcal vaccination ever | AV1: LDP.09.07 No of COPD patients referred to pulmonary rehab ever | AW1: LDP.03.02: CHD BP less than or equal 150/90 (last 9m) | AX1: LDP.10 Stroke or TIA register | AY1: LDP.10.01: Stroke/TIA BP recorded (last 12m) | AZ1: LDP.10.02 Patients on Stroke/TIA register with BP <140/90 (12m) | BA1: Practice | BB1: Locality ID | BC1: SubLocality ID | BD1: SubLocality
A2: CH_LDP | B2: 43586 | C2: 43588 | D2: F84635 | E2: 8849 | F2: 315 | G2: 6214 | H2: 5 | I2: 83 | J2: 35 | K2: 21 | L2: 4 | M2: 55 | N2: 87 | O2: 276 | P2: 174 | Q2: 2202 | R2: 263 | S2: 214 | T2: 137 | U2: 352 | V2: 81 | W2: 5214 | X2: 747 | Y2: 2373 | Z2: 7512 | AA2: 122 | AB2: 77 | AC2: 37 | AD2: 1 | AE2: 12 | AF2: 690 | AG2: 421 | AH2: 227 | AI2: 174 | AJ2: 631 | AK2: 100 | AL2: 58 | AM2: 67 | AN2: 330 | AO2: 98 | AP2: 19 | AQ2: 78 | AR2: 31 | AS2: 2 | AT2: 76 | AU2: 77 | AV2: 81 | AW2: 77 | AX2: 66 | AY2: 60 | AZ2: 44 | BA2: Shoreditch Park Surgery | BB2: CH | BC2: CH-SW2 | BD2: Shoreditch Park & City (SW2)
A3: CH_LDP | B3: 43586 | C3: 43588 | D3: F84632 | E3: 1065 | F3: 54 | G3: 983 | H3: 3 | I3: 14 | J3: 39 | K3: 19 | L3: 2 | M3: 11 | N3: 15 | O3: 49 | P3: 36 | Q3: 608 | R3: 44 | S3: 42 | T3: 29 | U3: 88 | V3: 12 | W3: 732 | X3: 362 | Y3: 610 | Z3: 1065 | AA3: 89 | AB3: 83 | AC3: 62 | AD3: 5 | AE3: 9 | AF3: 121 | AG3: 58 | AH3: 37 | AI3: 32 | AJ3: 103 | AK3: 23 | AL3: 14 | AM3: 18 | AN3: 59 | AO3: 38 | AP3: 14 | AQ3: 36 | AR3: 23 | AS3: 1 | AT3: 26 | AU3: 30 | AV3: 22 | AW3: 14 | AX3: 10 | AY3: 10 | AZ3: 5 | BA3: The Greenhouse | BB3: CH | BC3: CH-SE2 | BD3: Well Street Common (SE2)
A4: CH_LDP | B4: 43586 | C4: 43588 | D4: F84636 | E4: 4929 | F4: 182 | G4: 3771 | H4: 5 | I4: 42 | J4: 29 | K4: 17 | L4: 6 | M4: 33 | N4: 48 | O4: 140 | P4: 99 | Q4: 1553 | R4: 160 | S4: 132 | T4: 71 | U4: 161 | V4: 39 | W4: 2880 | X4: 402 | Y4: 1503 | Z4: 4328 | AA4: 68 | AB4: 53 | AC4: 18 | AD4: 1 | AE4: 13 | AF4: 376 | AG4: 258 | AH4: 145 | AI4: 93 | AJ4: 337 | AK4: 43 | AL4: 23 | AM4: 28 | AN4: 197 | AO4: 22 | AP4: 8 | AQ4: 20 | AR4: 4 | AS4: 0 | AT4: 12 | AU4: 13 | AV4: 12 | AW4: 32 | AX4: 37 | AY4: 33 | AZ4: 28 | BA4: Barretts Grove Surgery | BB4: CH | BC4: CH-NW2 | BD4: Clissold Park (NW2)
A5: CH_LDP | B5: 43586 | C5: 43588 | D5: F84668 | E5: 6589 | F5: 273 | G5: 3227 | H5: 2 | I5: 87 | J5: 32 | K5: 29 | L5: 4 | M5: 65 | N5: 97 | O5: 217 | P5: 165 | Q5: 1782 | R5: 253 | S5: 204 | T5: 164 | U5: 370 | V5: 82 | W5: 3139 | X5: 278 | Y5: 1781 | Z5: 4360 | AA5: 65 | AB5: 58 | AC5: 19 | AD5: 11 | AE5: 7 | AF5: 489 | AG5: 340 | AH5: 219 | AI5: 176 | AJ5: 454 | AK5: 56 | AL5: 36 | AM5: 41 | AN5: 297 | AO5: 27 | AP5: 7 | AQ5: 24 | AR5: 9 | AS5: 5 | AT5: 23 | AU5: 24 | AV5: 23 | AW5: 33 | AX5: 38 | AY5: 37 | AZ5: 27 | BA5: Clapton Surgery | BB5: CH | BC5: CH-NE2 | BD5: Hackney Downs (NE2)
A6: CH_LDP | B6: 43586 | C6: 43588 | D6: F84640 | E6: 9272 | F6: 245 | G6: 7213 | H6: 35 | I6: 238 | J6: 24 | K6: 9 | L6: 6 | M6: 204 | N6: 264 | O6: 412 | P6: 271 | Q6: 3050 | R6: 219 | S6: 174 | T6: 93 | U6: 239 | V6: 41 | W6: 6143 | X6: 325 | Y6: 2015 | Z6: 8517 | AA6: 85 | AB6: 64 | AC6: 16 | AD6: 1 | AE6: 25 | AF6: 951 | AG6: 729 | AH6: 174 | AI6: 170 | AJ6: 882 | AK6: 181 | AL6: 92 | AM6: 117 | AN6: 255 | AO6: 65 | AP6: 9 | AQ6: 64 | AR6: 19 | AS6: 2 | AT6: 51 | AU6: 51 | AV6: 29 | AW6: 147 | AX6: 118 | AY6: 111 | AZ6: 96 | BA6: The Neaman Practice | BB6: CH | BC6: CH-SW2 | BD6: Shoreditch Park & City (SW2)
A7: CH_LDP | B7: 43586 | C7: 43588 | D7: F84619 | E7: 4450 | F7: 219 | G7: 2956 | H7: 0 | I7: 59 | J7: 26 | K7: 19 | L7: 3 | M7: 41 | N7: 65 | O7: 183 | P7: 132 | Q7: 1705 | R7: 200 | S7: 176 | T7: 125 | U7: 207 | V7: 42 | W7: 2452 | X7: 400 | Y7: 1374 | Z7: 3513 | AA7: 56 | AB7: 43 | AC7: 20 | AD7: 1 | AE7: 10 | AF7: 414 | AG7: 257 | AH7: 160 | AI7: 129 | AJ7: 371 | AK7: 67 | AL7: 40 | AM7: 49 | AN7: 235 | AO7: 33 | AP7: 13 | AQ7: 31 | AR7: 7 | AS7: 0 | AT7: 26 | AU7: 24 | AV7: 16 | AW7: 50 | AX7: 58 | AY7: 52 | AZ7: 44 | BA7: The Riverside Practice | BB7: CH | BC7: CH-NE2 | BD7: Hackney Downs (NE2)
A8: CH_LDP | B8: 43586 | C8: 43588 | D8: F84601 | E8: 6849 | F8: 299 | G8: 4522 | H8: 5 | I8: 109 | J8: 65 | K8: 53 | L8: 6 | M8: 91 | N8: 113 | O8: 232 | P8: 186 | Q8: 3520 | R8: 278 | S8: 234 | T8: 121 | U8: 321 | V8: 85 | W8: 3134 | X8: 430 | Y8: 1613 | Z8: 5525 | AA8: 113 | AB8: 93 | AC8: 51 | AD8: 4 | AE8: 18 | AF8: 592 | AG8: 471 | AH8: 178 | AI8: 176 | AJ8: 533 | AK8: 92 | AL8: 64 | AM8: 78 | AN8: 311 | AO8: 73 | AP8: 17 | AQ8: 70 | AR8: 37 | AS8: 0 | AT8: 47 | AU8: 33 | AV8: 56 | AW8: 70 | AX8: 45 | AY8: 41 | AZ8: 37 | BA8: Elsdale Street Surgery | BB8: CH | BC8: CH-SE2 | BD8: Well Street Common (SE2)
A9: CH_LDP | B9: 43586 | C9: 43588 | D9: F84620 | E9: 6358 | F9: 381 | G9: 4152 | H9: 4 | I9: 136 | J9: 45 | K9: 37 | L9: 8 | M9: 108 | N9: 142 | O9: 291 | P9: 210 | Q9: 2158 | R9: 341 | S9: 293 | T9: 156 | U9: 367 | V9: 100 | W9: 3363 | X9: 491 | Y9: 1749 | Z9: 5127 | AA9: 109 | AB9: 90 | AC9: 39 | AD9: 3 | AE9: 21 | AF9: 747 | AG9: 538 | AH9: 224 | AI9: 242 | AJ9: 690 | AK9: 128 | AL9: 68 | AM9: 85 | AN9: 395 | AO9: 77 | AP9: 35 | AQ9: 72 | AR9: 29 | AS9: 1 | AT9: 49 | AU9: 56 | AV9: 70 | AW9: 94 | AX9: 81 | AY9: 68 | AZ9: 52 | BA9: The Wick Health Centre | BB9: CH | BC9: CH-SE2 | BD9: Well Street Common (SE2)
A10: CH_LDP | B10: 43586 | C10: 43588 | D10: F84624 | E10: 2717 | F10: 147 | G10: 2059 | H10: 1 | I10: 54 | J10: 30 | K10: 15 | L10: 4 | M10: 43 | N10: 56 | O10: 79 | P10: 57 | Q10: 994 | R10: 131 | S10: 105 | T10: 42 | U10: 89 | V10: 24 | W10: 1450 | X10: 115 | Y10: 630 | Z10: 2352 | AA10: 48 | AB10: 31 | AC10: 6 | AD10: 0 | AE10: 11 | AF10: 294 | AG10: 204 | AH10: 103 | AI10: 78 | AJ10: 261 | AK10: 70 | AL10: 39 | AM10: 48 | AN10: 156 | AO10: 46 | AP10: 25 | AQ10: 41 | AR10: 11 | AS10: 1 | AT10: 31 | AU10: 33 | AV10: 23 | AW10: 42 | AX10: 45 | AY10: 38 | AZ10: 34
A11: CH_LDP | B11: 43586 | C11: 43588 | D11: F84621 | E11: 3732 | F11: 296 | G11: 2596 | H11: 4 | I11: 83 | J11: 53 | K11: 39 | L11: 8 | M11: 64 | N11: 89 | O11: 207 | P11: 173 | Q11: 1759 | R11: 255 | S11: 206 | T11: 100 | U11: 233 | V11: 62 | W11: 2101 | X11: 301 | Y11: 1221 | Z11: 3109 | AA11: 86 | AB11: 68 | AC11: 25 | AD11: 1 | AE11: 16 | AF11: 588 | AG11: 429 | AH11: 204 | AI11: 168 | AJ11: 555 | AK11: 70 | AL11: 47 | AM11: 55 | AN11: 301 | AO11: 51 | AP11: 17 | AQ11: 45 | AR11: 20 | AS11: 2 | AT11: 38 | AU11: 31 | AV11: 33 | AW11: 58 | AX11: 57 | AY11: 54 | AZ11: 40 | BA11: The Sandringham Practice | BB11: CH | BC11: CH-SW1 | BD11: London Fields (SW1)
A12: CH_LDP | B12: 43586 | C12: 43588 | D12: F84685 | E12: 2965 | F12: 133 | G12: 1917 | H12: 1 | I12: 39 | J12: 12 | K12: 10 | L12: 2 | M12: 36 | N12: 43 | O12: 138 | P12: 94 | Q12: 895 | R12: 129 | S12: 90 | T12: 52 | U12: 106 | V12: 18 | W12: 1499 | X12: 142 | Y12: 678 | Z12: 2270 | AA12: 38 | AB12: 24 | AC12: 7 | AD12: 0 | AE12: 5 | AF12: 261 | AG12: 193 | AH12: 86 | AI12: 82 | AJ12: 238 | AK12: 39 | AL12: 22 | AM12: 32 | AN12: 138 | AO12: 26 | AP12: 8 | AQ12: 21 | AR12: 8 | AS12: 1 | AT12: 19 | AU12: 15 | AV12: 17 | AW12: 34 | AX12: 20 | AY12: 16 | AZ12: 15 | BA12: Elm Practice | BB12: CH | BC12: CH-NE2 | BD12: Hackney Downs (NE2)
A13: CH_LDP | B13: 43586 | C13: 43588 | D13: F84720 | E13: 5475 | F13: 335 | G13: 3247 | H13: 5 | I13: 131 | J13: 48 | K13: 36 | L13: 8 | M13: 106 | N13: 143 | O13: 313 | P13: 224 | Q13: 2053 | R13: 292 | S13: 257 | T13: 136 | U13: 317 | V13: 85 | W13: 2826 | X13: 390 | Y13: 1582 | Z13: 4161 | AA13: 88 | AB13: 66 | AC13: 29 | AD13: 1 | AE13: 13 | AF13: 800 | AG13: 555 | AH13: 210 | AI13: 180 | AJ13: 743 | AK13: 152 | AL13: 97 | AM13: 125 | AN13: 370 | AO13: 81 | AP13: 15 | AQ13: 75 | AR13: 21 | AS13: 2 | AT13: 56 | AU13: 44 | AV13: 74 | AW13: 117 | AX13: 81 | AY13: 77 | AZ13: 62 | BA13: Healy Medical Centre | BB13: CH | BC13: CH-NE2 | BD13: Hackney Downs (NE2)
A14: CH_LDP | B14: 43586 | C14: 43588 | D14: F84719 | E14: 5170 | F14: 295 | G14: 3612 | H14: 9 | I14: 98 | J14: 40 | K14: 31 | L14: 12 | M14: 82 | N14: 102 | O14: 222 | P14: 161 | Q14: 1605 | R14: 277 | S14: 222 | T14: 101 | U14: 256 | V14: 74 | W14: 3348 | X14: 352 | Y14: 1736 | Z14: 4388 | AA14: 81 | AB14: 73 | AC14: 20 | AD14: 4 | AE14: 10 | AF14: 617 | AG14: 452 | AH14: 239 | AI14: 182 | AJ14: 563 | AK14: 138 | AL14: 86 | AM14: 103 | AN14: 313 | AO14: 83 | AP14: 25 | AQ14: 77 | AR14: 25 | AS14: 3 | AT14: 76 | AU14: 59 | AV14: 55 | AW14: 89 | AX14: 84 | AY14: 81 | AZ14: 71 | BA14: Latimer Health Centre | BB14: CH | BC14: CH-SE1 | BD14: Hackney Marshes (SE1)
A15: CH_LDP | B15: 43586 | C15: 43588 | D15: Y00403 | E15: 6364 | F15: 188 | G15: 4712 | H15: 2 | I15: 46 | J15: 45 | K15: 22 | L15: 8 | M15: 36 | N15: 50 | O15: 105 | P15: 69 | Q15: 1521 | R15: 176 | S15: 149 | T15: 95 | U15: 193 | V15: 63 | W15: 3450 | X15: 546 | Y15: 1684 | Z15: 5362 | AA15: 81 | AB15: 64 | AC15: 27 | AD15: 2 | AE15: 13 | AF15: 400 | AG15: 276 | AH15: 143 | AI15: 116 | AJ15: 368 | AK15: 48 | AL15: 26 | AM15: 29 | AN15: 194 | AO15: 36 | AP15: 11 | AQ15: 35 | AR15: 16 | AS15: 2 | AT15: 33 | AU15: 24 | AV15: 24 | AW15: 38 | AX15: 28 | AY15: 28 | AZ15: 22 | BA15: Trowbridge Surgery | BB15: CH | BC15: CH-SE2 | BD15: Well Street Common (SE2)
A16: CH_LDP | B16: 43586 | C16: 43588 | D16: Total | E16: 323614 | F16: 14557 | G16: 219322 | H16: 230 | I16: 4890 | J16: 2268 | K16: 1369 | L16: 368 | M16: 3818 | N16: 5195 | O16: 12416 | P16: 8981 | Q16: 109973 | R16: 13007 | S16: 10636 | T16: 5908 | U16: 13865 | V16: 3597 | W16: 173536 | X16: 21782 | Y16: 85169 | Z16: 261008 | AA16: 4670 | AB16: 3699 | AC16: 1586 | AD16: 115 | AE16: 797 | AF16: 29702 | AG16: 20621 | AH16: 10086 | AI16: 8562 | AJ16: 27339 | AK16: 4927 | AL16: 2902 | AM16: 3614 | AN16: 15290 | AO16: 3495 | AP16: 870 | AQ16: 3153 | AR16: 1326 | AS16: 116 | AT16: 2519 | AU16: 2338 | AV16: 2329 | AW16: 3763 | AX16: 2851 | AY16: 2644 | AZ16: 2099
A17: CH_LDP | B17: 43586 | C17: 43588 | D17: Y03049 | E17: 14372 | F17: 608 | G17: 8826 | H17: 7 | I17: 188 | J17: 96 | K17: 56 | L17: 20 | M17: 132 | N17: 195 | O17: 492 | P17: 362 | Q17: 4608 | R17: 549 | S17: 462 | T17: 251 | U17: 612 | V17: 154 | W17: 6897 | X17: 811 | Y17: 3272 | Z17: 10559 | AA17: 190 | AB17: 160 | AC17: 70 | AD17: 8 | AE17: 27 | AF17: 1122 | AG17: 766 | AH17: 405 | AI17: 347 | AJ17: 1076 | AK17: 179 | AL17: 103 | AM17: 123 | AN17: 620 | AO17: 96 | AP17: 22 | AQ17: 87 | AR17: 44 | AS17: 9 | AT17: 70 | AU17: 60 | AV17: 79 | AW17: 145 | AX17: 76 | AY17: 74 | AZ17: 55 | BA17: Spring Hill Practice | BB17: CH | BC17: CH-NE1 | BD17: Springfield Park (NE1)
A18: CH_LDP | B18: 43586 | C18: 43588 | D18: F84692 | E18: 7157 | F18: 213 | G18: 4644 | H18: 3 | I18: 60 | J18: 37 | K18: 8 | L18: 3 | M18: 47 | N18: 64 | O18: 224 | P18: 119 | Q18: 1957 | R18: 189 | S18: 140 | T18: 105 | U18: 227 | V18: 43 | W18: 3730 | X18: 447 | Y18: 1640 | Z18: 6215 | AA18: 69 | AB18: 50 | AC18: 26 | AD18: 3 | AE18: 9 | AF18: 447 | AG18: 310 | AH18: 159 | AI18: 125 | AJ18: 393 | AK18: 76 | AL18: 32 | AM18: 39 | AN18: 230 | AO18: 78 | AP18: 18 | AQ18: 69 | AR18: 31 | AS18: 2 | AT18: 61 | AU18: 66 | AV18: 49 | AW18: 61 | AX18: 45 | AY18: 40 | AZ18: 33 | BA18: The Hoxton Surgery | BB18: CH | BC18: CH-SW2 | BD18: Shoreditch Park & City (SW2)
A19: CH_LDP | B19: 43586 | C19: 43588 | D19: F84686 | E19: 7820 | F19: 180 | G19: 2862 | H19: 0 | I19: 53 | J19: 21 | K19: 19 | L19: 4 | M19: 46 | N19: 56 | O19: 167 | P19: 140 | Q19: 1057 | R19: 159 | S19: 136 | T19: 104 | U19: 246 | V19: 50 | W19: 2709 | X19: 128 | Y19: 1054 | Z19: 4258 | AA19: 50 | AB19: 39 | AC19: 5 | AD19: 0 | AE19: 7 | AF19: 367 | AG19: 295 | AH19: 112 | AI19: 99 | AJ19: 355 | AK19: 74 | AL19: 54 | AM19: 62 | AN19: 183 | AO19: 8 | AP19: 1 | AQ19: 7 | AR19: 4 | AS19: 0 | AT19: 5 | AU19: 4 | AV19: 7 | AW19: 46 | AX19: 30 | AY19: 27 | AZ19: 26 | BA19: Cranwich Road Surgery | BB19: CH | BC19: CH-NE1 | BD19: Springfield Park (NE1)
A20: CH_LDP | B20: 43586 | C20: 43588 | D20: F84694 | E20: 4578 | F20: 210 | G20: 3501 | H20: 1 | I20: 58 | J20: 29 | K20: 24 | L20: 2 | M20: 45 | N20: 59 | O20: 172 | P20: 139 | Q20: 1885 | R20: 176 | S20: 165 | T20: 76 | U20: 217 | V20: 44 | W20: 2849 | X20: 476 | Y20: 1931 | Z20: 4042 | AA20: 50 | AB20: 41 | AC20: 12 | AD20: 0 | AE20: 7 | AF20: 367 | AG20: 213 | AH20: 163 | AI20: 128 | AJ20: 328 | AK20: 58 | AL20: 43 | AM20: 45 | AN20: 221 | AO20: 32 | AP20: 7 | AQ20: 28 | AR20: 12 | AS20: 1 | AT20: 22 | AU20: 17 | AV20: 24 | AW20: 33 | AX20: 22 | AY20: 19 | AZ20: 16 | BA20: Brooke Road Surgery | BB20: CH | BC20: CH-NW2 | BD20: Clissold Park (NW2)
A21: CH_LDP | B21: 43586 | C21: 43588 | D21: F84716 | E21: 5608 | F21: 195 | G21: 3434 | H21: 2 | I21: 94 | J21: 49 | K21: 22 | L21: 10 | M21: 74 | N21: 101 | O21: 191 | P21: 140 | Q21: 1550 | R21: 182 | S21: 144 | T21: 85 | U21: 222 | V21: 57 | W21: 3022 | X21: 276 | Y21: 1525 | Z21: 4199 | AA21: 91 | AB21: 77 | AC21: 24 | AD21: 3 | AE21: 11 | AF21: 386 | AG21: 285 | AH21: 116 | AI21: 117 | AJ21: 364 | AK21: 70 | AL21: 41 | AM21: 50 | AN21: 202 | AO21: 43 | AP21: 10 | AQ21: 42 | AR21: 14 | AS21: 1 | AT21: 32 | AU21: 35 | AV21: 11 | AW21: 55 | AX21: 39 | AY21: 37 | AZ21: 31 | BA21: Allerton Road Medical Centre | BB21: CH | BC21: CH-NW1 | BD21: Woodberry Wetlands (NW1)
A22: CH_LDP | B22: 43586 | C22: 43588 | D22: F84711 | E22: 1928 | F22: 162 | G22: 1315 | H22: 1 | I22: 38 | J22: 17 | K22: 14 | L22: 6 | M22: 29 | N22: 40 | O22: 116 | P22: 87 | Q22: 757 | R22: 141 | S22: 121 | T22: 56 | U22: 116 | V22: 37 | W22: 1179 | X22: 152 | Y22: 621 | Z22: 1611 | AA22: 26 | AB22: 23 | AC22: 8 | AD22: 2 | AE22: 4 | AF22: 282 | AG22: 171 | AH22: 151 | AI22: 91 | AJ22: 269 | AK22: 31 | AL22: 13 | AM22: 18 | AN22: 166 | AO22: 27 | AP22: 8 | AQ22: 26 | AR22: 13 | AS22: 5 | AT22: 25 | AU22: 13 | AV22: 9 | AW22: 22 | AX22: 22 | AY22: 19 | AZ22: 13 | BA22: Rosewood Practice | BB22: CH | BC22: CH-NE2 | BD22: Hackney Downs (NE2)
A23: CH_LDP | B23: 43586 | C23: 43588 | D23: F84119 | E23: 12349 | F23: 541 | G23: 8961 | H23: 8 | I23: 179 | J23: 109 | K23: 58 | L23: 18 | M23: 162 | N23: 185 | O23: 463 | P23: 388 | Q23: 4856 | R23: 498 | S23: 385 | T23: 242 | U23: 607 | V23: 152 | W23: 7371 | X23: 851 | Y23: 4079 | Z23: 10327 | AA23: 184 | AB23: 164 | AC23: 79 | AD23: 12 | AE23: 41 | AF23: 1083 | AG23: 833 | AH23: 364 | AI23: 321 | AJ23: 967 | AK23: 171 | AL23: 113 | AM23: 154 | AN23: 561 | AO23: 145 | AP23: 23 | AQ23: 135 | AR23: 59 | AS23: 6 | AT23: 102 | AU23: 82 | AV23: 74 | AW23: 136 | AX23: 92 | AY23: 90 | AZ23: 73 | BA23: The Heron Practice | BB23: CH | BC23: CH-NW1 | BD23: Woodberry Wetlands (NW1)
A24: CH_LDP | B24: 43586 | C24: 43588 | D24: F84033 | E24: 12012 | F24: 583 | G24: 8593 | H24: 1 | I24: 203 | J24: 77 | K24: 43 | L24: 9 | M24: 161 | N24: 217 | O24: 468 | P24: 345 | Q24: 4733 | R24: 535 | S24: 443 | T24: 253 | U24: 644 | V24: 164 | W24: 6638 | X24: 1188 | Y24: 3565 | Z24: 9999 | AA24: 166 | AB24: 139 | AC24: 71 | AD24: 4 | AE24: 30 | AF24: 1220 | AG24: 898 | AH24: 439 | AI24: 340 | AJ24: 1123 | AK24: 199 | AL24: 135 | AM24: 173 | AN24: 601 | AO24: 131 | AP24: 36 | AQ24: 127 | AR24: 63 | AS24: 4 | AT24: 101 | AU24: 92 | AV24: 96 | AW24: 161 | AX24: 111 | AY24: 110 | AZ24: 100 | BA24: Somerford Grove Practice | BB24: CH | BC24: CH-NW2 | BD24: Clissold Park (NW2)
A25: CH_LDP | B25: 43586 | C25: 43588 | D25: F84021 | E25: 10368 | F25: 432 | G25: 7679 | H25: 8 | I25: 176 | J25: 64 | K25: 42 | L25: 9 | M25: 131 | N25: 189 | O25: 384 | P25: 299 | Q25: 3578 | R25: 378 | S25: 331 | T25: 168 | U25: 376 | V25: 92 | W25: 5687 | X25: 746 | Y25: 2470 | Z25: 8686 | AA25: 153 | AB25: 111 | AC25: 54 | AD25: 5 | AE25: 23 | AF25: 870 | AG25: 584 | AH25: 311 | AI25: 282 | AJ25: 801 | AK25: 144 | AL25: 83 | AM25: 100 | AN25: 459 | AO25: 109 | AP25: 30 | AQ25: 98 | AR25: 43 | AS25: 2 | AT25: 79 | AU25: 79 | AV25: 83 | AW25: 110 | AX25: 84 | AY25: 73 | AZ25: 56 | BA25: London Fields Medical Centre | BB25: CH | BC25: CH-SW1 | BD25: London Fields (SW1)
A26: CH_LDP | B26: 43586 | C26: 43588 | D26: F84035 | E26: 7864 | F26: 239 | G26: 6276 | H26: 4 | I26: 63 | J26: 20 | K26: 16 | L26: 4 | M26: 53 | N26: 66 | O26: 186 | P26: 132 | Q26: 1827 | R26: 219 | S26: 182 | T26: 103 | U26: 228 | V26: 72 | W26: 5413 | X26: 595 | Y26: 2896 | Z26: 7052 | AA26: 48 | AB26: 39 | AC26: 9 | AD26: 1 | AE26: 6 | AF26: 479 | AG26: 311 | AH26: 203 | AI26: 140 | AJ26: 448 | AK26: 69 | AL26: 30 | AM26: 41 | AN26: 258 | AO26: 66 | AP26: 11 | AQ26: 66 | AR26: 29 | AS26: 4 | AT26: 56 | AU26: 58 | AV26: 27 | AW26: 52 | AX26: 50 | AY26: 47 | AZ26: 33 | BA26: Richmond Road Medical Centre | BB26: CH | BC26: CH-SW1 | BD26: London Fields (SW1)
A27: CH_LDP | B27: 43586 | C27: 43588 | D27: F84038 | E27: 4050 | F27: 232 | G27: 2937 | H27: 0 | I27: 56 | J27: 50 | K27: 38 | L27: 5 | M27: 53 | N27: 61 | O27: 191 | P27: 128 | Q27: 2106 | R27: 224 | S27: 152 | T27: 102 | U27: 251 | V27: 58 | W27: 2493 | X27: 442 | Y27: 1611 | Z27: 3479 | AA27: 96 | AB27: 81 | AC27: 50 | AD27: 3 | AE27: 10 | AF27: 491 | AG27: 347 | AH27: 180 | AI27: 124 | AJ27: 402 | AK27: 89 | AL27: 38 | AM27: 53 | AN27: 262 | AO27: 71 | AP27: 8 | AQ27: 59 | AR27: 23 | AS27: 4 | AT27: 47 | AU27: 40 | AV27: 31 | AW27: 55 | AX27: 46 | AY27: 40 | AZ27: 36 | BA27: Beechwood Medical Centre | BB27: CH | BC27: CH-SW1 | BD27: London Fields (SW1)
A28: CH_LDP | B28: 43586 | C28: 43588 | D28: F84036 | E28: 7140 | F28: 311 | G28: 5103 | H28: 3 | I28: 98 | J28: 90 | K28: 57 | L28: 17 | M28: 73 | N28: 107 | O28: 314 | P28: 219 | Q28: 4800 | R28: 268 | S28: 235 | T28: 128 | U28: 363 | V28: 83 | W28: 3983 | X28: 500 | Y28: 2099 | Z28: 6000 | AA28: 159 | AB28: 130 | AC28: 67 | AD28: 1 | AE28: 31 | AF28: 722 | AG28: 464 | AH28: 181 | AI28: 184 | AJ28: 639 | AK28: 123 | AL28: 81 | AM28: 93 | AN28: 346 | AO28: 91 | AP28: 19 | AQ28: 80 | AR28: 28 | AS28: 2 | AT28: 57 | AU28: 63 | AV28: 70 | AW28: 93 | AX28: 59 | AY28: 53 | AZ28: 39 | BA28: Cedar Practice | BB28: CH | BC28: CH-NW1 | BD28: Woodberry Wetlands (NW1)
A29: CH_LDP | B29: 43586 | C29: 43588 | D29: F84008 | E29: 12556 | F29: 552 | G29: 8927 | H29: 15 | I29: 202 | J29: 114 | K29: 52 | L29: 13 | M29: 149 | N29: 218 | O29: 589 | P29: 371 | Q29: 5248 | R29: 459 | S29: 392 | T29: 178 | U29: 422 | V29: 114 | W29: 6115 | X29: 677 | Y29: 3059 | Z29: 10309 | AA29: 226 | AB29: 165 | AC29: 67 | AD29: 2 | AE29: 43 | AF29: 1285 | AG29: 802 | AH29: 369 | AI29: 334 | AJ29: 1138 | AK29: 220 | AL29: 130 | AM29: 152 | AN29: 579 | AO29: 164 | AP29: 46 | AQ29: 141 | AR29: 70 | AS29: 1 | AT29: 118 | AU29: 112 | AV29: 116 | AW29: 153 | AX29: 139 | AY29: 130 | AZ29: 96 | BA29: Barton House Health Centre | BB29: CH | BC29: CH-NW2 | BD29: Clissold Park (NW2)
A30: CH_LDP | B30: 43586 | C30: 43588 | D30: F84003 | E30: 13677 | F30: 786 | G30: 9215 | H30: 11 | I30: 228 | J30: 143 | K30: 48 | L30: 20 | M30: 159 | N30: 237 | O30: 657 | P30: 432 | Q30: 4526 | R30: 701 | S30: 530 | T30: 318 | U30: 631 | V30: 156 | W30: 7063 | X30: 1040 | Y30: 3245 | Z30: 11049 | AA30: 257 | AB30: 185 | AC30: 84 | AD30: 3 | AE30: 39 | AF30: 1608 | AG30: 1130 | AH30: 506 | AI30: 442 | AJ30: 1533 | AK30: 314 | AL30: 167 | AM30: 214 | AN30: 816 | AO30: 200 | AP30: 47 | AQ30: 176 | AR30: 78 | AS30: 4 | AT30: 139 | AU30: 124 | AV30: 153 | AW30: 256 | AX30: 189 | AY30: 173 | AZ30: 130 | BA30: Lower Clapton Group Practice | BB30: CH | BC30: CH-SE1 | BD30: Hackney Marshes (SE1)
A31: CH_LDP | B31: 43586 | C31: 43588 | D31: F84013 | E31: 15146 | F31: 487 | G31: 6548 | H31: 19 | I31: 175 | J31: 61 | K31: 40 | L31: 10 | M31: 139 | N31: 185 | O31: 473 | P31: 367 | Q31: 2749 | R31: 438 | S31: 391 | T31: 225 | U31: 477 | V31: 98 | W31: 5578 | X31: 362 | Y31: 2341 | Z31: 9076 | AA31: 151 | AB31: 109 | AC31: 36 | AD31: 4 | AE31: 14 | AF31: 991 | AG31: 741 | AH31: 286 | AI31: 290 | AJ31: 911 | AK31: 181 | AL31: 115 | AM31: 136 | AN31: 512 | AO31: 88 | AP31: 23 | AQ31: 73 | AR31: 28 | AS31: 3 | AT31: 57 | AU31: 62 | AV31: 57 | AW31: 136 | AX31: 90 | AY31: 84 | AZ31: 70 | BA31: Stamford Hill Surgery | BB31: CH | BC31: CH-NE1 | BD31: Springfield Park (NE1)
A32: CH_LDP | B32: 43586 | C32: 43588 | D32: F84018 | E32: 11727 | F32: 588 | G32: 7986 | H32: 4 | I32: 186 | J32: 94 | K32: 72 | L32: 15 | M32: 136 | N32: 189 | O32: 472 | P32: 388 | Q32: 5088 | R32: 533 | S32: 419 | T32: 252 | U32: 591 | V32: 179 | W32: 6300 | X32: 902 | Y32: 3599 | Z32: 9391 | AA32: 190 | AB32: 169 | AC32: 75 | AD32: 9 | AE32: 33 | AF32: 1106 | AG32: 795 | AH32: 386 | AI32: 339 | AJ32: 1043 | AK32: 186 | AL32: 120 | AM32: 167 | AN32: 610 | AO32: 121 | AP32: 33 | AQ32: 114 | AR32: 47 | AS32: 3 | AT32: 91 | AU32: 75 | AV32: 84 | AW32: 150 | AX32: 94 | AY32: 92 | AZ32: 66 | BA32: The Nightingale Practice | BB32: CH | BC32: CH-NE2 | BD32: Hackney Downs (NE2)
A33: CH_LDP | B33: 43586 | C33: 43588 | D33: F84015 | E33: 5446 | F33: 414 | G33: 3423 | H33: 4 | I33: 156 | J33: 54 | K33: 38 | L33: 11 | M33: 119 | N33: 165 | O33: 270 | P33: 231 | Q33: 2272 | R33: 383 | S33: 313 | T33: 178 | U33: 421 | V33: 143 | W33: 3122 | X33: 474 | Y33: 1945 | Z33: 4304 | AA33: 87 | AB33: 76 | AC33: 39 | AD33: 2 | AE33: 17 | AF33: 837 | AG33: 601 | AH33: 303 | AI33: 245 | AJ33: 789 | AK33: 104 | AL33: 73 | AM33: 92 | AN33: 428 | AO33: 90 | AP33: 15 | AQ33: 86 | AR33: 30 | AS33: 7 | AT33: 70 | AU33: 51 | AV33: 45 | AW33: 90 | AX33: 66 | AY33: 64 | AZ33: 46 | BA33: Kingsmead Healthcare | BB33: CH | BC33: CH-SE1 | BD33: Hackney Marshes (SE1)
A34: CH_LDP | B34: 43586 | C34: 43588 | D34: F84041 | E34: 7744 | F34: 447 | G34: 5811 | H34: 7 | I34: 174 | J34: 45 | K34: 32 | L34: 6 | M34: 129 | N34: 180 | O34: 384 | P34: 294 | Q34: 3542 | R34: 414 | S34: 351 | T34: 215 | U34: 434 | V34: 111 | W34: 4601 | X34: 534 | Y34: 2508 | Z34: 6701 | AA34: 113 | AB34: 82 | AC34: 35 | AD34: 3 | AE34: 20 | AF34: 904 | AG34: 598 | AH34: 323 | AI34: 263 | AJ34: 817 | AK34: 139 | AL34: 93 | AM34: 103 | AN34: 476 | AO34: 87 | AP34: 27 | AQ34: 81 | AR34: 25 | AS34: 3 | AT34: 61 | AU34: 45 | AV34: 59 | AW34: 106 | AX34: 67 | AY34: 64 | AZ34: 53 | BA34: Southgate & Whiston Road Surgery | BB34: CH | BC34: CH-SW2 | BD34: Shoreditch Park & City (SW2)
A35: CH_LDP | B35: 43586 | C35: 43588 | D35: F84096 | E35: 13172 | F35: 628 | G35: 9134 | H35: 8 | I35: 277 | J35: 145 | K35: 63 | L35: 29 | M35: 217 | N35: 298 | O35: 616 | P35: 429 | Q35: 4388 | R35: 565 | S35: 455 | T35: 233 | U35: 579 | V35: 161 | W35: 7059 | X35: 968 | Y35: 2942 | Z35: 10896 | AA35: 231 | AB35: 172 | AC35: 81 | AD35: 5 | AE35: 38 | AF35: 1189 | AG35: 838 | AH35: 473 | AI35: 352 | AJ35: 1106 | AK35: 228 | AL35: 117 | AM35: 157 | AN35: 660 | AO35: 240 | AP35: 47 | AQ35: 213 | AR35: 86 | AS35: 9 | AT35: 174 | AU35: 193 | AV35: 173 | AW35: 179 | AX35: 128 | AY35: 113 | AZ35: 92 | BA35: The Lawson Practice | BB35: CH | BC35: CH-SW2 | BD35: Shoreditch Park & City (SW2)
A36: CH_LDP | B36: 43586 | C36: 43588 | D36: F84080 | E36: 4823 | F36: 322 | G36: 2898 | H36: 2 | I36: 93 | J36: 28 | K36: 20 | L36: 6 | M36: 74 | N36: 102 | O36: 303 | P36: 233 | Q36: 1439 | R36: 293 | S36: 240 | T36: 99 | U36: 267 | V36: 68 | W36: 2601 | X36: 265 | Y36: 1313 | Z36: 3622 | AA36: 61 | AB36: 38 | AC36: 18 | AD36: 1 | AE36: 2 | AF36: 687 | AG36: 467 | AH36: 204 | AI36: 189 | AJ36: 622 | AK36: 106 | AL36: 68 | AM36: 87 | AN36: 345 | AO36: 68 | AP36: 24 | AQ36: 63 | AR36: 27 | AS36: 5 | AT36: 43 | AU36: 41 | AV36: 30 | AW36: 92 | AX36: 35 | AY36: 33 | AZ36: 25 | BA36: The Gadvhi Practice | BB36: CH | BC36: CH-NE2 | BD36: Hackney Downs (NE2)
A37: CH_LDP | B37: 43586 | C37: 43588 | D37: F84105 | E37: 11604 | F37: 590 | G37: 7988 | H37: 13 | I37: 158 | J37: 55 | K37: 47 | L37: 7 | M37: 120 | N37: 167 | O37: 420 | P37: 265 | Q37: 4502 | R37: 550 | S37: 399 | T37: 216 | U37: 562 | V37: 148 | W37: 6608 | X37: 730 | Y37: 3267 | Z37: 9338 | AA37: 135 | AB37: 111 | AC37: 43 | AD37: 3 | AE37: 22 | AF37: 1078 | AG37: 725 | AH37: 437 | AI37: 366 | AJ37: 1002 | AK37: 144 | AL37: 62 | AM37: 82 | AN37: 623 | AO37: 101 | AP37: 28 | AQ37: 89 | AR37: 31 | AS37: 3 | AT37: 80 | AU37: 58 | AV37: 54 | AW37: 105 | AX37: 102 | AY37: 97 | AZ37: 70 | BA37: The Lea Surgery | BB37: CH | BC37: CH-SE1 | BD37: Hackney Marshes (SE1)
A38: CH_LDP | B38: 43586 | C38: 43588 | D38: F84117 | E38: 10064 | F38: 438 | G38: 7331 | H38: 4 | I38: 120 | J38: 54 | K38: 27 | L38: 11 | M38: 100 | N38: 125 | O38: 376 | P38: 262 | Q38: 3001 | R38: 377 | S38: 330 | T38: 131 | U38: 338 | V38: 87 | W38: 5368 | X38: 613 | Y38: 2203 | Z38: 8462 | AA38: 138 | AB38: 102 | AC38: 40 | AD38: 1 | AE38: 36 | AF38: 866 | AG38: 626 | AH38: 303 | AI38: 272 | AJ38: 802 | AK38: 164 | AL38: 93 | AM38: 121 | AN38: 454 | AO38: 112 | AP38: 36 | AQ38: 100 | AR38: 38 | AS38: 3 | AT38: 81 | AU38: 70 | AV38: 75 | AW38: 136 | AX38: 121 | AY38: 112 | AZ38: 103 | BA38: Queensbridge Group Practice | BB38: CH | BC38: CH-SW1 | BD38: London Fields (SW1)
A39: CH_LDP | B39: 43586 | C39: 43588 | D39: F84115 | E39: 8688 | F39: 284 | G39: 6398 | H39: 6 | I39: 100 | J39: 28 | K39: 15 | L39: 7 | M39: 78 | N39: 110 | O39: 277 | P39: 176 | Q39: 2647 | R39: 244 | S39: 201 | T39: 76 | U39: 187 | V39: 70 | W39: 4491 | X39: 456 | Y39: 1557 | Z39: 7323 | AA39: 95 | AB39: 71 | AC39: 28 | AD39: 1 | AE39: 26 | AF39: 614 | AG39: 413 | AH39: 188 | AI39: 162 | AJ39: 566 | AK39: 144 | AL39: 80 | AM39: 97 | AN39: 300 | AO39: 138 | AP39: 29 | AQ39: 114 | AR39: 50 | AS39: 7 | AT39: 94 | AU39: 101 | AV39: 103 | AW39: 103 | AX39: 71 | AY39: 66 | AZ39: 52 | BA39: Statham Grove Surgery | BB39: CH | BC39: CH-NW1 | BD39: Woodberry Wetlands (NW1)
A40: CH_LDP | B40: 43586 | C40: 43588 | D40: F84060 | E40: 4753 | F40: 279 | G40: 3347 | H40: 2 | I40: 76 | J40: 36 | K40: 24 | L40: 6 | M40: 54 | N40: 81 | O40: 179 | P40: 143 | Q40: 1747 | R40: 245 | S40: 202 | T40: 106 | U40: 241 | V40: 69 | W40: 2675 | X40: 304 | Y40: 1293 | Z40: 3953 | AA40: 68 | AB40: 56 | AC40: 19 | AD40: 0 | AE40: 15 | AF40: 502 | AG40: 299 | AH40: 185 | AI40: 171 | AJ40: 458 | AK40: 60 | AL40: 38 | AM40: 44 | AN40: 291 | AO40: 29 | AP40: 10 | AQ40: 27 | AR40: 7 | AS40: 1 | AT40: 20 | AU40: 18 | AV40: 14 | AW40: 41 | AX40: 46 | AY40: 41 | AZ40: 29 | BA40: Athena Medical Centre | BB40: CH | BC40: CH-SE1 | BD40: Hackney Marshes (SE1)
A41: CH_LDP | B41: 43586 | C41: 43588 | D41: F84043 | E41: 2896 | F41: 168 | G41: 1735 | H41: 1 | I41: 42 | J41: 31 | K41: 7 | L41: 5 | M41: 31 | N41: 46 | O41: 119 | P41: 80 | Q41: 877 | R41: 151 | S41: 114 | T41: 55 | U41: 107 | V41: 35 | W41: 1313 | X41: 209 | Y41: 511 | Z41: 2250 | AA41: 62 | AB41: 40 | AC41: 19 | AD41: 0 | AE41: 10 | AF41: 337 | AG41: 217 | AH41: 101 | AI41: 96 | AJ41: 314 | AK41: 51 | AL41: 23 | AM41: 33 | AN41: 177 | AO41: 30 | AP41: 6 | AQ41: 24 | AR41: 15 | AS41: 0 | AT41: 15 | AU41: 19 | AV41: 23 | AW41: 37 | AX41: 35 | AY41: 35 | AZ41: 25
A42: CH_LDP | B42: 43586 | C42: 43588 | D42: F84063 | E42: 6033 | F42: 411 | G42: 4384 | H42: 4 | I42: 138 | J42: 47 | K42: 25 | L42: 7 | M42: 116 | N42: 143 | O42: 266 | P42: 205 | Q42: 2058 | R42: 347 | S42: 281 | T42: 144 | U42: 353 | V42: 86 | W42: 3684 | X42: 703 | Y42: 2215 | Z42: 5174 | AA42: 84 | AB42: 69 | AC42: 22 | AD42: 0 | AE42: 23 | AF42: 672 | AG42: 472 | AH42: 306 | AI42: 250 | AJ42: 619 | AK42: 123 | AL42: 86 | AM42: 105 | AN42: 435 | AO42: 70 | AP42: 16 | AQ42: 64 | AR42: 31 | AS42: 0 | AT42: 58 | AU42: 49 | AV42: 22 | AW42: 95 | AX42: 58 | AY42: 53 | AZ42: 39 | BA42: Dalston Practice | BB42: CH | BC42: CH-SW1 | BD42: London Fields (SW1)
A43: CH_LDP | B43: 43586 | C43: 43588 | D43: F84072 | E43: 10731 | F43: 241 | G43: 8619 | H43: 8 | I43: 67 | J43: 29 | K43: 20 | L43: 5 | M43: 50 | N43: 72 | O43: 192 | P43: 131 | Q43: 2392 | R43: 212 | S43: 164 | T43: 92 | U43: 227 | V43: 64 | W43: 5993 | X43: 544 | Y43: 2284 | Z43: 9301 | AA43: 93 | AB43: 87 | AC43: 31 | AD43: 1 | AE43: 19 | AF43: 490 | AG43: 279 | AH43: 144 | AI43: 140 | AJ43: 451 | AK43: 56 | AL43: 30 | AM43: 37 | AN43: 247 | AO43: 59 | AP43: 14 | AQ43: 58 | AR43: 32 | AS43: 2 | AT43: 34 | AU43: 25 | AV43: 34 | AW43: 45 | AX43: 48 | AY43: 42 | AZ43: 26 | BA43: De Beauvoir Surgery | BB43: CH | BC43: CH-SW2 | BD43: Shoreditch Park & City (SW2)
A44: CH_LDP | B44: 43586 | C44: 43588 | D44: F84069 | E44: 14524 | F44: 654 | G44: 10266 | H44: 3 | I44: 213 | J44: 122 | K44: 85 | L44: 22 | M44: 166 | N44: 223 | O44: 591 | P44: 425 | Q44: 4378 | R44: 559 | S44: 460 | T44: 295 | U44: 620 | V44: 194 | W44: 7263 | X44: 1108 | Y44: 3575 | Z44: 11843 | AA44: 268 | AB44: 226 | AC44: 98 | AD44: 3 | AE44: 51 | AF44: 1360 | AG44: 960 | AH44: 439 | AI44: 355 | AJ44: 1274 | AK44: 217 | AL44: 129 | AM44: 161 | AN44: 677 | AO44: 245 | AP44: 53 | AQ44: 217 | AR44: 108 | AS44: 3 | AT44: 164 | AU44: 172 | AV44: 192 | AW44: 175 | AX44: 118 | AY44: 110 | AZ44: 89 | BA44: The Well Street Surgery | BB44: CH | BC44: CH-SE2 | BD44: Well Street Common (SE2)
A45: CH_LDP | B45: 43617 | C45: 43619 | D45: F84635 | E45: 8871 | F45: 311 | G45: 6251 | H45: 5 | I45: 81 | J45: 38 | K45: 25 | L45: 5 | M45: 56 | N45: 86 | O45: 273 | P45: 172 | Q45: 2198 | R45: 250 | S45: 215 | T45: 132 | U45: 341 | V45: 84 | W45: 5196 | X45: 742 | Y45: 2341 | Z45: 7532 | AA45: 122 | AB45: 78 | AC45: 38 | AD45: 2 | AE45: 11 | AF45: 690 | AG45: 412 | AH45: 228 | AI45: 167 | AJ45: 626 | AK45: 100 | AL45: 61 | AM45: 71 | AN45: 330 | AO45: 98 | AP45: 19 | AQ45: 76 | AR45: 32 | AS45: 4 | AT45: 76 | AU45: 76 | AV45: 79 | AW45: 80 | AX45: 67 | AY45: 60 | AZ45: 41 | BA45: Shoreditch Park Surgery | BB45: CH | BC45: CH-SW2 | BD45: Shoreditch Park & City (SW2)
A46: CH_LDP | B46: 43617 | C46: 43619 | D46: F84632 | E46: 1053 | F46: 57 | G46: 977 | H46: 1 | I46: 13 | J46: 34 | K46: 17 | L46: 2 | M46: 8 | N46: 13 | O46: 49 | P46: 33 | Q46: 591 | R46: 46 | S46: 41 | T46: 28 | U46: 81 | V46: 12 | W46: 699 | X46: 343 | Y46: 582 | Z46: 1053 | AA46: 89 | AB46: 79 | AC46: 59 | AD46: 4 | AE46: 8 | AF46: 117 | AG46: 54 | AH46: 36 | AI46: 32 | AJ46: 100 | AK46: 22 | AL46: 11 | AM46: 18 | AN46: 61 | AO46: 36 | AP46: 13 | AQ46: 30 | AR46: 20 | AS46: 1 | AT46: 25 | AU46: 28 | AV46: 20 | AW46: 13 | AX46: 10 | AY46: 10 | AZ46: 6 | BA46: The Greenhouse | BB46: CH | BC46: CH-SE2 | BD46: Well Street Common (SE2)
A47: CH_LDP | B47: 43617 | C47: 43619 | D47: F84636 | E47: 5015 | F47: 180 | G47: 3856 | H47: 5 | I47: 42 | J47: 27 | K47: 15 | L47: 5 | M47: 32 | N47: 48 | O47: 139 | P47: 92 | Q47: 1602 | R47: 151 | S47: 123 | T47: 73 | U47: 160 | V47: 42 | W47: 2901 | X47: 394 | Y47: 1490 | Z47: 4412 | AA47: 68 | AB47: 49 | AC47: 17 | AD47: 1 | AE47: 14 | AF47: 381 | AG47: 237 | AH47: 146 | AI47: 88 | AJ47: 334 | AK47: 43 | AL47: 19 | AM47: 24 | AN47: 200 | AO47: 22 | AP47: 8 | AQ47: 20 | AR47: 4 | AS47: 0 | AT47: 12 | AU47: 13 | AV47: 12 | AW47: 31 | AX47: 37 | AY47: 33 | AZ47: 26 | BA47: Barretts Grove Surgery | BB47: CH | BC47: CH-NW2 | BD47: Clissold Park (NW2)
A48: CH_LDP | B48: 43617 | C48: 43619 | D48: F84668 | E48: 6604 | F48: 271 | G48: 3228 | H48: 0 | I48: 80 | J48: 31 | K48: 29 | L48: 5 | M48: 61 | N48: 96 | O48: 214 | P48: 157 | Q48: 1788 | R48: 243 | S48: 202 | T48: 156 | U48: 368 | V48: 86 | W48: 3172 | X48: 322 | Y48: 1742 | Z48: 4371 | AA48: 66 | AB48: 58 | AC48: 21 | AD48: 11 | AE48: 5 | AF48: 489 | AG48: 309 | AH48: 221 | AI48: 171 | AJ48: 442 | AK48: 55 | AL48: 36 | AM48: 41 | AN48: 302 | AO48: 28 | AP48: 8 | AQ48: 27 | AR48: 13 | AS48: 7 | AT48: 24 | AU48: 25 | AV48: 24 | AW48: 37 | AX48: 38 | AY48: 37 | AZ48: 29 | BA48: Clapton Surgery | BB48: CH | BC48: CH-NE2 | BD48: Hackney Downs (NE2)
